Workbook

Sheet MENU
C3: BANKING CONSOLE v1.0
C4: DOTT. LEONE GABRIELE
C5: WWW.LEONEADVISOR.IT
C6: MENU
C8: MUTUO | G8: CONTO CORRENTE

Sheet 1) INPUT MUTUO
B1: DOTT. LEONE GABRIELE
B2: WWW.LEONEADVISOR.IT
B3: INPUT VERIFICA TEG - MUTUO
B5: DATA EROGAZIONE | D5: 2010-01-01
B6: DATA PRIMA RATA | D6: 2010-02-01
B7: TIPOLOGIA AMMORTAMENTO | D7: FRANCESE
B8: CAPITALE EROGATO | D8: 100000
B9: TASSO NOMINALE ANNUALE BANCA (TAN) | D9: 0.03
B10: NUMERO RATE | D10: 100
B11: PERIODICITA' | D11: M
B12: M=MENSILE T=TRIMESTRALE S=SEMESTRALE A=ANNUALE
B13: BASE CALCOLO GG ANNO | D13: 360
B14: TASSO DI MORA | D14: 0.045
B15: BASE CALCOLO MORA | D15: RATA
B16: SPESE PER ADDEBITO RATA INSOLUTA | D16: 2.5
B17: FINE PRIMO ANNO SOLARE | D17: =+DATE(YEAR(D6),12,31) -> 2010-12-31
B18: TASSO SOGLIA USURA VIGENTE ALLA SOTTOSCRIZIONE | D18: 0.1825
B19: SPESE ADDEBITATE AD OGNI RATA
B21: CRUSCOTTO SPESE ADDEBITATE ALL'EROGAZIONE | D21: IMPORTO
B22: SPESE ISTRUTTORIA
B27: TOTALE | D27: =SUM(D22:D26) -> 0
B29: CRUSCOTTO SPESE ADDEBBITATE ANNUALMENTE
B30: DESCRIZIONE | C30: IMPORTO | D30: DATA ADDEBITO | F30: CHECK
B31: COMUNICAZIONE ANNUALE | D31: 2010-07-01 | F31: =+IF(C31>0,"ok",0) -> 0
C32: 0 | F32: =+IF(C32>0,"ok",0) -> 0
C33: 0 | F33: =+IF(C33>0,"ok",0) -> 0
C34: 0 | F34: =+IF(C34>0,"ok",0) -> 0
C35: 0 | F35: =+IF(C35>0,"ok",0) -> 0
B36: TOTALE | C36: =SUM(C31:C35) -> 0
B38: PREAMMORTAMENTO
B39: NUMERO RATE | C39: 0 | D39: max 12
B40: PERIODICITA' | C40: M
B41: TASSO PREAMMORTAMENTO | C41: 0
B42: DATA ADDEBITO PRIMA RATA | C42: 00:00:00
B43: DATA ADDEBITO ULTIMA RATA | C43: =+IF(EOMONTH(C42,0)=C42,IF(C41=0,0,IF(C40="M",EOMONTH(C42,C39-1),IF(C40="T",EOMONTH(C42,C39*3-3),IF(C40="S",EOMONTH(C42,C39*6-6),IF(C40="A",EOMONTH(C42,C39*12-12)))))),IF(C41=0,0,IF(C40="M",EDATE(C42,C39-1),IF(C40="T",EDATE(C42,C39*3-3),IF(C40="S",EDATE(C42,C39*6-6),IF(C40="A",EDATE(C42,C39*12-12))))))) -> 00:00:00
B45: CRUSCOTTO ESTINZIONE ANTICIPATA
B46: ESTINZIONE ANTICIPATA | C46: SI
B47: PENALE % SU RATE A SCADERE | C47: 0.1
B48: PENALE % SU QUOTA CAPITALE A SCADERE | C48: 0
B49: PENALE FISSA | C49: 0
B50: SPESA PER COMUNICAZIONE ESTINZIONE | C50: 0
B51: DATA ESTINZIONE | C51: 2013-04-23
B52: leoneadvisor@gmail.com

Sheet 2) OUTPUT PIANO
A1: PANNELLO COMANDI
A2: 1-> CALCOLA TAN PERIODALE
A3: TAN PERIODALE | B3: =+'1) INPUT MUTUO'!D11 -> M | C3: =+FORMULE!B6 -> 0.0025 | D3: Se restituisce "FALSO" verificare presenza di spazi all'interno della cella di input o errata digitazione
A4: 2-> CREA PIANO
A5: 3-> INSERISCI SPESE
A6: SPESE ALL'EROGAZIONE | B6: SI | C6: (SI O NO) | D6: Si può segliere se inserire le varie spese, per determinarne l'impatto sul TEG singolarmente o complessivamente.
A7: SPESE RATEALI | B7: SI | C7: (SI O NO)
A8: SPESE PERIODICHE | B8: SI | C8: (SI O NO)
A9: 4-> PRE AMMORTAMENTO | B9: NO | C9: (SI O NO)
A11: 5-> CALCOLA FLUSSO
A12: 6-> CALCOLA TEG
A13: TEG | B13: =+XIRR(K17:K1029,A17:A1029,1) -> 0.030412402
A14: DOTT. LEONE GABRIELE
A15: PIANO DI AMMORTAMENTO BASE
A16: DATA | B16: RATA N. | C16: EROGATO | D16: QUOTA CAPITALE | E16: QUOTA INTERESSI | F16: IMPORTO RATA | G16: SPESE RATA | H16: SPESE ALL'EROGAZIONE | I16: SPESE PERIODICHE | J16: ALTRE SPESE | K16: FLUSSO | L16: DEBITO RESIDUO | M16: =+'MATRIX SP. PERIODICHE'!AZ1 -> CHECK SP1 | N16: =+'MATRIX SP. PERIODICHE'!CZ1 -> CHECK SP2 | O16: =+'MATRIX SP. PERIODICHE'!EZ1 -> CHECK SP3 | P16: =+'MATRIX SP. PERIODICHE'!GZ1 -> CHECK SP4 | Q16: =+'MATRIX SP. PERIODICHE'!IZ1 -> CHECK SP5 | R16: GG RATA
A17: =+'1) INPUT MUTUO'!D5 -> 2010-01-01 | B17: EROGAZIONE | C17: =+'1) INPUT MUTUO'!D8 -> 100000 | H17: =+IF($B$6="SI",'1) INPUT MUTUO'!D27,0) -> 0 | K17: =IF(B17=0,0,C17-F17-G17-H17-I17-J17) -> 100000 | L17: =+C17 -> 100000
A18: =+IF(B9="SI",'1) INPUT MUTUO'!C42,A17) -> 2010-01-01 | B18: preammortamento | E18: =IF($B$9="NO",0,IF(A18>'1) INPUT MUTUO'!$C$43,0,L17*FORMULE!$E$7*'2) OUTPUT PIANO'!R18)) -> 0 | I18: =IF($B$8="SI",IF(F18=0,0,SUM(M18:Q18)),0) -> 0 | K18: =IF(B18=0,0,C18-E18-G18-H18-I18-J18) -> 0 | L18: =+L17 -> 100000 | R18: =+A18-A17 -> 0
A19: =IF($B$9="NO",A18,IF(EOMONTH('1) INPUT MUTUO'!$C$42,0)='1) INPUT MUTUO'!$C$42,IF(IF('1) INPUT MUTUO'!$C$40="M",EOMONTH('2) OUTPUT PIANO'!A18,1),IF('1) INPUT MUTUO'!$C$40="T",EOMONTH('2) OUTPUT PIANO'!A18,3),IF('1) INPUT MUTUO'!$C$40="S",EOMONTH('2) OUTPUT PIANO'!A18,6),IF('1) INPUT MUTUO'!$C$40="A",EOMONTH('2) OUTPUT PIANO'!A18,12)))))>'1) INPUT MUTUO'!$C$43,'2) OUTPUT PIANO'!$A$30,IF('1) INPUT MUTUO'!$C$40="M",EOMONTH('2) OUTPUT PIANO'!A18,1),IF('1) INPUT MUTUO'!$C$40="T",EOMONTH('2) OUTPUT PIANO'!A18,3),IF('1) INPUT MUTUO'!$C$40="S",EOMONTH('2) OUTPUT PIANO'!A18,6),IF('1) INPUT MUTUO'!$C$40="A",EOMONTH('2) OUTPUT PIANO'!A18,12)))))),IF(IF('1) INPUT MUTUO'!$C$40="M",EDATE('2) OUTPUT PIANO'!A18,1),IF('1) INPUT MUTUO'!$C$40="T",EDATE('2) OUTPUT PIANO'!A18,3),IF('1) INPUT MUTUO'!$C$40="S",EDATE('2) OUTPUT PIANO'!A18,6),IF('1) INPUT MUTUO'!$C$40="A",EDATE('2) OUTPUT PIANO'!A18,12)))))>'1) INPUT MUTUO'!$C$43,'2) OUTPUT PIANO'!$A$30,IF('1) INPUT MUTUO'!$C$40="M",EDATE('2) OUTPUT PIANO'!A18,1),IF('1) INPUT MUTUO'!$C$40="T",EDATE('2) OUTPUT PIANO'!A18,3),IF('1) INPUT MUTUO'!$C$40="S",EDATE('2) OUTPUT PIANO'!A18,6),IF('1) INPUT MUTUO'!$C$40="A",EDATE('2) OUTPUT PIANO'!A18,12)))))))) -> 2010-01-01 | B19: preammortamento | E19: =IF($B$9="NO",0,IF(A19>'1) INPUT MUTUO'!$C$43,0,L18*FORMULE!$E$7*'2) OUTPUT PIANO'!R19)) -> 0 | I19: 0 | K19: =IF(B19=0,0,C19-E19-G19-H19-I19-J19) -> 0 | L19: =+L18 -> 100000 | R19: =+A19-A18 -> 0
A20: =IF($B$9="NO",A19,IF(EOMONTH('1) INPUT MUTUO'!$C$42,0)='1) INPUT MUTUO'!$C$42,IF(IF('1) INPUT MUTUO'!$C$40="M",EOMONTH('2) OUTPUT PIANO'!A19,1),IF('1) INPUT MUTUO'!$C$40="T",EOMONTH('2) OUTPUT PIANO'!A19,3),IF('1) INPUT MUTUO'!$C$40="S",EOMONTH('2) OUTPUT PIANO'!A19,6),IF('1) INPUT MUTUO'!$C$40="A",EOMONTH('2) OUTPUT PIANO'!A19,12)))))>'1) INPUT MUTUO'!$C$43,'2) OUTPUT PIANO'!$A$30,IF('1) INPUT MUTUO'!$C$40="M",EOMONTH('2) OUTPUT PIANO'!A19,1),IF('1) INPUT MUTUO'!$C$40="T",EOMONTH('2) OUTPUT PIANO'!A19,3),IF('1) INPUT MUTUO'!$C$40="S",EOMONTH('2) OUTPUT PIANO'!A19,6),IF('1) INPUT MUTUO'!$C$40="A",EOMONTH('2) OUTPUT PIANO'!A19,12)))))),IF(IF('1) INPUT MUTUO'!$C$40="M",EDATE('2) OUTPUT PIANO'!A19,1),IF('1) INPUT MUTUO'!$C$40="T",EDATE('2) OUTPUT PIANO'!A19,3),IF('1) INPUT MUTUO'!$C$40="S",EDATE('2) OUTPUT PIANO'!A19,6),IF('1) INPUT MUTUO'!$C$40="A",EDATE('2) OUTPUT PIANO'!A19,12)))))>'1) INPUT MUTUO'!$C$43,'2) OUTPUT PIANO'!$A$30,IF('1) INPUT MUTUO'!$C$40="M",EDATE('2) OUTPUT PIANO'!A19,1),IF('1) INPUT MUTUO'!$C$40="T",EDATE('2) OUTPUT PIANO'!A19,3),IF('1) INPUT MUTUO'!$C$40="S",EDATE('2) OUTPUT PIANO'!A19,6),IF('1) INPUT MUTUO'!$C$40="A",EDATE('2) OUTPUT PIANO'!A19,12)))))))) -> 2010-01-01 | B20: preammortamento | E20: =IF($B$9="NO",0,IF(A20>'1) INPUT MUTUO'!$C$43,0,L19*FORMULE!$E$7*'2) OUTPUT PIANO'!R20)) -> 0 | I20: 0 | K20: 0 | L20: 100000 | R20: 0
A21: =IF($B$9="NO",A20,IF(EOMONTH('1) INPUT MUTUO'!$C$42,0)='1) INPUT MUTUO'!$C$42,IF(IF('1) INPUT MUTUO'!$C$40="M",EOMONTH('2) OUTPUT PIANO'!A20,1),IF('1) INPUT MUTUO'!$C$40="T",EOMONTH('2) OUTPUT PIANO'!A20,3),IF('1) INPUT MUTUO'!$C$40="S",EOMONTH('2) OUTPUT PIANO'!A20,6),IF('1) INPUT MUTUO'!$C$40="A",EOMONTH('2) OUTPUT PIANO'!A20,12)))))>'1) INPUT MUTUO'!$C$43,'2) OUTPUT PIANO'!$A$30,IF('1) INPUT MUTUO'!$C$40="M",EOMONTH('2) OUTPUT PIANO'!A20,1),IF('1) INPUT MUTUO'!$C$40="T",EOMONTH('2) OUTPUT PIANO'!A20,3),IF('1) INPUT MUTUO'!$C$40="S",EOMONTH('2) OUTPUT PIANO'!A20,6),IF('1) INPUT MUTUO'!$C$40="A",EOMONTH('2) OUTPUT PIANO'!A20,12)))))),IF(IF('1) INPUT MUTUO'!$C$40="M",EDATE('2) OUTPUT PIANO'!A20,1),IF('1) INPUT MUTUO'!$C$40="T",EDATE('2) OUTPUT PIANO'!A20,3),IF('1) INPUT MUTUO'!$C$40="S",EDATE('2) OUTPUT PIANO'!A20,6),IF('1) INPUT MUTUO'!$C$40="A",EDATE('2) OUTPUT PIANO'!A20,12)))))>'1) INPUT MUTUO'!$C$43,'2) OUTPUT PIANO'!$A$30,IF('1) INPUT MUTUO'!$C$40="M",EDATE('2) OUTPUT PIANO'!A20,1),IF('1) INPUT MUTUO'!$C$40="T",EDATE('2) OUTPUT PIANO'!A20,3),IF('1) INPUT MUTUO'!$C$40="S",EDATE('2) OUTPUT PIANO'!A20,6),IF('1) INPUT MUTUO'!$C$40="A",EDATE('2) OUTPUT PIANO'!A20,12)))))))) -> 2010-01-01 | B21: preammortamento | E21: =IF($B$9="NO",0,IF(A21>'1) INPUT MUTUO'!$C$43,0,L20*FORMULE!$E$7*'2) OUTPUT PIANO'!R21)) -> 0 | I21: 0 | K21: 0 | L21: 100000 | R21: 0
A22: =IF($B$9="NO",A21,IF(EOMONTH('1) INPUT MUTUO'!$C$42,0)='1) INPUT MUTUO'!$C$42,IF(IF('1) INPUT MUTUO'!$C$40="M",EOMONTH('2) OUTPUT PIANO'!A21,1),IF('1) INPUT MUTUO'!$C$40="T",EOMONTH('2) OUTPUT PIANO'!A21,3),IF('1) INPUT MUTUO'!$C$40="S",EOMONTH('2) OUTPUT PIANO'!A21,6),IF('1) INPUT MUTUO'!$C$40="A",EOMONTH('2) OUTPUT PIANO'!A21,12)))))>'1) INPUT MUTUO'!$C$43,'2) OUTPUT PIANO'!$A$30,IF('1) INPUT MUTUO'!$C$40="M",EOMONTH('2) OUTPUT PIANO'!A21,1),IF('1) INPUT MUTUO'!$C$40="T",EOMONTH('2) OUTPUT PIANO'!A21,3),IF('1) INPUT MUTUO'!$C$40="S",EOMONTH('2) OUTPUT PIANO'!A21,6),IF('1) INPUT MUTUO'!$C$40="A",EOMONTH('2) OUTPUT PIANO'!A21,12)))))),IF(IF('1) INPUT MUTUO'!$C$40="M",EDATE('2) OUTPUT PIANO'!A21,1),IF('1) INPUT MUTUO'!$C$40="T",EDATE('2) OUTPUT PIANO'!A21,3),IF('1) INPUT MUTUO'!$C$40="S",EDATE('2) OUTPUT PIANO'!A21,6),IF('1) INPUT MUTUO'!$C$40="A",EDATE('2) OUTPUT PIANO'!A21,12)))))>'1) INPUT MUTUO'!$C$43,'2) OUTPUT PIANO'!$A$30,IF('1) INPUT MUTUO'!$C$40="M",EDATE('2) OUTPUT PIANO'!A21,1),IF('1) INPUT MUTUO'!$C$40="T",EDATE('2) OUTPUT PIANO'!A21,3),IF('1) INPUT MUTUO'!$C$40="S",EDATE('2) OUTPUT PIANO'!A21,6),IF('1) INPUT MUTUO'!$C$40="A",EDATE('2) OUTPUT PIANO'!A21,12)))))))) -> 2010-01-01 | B22: preammortamento | E22: =IF($B$9="NO",0,IF(A22>'1) INPUT MUTUO'!$C$43,0,L21*FORMULE!$E$7*'2) OUTPUT PIANO'!R22)) -> 0 | I22: 0 | K22: 0 | L22: 100000 | R22: 0
A23: =IF($B$9="NO",A22,IF(EOMONTH('1) INPUT MUTUO'!$C$42,0)='1) INPUT MUTUO'!$C$42,IF(IF('1) INPUT MUTUO'!$C$40="M",EOMONTH('2) OUTPUT PIANO'!A22,1),IF('1) INPUT MUTUO'!$C$40="T",EOMONTH('2) OUTPUT PIANO'!A22,3),IF('1) INPUT MUTUO'!$C$40="S",EOMONTH('2) OUTPUT PIANO'!A22,6),IF('1) INPUT MUTUO'!$C$40="A",EOMONTH('2) OUTPUT PIANO'!A22,12)))))>'1) INPUT MUTUO'!$C$43,'2) OUTPUT PIANO'!$A$30,IF('1) INPUT MUTUO'!$C$40="M",EOMONTH('2) OUTPUT PIANO'!A22,1),IF('1) INPUT MUTUO'!$C$40="T",EOMONTH('2) OUTPUT PIANO'!A22,3),IF('1) INPUT MUTUO'!$C$40="S",EOMONTH('2) OUTPUT PIANO'!A22,6),IF('1) INPUT MUTUO'!$C$40="A",EOMONTH('2) OUTPUT PIANO'!A22,12)))))),IF(IF('1) INPUT MUTUO'!$C$40="M",EDATE('2) OUTPUT PIANO'!A22,1),IF('1) INPUT MUTUO'!$C$40="T",EDATE('2) OUTPUT PIANO'!A22,3),IF('1) INPUT MUTUO'!$C$40="S",EDATE('2) OUTPUT PIANO'!A22,6),IF('1) INPUT MUTUO'!$C$40="A",EDATE('2) OUTPUT PIANO'!A22,12)))))>'1) INPUT MUTUO'!$C$43,'2) OUTPUT PIANO'!$A$30,IF('1) INPUT MUTUO'!$C$40="M",EDATE('2) OUTPUT PIANO'!A22,1),IF('1) INPUT MUTUO'!$C$40="T",EDATE('2) OUTPUT PIANO'!A22,3),IF('1) INPUT MUTUO'!$C$40="S",EDATE('2) OUTPUT PIANO'!A22,6),IF('1) INPUT MUTUO'!$C$40="A",EDATE('2) OUTPUT PIANO'!A22,12)))))))) -> 2010-01-01 | B23: preammortamento | E23: =IF($B$9="NO",0,IF(A23>'1) INPUT MUTUO'!$C$43,0,L22*FORMULE!$E$7*'2) OUTPUT PIANO'!R23)) -> 0 | I23: 0 | K23: 0 | L23: 100000 | R23: 0
A24: =IF($B$9="NO",A23,IF(EOMONTH('1) INPUT MUTUO'!$C$42,0)='1) INPUT MUTUO'!$C$42,IF(IF('1) INPUT MUTUO'!$C$40="M",EOMONTH('2) OUTPUT PIANO'!A23,1),IF('1) INPUT MUTUO'!$C$40="T",EOMONTH('2) OUTPUT PIANO'!A23,3),IF('1) INPUT MUTUO'!$C$40="S",EOMONTH('2) OUTPUT PIANO'!A23,6),IF('1) INPUT MUTUO'!$C$40="A",EOMONTH('2) OUTPUT PIANO'!A23,12)))))>'1) INPUT MUTUO'!$C$43,'2) OUTPUT PIANO'!$A$30,IF('1) INPUT MUTUO'!$C$40="M",EOMONTH('2) OUTPUT PIANO'!A23,1),IF('1) INPUT MUTUO'!$C$40="T",EOMONTH('2) OUTPUT PIANO'!A23,3),IF('1) INPUT MUTUO'!$C$40="S",EOMONTH('2) OUTPUT PIANO'!A23,6),IF('1) INPUT MUTUO'!$C$40="A",EOMONTH('2) OUTPUT PIANO'!A23,12)))))),IF(IF('1) INPUT MUTUO'!$C$40="M",EDATE('2) OUTPUT PIANO'!A23,1),IF('1) INPUT MUTUO'!$C$40="T",EDATE('2) OUTPUT PIANO'!A23,3),IF('1) INPUT MUTUO'!$C$40="S",EDATE('2) OUTPUT PIANO'!A23,6),IF('1) INPUT MUTUO'!$C$40="A",EDATE('2) OUTPUT PIANO'!A23,12)))))>'1) INPUT MUTUO'!$C$43,'2) OUTPUT PIANO'!$A$30,IF('1) INPUT MUTUO'!$C$40="M",EDATE('2) OUTPUT PIANO'!A23,1),IF('1) INPUT MUTUO'!$C$40="T",EDATE('2) OUTPUT PIANO'!A23,3),IF('1) INPUT MUTUO'!$C$40="S",EDATE('2) OUTPUT PIANO'!A23,6),IF('1) INPUT MUTUO'!$C$40="A",EDATE('2) OUTPUT PIANO'!A23,12)))))))) -> 2010-01-01 | B24: preammortamento | E24: =IF($B$9="NO",0,IF(A24>'1) INPUT MUTUO'!$C$43,0,L23*FORMULE!$E$7*'2) OUTPUT PIANO'!R24)) -> 0 | I24: 0 | K24: 0 | L24: 100000 | R24: 0
A25: =IF($B$9="NO",A24,IF(EOMONTH('1) INPUT MUTUO'!$C$42,0)='1) INPUT MUTUO'!$C$42,IF(IF('1) INPUT MUTUO'!$C$40="M",EOMONTH('2) OUTPUT PIANO'!A24,1),IF('1) INPUT MUTUO'!$C$40="T",EOMONTH('2) OUTPUT PIANO'!A24,3),IF('1) INPUT MUTUO'!$C$40="S",EOMONTH('2) OUTPUT PIANO'!A24,6),IF('1) INPUT MUTUO'!$C$40="A",EOMONTH('2) OUTPUT PIANO'!A24,12)))))>'1) INPUT MUTUO'!$C$43,'2) OUTPUT PIANO'!$A$30,IF('1) INPUT MUTUO'!$C$40="M",EOMONTH('2) OUTPUT PIANO'!A24,1),IF('1) INPUT MUTUO'!$C$40="T",EOMONTH('2) OUTPUT PIANO'!A24,3),IF('1) INPUT MUTUO'!$C$40="S",EOMONTH('2) OUTPUT PIANO'!A24,6),IF('1) INPUT MUTUO'!$C$40="A",EOMONTH('2) OUTPUT PIANO'!A24,12)))))),IF(IF('1) INPUT MUTUO'!$C$40="M",EDATE('2) OUTPUT PIANO'!A24,1),IF('1) INPUT MUTUO'!$C$40="T",EDATE('2) OUTPUT PIANO'!A24,3),IF('1) INPUT MUTUO'!$C$40="S",EDATE('2) OUTPUT PIANO'!A24,6),IF('1) INPUT MUTUO'!$C$40="A",EDATE('2) OUTPUT PIANO'!A24,12)))))>'1) INPUT MUTUO'!$C$43,'2) OUTPUT PIANO'!$A$30,IF('1) INPUT MUTUO'!$C$40="M",EDATE('2) OUTPUT PIANO'!A24,1),IF('1) INPUT MUTUO'!$C$40="T",EDATE('2) OUTPUT PIANO'!A24,3),IF('1) INPUT MUTUO'!$C$40="S",EDATE('2) OUTPUT PIANO'!A24,6),IF('1) INPUT MUTUO'!$C$40="A",EDATE('2) OUTPUT PIANO'!A24,12)))))))) -> 2010-01-01 | B25: preammortamento | E25: =IF($B$9="NO",0,IF(A25>'1) INPUT MUTUO'!$C$43,0,L24*FORMULE!$E$7*'2) OUTPUT PIANO'!R25)) -> 0 | I25: 0 | K25: 0 | L25: 100000 | R25: 0
A26: =IF($B$9="NO",A25,IF(EOMONTH('1) INPUT MUTUO'!$C$42,0)='1) INPUT MUTUO'!$C$42,IF(IF('1) INPUT MUTUO'!$C$40="M",EOMONTH('2) OUTPUT PIANO'!A25,1),IF('1) INPUT MUTUO'!$C$40="T",EOMONTH('2) OUTPUT PIANO'!A25,3),IF('1) INPUT MUTUO'!$C$40="S",EOMONTH('2) OUTPUT PIANO'!A25,6),IF('1) INPUT MUTUO'!$C$40="A",EOMONTH('2) OUTPUT PIANO'!A25,12)))))>'1) INPUT MUTUO'!$C$43,'2) OUTPUT PIANO'!$A$30,IF('1) INPUT MUTUO'!$C$40="M",EOMONTH('2) OUTPUT PIANO'!A25,1),IF('1) INPUT MUTUO'!$C$40="T",EOMONTH('2) OUTPUT PIANO'!A25,3),IF('1) INPUT MUTUO'!$C$40="S",EOMONTH('2) OUTPUT PIANO'!A25,6),IF('1) INPUT MUTUO'!$C$40="A",EOMONTH('2) OUTPUT PIANO'!A25,12)))))),IF(IF('1) INPUT MUTUO'!$C$40="M",EDATE('2) OUTPUT PIANO'!A25,1),IF('1) INPUT MUTUO'!$C$40="T",EDATE('2) OUTPUT PIANO'!A25,3),IF('1) INPUT MUTUO'!$C$40="S",EDATE('2) OUTPUT PIANO'!A25,6),IF('1) INPUT MUTUO'!$C$40="A",EDATE('2) OUTPUT PIANO'!A25,12)))))>'1) INPUT MUTUO'!$C$43,'2) OUTPUT PIANO'!$A$30,IF('1) INPUT MUTUO'!$C$40="M",EDATE('2) OUTPUT PIANO'!A25,1),IF('1) INPUT MUTUO'!$C$40="T",EDATE('2) OUTPUT PIANO'!A25,3),IF('1) INPUT MUTUO'!$C$40="S",EDATE('2) OUTPUT PIANO'!A25,6),IF('1) INPUT MUTUO'!$C$40="A",EDATE('2) OUTPUT PIANO'!A25,12)))))))) -> 2010-01-01 | B26: preammortamento | E26: =IF($B$9="NO",0,IF(A26>'1) INPUT MUTUO'!$C$43,0,L25*FORMULE!$E$7*'2) OUTPUT PIANO'!R26)) -> 0 | I26: 0 | K26: 0 | L26: 100000 | R26: 0
A27: =IF($B$9="NO",A26,IF(EOMONTH('1) INPUT MUTUO'!$C$42,0)='1) INPUT MUTUO'!$C$42,IF(IF('1) INPUT MUTUO'!$C$40="M",EOMONTH('2) OUTPUT PIANO'!A26,1),IF('1) INPUT MUTUO'!$C$40="T",EOMONTH('2) OUTPUT PIANO'!A26,3),IF('1) INPUT MUTUO'!$C$40="S",EOMONTH('2) OUTPUT PIANO'!A26,6),IF('1) INPUT MUTUO'!$C$40="A",EOMONTH('2) OUTPUT PIANO'!A26,12)))))>'1) INPUT MUTUO'!$C$43,'2) OUTPUT PIANO'!$A$30,IF('1) INPUT MUTUO'!$C$40="M",EOMONTH('2) OUTPUT PIANO'!A26,1),IF('1) INPUT MUTUO'!$C$40="T",EOMONTH('2) OUTPUT PIANO'!A26,3),IF('1) INPUT MUTUO'!$C$40="S",EOMONTH('2) OUTPUT PIANO'!A26,6),IF('1) INPUT MUTUO'!$C$40="A",EOMONTH('2) OUTPUT PIANO'!A26,12)))))),IF(IF('1) INPUT MUTUO'!$C$40="M",EDATE('2) OUTPUT PIANO'!A26,1),IF('1) INPUT MUTUO'!$C$40="T",EDATE('2) OUTPUT PIANO'!A26,3),IF('1) INPUT MUTUO'!$C$40="S",EDATE('2) OUTPUT PIANO'!A26,6),IF('1) INPUT MUTUO'!$C$40="A",EDATE('2) OUTPUT PIANO'!A26,12)))))>'1) INPUT MUTUO'!$C$43,'2) OUTPUT PIANO'!$A$30,IF('1) INPUT MUTUO'!$C$40="M",EDATE('2) OUTPUT PIANO'!A26,1),IF('1) INPUT MUTUO'!$C$40="T",EDATE('2) OUTPUT PIANO'!A26,3),IF('1) INPUT MUTUO'!$C$40="S",EDATE('2) OUTPUT PIANO'!A26,6),IF('1) INPUT MUTUO'!$C$40="A",EDATE('2) OUTPUT PIANO'!A26,12)))))))) -> 2010-01-01 | B27: preammortamento | E27: =IF($B$9="NO",0,IF(A27>'1) INPUT MUTUO'!$C$43,0,L26*FORMULE!$E$7*'2) OUTPUT PIANO'!R27)) -> 0 | I27: 0 | K27: 0 | L27: 100000 | R27: 0
A28: =IF($B$9="NO",A27,IF(EOMONTH('1) INPUT MUTUO'!$C$42,0)='1) INPUT MUTUO'!$C$42,IF(IF('1) INPUT MUTUO'!$C$40="M",EOMONTH('2) OUTPUT PIANO'!A27,1),IF('1) INPUT MUTUO'!$C$40="T",EOMONTH('2) OUTPUT PIANO'!A27,3),IF('1) INPUT MUTUO'!$C$40="S",EOMONTH('2) OUTPUT PIANO'!A27,6),IF('1) INPUT MUTUO'!$C$40="A",EOMONTH('2) OUTPUT PIANO'!A27,12)))))>'1) INPUT MUTUO'!$C$43,'2) OUTPUT PIANO'!$A$30,IF('1) INPUT MUTUO'!$C$40="M",EOMONTH('2) OUTPUT PIANO'!A27,1),IF('1) INPUT MUTUO'!$C$40="T",EOMONTH('2) OUTPUT PIANO'!A27,3),IF('1) INPUT MUTUO'!$C$40="S",EOMONTH('2) OUTPUT PIANO'!A27,6),IF('1) INPUT MUTUO'!$C$40="A",EOMONTH('2) OUTPUT PIANO'!A27,12)))))),IF(IF('1) INPUT MUTUO'!$C$40="M",EDATE('2) OUTPUT PIANO'!A27,1),IF('1) INPUT MUTUO'!$C$40="T",EDATE('2) OUTPUT PIANO'!A27,3),IF('1) INPUT MUTUO'!$C$40="S",EDATE('2) OUTPUT PIANO'!A27,6),IF('1) INPUT MUTUO'!$C$40="A",EDATE('2) OUTPUT PIANO'!A27,12)))))>'1) INPUT MUTUO'!$C$43,'2) OUTPUT PIANO'!$A$30,IF('1) INPUT MUTUO'!$C$40="M",EDATE('2) OUTPUT PIANO'!A27,1),IF('1) INPUT MUTUO'!$C$40="T",EDATE('2) OUTPUT PIANO'!A27,3),IF('1) INPUT MUTUO'!$C$40="S",EDATE('2) OUTPUT PIANO'!A27,6),IF('1) INPUT MUTUO'!$C$40="A",EDATE('2) OUTPUT PIANO'!A27,12)))))))) -> 2010-01-01 | B28: preammortamento | E28: =IF($B$9="NO",0,IF(A28>'1) INPUT MUTUO'!$C$43,0,L27*FORMULE!$E$7*'2) OUTPUT PIANO'!R28)) -> 0 | I28: 0 | K28: 0 | L28: =+L27 -> 100000 | R28: 0
A29: =IF($B$9="NO",A28,IF(EOMONTH('1) INPUT MUTUO'!$C$42,0)='1) INPUT MUTUO'!$C$42,IF(IF('1) INPUT MUTUO'!$C$40="M",EOMONTH('2) OUTPUT PIANO'!A28,1),IF('1) INPUT MUTUO'!$C$40="T",EOMONTH('2) OUTPUT PIANO'!A28,3),IF('1) INPUT MUTUO'!$C$40="S",EOMONTH('2) OUTPUT PIANO'!A28,6),IF('1) INPUT MUTUO'!$C$40="A",EOMONTH('2) OUTPUT PIANO'!A28,12)))))>'1) INPUT MUTUO'!$C$43,'2) OUTPUT PIANO'!$A$30,IF('1) INPUT MUTUO'!$C$40="M",EOMONTH('2) OUTPUT PIANO'!A28,1),IF('1) INPUT MUTUO'!$C$40="T",EOMONTH('2) OUTPUT PIANO'!A28,3),IF('1) INPUT MUTUO'!$C$40="S",EOMONTH('2) OUTPUT PIANO'!A28,6),IF('1) INPUT MUTUO'!$C$40="A",EOMONTH('2) OUTPUT PIANO'!A28,12)))))),IF(IF('1) INPUT MUTUO'!$C$40="M",EDATE('2) OUTPUT PIANO'!A28,1),IF('1) INPUT MUTUO'!$C$40="T",EDATE('2) OUTPUT PIANO'!A28,3),IF('1) INPUT MUTUO'!$C$40="S",EDATE('2) OUTPUT PIANO'!A28,6),IF('1) INPUT MUTUO'!$C$40="A",EDATE('2) OUTPUT PIANO'!A28,12)))))>'1) INPUT MUTUO'!$C$43,'2) OUTPUT PIANO'!$A$30,IF('1) INPUT MUTUO'!$C$40="M",EDATE('2) OUTPUT PIANO'!A28,1),IF('1) INPUT MUTUO'!$C$40="T",EDATE('2) OUTPUT PIANO'!A28,3),IF('1) INPUT MUTUO'!$C$40="S",EDATE('2) OUTPUT PIANO'!A28,6),IF('1) INPUT MUTUO'!$C$40="A",EDATE('2) OUTPUT PIANO'!A28,12)))))))) -> 2010-01-01 | B29: preammortamento | E29: =IF($B$9="NO",0,IF(A29>'1) INPUT MUTUO'!$C$43,0,L28*FORMULE!$E$7*'2) OUTPUT PIANO'!R29)) -> 0 | I29: 0 | K29: 0 | L29: 100000 | R29: 0
A30: =+'1) INPUT MUTUO'!D6 -> 2010-02-01 | B30: 1 | D30: =IF(B29=0,0,IF('1) INPUT MUTUO'!$D$7="FRANCESE",F30-E30,'2) OUTPUT PIANO'!$C$17/'1) INPUT MUTUO'!$D$10)) -> 881.4459165 | E30: =IF(B30=0,0,IF('1) INPUT MUTUO'!$D$13=360,L29*$C$3,L29*R30*FORMULE!$B$7)) -> 250 | F30: =IF(B30=0,0,IF('1) INPUT MUTUO'!$D$7="ITALIANO",'2) OUTPUT PIANO'!D30+'2) OUTPUT PIANO'!E30,IF(B30>'1) INPUT MUTUO'!$D$10,0,FORMULE!$B$13))) -> 1131.445917 | G30: =IF($B$7="SI",IF(F30=0,0,'1) INPUT MUTUO'!$D$19),0) -> 0 | I30: =IF($B$8="SI",IF(F30=0,0,SUM(M30:Q30)),0) -> 0 | K30: =IF(B30=0,0,C30-F30-G30-H30-I30-J30) -> -1131.445917 | L30: =IF(B30=0,0,L29-D30) -> 99118.55408 | M30: =+IF('MATRIX SP. PERIODICHE'!AZ4=1,'1) INPUT MUTUO'!$C$31,0) -> 0 | N30: =+IF('MATRIX SP. PERIODICHE'!CZ4=1,'1) INPUT MUTUO'!$C$32,0) -> 0 | O30: =IF('MATRIX SP. PERIODICHE'!EZ4=1,'1) INPUT MUTUO'!$C$33,0) -> 0 | P30: =IF('MATRIX SP. PERIODICHE'!GZ4=1,'1) INPUT MUTUO'!$C$34,0) -> 0 | Q30: =IF('MATRIX SP. PERIODICHE'!IZ4=1,'1) INPUT MUTUO'!$C$35,0) -> 0 | R30: =IF(EOMONTH(A30,0)=A30,A30-EOMONTH(A30,-1),A31-A30) -> 28
A31: =IF($B$3="M",IF(FORMULE!$B$15="OK",EOMONTH('2) OUTPUT PIANO'!A30,1),EDATE('2) OUTPUT PIANO'!A30,1)),IF($B$3="T",IF(FORMULE!$B$15="OK",EOMONTH('2) OUTPUT PIANO'!A30,3),EDATE('2) OUTPUT PIANO'!A30,3)),IF($B$3="S",IF(FORMULE!$B$15="OK",EOMONTH('2) OUTPUT PIANO'!A30,6),EDATE('2) OUTPUT PIANO'!A30,6)),IF($B$3="A",+IF(FORMULE!$B$15="OK",EOMONTH('2) OUTPUT PIANO'!A30,12),EDATE('2) OUTPUT PIANO'!A30,12)),"ERRORE")))) -> 2010-03-01 | B31: =IF(B30=0,0,IF(B30+1<='1) INPUT MUTUO'!$D$10,'2) OUTPUT PIANO'!B30+1,0)) -> 2 | D31: =IF(B30=0,0,IF('1) INPUT MUTUO'!$D$7="FRANCESE",F31-E31,'2) OUTPUT PIANO'!$C$17/'1) INPUT MUTUO'!$D$10)) -> 883.6495313 | E31: =IF(B31=0,0,IF('1) INPUT MUTUO'!$D$13=360,L30*$C$3,L30*R31*FORMULE!$B$7)) -> 247.7963852 | F31: =IF(B31=0,0,IF('1) INPUT MUTUO'!$D$7="ITALIANO",'2) OUTPUT PIANO'!D31+'2) OUTPUT PIANO'!E31,IF(B31>'1) INPUT MUTUO'!$D$10,0,FORMULE!$B$13))) -> 1131.445917 | G31: =IF($B$7="SI",IF(F31=0,0,'1) INPUT MUTUO'!$D$19),0) -> 0 | I31: 0 | K31: -1131.445917 | L31: =IF(B31=0,0,L30-D31) -> 98234.90455 | M31: =+IF('MATRIX SP. PERIODICHE'!AZ5=1,'1) INPUT MUTUO'!$C$31,0) -> 0 | N31: =+IF('MATRIX SP. PERIODICHE'!CZ5=1,'1) INPUT MUTUO'!$C$32,0) -> 0 | O31: =IF('MATRIX SP. PERIODICHE'!EZ5=1,'1) INPUT MUTUO'!$C$33,0) -> 0 | P31: =IF('MATRIX SP. PERIODICHE'!GZ5=1,'1) INPUT MUTUO'!$C$34,0) -> 0 | Q31: =IF('MATRIX SP. PERIODICHE'!IZ5=1,'1) INPUT MUTUO'!$C$35,0) -> 0 | R31: =IF(EOMONTH(A31,0)=A31,A31-EOMONTH(A31,-1),A32-A31) -> 31
A32: =IF($B$3="M",IF(FORMULE!$B$15="OK",EOMONTH('2) OUTPUT PIANO'!A31,1),EDATE('2) OUTPUT PIANO'!A31,1)),IF($B$3="T",IF(FORMULE!$B$15="OK",EOMONTH('2) OUTPUT PIANO'!A31,3),EDATE('2) OUTPUT PIANO'!A31,3)),IF($B$3="S",IF(FORMULE!$B$15="OK",EOMONTH('2) OUTPUT PIANO'!A31,6),EDATE('2) OUTPUT PIANO'!A31,6)),IF($B$3="A",+IF(FORMULE!$B$15="OK",EOMONTH('2) OUTPUT PIANO'!A31,12),EDATE('2) OUTPUT PIANO'!A31,12)),"ERRORE")))) -> 2010-04-01 | B32: =IF(B31=0,0,IF(B31+1<='1) INPUT MUTUO'!$D$10,'2) OUTPUT PIANO'!B31+1,0)) -> 3 | D32: =IF(B31=0,0,IF('1) INPUT MUTUO'!$D$7="FRANCESE",F32-E32,'2) OUTPUT PIANO'!$C$17/'1) INPUT MUTUO'!$D$10)) -> 885.8586551 | E32: =IF(B32=0,0,IF('1) INPUT MUTUO'!$D$13=360,L31*$C$3,L31*R32*FORMULE!$B$7)) -> 245.5872614 | F32: =IF(B32=0,0,IF('1) INPUT MUTUO'!$D$7="ITALIANO",'2) OUTPUT PIANO'!D32+'2) OUTPUT PIANO'!E32,IF(B32>'1) INPUT MUTUO'!$D$10,0,FORMULE!$B$13))) -> 1131.445917 | G32: =IF($B$7="SI",IF(F32=0,0,'1) INPUT MUTUO'!$D$19),0) -> 0 | I32: 0 | K32: -1131.445917 | L32: =IF(B32=0,0,L31-D32) -> 97349.0459 | M32: =+IF('MATRIX SP. PERIODICHE'!AZ6=1,'1) INPUT MUTUO'!$C$31,0) -> 0 | N32: =+IF('MATRIX SP. PERIODICHE'!CZ6=1,'1) INPUT MUTUO'!$C$32,0) -> 0 | O32: =IF('MATRIX SP. PERIODICHE'!EZ6=1,'1) INPUT MUTUO'!$C$33,0) -> 0 | P32: =IF('MATRIX SP. PERIODICHE'!GZ6=1,'1) INPUT MUTUO'!$C$34,0) -> 0 | Q32: =IF('MATRIX SP. PERIODICHE'!IZ6=1,'1) INPUT MUTUO'!$C$35,0) -> 0 | R32: 30
A33: =IF($B$3="M",IF(FORMULE!$B$15="OK",EOMONTH('2) OUTPUT PIANO'!A32,1),EDATE('2) OUTPUT PIANO'!A32,1)),IF($B$3="T",IF(FORMULE!$B$15="OK",EOMONTH('2) OUTPUT PIANO'!A32,3),EDATE('2) OUTPUT PIANO'!A32,3)),IF($B$3="S",IF(FORMULE!$B$15="OK",EOMONTH('2) OUTPUT PIANO'!A32,6),EDATE('2) OUTPUT PIANO'!A32,6)),IF($B$3="A",+IF(FORMULE!$B$15="OK",EOMONTH('2) OUTPUT PIANO'!A32,12),EDATE('2) OUTPUT PIANO'!A32,12)),"ERRORE")))) -> 2010-05-01 | B33: =IF(B32=0,0,IF(B32+1<='1) INPUT MUTUO'!$D$10,'2) OUTPUT PIANO'!B32+1,0)) -> 4 | D33: =IF(B32=0,0,IF('1) INPUT MUTUO'!$D$7="FRANCESE",F33-E33,'2) OUTPUT PIANO'!$C$17/'1) INPUT MUTUO'!$D$10)) -> 888.0733018 | E33: =IF(B33=0,0,IF('1) INPUT MUTUO'!$D$13=360,L32*$C$3,L32*R33*FORMULE!$B$7)) -> 243.3726147 | F33: =IF(B33=0,0,IF('1) INPUT MUTUO'!$D$7="ITALIANO",'2) OUTPUT PIANO'!D33+'2) OUTPUT PIANO'!E33,IF(B33>'1) INPUT MUTUO'!$D$10,0,FORMULE!$B$13))) -> 1131.445917 | G33: =IF($B$7="SI",IF(F33=0,0,'1) INPUT MUTUO'!$D$19),0) -> 0 | I33: 0 | K33: -1131.445917 | L33: =IF(B33=0,0,L32-D33) -> 96460.9726 | M33: =+IF('MATRIX SP. PERIODICHE'!AZ7=1,'1) INPUT MUTUO'!$C$31,0) -> 0 | N33: =+IF('MATRIX SP. PERIODICHE'!CZ7=1,'1) INPUT MUTUO'!$C$32,0) -> 0 | O33: =IF('MATRIX SP. PERIODICHE'!EZ7=1,'1) INPUT MUTUO'!$C$33,0) -> 0 | P33: =IF('MATRIX SP. PERIODICHE'!GZ7=1,'1) INPUT MUTUO'!$C$34,0) -> 0 | Q33: =IF('MATRIX SP. PERIODICHE'!IZ7=1,'1) INPUT MUTUO'!$C$35,0) -> 0 | R33: 31
A34: =IF($B$3="M",IF(FORMULE!$B$15="OK",EOMONTH('2) OUTPUT PIANO'!A33,1),EDATE('2) OUTPUT PIANO'!A33,1)),IF($B$3="T",IF(FORMULE!$B$15="OK",EOMONTH('2) OUTPUT PIANO'!A33,3),EDATE('2) OUTPUT PIANO'!A33,3)),IF($B$3="S",IF(FORMULE!$B$15="OK",EOMONTH('2) OUTPUT PIANO'!A33,6),EDATE('2) OUTPUT PIANO'!A33,6)),IF($B$3="A",+IF(FORMULE!$B$15="OK",EOMONTH('2) OUTPUT PIANO'!A33,12),EDATE('2) OUTPUT PIANO'!A33,12)),"ERRORE")))) -> 2010-06-01 | B34: =IF(B33=0,0,IF(B33+1<='1) INPUT MUTUO'!$D$10,'2) OUTPUT PIANO'!B33+1,0)) -> 5 | D34: =IF(B33=0,0,IF('1) INPUT MUTUO'!$D$7="FRANCESE",F34-E34,'2) OUTPUT PIANO'!$C$17/'1) INPUT MUTUO'!$D$10)) -> 890.293485 | E34: =IF(B34=0,0,IF('1) INPUT MUTUO'!$D$13=360,L33*$C$3,L33*R34*FORMULE!$B$7)) -> 241.1524315 | F34: =IF(B34=0,0,IF('1) INPUT MUTUO'!$D$7="ITALIANO",'2) OUTPUT PIANO'!D34+'2) OUTPUT PIANO'!E34,IF(B34>'1) INPUT MUTUO'!$D$10,0,FORMULE!$B$13))) -> 1131.445917 | G34: =IF($B$7="SI",IF(F34=0,0,'1) INPUT MUTUO'!$D$19),0) -> 0 | I34: 0 | K34: -1131.445917 | L34: 95570.67911 | M34: =+IF('MATRIX SP. PERIODICHE'!AZ8=1,'1) INPUT MUTUO'!$C$31,0) -> 0 | N34: =+IF('MATRIX SP. PERIODICHE'!CZ8=1,'1) INPUT MUTUO'!$C$32,0) -> 0 | O34: =IF('MATRIX SP. PERIODICHE'!EZ8=1,'1) INPUT MUTUO'!$C$33,0) -> 0 | P34: =IF('MATRIX SP. PERIODICHE'!GZ8=1,'1) INPUT MUTUO'!$C$34,0) -> 0 | Q34: =IF('MATRIX SP. PERIODICHE'!IZ8=1,'1) INPUT MUTUO'!$C$35,0) -> 0 | R34: 30
A35: =IF($B$3="M",IF(FORMULE!$B$15="OK",EOMONTH('2) OUTPUT PIANO'!A34,1),EDATE('2) OUTPUT PIANO'!A34,1)),IF($B$3="T",IF(FORMULE!$B$15="OK",EOMONTH('2) OUTPUT PIANO'!A34,3),EDATE('2) OUTPUT PIANO'!A34,3)),IF($B$3="S",IF(FORMULE!$B$15="OK",EOMONTH('2) OUTPUT PIANO'!A34,6),EDATE('2) OUTPUT PIANO'!A34,6)),IF($B$3="A",+IF(FORMULE!$B$15="OK",EOMONTH('2) OUTPUT PIANO'!A34,12),EDATE('2) OUTPUT PIANO'!A34,12)),"ERRORE")))) -> 2010-07-01 | B35: =IF(B34=0,0,IF(B34+1<='1) INPUT MUTUO'!$D$10,'2) OUTPUT PIANO'!B34+1,0)) -> 6 | D35: =IF(B34=0,0,IF('1) INPUT MUTUO'!$D$7="FRANCESE",F35-E35,'2) OUTPUT PIANO'!$C$17/'1) INPUT MUTUO'!$D$10)) -> 892.5192187 | E35: =IF(B35=0,0,IF('1) INPUT MUTUO'!$D$13=360,L34*$C$3,L34*R35*FORMULE!$B$7)) -> 238.9266978 | F35: =IF(B35=0,0,IF('1) INPUT MUTUO'!$D$7="ITALIANO",'2) OUTPUT PIANO'!D35+'2) OUTPUT PIANO'!E35,IF(B35>'1) INPUT MUTUO'!$D$10,0,FORMULE!$B$13))) -> 1131.445917 | G35: =IF($B$7="SI",IF(F35=0,0,'1) INPUT MUTUO'!$D$19),0) -> 0 | I35: 0 | K35: -1131.445917 | L35: 94678.15989 | M35: =+IF('MATRIX SP. PERIODICHE'!AZ9=1,'1) INPUT MUTUO'!$C$31,0) -> 0 | N35: =+IF('MATRIX SP. PERIODICHE'!CZ9=1,'1) INPUT MUTUO'!$C$32,0) -> 0 | O35: =IF('MATRIX SP. PERIODICHE'!EZ9=1,'1) INPUT MUTUO'!$C$33,0) -> 0 | P35: =IF('MATRIX SP. PERIODICHE'!GZ9=1,'1) INPUT MUTUO'!$C$34,0) -> 0 | Q35: =IF('MATRIX SP. PERIODICHE'!IZ9=1,'1) INPUT MUTUO'!$C$35,0) -> 0 | R35: 31
A36: =IF($B$3="M",IF(FORMULE!$B$15="OK",EOMONTH('2) OUTPUT PIANO'!A35,1),EDATE('2) OUTPUT PIANO'!A35,1)),IF($B$3="T",IF(FORMULE!$B$15="OK",EOMONTH('2) OUTPUT PIANO'!A35,3),EDATE('2) OUTPUT PIANO'!A35,3)),IF($B$3="S",IF(FORMULE!$B$15="OK",EOMONTH('2) OUTPUT PIANO'!A35,6),EDATE('2) OUTPUT PIANO'!A35,6)),IF($B$3="A",+IF(FORMULE!$B$15="OK",EOMONTH('2) OUTPUT PIANO'!A35,12),EDATE('2) OUTPUT PIANO'!A35,12)),"ERRORE")))) -> 2010-08-01 | B36: =IF(B35=0,0,IF(B35+1<='1) INPUT MUTUO'!$D$10,'2) OUTPUT PIANO'!B35+1,0)) -> 7 | D36: =IF(B35=0,0,IF('1) INPUT MUTUO'!$D$7="FRANCESE",F36-E36,'2) OUTPUT PIANO'!$C$17/'1) INPUT MUTUO'!$D$10)) -> 894.7505168 | E36: =IF(B36=0,0,IF('1) INPUT MUTUO'!$D$13=360,L35*$C$3,L35*R36*FORMULE!$B$7)) -> 236.6953997 | F36: =IF(B36=0,0,IF('1) INPUT MUTUO'!$D$7="ITALIANO",'2) OUTPUT PIANO'!D36+'2) OUTPUT PIANO'!E36,IF(B36>'1) INPUT MUTUO'!$D$10,0,FORMULE!$B$13))) -> 1131.445917 | G36: =IF($B$7="SI",IF(F36=0,0,'1) INPUT MUTUO'!$D$19),0) -> 0 | I36: 0 | K36: -1131.445917 | L36: 93783.40937 | M36: =+IF('MATRIX SP. PERIODICHE'!AZ10=1,'1) INPUT MUTUO'!$C$31,0) -> 0 | N36: =+IF('MATRIX SP. PERIODICHE'!CZ10=1,'1) INPUT MUTUO'!$C$32,0) -> 0 | O36: =IF('MATRIX SP. PERIODICHE'!EZ10=1,'1) INPUT MUTUO'!$C$33,0) -> 0 | P36: =IF('MATRIX SP. PERIODICHE'!GZ10=1,'1) INPUT MUTUO'!$C$34,0) -> 0 | Q36: =IF('MATRIX SP. PERIODICHE'!IZ10=1,'1) INPUT MUTUO'!$C$35,0) -> 0 | R36: 31
A37: =IF($B$3="M",IF(FORMULE!$B$15="OK",EOMONTH('2) OUTPUT PIANO'!A36,1),EDATE('2) OUTPUT PIANO'!A36,1)),IF($B$3="T",IF(FORMULE!$B$15="OK",EOMONTH('2) OUTPUT PIANO'!A36,3),EDATE('2) OUTPUT PIANO'!A36,3)),IF($B$3="S",IF(FORMULE!$B$15="OK",EOMONTH('2) OUTPUT PIANO'!A36,6),EDATE('2) OUTPUT PIANO'!A36,6)),IF($B$3="A",+IF(FORMULE!$B$15="OK",EOMONTH('2) OUTPUT PIANO'!A36,12),EDATE('2) OUTPUT PIANO'!A36,12)),"ERRORE")))) -> 2010-09-01 | B37: =IF(B36=0,0,IF(B36+1<='1) INPUT MUTUO'!$D$10,'2) OUTPUT PIANO'!B36+1,0)) -> 8 | D37: =IF(B36=0,0,IF('1) INPUT MUTUO'!$D$7="FRANCESE",F37-E37,'2) OUTPUT PIANO'!$C$17/'1) INPUT MUTUO'!$D$10)) -> 896.9873931 | E37: =IF(B37=0,0,IF('1) INPUT MUTUO'!$D$13=360,L36*$C$3,L36*R37*FORMULE!$B$7)) -> 234.4585234 | F37: =IF(B37=0,0,IF('1) INPUT MUTUO'!$D$7="ITALIANO",'2) OUTPUT PIANO'!D37+'2) OUTPUT PIANO'!E37,IF(B37>'1) INPUT MUTUO'!$D$10,0,FORMULE!$B$13))) -> 1131.445917 | G37: =IF($B$7="SI",IF(F37=0,0,'1) INPUT MUTUO'!$D$19),0) -> 0 | I37: 0 | K37: -1131.445917 | L37: 92886.42198 | M37: =+IF('MATRIX SP. PERIODICHE'!AZ11=1,'1) INPUT MUTUO'!$C$31,0) -> 0 | N37: =+IF('MATRIX SP. PERIODICHE'!CZ11=1,'1) INPUT MUTUO'!$C$32,0) -> 0 | O37: =IF('MATRIX SP. PERIODICHE'!EZ11=1,'1) INPUT MUTUO'!$C$33,0) -> 0 | P37: =IF('MATRIX SP. PERIODICHE'!GZ11=1,'1) INPUT MUTUO'!$C$34,0) -> 0 | Q37: =IF('MATRIX SP. PERIODICHE'!IZ11=1,'1) INPUT MUTUO'!$C$35,0) -> 0 | R37: 30
A38: =IF($B$3="M",IF(FORMULE!$B$15="OK",EOMONTH('2) OUTPUT PIANO'!A37,1),EDATE('2) OUTPUT PIANO'!A37,1)),IF($B$3="T",IF(FORMULE!$B$15="OK",EOMONTH('2) OUTPUT PIANO'!A37,3),EDATE('2) OUTPUT PIANO'!A37,3)),IF($B$3="S",IF(FORMULE!$B$15="OK",EOMONTH('2) OUTPUT PIANO'!A37,6),EDATE('2) OUTPUT PIANO'!A37,6)),IF($B$3="A",+IF(FORMULE!$B$15="OK",EOMONTH('2) OUTPUT PIANO'!A37,12),EDATE('2) OUTPUT PIANO'!A37,12)),"ERRORE")))) -> 2010-10-01 | B38: =IF(B37=0,0,IF(B37+1<='1) INPUT MUTUO'!$D$10,'2) OUTPUT PIANO'!B37+1,0)) -> 9 | D38: =IF(B37=0,0,IF('1) INPUT MUTUO'!$D$7="FRANCESE",F38-E38,'2) OUTPUT PIANO'!$C$17/'1) INPUT MUTUO'!$D$10)) -> 899.2298616 | E38: =IF(B38=0,0,IF('1) INPUT MUTUO'!$D$13=360,L37*$C$3,L37*R38*FORMULE!$B$7)) -> 232.216055 | F38: =IF(B38=0,0,IF('1) INPUT MUTUO'!$D$7="ITALIANO",'2) OUTPUT PIANO'!D38+'2) OUTPUT PIANO'!E38,IF(B38>'1) INPUT MUTUO'!$D$10,0,FORMULE!$B$13))) -> 1131.445917 | G38: =IF($B$7="SI",IF(F38=0,0,'1) INPUT MUTUO'!$D$19),0) -> 0 | I38: 0 | K38: -1131.445917 | L38: 91987.19212 | M38: =+IF('MATRIX SP. PERIODICHE'!AZ12=1,'1) INPUT MUTUO'!$C$31,0) -> 0 | N38: =+IF('MATRIX SP. PERIODICHE'!CZ12=1,'1) INPUT MUTUO'!$C$32,0) -> 0 | O38: =IF('MATRIX SP. PERIODICHE'!EZ12=1,'1) INPUT MUTUO'!$C$33,0) -> 0 | P38: =IF('MATRIX SP. PERIODICHE'!GZ12=1,'1) INPUT MUTUO'!$C$34,0) -> 0 | Q38: =IF('MATRIX SP. PERIODICHE'!IZ12=1,'1) INPUT MUTUO'!$C$35,0) -> 0 | R38: 31
A39: =IF($B$3="M",IF(FORMULE!$B$15="OK",EOMONTH('2) OUTPUT PIANO'!A38,1),EDATE('2) OUTPUT PIANO'!A38,1)),IF($B$3="T",IF(FORMULE!$B$15="OK",EOMONTH('2) OUTPUT PIANO'!A38,3),EDATE('2) OUTPUT PIANO'!A38,3)),IF($B$3="S",IF(FORMULE!$B$15="OK",EOMONTH('2) OUTPUT PIANO'!A38,6),EDATE('2) OUTPUT PIANO'!A38,6)),IF($B$3="A",+IF(FORMULE!$B$15="OK",EOMONTH('2) OUTPUT PIANO'!A38,12),EDATE('2) OUTPUT PIANO'!A38,12)),"ERRORE")))) -> 2010-11-01 | B39: =IF(B38=0,0,IF(B38+1<='1) INPUT MUTUO'!$D$10,'2) OUTPUT PIANO'!B38+1,0)) -> 10 | D39: =IF(B38=0,0,IF('1) INPUT MUTUO'!$D$7="FRANCESE",F39-E39,'2) OUTPUT PIANO'!$C$17/'1) INPUT MUTUO'!$D$10)) -> 901.4779362 | E39: =IF(B39=0,0,IF('1) INPUT MUTUO'!$D$13=360,L38*$C$3,L38*R39*FORMULE!$B$7)) -> 229.9679803 | F39: =IF(B39=0,0,IF('1) INPUT MUTUO'!$D$7="ITALIANO",'2) OUTPUT PIANO'!D39+'2) OUTPUT PIANO'!E39,IF(B39>'1) INPUT MUTUO'!$D$10,0,FORMULE!$B$13))) -> 1131.445917 | G39: =IF($B$7="SI",IF(F39=0,0,'1) INPUT MUTUO'!$D$19),0) -> 0 | I39: 0 | K39: -1131.445917 | L39: 91085.71418 | M39: =+IF('MATRIX SP. PERIODICHE'!AZ13=1,'1) INPUT MUTUO'!$C$31,0) -> 0 | N39: =+IF('MATRIX SP. PERIODICHE'!CZ13=1,'1) INPUT MUTUO'!$C$32,0) -> 0 | O39: =IF('MATRIX SP. PERIODICHE'!EZ13=1,'1) INPUT MUTUO'!$C$33,0) -> 0 | P39: =IF('MATRIX SP. PERIODICHE'!GZ13=1,'1) INPUT MUTUO'!$C$34,0) -> 0 | Q39: =IF('MATRIX SP. PERIODICHE'!IZ13=1,'1) INPUT MUTUO'!$C$35,0) -> 0 | R39: 30
A40: =IF($B$3="M",IF(FORMULE!$B$15="OK",EOMONTH('2) OUTPUT PIANO'!A39,1),EDATE('2) OUTPUT PIANO'!A39,1)),IF($B$3="T",IF(FORMULE!$B$15="OK",EOMONTH('2) OUTPUT PIANO'!A39,3),EDATE('2) OUTPUT PIANO'!A39,3)),IF($B$3="S",IF(FORMULE!$B$15="OK",EOMONTH('2) OUTPUT PIANO'!A39,6),EDATE('2) OUTPUT PIANO'!A39,6)),IF($B$3="A",+IF(FORMULE!$B$15="OK",EOMONTH('2) OUTPUT PIANO'!A39,12),EDATE('2) OUTPUT PIANO'!A39,12)),"ERRORE")))) -> 2010-12-01 | B40: =IF(B39=0,0,IF(B39+1<='1) INPUT MUTUO'!$D$10,'2) OUTPUT PIANO'!B39+1,0)) -> 11 | D40: =IF(B39=0,0,IF('1) INPUT MUTUO'!$D$7="FRANCESE",F40-E40,'2) OUTPUT PIANO'!$C$17/'1) INPUT MUTUO'!$D$10)) -> 903.7316311 | E40: =IF(B40=0,0,IF('1) INPUT MUTUO'!$D$13=360,L39*$C$3,L39*R40*FORMULE!$B$7)) -> 227.7142855 | F40: =IF(B40=0,0,IF('1) INPUT MUTUO'!$D$7="ITALIANO",'2) OUTPUT PIANO'!D40+'2) OUTPUT PIANO'!E40,IF(B40>'1) INPUT MUTUO'!$D$10,0,FORMULE!$B$13))) -> 1131.445917 | G40: =IF($B$7="SI",IF(F40=0,0,'1) INPUT MUTUO'!$D$19),0) -> 0 | I40: 0 | K40: -1131.445917 | L40: 90181.98255 | M40: =+IF('MATRIX SP. PERIODICHE'!AZ14=1,'1) INPUT MUTUO'!$C$31,0) -> 0 | N40: =+IF('MATRIX SP. PERIODICHE'!CZ14=1,'1) INPUT MUTUO'!$C$32,0) -> 0 | O40: =IF('MATRIX SP. PERIODICHE'!EZ14=1,'1) INPUT MUTUO'!$C$33,0) -> 0 | P40: =IF('MATRIX SP. PERIODICHE'!GZ14=1,'1) INPUT MUTUO'!$C$34,0) -> 0 | Q40: =IF('MATRIX SP. PERIODICHE'!IZ14=1,'1) INPUT MUTUO'!$C$35,0) -> 0 | R40: 31
A41: =IF($B$3="M",IF(FORMULE!$B$15="OK",EOMONTH('2) OUTPUT PIANO'!A40,1),EDATE('2) OUTPUT PIANO'!A40,1)),IF($B$3="T",IF(FORMULE!$B$15="OK",EOMONTH('2) OUTPUT PIANO'!A40,3),EDATE('2) OUTPUT PIANO'!A40,3)),IF($B$3="S",IF(FORMULE!$B$15="OK",EOMONTH('2) OUTPUT PIANO'!A40,6),EDATE('2) OUTPUT PIANO'!A40,6)),IF($B$3="A",+IF(FORMULE!$B$15="OK",EOMONTH('2) OUTPUT PIANO'!A40,12),EDATE('2) OUTPUT PIANO'!A40,12)),"ERRORE")))) -> 2011-01-01 | B41: =IF(B40=0,0,IF(B40+1<='1) INPUT MUTUO'!$D$10,'2) OUTPUT PIANO'!B40+1,0)) -> 12 | D41: =IF(B40=0,0,IF('1) INPUT MUTUO'!$D$7="FRANCESE",F41-E41,'2) OUTPUT PIANO'!$C$17/'1) INPUT MUTUO'!$D$10)) -> 905.9909601 | E41: =IF(B41=0,0,IF('1) INPUT MUTUO'!$D$13=360,L40*$C$3,L40*R41*FORMULE!$B$7)) -> 225.4549564 | F41: =IF(B41=0,0,IF('1) INPUT MUTUO'!$D$7="ITALIANO",'2) OUTPUT PIANO'!D41+'2) OUTPUT PIANO'!E41,IF(B41>'1) INPUT MUTUO'!$D$10,0,FORMULE!$B$13))) -> 1131.445917 | G41: =IF($B$7="SI",IF(F41=0,0,'1) INPUT MUTUO'!$D$19),0) -> 0 | I41: 0 | K41: -1131.445917 | L41: 89275.99159 | M41: =+IF('MATRIX SP. PERIODICHE'!AZ15=1,'1) INPUT MUTUO'!$C$31,0) -> 0 | N41: =+IF('MATRIX SP. PERIODICHE'!CZ15=1,'1) INPUT MUTUO'!$C$32,0) -> 0 | O41: =IF('MATRIX SP. PERIODICHE'!EZ15=1,'1) INPUT MUTUO'!$C$33,0) -> 0 | P41: =IF('MATRIX SP. PERIODICHE'!GZ15=1,'1) INPUT MUTUO'!$C$34,0) -> 0 | Q41: =IF('MATRIX SP. PERIODICHE'!IZ15=1,'1) INPUT MUTUO'!$C$35,0) -> 0 | R41: 31
A42: =IF($B$3="M",IF(FORMULE!$B$15="OK",EOMONTH('2) OUTPUT PIANO'!A41,1),EDATE('2) OUTPUT PIANO'!A41,1)),IF($B$3="T",IF(FORMULE!$B$15="OK",EOMONTH('2) OUTPUT PIANO'!A41,3),EDATE('2) OUTPUT PIANO'!A41,3)),IF($B$3="S",IF(FORMULE!$B$15="OK",EOMONTH('2) OUTPUT PIANO'!A41,6),EDATE('2) OUTPUT PIANO'!A41,6)),IF($B$3="A",+IF(FORMULE!$B$15="OK",EOMONTH('2) OUTPUT PIANO'!A41,12),EDATE('2) OUTPUT PIANO'!A41,12)),"ERRORE")))) -> 2011-02-01 | B42: =IF(B41=0,0,IF(B41+1<='1) INPUT MUTUO'!$D$10,'2) OUTPUT PIANO'!B41+1,0)) -> 13 | D42: =IF(B41=0,0,IF('1) INPUT MUTUO'!$D$7="FRANCESE",F42-E42,'2) OUTPUT PIANO'!$C$17/'1) INPUT MUTUO'!$D$10)) -> 908.2559375 | E42: =IF(B42=0,0,IF('1) INPUT MUTUO'!$D$13=360,L41*$C$3,L41*R42*FORMULE!$B$7)) -> 223.189979 | F42: =IF(B42=0,0,IF('1) INPUT MUTUO'!$D$7="ITALIANO",'2) OUTPUT PIANO'!D42+'2) OUTPUT PIANO'!E42,IF(B42>'1) INPUT MUTUO'!$D$10,0,FORMULE!$B$13))) -> 1131.445917 | G42: =IF($B$7="SI",IF(F42=0,0,'1) INPUT MUTUO'!$D$19),0) -> 0 | I42: 0 | K42: -1131.445917 | L42: 88367.73566 | M42: =+IF('MATRIX SP. PERIODICHE'!AZ16=1,'1) INPUT MUTUO'!$C$31,0) -> 0 | N42: =+IF('MATRIX SP. PERIODICHE'!CZ16=1,'1) INPUT MUTUO'!$C$32,0) -> 0 | O42: =IF('MATRIX SP. PERIODICHE'!EZ16=1,'1) INPUT MUTUO'!$C$33,0) -> 0 | P42: =IF('MATRIX SP. PERIODICHE'!GZ16=1,'1) INPUT MUTUO'!$C$34,0) -> 0 | Q42: =IF('MATRIX SP. PERIODICHE'!IZ16=1,'1) INPUT MUTUO'!$C$35,0) -> 0 | R42: 28
A43: =IF($B$3="M",IF(FORMULE!$B$15="OK",EOMONTH('2) OUTPUT PIANO'!A42,1),EDATE('2) OUTPUT PIANO'!A42,1)),IF($B$3="T",IF(FORMULE!$B$15="OK",EOMONTH('2) OUTPUT PIANO'!A42,3),EDATE('2) OUTPUT PIANO'!A42,3)),IF($B$3="S",IF(FORMULE!$B$15="OK",EOMONTH('2) OUTPUT PIANO'!A42,6),EDATE('2) OUTPUT PIANO'!A42,6)),IF($B$3="A",+IF(FORMULE!$B$15="OK",EOMONTH('2) OUTPUT PIANO'!A42,12),EDATE('2) OUTPUT PIANO'!A42,12)),"ERRORE")))) -> 2011-03-01 | B43: =IF(B42=0,0,IF(B42+1<='1) INPUT MUTUO'!$D$10,'2) OUTPUT PIANO'!B42+1,0)) -> 14 | D43: =IF(B42=0,0,IF('1) INPUT MUTUO'!$D$7="FRANCESE",F43-E43,'2) OUTPUT PIANO'!$C$17/'1) INPUT MUTUO'!$D$10)) -> 910.5265774 | E43: =IF(B43=0,0,IF('1) INPUT MUTUO'!$D$13=360,L42*$C$3,L42*R43*FORMULE!$B$7)) -> 220.9193391 | F43: =IF(B43=0,0,IF('1) INPUT MUTUO'!$D$7="ITALIANO",'2) OUTPUT PIANO'!D43+'2) OUTPUT PIANO'!E43,IF(B43>'1) INPUT MUTUO'!$D$10,0,FORMULE!$B$13))) -> 1131.445917 | G43: =IF($B$7="SI",IF(F43=0,0,'1) INPUT MUTUO'!$D$19),0) -> 0 | I43: 0 | K43: -1131.445917 | L43: 87457.20908 | M43: =+IF('MATRIX SP. PERIODICHE'!AZ17=1,'1) INPUT MUTUO'!$C$31,0) -> 0 | N43: =+IF('MATRIX SP. PERIODICHE'!CZ17=1,'1) INPUT MUTUO'!$C$32,0) -> 0 | O43: =IF('MATRIX SP. PERIODICHE'!EZ17=1,'1) INPUT MUTUO'!$C$33,0) -> 0 | P43: =IF('MATRIX SP. PERIODICHE'!GZ17=1,'1) INPUT MUTUO'!$C$34,0) -> 0 | Q43: =IF('MATRIX SP. PERIODICHE'!IZ17=1,'1) INPUT MUTUO'!$C$35,0) -> 0 | R43: 31
A44: =IF($B$3="M",IF(FORMULE!$B$15="OK",EOMONTH('2) OUTPUT PIANO'!A43,1),EDATE('2) OUTPUT PIANO'!A43,1)),IF($B$3="T",IF(FORMULE!$B$15="OK",EOMONTH('2) OUTPUT PIANO'!A43,3),EDATE('2) OUTPUT PIANO'!A43,3)),IF($B$3="S",IF(FORMULE!$B$15="OK",EOMONTH('2) OUTPUT PIANO'!A43,6),EDATE('2) OUTPUT PIANO'!A43,6)),IF($B$3="A",+IF(FORMULE!$B$15="OK",EOMONTH('2) OUTPUT PIANO'!A43,12),EDATE('2) OUTPUT PIANO'!A43,12)),"ERRORE")))) -> 2011-04-01 | B44: =IF(B43=0,0,IF(B43+1<='1) INPUT MUTUO'!$D$10,'2) OUTPUT PIANO'!B43+1,0)) -> 15 | D44: =IF(B43=0,0,IF('1) INPUT MUTUO'!$D$7="FRANCESE",F44-E44,'2) OUTPUT PIANO'!$C$17/'1) INPUT MUTUO'!$D$10)) -> 912.8028938 | E44: =IF(B44=0,0,IF('1) INPUT MUTUO'!$D$13=360,L43*$C$3,L43*R44*FORMULE!$B$7)) -> 218.6430227 | F44: =IF(B44=0,0,IF('1) INPUT MUTUO'!$D$7="ITALIANO",'2) OUTPUT PIANO'!D44+'2) OUTPUT PIANO'!E44,IF(B44>'1) INPUT MUTUO'!$D$10,0,FORMULE!$B$13))) -> 1131.445917 | G44: =IF($B$7="SI",IF(F44=0,0,'1) INPUT MUTUO'!$D$19),0) -> 0 | I44: 0 | K44: -1131.445917 | L44: 86544.40618 | M44: =+IF('MATRIX SP. PERIODICHE'!AZ18=1,'1) INPUT MUTUO'!$C$31,0) -> 0 | N44: =+IF('MATRIX SP. PERIODICHE'!CZ18=1,'1) INPUT MUTUO'!$C$32,0) -> 0 | O44: =IF('MATRIX SP. PERIODICHE'!EZ18=1,'1) INPUT MUTUO'!$C$33,0) -> 0 | P44: =IF('MATRIX SP. PERIODICHE'!GZ18=1,'1) INPUT MUTUO'!$C$34,0) -> 0 | Q44: =IF('MATRIX SP. PERIODICHE'!IZ18=1,'1) INPUT MUTUO'!$C$35,0) -> 0 | R44: 30
A45: =IF($B$3="M",IF(FORMULE!$B$15="OK",EOMONTH('2) OUTPUT PIANO'!A44,1),EDATE('2) OUTPUT PIANO'!A44,1)),IF($B$3="T",IF(FORMULE!$B$15="OK",EOMONTH('2) OUTPUT PIANO'!A44,3),EDATE('2) OUTPUT PIANO'!A44,3)),IF($B$3="S",IF(FORMULE!$B$15="OK",EOMONTH('2) OUTPUT PIANO'!A44,6),EDATE('2) OUTPUT PIANO'!A44,6)),IF($B$3="A",+IF(FORMULE!$B$15="OK",EOMONTH('2) OUTPUT PIANO'!A44,12),EDATE('2) OUTPUT PIANO'!A44,12)),"ERRORE")))) -> 2011-05-01 | B45: =IF(B44=0,0,IF(B44+1<='1) INPUT MUTUO'!$D$10,'2) OUTPUT PIANO'!B44+1,0)) -> 16 | D45: =IF(B44=0,0,IF('1) INPUT MUTUO'!$D$7="FRANCESE",F45-E45,'2) OUTPUT PIANO'!$C$17/'1) INPUT MUTUO'!$D$10)) -> 915.0849011 | E45: =IF(B45=0,0,IF('1) INPUT MUTUO'!$D$13=360,L44*$C$3,L44*R45*FORMULE!$B$7)) -> 216.3610155 | F45: =IF(B45=0,0,IF('1) INPUT MUTUO'!$D$7="ITALIANO",'2) OUTPUT PIANO'!D45+'2) OUTPUT PIANO'!E45,IF(B45>'1) INPUT MUTUO'!$D$10,0,FORMULE!$B$13))) -> 1131.445917 | G45: =IF($B$7="SI",IF(F45=0,0,'1) INPUT MUTUO'!$D$19),0) -> 0 | I45: 0 | K45: -1131.445917 | L45: 85629.32128 | M45: =+IF('MATRIX SP. PERIODICHE'!AZ19=1,'1) INPUT MUTUO'!$C$31,0) -> 0 | N45: =+IF('MATRIX SP. PERIODICHE'!CZ19=1,'1) INPUT MUTUO'!$C$32,0) -> 0 | O45: =IF('MATRIX SP. PERIODICHE'!EZ19=1,'1) INPUT MUTUO'!$C$33,0) -> 0 | P45: =IF('MATRIX SP. PERIODICHE'!GZ19=1,'1) INPUT MUTUO'!$C$34,0) -> 0 | Q45: =IF('MATRIX SP. PERIODICHE'!IZ19=1,'1) INPUT MUTUO'!$C$35,0) -> 0 | R45: 31
A46: =IF($B$3="M",IF(FORMULE!$B$15="OK",EOMONTH('2) OUTPUT PIANO'!A45,1),EDATE('2) OUTPUT PIANO'!A45,1)),IF($B$3="T",IF(FORMULE!$B$15="OK",EOMONTH('2) OUTPUT PIANO'!A45,3),EDATE('2) OUTPUT PIANO'!A45,3)),IF($B$3="S",IF(FORMULE!$B$15="OK",EOMONTH('2) OUTPUT PIANO'!A45,6),EDATE('2) OUTPUT PIANO'!A45,6)),IF($B$3="A",+IF(FORMULE!$B$15="OK",EOMONTH('2) OUTPUT PIANO'!A45,12),EDATE('2) OUTPUT PIANO'!A45,12)),"ERRORE")))) -> 2011-06-01 | B46: =IF(B45=0,0,IF(B45+1<='1) INPUT MUTUO'!$D$10,'2) OUTPUT PIANO'!B45+1,0)) -> 17 | D46: =IF(B45=0,0,IF('1) INPUT MUTUO'!$D$7="FRANCESE",F46-E46,'2) OUTPUT PIANO'!$C$17/'1) INPUT MUTUO'!$D$10)) -> 917.3726133 | E46: =IF(B46=0,0,IF('1) INPUT MUTUO'!$D$13=360,L45*$C$3,L45*R46*FORMULE!$B$7)) -> 214.0733032 | F46: =IF(B46=0,0,IF('1) INPUT MUTUO'!$D$7="ITALIANO",'2) OUTPUT PIANO'!D46+'2) OUTPUT PIANO'!E46,IF(B46>'1) INPUT MUTUO'!$D$10,0,FORMULE!$B$13))) -> 1131.445917 | G46: =IF($B$7="SI",IF(F46=0,0,'1) INPUT MUTUO'!$D$19),0) -> 0 | I46: 0 | K46: -1131.445917 | L46: 84711.94867 | M46: =+IF('MATRIX SP. PERIODICHE'!AZ20=1,'1) INPUT MUTUO'!$C$31,0) -> 0 | N46: =+IF('MATRIX SP. PERIODICHE'!CZ20=1,'1) INPUT MUTUO'!$C$32,0) -> 0 | O46: =IF('MATRIX SP. PERIODICHE'!EZ20=1,'1) INPUT MUTUO'!$C$33,0) -> 0 | P46: =IF('MATRIX SP. PERIODICHE'!GZ20=1,'1) INPUT MUTUO'!$C$34,0) -> 0 | Q46: =IF('MATRIX SP. PERIODICHE'!IZ20=1,'1) INPUT MUTUO'!$C$35,0) -> 0 | R46: 30
A47: =IF($B$3="M",IF(FORMULE!$B$15="OK",EOMONTH('2) OUTPUT PIANO'!A46,1),EDATE('2) OUTPUT PIANO'!A46,1)),IF($B$3="T",IF(FORMULE!$B$15="OK",EOMONTH('2) OUTPUT PIANO'!A46,3),EDATE('2) OUTPUT PIANO'!A46,3)),IF($B$3="S",IF(FORMULE!$B$15="OK",EOMONTH('2) OUTPUT PIANO'!A46,6),EDATE('2) OUTPUT PIANO'!A46,6)),IF($B$3="A",+IF(FORMULE!$B$15="OK",EOMONTH('2) OUTPUT PIANO'!A46,12),EDATE('2) OUTPUT PIANO'!A46,12)),"ERRORE")))) -> 2011-07-01 | B47: =IF(B46=0,0,IF(B46+1<='1) INPUT MUTUO'!$D$10,'2) OUTPUT PIANO'!B46+1,0)) -> 18 | D47: =IF(B46=0,0,IF('1) INPUT MUTUO'!$D$7="FRANCESE",F47-E47,'2) OUTPUT PIANO'!$C$17/'1) INPUT MUTUO'!$D$10)) -> 919.6660448 | E47: =IF(B47=0,0,IF('1) INPUT MUTUO'!$D$13=360,L46*$C$3,L46*R47*FORMULE!$B$7)) -> 211.7798717 | F47: =IF(B47=0,0,IF('1) INPUT MUTUO'!$D$7="ITALIANO",'2) OUTPUT PIANO'!D47+'2) OUTPUT PIANO'!E47,IF(B47>'1) INPUT MUTUO'!$D$10,0,FORMULE!$B$13))) -> 1131.445917 | G47: =IF($B$7="SI",IF(F47=0,0,'1) INPUT MUTUO'!$D$19),0) -> 0 | I47: 0 | K47: -1131.445917 | L47: 83792.28262 | M47: =+IF('MATRIX SP. PERIODICHE'!AZ21=1,'1) INPUT MUTUO'!$C$31,0) -> 0 | N47: =+IF('MATRIX SP. PERIODICHE'!CZ21=1,'1) INPUT MUTUO'!$C$32,0) -> 0 | O47: =IF('MATRIX SP. PERIODICHE'!EZ21=1,'1) INPUT MUTUO'!$C$33,0) -> 0 | P47: =IF('MATRIX SP. PERIODICHE'!GZ21=1,'1) INPUT MUTUO'!$C$34,0) -> 0 | Q47: =IF('MATRIX SP. PERIODICHE'!IZ21=1,'1) INPUT MUTUO'!$C$35,0) -> 0 | R47: 31
A48: =IF($B$3="M",IF(FORMULE!$B$15="OK",EOMONTH('2) OUTPUT PIANO'!A47,1),EDATE('2) OUTPUT PIANO'!A47,1)),IF($B$3="T",IF(FORMULE!$B$15="OK",EOMONTH('2) OUTPUT PIANO'!A47,3),EDATE('2) OUTPUT PIANO'!A47,3)),IF($B$3="S",IF(FORMULE!$B$15="OK",EOMONTH('2) OUTPUT PIANO'!A47,6),EDATE('2) OUTPUT PIANO'!A47,6)),IF($B$3="A",+IF(FORMULE!$B$15="OK",EOMONTH('2) OUTPUT PIANO'!A47,12),EDATE('2) OUTPUT PIANO'!A47,12)),"ERRORE")))) -> 2011-08-01 | B48: =IF(B47=0,0,IF(B47+1<='1) INPUT MUTUO'!$D$10,'2) OUTPUT PIANO'!B47+1,0)) -> 19 | D48: =IF(B47=0,0,IF('1) INPUT MUTUO'!$D$7="FRANCESE",F48-E48,'2) OUTPUT PIANO'!$C$17/'1) INPUT MUTUO'!$D$10)) -> 921.96521 | E48: =IF(B48=0,0,IF('1) INPUT MUTUO'!$D$13=360,L47*$C$3,L47*R48*FORMULE!$B$7)) -> 209.4807066 | F48: =IF(B48=0,0,IF('1) INPUT MUTUO'!$D$7="ITALIANO",'2) OUTPUT PIANO'!D48+'2) OUTPUT PIANO'!E48,IF(B48>'1) INPUT MUTUO'!$D$10,0,FORMULE!$B$13))) -> 1131.445917 | G48: =IF($B$7="SI",IF(F48=0,0,'1) INPUT MUTUO'!$D$19),0) -> 0 | I48: 0 | K48: -1131.445917 | L48: 82870.31741 | M48: =+IF('MATRIX SP. PERIODICHE'!AZ22=1,'1) INPUT MUTUO'!$C$31,0) -> 0 | N48: =+IF('MATRIX SP. PERIODICHE'!CZ22=1,'1) INPUT MUTUO'!$C$32,0) -> 0 | O48: =IF('MATRIX SP. PERIODICHE'!EZ22=1,'1) INPUT MUTUO'!$C$33,0) -> 0 | P48: =IF('MATRIX SP. PERIODICHE'!GZ22=1,'1) INPUT MUTUO'!$C$34,0) -> 0 | Q48: =IF('MATRIX SP. PERIODICHE'!IZ22=1,'1) INPUT MUTUO'!$C$35,0) -> 0 | R48: 31
A49: =IF($B$3="M",IF(FORMULE!$B$15="OK",EOMONTH('2) OUTPUT PIANO'!A48,1),EDATE('2) OUTPUT PIANO'!A48,1)),IF($B$3="T",IF(FORMULE!$B$15="OK",EOMONTH('2) OUTPUT PIANO'!A48,3),EDATE('2) OUTPUT PIANO'!A48,3)),IF($B$3="S",IF(FORMULE!$B$15="OK",EOMONTH('2) OUTPUT PIANO'!A48,6),EDATE('2) OUTPUT PIANO'!A48,6)),IF($B$3="A",+IF(FORMULE!$B$15="OK",EOMONTH('2) OUTPUT PIANO'!A48,12),EDATE('2) OUTPUT PIANO'!A48,12)),"ERRORE")))) -> 2011-09-01 | B49: =IF(B48=0,0,IF(B48+1<='1) INPUT MUTUO'!$D$10,'2) OUTPUT PIANO'!B48+1,0)) -> 20 | D49: =IF(B48=0,0,IF('1) INPUT MUTUO'!$D$7="FRANCESE",F49-E49,'2) OUTPUT PIANO'!$C$17/'1) INPUT MUTUO'!$D$10)) -> 924.270123 | E49: =IF(B49=0,0,IF('1) INPUT MUTUO'!$D$13=360,L48*$C$3,L48*R49*FORMULE!$B$7)) -> 207.1757935 | F49: =IF(B49=0,0,IF('1) INPUT MUTUO'!$D$7="ITALIANO",'2) OUTPUT PIANO'!D49+'2) OUTPUT PIANO'!E49,IF(B49>'1) INPUT MUTUO'!$D$10,0,FORMULE!$B$13))) -> 1131.445917 | G49: =IF($B$7="SI",IF(F49=0,0,'1) INPUT MUTUO'!$D$19),0) -> 0 | I49: 0 | K49: -1131.445917 | L49: 81946.04729 | M49: =+IF('MATRIX SP. PERIODICHE'!AZ23=1,'1) INPUT MUTUO'!$C$31,0) -> 0 | N49: =+IF('MATRIX SP. PERIODICHE'!CZ23=1,'1) INPUT MUTUO'!$C$32,0) -> 0 | O49: =IF('MATRIX SP. PERIODICHE'!EZ23=1,'1) INPUT MUTUO'!$C$33,0) -> 0 | P49: =IF('MATRIX SP. PERIODICHE'!GZ23=1,'1) INPUT MUTUO'!$C$34,0) -> 0 | Q49: =IF('MATRIX SP. PERIODICHE'!IZ23=1,'1) INPUT MUTUO'!$C$35,0) -> 0 | R49: 30
A50: =IF($B$3="M",IF(FORMULE!$B$15="OK",EOMONTH('2) OUTPUT PIANO'!A49,1),EDATE('2) OUTPUT PIANO'!A49,1)),IF($B$3="T",IF(FORMULE!$B$15="OK",EOMONTH('2) OUTPUT PIANO'!A49,3),EDATE('2) OUTPUT PIANO'!A49,3)),IF($B$3="S",IF(FORMULE!$B$15="OK",EOMONTH('2) OUTPUT PIANO'!A49,6),EDATE('2) OUTPUT PIANO'!A49,6)),IF($B$3="A",+IF(FORMULE!$B$15="OK",EOMONTH('2) OUTPUT PIANO'!A49,12),EDATE('2) OUTPUT PIANO'!A49,12)),"ERRORE")))) -> 2011-10-01 | B50: =IF(B49=0,0,IF(B49+1<='1) INPUT MUTUO'!$D$10,'2) OUTPUT PIANO'!B49+1,0)) -> 21 | D50: =IF(B49=0,0,IF('1) INPUT MUTUO'!$D$7="FRANCESE",F50-E50,'2) OUTPUT PIANO'!$C$17/'1) INPUT MUTUO'!$D$10)) -> 926.5807983 | E50: =IF(B50=0,0,IF('1) INPUT MUTUO'!$D$13=360,L49*$C$3,L49*R50*FORMULE!$B$7)) -> 204.8651182 | F50: =IF(B50=0,0,IF('1) INPUT MUTUO'!$D$7="ITALIANO",'2) OUTPUT PIANO'!D50+'2) OUTPUT PIANO'!E50,IF(B50>'1) INPUT MUTUO'!$D$10,0,FORMULE!$B$13))) -> 1131.445917 | G50: =IF($B$7="SI",IF(F50=0,0,'1) INPUT MUTUO'!$D$19),0) -> 0 | I50: 0 | K50: -1131.445917 | L50: 81019.46649 | M50: =+IF('MATRIX SP. PERIODICHE'!AZ24=1,'1) INPUT MUTUO'!$C$31,0) -> 0 | N50: =+IF('MATRIX SP. PERIODICHE'!CZ24=1,'1) INPUT MUTUO'!$C$32,0) -> 0 | O50: =IF('MATRIX SP. PERIODICHE'!EZ24=1,'1) INPUT MUTUO'!$C$33,0) -> 0 | P50: =IF('MATRIX SP. PERIODICHE'!GZ24=1,'1) INPUT MUTUO'!$C$34,0) -> 0 | Q50: =IF('MATRIX SP. PERIODICHE'!IZ24=1,'1) INPUT MUTUO'!$C$35,0) -> 0 | R50: 31
A51: =IF($B$3="M",IF(FORMULE!$B$15="OK",EOMONTH('2) OUTPUT PIANO'!A50,1),EDATE('2) OUTPUT PIANO'!A50,1)),IF($B$3="T",IF(FORMULE!$B$15="OK",EOMONTH('2) OUTPUT PIANO'!A50,3),EDATE('2) OUTPUT PIANO'!A50,3)),IF($B$3="S",IF(FORMULE!$B$15="OK",EOMONTH('2) OUTPUT PIANO'!A50,6),EDATE('2) OUTPUT PIANO'!A50,6)),IF($B$3="A",+IF(FORMULE!$B$15="OK",EOMONTH('2) OUTPUT PIANO'!A50,12),EDATE('2) OUTPUT PIANO'!A50,12)),"ERRORE")))) -> 2011-11-01 | B51: =IF(B50=0,0,IF(B50+1<='1) INPUT MUTUO'!$D$10,'2) OUTPUT PIANO'!B50+1,0)) -> 22 | D51: =IF(B50=0,0,IF('1) INPUT MUTUO'!$D$7="FRANCESE",F51-E51,'2) OUTPUT PIANO'!$C$17/'1) INPUT MUTUO'!$D$10)) -> 928.8972503 | E51: =IF(B51=0,0,IF('1) INPUT MUTUO'!$D$13=360,L50*$C$3,L50*R51*FORMULE!$B$7)) -> 202.5486662 | F51: =IF(B51=0,0,IF('1) INPUT MUTUO'!$D$7="ITALIANO",'2) OUTPUT PIANO'!D51+'2) OUTPUT PIANO'!E51,IF(B51>'1) INPUT MUTUO'!$D$10,0,FORMULE!$B$13))) -> 1131.445917 | G51: =IF($B$7="SI",IF(F51=0,0,'1) INPUT MUTUO'!$D$19),0) -> 0 | I51: 0 | K51: -1131.445917 | L51: 80090.56924 | M51: =+IF('MATRIX SP. PERIODICHE'!AZ25=1,'1) INPUT MUTUO'!$C$31,0) -> 0 | N51: =+IF('MATRIX SP. PERIODICHE'!CZ25=1,'1) INPUT MUTUO'!$C$32,0) -> 0 | O51: =IF('MATRIX SP. PERIODICHE'!EZ25=1,'1) INPUT MUTUO'!$C$33,0) -> 0 | P51: =IF('MATRIX SP. PERIODICHE'!GZ25=1,'1) INPUT MUTUO'!$C$34,0) -> 0 | Q51: =IF('MATRIX SP. PERIODICHE'!IZ25=1,'1) INPUT MUTUO'!$C$35,0) -> 0 | R51: 30
A52: =IF($B$3="M",IF(FORMULE!$B$15="OK",EOMONTH('2) OUTPUT PIANO'!A51,1),EDATE('2) OUTPUT PIANO'!A51,1)),IF($B$3="T",IF(FORMULE!$B$15="OK",EOMONTH('2) OUTPUT PIANO'!A51,3),EDATE('2) OUTPUT PIANO'!A51,3)),IF($B$3="S",IF(FORMULE!$B$15="OK",EOMONTH('2) OUTPUT PIANO'!A51,6),EDATE('2) OUTPUT PIANO'!A51,6)),IF($B$3="A",+IF(FORMULE!$B$15="OK",EOMONTH('2) OUTPUT PIANO'!A51,12),EDATE('2) OUTPUT PIANO'!A51,12)),"ERRORE")))) -> 2011-12-01 | B52: =IF(B51=0,0,IF(B51+1<='1) INPUT MUTUO'!$D$10,'2) OUTPUT PIANO'!B51+1,0)) -> 23 | D52: =IF(B51=0,0,IF('1) INPUT MUTUO'!$D$7="FRANCESE",F52-E52,'2) OUTPUT PIANO'!$C$17/'1) INPUT MUTUO'!$D$10)) -> 931.2194934 | E52: =IF(B52=0,0,IF('1) INPUT MUTUO'!$D$13=360,L51*$C$3,L51*R52*FORMULE!$B$7)) -> 200.2264231 | F52: =IF(B52=0,0,IF('1) INPUT MUTUO'!$D$7="ITALIANO",'2) OUTPUT PIANO'!D52+'2) OUTPUT PIANO'!E52,IF(B52>'1) INPUT MUTUO'!$D$10,0,FORMULE!$B$13))) -> 1131.445917 | G52: =IF($B$7="SI",IF(F52=0,0,'1) INPUT MUTUO'!$D$19),0) -> 0 | I52: 0 | K52: -1131.445917 | L52: 79159.34975 | M52: =+IF('MATRIX SP. PERIODICHE'!AZ26=1,'1) INPUT MUTUO'!$C$31,0) -> 0 | N52: =+IF('MATRIX SP. PERIODICHE'!CZ26=1,'1) INPUT MUTUO'!$C$32,0) -> 0 | O52: =IF('MATRIX SP. PERIODICHE'!EZ26=1,'1) INPUT MUTUO'!$C$33,0) -> 0 | P52: =IF('MATRIX SP. PERIODICHE'!GZ26=1,'1) INPUT MUTUO'!$C$34,0) -> 0 | Q52: =IF('MATRIX SP. PERIODICHE'!IZ26=1,'1) INPUT MUTUO'!$C$35,0) -> 0 | R52: 31
A53: =IF($B$3="M",IF(FORMULE!$B$15="OK",EOMONTH('2) OUTPUT PIANO'!A52,1),EDATE('2) OUTPUT PIANO'!A52,1)),IF($B$3="T",IF(FORMULE!$B$15="OK",EOMONTH('2) OUTPUT PIANO'!A52,3),EDATE('2) OUTPUT PIANO'!A52,3)),IF($B$3="S",IF(FORMULE!$B$15="OK",EOMONTH('2) OUTPUT PIANO'!A52,6),EDATE('2) OUTPUT PIANO'!A52,6)),IF($B$3="A",+IF(FORMULE!$B$15="OK",EOMONTH('2) OUTPUT PIANO'!A52,12),EDATE('2) OUTPUT PIANO'!A52,12)),"ERRORE")))) -> 2012-01-01 | B53: =IF(B52=0,0,IF(B52+1<='1) INPUT MUTUO'!$D$10,'2) OUTPUT PIANO'!B52+1,0)) -> 24 | D53: =IF(B52=0,0,IF('1) INPUT MUTUO'!$D$7="FRANCESE",F53-E53,'2) OUTPUT PIANO'!$C$17/'1) INPUT MUTUO'!$D$10)) -> 933.5475421 | E53: =IF(B53=0,0,IF('1) INPUT MUTUO'!$D$13=360,L52*$C$3,L52*R53*FORMULE!$B$7)) -> 197.8983744 | F53: =IF(B53=0,0,IF('1) INPUT MUTUO'!$D$7="ITALIANO",'2) OUTPUT PIANO'!D53+'2) OUTPUT PIANO'!E53,IF(B53>'1) INPUT MUTUO'!$D$10,0,FORMULE!$B$13))) -> 1131.445917 | G53: =IF($B$7="SI",IF(F53=0,0,'1) INPUT MUTUO'!$D$19),0) -> 0 | I53: 0 | K53: -1131.445917 | L53: 78225.80221 | M53: =+IF('MATRIX SP. PERIODICHE'!AZ27=1,'1) INPUT MUTUO'!$C$31,0) -> 0 | N53: =+IF('MATRIX SP. PERIODICHE'!CZ27=1,'1) INPUT MUTUO'!$C$32,0) -> 0 | O53: =IF('MATRIX SP. PERIODICHE'!EZ27=1,'1) INPUT MUTUO'!$C$33,0) -> 0 | P53: =IF('MATRIX SP. PERIODICHE'!GZ27=1,'1) INPUT MUTUO'!$C$34,0) -> 0 | Q53: =IF('MATRIX SP. PERIODICHE'!IZ27=1,'1) INPUT MUTUO'!$C$35,0) -> 0 | R53: 31
A54: =IF($B$3="M",IF(FORMULE!$B$15="OK",EOMONTH('2) OUTPUT PIANO'!A53,1),EDATE('2) OUTPUT PIANO'!A53,1)),IF($B$3="T",IF(FORMULE!$B$15="OK",EOMONTH('2) OUTPUT PIANO'!A53,3),EDATE('2) OUTPUT PIANO'!A53,3)),IF($B$3="S",IF(FORMULE!$B$15="OK",EOMONTH('2) OUTPUT PIANO'!A53,6),EDATE('2) OUTPUT PIANO'!A53,6)),IF($B$3="A",+IF(FORMULE!$B$15="OK",EOMONTH('2) OUTPUT PIANO'!A53,12),EDATE('2) OUTPUT PIANO'!A53,12)),"ERRORE")))) -> 2012-02-01 | B54: =IF(B53=0,0,IF(B53+1<='1) INPUT MUTUO'!$D$10,'2) OUTPUT PIANO'!B53+1,0)) -> 25 | D54: =IF(B53=0,0,IF('1) INPUT MUTUO'!$D$7="FRANCESE",F54-E54,'2) OUTPUT PIANO'!$C$17/'1) INPUT MUTUO'!$D$10)) -> 935.881411 | E54: =IF(B54=0,0,IF('1) INPUT MUTUO'!$D$13=360,L53*$C$3,L53*R54*FORMULE!$B$7)) -> 195.5645055 | F54: =IF(B54=0,0,IF('1) INPUT MUTUO'!$D$7="ITALIANO",'2) OUTPUT PIANO'!D54+'2) OUTPUT PIANO'!E54,IF(B54>'1) INPUT MUTUO'!$D$10,0,FORMULE!$B$13))) -> 1131.445917 | G54: =IF($B$7="SI",IF(F54=0,0,'1) INPUT MUTUO'!$D$19),0) -> 0 | I54: 0 | K54: -1131.445917 | L54: 77289.9208 | M54: =+IF('MATRIX SP. PERIODICHE'!AZ28=1,'1) INPUT MUTUO'!$C$31,0) -> 0 | N54: =+IF('MATRIX SP. PERIODICHE'!CZ28=1,'1) INPUT MUTUO'!$C$32,0) -> 0 | O54: =IF('MATRIX SP. PERIODICHE'!EZ28=1,'1) INPUT MUTUO'!$C$33,0) -> 0 | P54: =IF('MATRIX SP. PERIODICHE'!GZ28=1,'1) INPUT MUTUO'!$C$34,0) -> 0 | Q54: =IF('MATRIX SP. PERIODICHE'!IZ28=1,'1) INPUT MUTUO'!$C$35,0) -> 0 | R54: 29
A55: =IF($B$3="M",IF(FORMULE!$B$15="OK",EOMONTH('2) OUTPUT PIANO'!A54,1),EDATE('2) OUTPUT PIANO'!A54,1)),IF($B$3="T",IF(FORMULE!$B$15="OK",EOMONTH('2) OUTPUT PIANO'!A54,3),EDATE('2) OUTPUT PIANO'!A54,3)),IF($B$3="S",IF(FORMULE!$B$15="OK",EOMONTH('2) OUTPUT PIANO'!A54,6),EDATE('2) OUTPUT PIANO'!A54,6)),IF($B$3="A",+IF(FORMULE!$B$15="OK",EOMONTH('2) OUTPUT PIANO'!A54,12),EDATE('2) OUTPUT PIANO'!A54,12)),"ERRORE")))) -> 2012-03-01 | B55: =IF(B54=0,0,IF(B54+1<='1) INPUT MUTUO'!$D$10,'2) OUTPUT PIANO'!B54+1,0)) -> 26 | D55: =IF(B54=0,0,IF('1) INPUT MUTUO'!$D$7="FRANCESE",F55-E55,'2) OUTPUT PIANO'!$C$17/'1) INPUT MUTUO'!$D$10)) -> 938.2211145 | E55: =IF(B55=0,0,IF('1) INPUT MUTUO'!$D$13=360,L54*$C$3,L54*R55*FORMULE!$B$7)) -> 193.224802 | F55: =IF(B55=0,0,IF('1) INPUT MUTUO'!$D$7="ITALIANO",'2) OUTPUT PIANO'!D55+'2) OUTPUT PIANO'!E55,IF(B55>'1) INPUT MUTUO'!$D$10,0,FORMULE!$B$13))) -> 1131.445917 | G55: =IF($B$7="SI",IF(F55=0,0,'1) INPUT MUTUO'!$D$19),0) -> 0 | I55: 0 | K55: -1131.445917 | L55: 76351.69968 | M55: =+IF('MATRIX SP. PERIODICHE'!AZ29=1,'1) INPUT MUTUO'!$C$31,0) -> 0 | N55: =+IF('MATRIX SP. PERIODICHE'!CZ29=1,'1) INPUT MUTUO'!$C$32,0) -> 0 | O55: =IF('MATRIX SP. PERIODICHE'!EZ29=1,'1) INPUT MUTUO'!$C$33,0) -> 0 | P55: =IF('MATRIX SP. PERIODICHE'!GZ29=1,'1) INPUT MUTUO'!$C$34,0) -> 0 | Q55: =IF('MATRIX SP. PERIODICHE'!IZ29=1,'1) INPUT MUTUO'!$C$35,0) -> 0 | R55: 31
A56: =IF($B$3="M",IF(FORMULE!$B$15="OK",EOMONTH('2) OUTPUT PIANO'!A55,1),EDATE('2) OUTPUT PIANO'!A55,1)),IF($B$3="T",IF(FORMULE!$B$15="OK",EOMONTH('2) OUTPUT PIANO'!A55,3),EDATE('2) OUTPUT PIANO'!A55,3)),IF($B$3="S",IF(FORMULE!$B$15="OK",EOMONTH('2) OUTPUT PIANO'!A55,6),EDATE('2) OUTPUT PIANO'!A55,6)),IF($B$3="A",+IF(FORMULE!$B$15="OK",EOMONTH('2) OUTPUT PIANO'!A55,12),EDATE('2) OUTPUT PIANO'!A55,12)),"ERRORE")))) -> 2012-04-01 | B56: =IF(B55=0,0,IF(B55+1<='1) INPUT MUTUO'!$D$10,'2) OUTPUT PIANO'!B55+1,0)) -> 27 | D56: =IF(B55=0,0,IF('1) INPUT MUTUO'!$D$7="FRANCESE",F56-E56,'2) OUTPUT PIANO'!$C$17/'1) INPUT MUTUO'!$D$10)) -> 940.5666673 | E56: =IF(B56=0,0,IF('1) INPUT MUTUO'!$D$13=360,L55*$C$3,L55*R56*FORMULE!$B$7)) -> 190.8792492 | F56: =IF(B56=0,0,IF('1) INPUT MUTUO'!$D$7="ITALIANO",'2) OUTPUT PIANO'!D56+'2) OUTPUT PIANO'!E56,IF(B56>'1) INPUT MUTUO'!$D$10,0,FORMULE!$B$13))) -> 1131.445917 | G56: =IF($B$7="SI",IF(F56=0,0,'1) INPUT MUTUO'!$D$19),0) -> 0 | I56: 0 | K56: -1131.445917 | L56: 75411.13301 | M56: =+IF('MATRIX SP. PERIODICHE'!AZ30=1,'1) INPUT MUTUO'!$C$31,0) -> 0 | N56: =+IF('MATRIX SP. PERIODICHE'!CZ30=1,'1) INPUT MUTUO'!$C$32,0) -> 0 | O56: =IF('MATRIX SP. PERIODICHE'!EZ30=1,'1) INPUT MUTUO'!$C$33,0) -> 0 | P56: =IF('MATRIX SP. PERIODICHE'!GZ30=1,'1) INPUT MUTUO'!$C$34,0) -> 0 | Q56: =IF('MATRIX SP. PERIODICHE'!IZ30=1,'1) INPUT MUTUO'!$C$35,0) -> 0 | R56: 30
A57: =IF($B$3="M",IF(FORMULE!$B$15="OK",EOMONTH('2) OUTPUT PIANO'!A56,1),EDATE('2) OUTPUT PIANO'!A56,1)),IF($B$3="T",IF(FORMULE!$B$15="OK",EOMONTH('2) OUTPUT PIANO'!A56,3),EDATE('2) OUTPUT PIANO'!A56,3)),IF($B$3="S",IF(FORMULE!$B$15="OK",EOMONTH('2) OUTPUT PIANO'!A56,6),EDATE('2) OUTPUT PIANO'!A56,6)),IF($B$3="A",+IF(FORMULE!$B$15="OK",EOMONTH('2) OUTPUT PIANO'!A56,12),EDATE('2) OUTPUT PIANO'!A56,12)),"ERRORE")))) -> 2012-05-01 | B57: =IF(B56=0,0,IF(B56+1<='1) INPUT MUTUO'!$D$10,'2) OUTPUT PIANO'!B56+1,0)) -> 28 | D57: =IF(B56=0,0,IF('1) INPUT MUTUO'!$D$7="FRANCESE",F57-E57,'2) OUTPUT PIANO'!$C$17/'1) INPUT MUTUO'!$D$10)) -> 942.918084 | E57: =IF(B57=0,0,IF('1) INPUT MUTUO'!$D$13=360,L56*$C$3,L56*R57*FORMULE!$B$7)) -> 188.5278325 | F57: =IF(B57=0,0,IF('1) INPUT MUTUO'!$D$7="ITALIANO",'2) OUTPUT PIANO'!D57+'2) OUTPUT PIANO'!E57,IF(B57>'1) INPUT MUTUO'!$D$10,0,FORMULE!$B$13))) -> 1131.445917 | G57: =IF($B$7="SI",IF(F57=0,0,'1) INPUT MUTUO'!$D$19),0) -> 0 | I57: 0 | K57: -1131.445917 | L57: 74468.21493 | M57: =+IF('MATRIX SP. PERIODICHE'!AZ31=1,'1) INPUT MUTUO'!$C$31,0) -> 0 | N57: =+IF('MATRIX SP. PERIODICHE'!CZ31=1,'1) INPUT MUTUO'!$C$32,0) -> 0 | O57: =IF('MATRIX SP. PERIODICHE'!EZ31=1,'1) INPUT MUTUO'!$C$33,0) -> 0 | P57: =IF('MATRIX SP. PERIODICHE'!GZ31=1,'1) INPUT MUTUO'!$C$34,0) -> 0 | Q57: =IF('MATRIX SP. PERIODICHE'!IZ31=1,'1) INPUT MUTUO'!$C$35,0) -> 0 | R57: 31
A58: =IF($B$3="M",IF(FORMULE!$B$15="OK",EOMONTH('2) OUTPUT PIANO'!A57,1),EDATE('2) OUTPUT PIANO'!A57,1)),IF($B$3="T",IF(FORMULE!$B$15="OK",EOMONTH('2) OUTPUT PIANO'!A57,3),EDATE('2) OUTPUT PIANO'!A57,3)),IF($B$3="S",IF(FORMULE!$B$15="OK",EOMONTH('2) OUTPUT PIANO'!A57,6),EDATE('2) OUTPUT PIANO'!A57,6)),IF($B$3="A",+IF(FORMULE!$B$15="OK",EOMONTH('2) OUTPUT PIANO'!A57,12),EDATE('2) OUTPUT PIANO'!A57,12)),"ERRORE")))) -> 2012-06-01 | B58: =IF(B57=0,0,IF(B57+1<='1) INPUT MUTUO'!$D$10,'2) OUTPUT PIANO'!B57+1,0)) -> 29 | D58: =IF(B57=0,0,IF('1) INPUT MUTUO'!$D$7="FRANCESE",F58-E58,'2) OUTPUT PIANO'!$C$17/'1) INPUT MUTUO'!$D$10)) -> 945.2753792 | E58: =IF(B58=0,0,IF('1) INPUT MUTUO'!$D$13=360,L57*$C$3,L57*R58*FORMULE!$B$7)) -> 186.1705373 | F58: =IF(B58=0,0,IF('1) INPUT MUTUO'!$D$7="ITALIANO",'2) OUTPUT PIANO'!D58+'2) OUTPUT PIANO'!E58,IF(B58>'1) INPUT MUTUO'!$D$10,0,FORMULE!$B$13))) -> 1131.445917 | G58: =IF($B$7="SI",IF(F58=0,0,'1) INPUT MUTUO'!$D$19),0) -> 0 | I58: 0 | K58: -1131.445917 | L58: 73522.93955 | M58: =+IF('MATRIX SP. PERIODICHE'!AZ32=1,'1) INPUT MUTUO'!$C$31,0) -> 0 | N58: =+IF('MATRIX SP. PERIODICHE'!CZ32=1,'1) INPUT MUTUO'!$C$32,0) -> 0 | O58: =IF('MATRIX SP. PERIODICHE'!EZ32=1,'1) INPUT MUTUO'!$C$33,0) -> 0 | P58: =IF('MATRIX SP. PERIODICHE'!GZ32=1,'1) INPUT MUTUO'!$C$34,0) -> 0 | Q58: =IF('MATRIX SP. PERIODICHE'!IZ32=1,'1) INPUT MUTUO'!$C$35,0) -> 0 | R58: 30
A59: =IF($B$3="M",IF(FORMULE!$B$15="OK",EOMONTH('2) OUTPUT PIANO'!A58,1),EDATE('2) OUTPUT PIANO'!A58,1)),IF($B$3="T",IF(FORMULE!$B$15="OK",EOMONTH('2) OUTPUT PIANO'!A58,3),EDATE('2) OUTPUT PIANO'!A58,3)),IF($B$3="S",IF(FORMULE!$B$15="OK",EOMONTH('2) OUTPUT PIANO'!A58,6),EDATE('2) OUTPUT PIANO'!A58,6)),IF($B$3="A",+IF(FORMULE!$B$15="OK",EOMONTH('2) OUTPUT PIANO'!A58,12),EDATE('2) OUTPUT PIANO'!A58,12)),"ERRORE")))) -> 2012-07-01 | B59: =IF(B58=0,0,IF(B58+1<='1) INPUT MUTUO'!$D$10,'2) OUTPUT PIANO'!B58+1,0)) -> 30 | D59: =IF(B58=0,0,IF('1) INPUT MUTUO'!$D$7="FRANCESE",F59-E59,'2) OUTPUT PIANO'!$C$17/'1) INPUT MUTUO'!$D$10)) -> 947.6385676 | E59: =IF(B59=0,0,IF('1) INPUT MUTUO'!$D$13=360,L58*$C$3,L58*R59*FORMULE!$B$7)) -> 183.8073489 | F59: =IF(B59=0,0,IF('1) INPUT MUTUO'!$D$7="ITALIANO",'2) OUTPUT PIANO'!D59+'2) OUTPUT PIANO'!E59,IF(B59>'1) INPUT MUTUO'!$D$10,0,FORMULE!$B$13))) -> 1131.445917 | G59: =IF($B$7="SI",IF(F59=0,0,'1) INPUT MUTUO'!$D$19),0) -> 0 | I59: 0 | K59: -1131.445917 | L59: 72575.30098 | M59: =+IF('MATRIX SP. PERIODICHE'!AZ33=1,'1) INPUT MUTUO'!$C$31,0) -> 0 | N59: =+IF('MATRIX SP. PERIODICHE'!CZ33=1,'1) INPUT MUTUO'!$C$32,0) -> 0 | O59: =IF('MATRIX SP. PERIODICHE'!EZ33=1,'1) INPUT MUTUO'!$C$33,0) -> 0 | P59: =IF('MATRIX SP. PERIODICHE'!GZ33=1,'1) INPUT MUTUO'!$C$34,0) -> 0 | Q59: =IF('MATRIX SP. PERIODICHE'!IZ33=1,'1) INPUT MUTUO'!$C$35,0) -> 0 | R59: 31
A60: =IF($B$3="M",IF(FORMULE!$B$15="OK",EOMONTH('2) OUTPUT PIANO'!A59,1),EDATE('2) OUTPUT PIANO'!A59,1)),IF($B$3="T",IF(FORMULE!$B$15="OK",EOMONTH('2) OUTPUT PIANO'!A59,3),EDATE('2) OUTPUT PIANO'!A59,3)),IF($B$3="S",IF(FORMULE!$B$15="OK",EOMONTH('2) OUTPUT PIANO'!A59,6),EDATE('2) OUTPUT PIANO'!A59,6)),IF($B$3="A",+IF(FORMULE!$B$15="OK",EOMONTH('2) OUTPUT PIANO'!A59,12),EDATE('2) OUTPUT PIANO'!A59,12)),"ERRORE")))) -> 2012-08-01 | B60: =IF(B59=0,0,IF(B59+1<='1) INPUT MUTUO'!$D$10,'2) OUTPUT PIANO'!B59+1,0)) -> 31 | D60: =IF(B59=0,0,IF('1) INPUT MUTUO'!$D$7="FRANCESE",F60-E60,'2) OUTPUT PIANO'!$C$17/'1) INPUT MUTUO'!$D$10)) -> 950.0076641 | E60: =IF(B60=0,0,IF('1) INPUT MUTUO'!$D$13=360,L59*$C$3,L59*R60*FORMULE!$B$7)) -> 181.4382525 | F60: =IF(B60=0,0,IF('1) INPUT MUTUO'!$D$7="ITALIANO",'2) OUTPUT PIANO'!D60+'2) OUTPUT PIANO'!E60,IF(B60>'1) INPUT MUTUO'!$D$10,0,FORMULE!$B$13))) -> 1131.445917 | G60: =IF($B$7="SI",IF(F60=0,0,'1) INPUT MUTUO'!$D$19),0) -> 0 | I60: 0 | K60: -1131.445917 | L60: 71625.29332 | M60: =+IF('MATRIX SP. PERIODICHE'!AZ34=1,'1) INPUT MUTUO'!$C$31,0) -> 0 | N60: =+IF('MATRIX SP. PERIODICHE'!CZ34=1,'1) INPUT MUTUO'!$C$32,0) -> 0 | O60: =IF('MATRIX SP. PERIODICHE'!EZ34=1,'1) INPUT MUTUO'!$C$33,0) -> 0 | P60: =IF('MATRIX SP. PERIODICHE'!GZ34=1,'1) INPUT MUTUO'!$C$34,0) -> 0 | Q60: =IF('MATRIX SP. PERIODICHE'!IZ34=1,'1) INPUT MUTUO'!$C$35,0) -> 0 | R60: 31
A61: =IF($B$3="M",IF(FORMULE!$B$15="OK",EOMONTH('2) OUTPUT PIANO'!A60,1),EDATE('2) OUTPUT PIANO'!A60,1)),IF($B$3="T",IF(FORMULE!$B$15="OK",EOMONTH('2) OUTPUT PIANO'!A60,3),EDATE('2) OUTPUT PIANO'!A60,3)),IF($B$3="S",IF(FORMULE!$B$15="OK",EOMONTH('2) OUTPUT PIANO'!A60,6),EDATE('2) OUTPUT PIANO'!A60,6)),IF($B$3="A",+IF(FORMULE!$B$15="OK",EOMONTH('2) OUTPUT PIANO'!A60,12),EDATE('2) OUTPUT PIANO'!A60,12)),"ERRORE")))) -> 2012-09-01 | B61: =IF(B60=0,0,IF(B60+1<='1) INPUT MUTUO'!$D$10,'2) OUTPUT PIANO'!B60+1,0)) -> 32 | D61: =IF(B60=0,0,IF('1) INPUT MUTUO'!$D$7="FRANCESE",F61-E61,'2) OUTPUT PIANO'!$C$17/'1) INPUT MUTUO'!$D$10)) -> 952.3826832 | E61: =IF(B61=0,0,IF('1) INPUT MUTUO'!$D$13=360,L60*$C$3,L60*R61*FORMULE!$B$7)) -> 179.0632333 | F61: =IF(B61=0,0,IF('1) INPUT MUTUO'!$D$7="ITALIANO",'2) OUTPUT PIANO'!D61+'2) OUTPUT PIANO'!E61,IF(B61>'1) INPUT MUTUO'!$D$10,0,FORMULE!$B$13))) -> 1131.445917 | G61: =IF($B$7="SI",IF(F61=0,0,'1) INPUT MUTUO'!$D$19),0) -> 0 | I61: 0 | K61: -1131.445917 | L61: 70672.91064 | M61: =+IF('MATRIX SP. PERIODICHE'!AZ35=1,'1) INPUT MUTUO'!$C$31,0) -> 0 | N61: =+IF('MATRIX SP. PERIODICHE'!CZ35=1,'1) INPUT MUTUO'!$C$32,0) -> 0 | O61: =IF('MATRIX SP. PERIODICHE'!EZ35=1,'1) INPUT MUTUO'!$C$33,0) -> 0 | P61: =IF('MATRIX SP. PERIODICHE'!GZ35=1,'1) INPUT MUTUO'!$C$34,0) -> 0 | Q61: =IF('MATRIX SP. PERIODICHE'!IZ35=1,'1) INPUT MUTUO'!$C$35,0) -> 0 | R61: 30
A62: =IF($B$3="M",IF(FORMULE!$B$15="OK",EOMONTH('2) OUTPUT PIANO'!A61,1),EDATE('2) OUTPUT PIANO'!A61,1)),IF($B$3="T",IF(FORMULE!$B$15="OK",EOMONTH('2) OUTPUT PIANO'!A61,3),EDATE('2) OUTPUT PIANO'!A61,3)),IF($B$3="S",IF(FORMULE!$B$15="OK",EOMONTH('2) OUTPUT PIANO'!A61,6),EDATE('2) OUTPUT PIANO'!A61,6)),IF($B$3="A",+IF(FORMULE!$B$15="OK",EOMONTH('2) OUTPUT PIANO'!A61,12),EDATE('2) OUTPUT PIANO'!A61,12)),"ERRORE")))) -> 2012-10-01 | B62: =IF(B61=0,0,IF(B61+1<='1) INPUT MUTUO'!$D$10,'2) OUTPUT PIANO'!B61+1,0)) -> 33 | D62: =IF(B61=0,0,IF('1) INPUT MUTUO'!$D$7="FRANCESE",F62-E62,'2) OUTPUT PIANO'!$C$17/'1) INPUT MUTUO'!$D$10)) -> 954.7636399 | E62: =IF(B62=0,0,IF('1) INPUT MUTUO'!$D$13=360,L61*$C$3,L61*R62*FORMULE!$B$7)) -> 176.6822766 | F62: =IF(B62=0,0,IF('1) INPUT MUTUO'!$D$7="ITALIANO",'2) OUTPUT PIANO'!D62+'2) OUTPUT PIANO'!E62,IF(B62>'1) INPUT MUTUO'!$D$10,0,FORMULE!$B$13))) -> 1131.445917 | G62: =IF($B$7="SI",IF(F62=0,0,'1) INPUT MUTUO'!$D$19),0) -> 0 | I62: 0 | K62: -1131.445917 | L62: 69718.147 | M62: =+IF('MATRIX SP. PERIODICHE'!AZ36=1,'1) INPUT MUTUO'!$C$31,0) -> 0 | N62: =+IF('MATRIX SP. PERIODICHE'!CZ36=1,'1) INPUT MUTUO'!$C$32,0) -> 0 | O62: =IF('MATRIX SP. PERIODICHE'!EZ36=1,'1) INPUT MUTUO'!$C$33,0) -> 0 | P62: =IF('MATRIX SP. PERIODICHE'!GZ36=1,'1) INPUT MUTUO'!$C$34,0) -> 0 | Q62: =IF('MATRIX SP. PERIODICHE'!IZ36=1,'1) INPUT MUTUO'!$C$35,0) -> 0 | R62: 31
A63: =IF($B$3="M",IF(FORMULE!$B$15="OK",EOMONTH('2) OUTPUT PIANO'!A62,1),EDATE('2) OUTPUT PIANO'!A62,1)),IF($B$3="T",IF(FORMULE!$B$15="OK",EOMONTH('2) OUTPUT PIANO'!A62,3),EDATE('2) OUTPUT PIANO'!A62,3)),IF($B$3="S",IF(FORMULE!$B$15="OK",EOMONTH('2) OUTPUT PIANO'!A62,6),EDATE('2) OUTPUT PIANO'!A62,6)),IF($B$3="A",+IF(FORMULE!$B$15="OK",EOMONTH('2) OUTPUT PIANO'!A62,12),EDATE('2) OUTPUT PIANO'!A62,12)),"ERRORE")))) -> 2012-11-01 | B63: =IF(B62=0,0,IF(B62+1<='1) INPUT MUTUO'!$D$10,'2) OUTPUT PIANO'!B62+1,0)) -> 34 | D63: =IF(B62=0,0,IF('1) INPUT MUTUO'!$D$7="FRANCESE",F63-E63,'2) OUTPUT PIANO'!$C$17/'1) INPUT MUTUO'!$D$10)) -> 957.150549 | E63: =IF(B63=0,0,IF('1) INPUT MUTUO'!$D$13=360,L62*$C$3,L62*R63*FORMULE!$B$7)) -> 174.2953675 | F63: =IF(B63=0,0,IF('1) INPUT MUTUO'!$D$7="ITALIANO",'2) OUTPUT PIANO'!D63+'2) OUTPUT PIANO'!E63,IF(B63>'1) INPUT MUTUO'!$D$10,0,FORMULE!$B$13))) -> 1131.445917 | G63: =IF($B$7="SI",IF(F63=0,0,'1) INPUT MUTUO'!$D$19),0) -> 0 | I63: 0 | K63: -1131.445917 | L63: 68760.99645 | M63: =+IF('MATRIX SP. PERIODICHE'!AZ37=1,'1) INPUT MUTUO'!$C$31,0) -> 0 | N63: =+IF('MATRIX SP. PERIODICHE'!CZ37=1,'1) INPUT MUTUO'!$C$32,0) -> 0 | O63: =IF('MATRIX SP. PERIODICHE'!EZ37=1,'1) INPUT MUTUO'!$C$33,0) -> 0 | P63: =IF('MATRIX SP. PERIODICHE'!GZ37=1,'1) INPUT MUTUO'!$C$34,0) -> 0 | Q63: =IF('MATRIX SP. PERIODICHE'!IZ37=1,'1) INPUT MUTUO'!$C$35,0) -> 0 | R63: 30
A64: =IF($B$3="M",IF(FORMULE!$B$15="OK",EOMONTH('2) OUTPUT PIANO'!A63,1),EDATE('2) OUTPUT PIANO'!A63,1)),IF($B$3="T",IF(FORMULE!$B$15="OK",EOMONTH('2) OUTPUT PIANO'!A63,3),EDATE('2) OUTPUT PIANO'!A63,3)),IF($B$3="S",IF(FORMULE!$B$15="OK",EOMONTH('2) OUTPUT PIANO'!A63,6),EDATE('2) OUTPUT PIANO'!A63,6)),IF($B$3="A",+IF(FORMULE!$B$15="OK",EOMONTH('2) OUTPUT PIANO'!A63,12),EDATE('2) OUTPUT PIANO'!A63,12)),"ERRORE")))) -> 2012-12-01 | B64: =IF(B63=0,0,IF(B63+1<='1) INPUT MUTUO'!$D$10,'2) OUTPUT PIANO'!B63+1,0)) -> 35 | D64: =IF(B63=0,0,IF('1) INPUT MUTUO'!$D$7="FRANCESE",F64-E64,'2) OUTPUT PIANO'!$C$17/'1) INPUT MUTUO'!$D$10)) -> 959.5434254 | E64: =IF(B64=0,0,IF('1) INPUT MUTUO'!$D$13=360,L63*$C$3,L63*R64*FORMULE!$B$7)) -> 171.9024911 | F64: =IF(B64=0,0,IF('1) INPUT MUTUO'!$D$7="ITALIANO",'2) OUTPUT PIANO'!D64+'2) OUTPUT PIANO'!E64,IF(B64>'1) INPUT MUTUO'!$D$10,0,FORMULE!$B$13))) -> 1131.445917 | G64: =IF($B$7="SI",IF(F64=0,0,'1) INPUT MUTUO'!$D$19),0) -> 0 | I64: 0 | K64: -1131.445917 | L64: 67801.45302 | M64: =+IF('MATRIX SP. PERIODICHE'!AZ38=1,'1) INPUT MUTUO'!$C$31,0) -> 0 | N64: =+IF('MATRIX SP. PERIODICHE'!CZ38=1,'1) INPUT MUTUO'!$C$32,0) -> 0 | O64: =IF('MATRIX SP. PERIODICHE'!EZ38=1,'1) INPUT MUTUO'!$C$33,0) -> 0 | P64: =IF('MATRIX SP. PERIODICHE'!GZ38=1,'1) INPUT MUTUO'!$C$34,0) -> 0 | Q64: =IF('MATRIX SP. PERIODICHE'!IZ38=1,'1) INPUT MUTUO'!$C$35,0) -> 0 | R64: 31
A65: =IF($B$3="M",IF(FORMULE!$B$15="OK",EOMONTH('2) OUTPUT PIANO'!A64,1),EDATE('2) OUTPUT PIANO'!A64,1)),IF($B$3="T",IF(FORMULE!$B$15="OK",EOMONTH('2) OUTPUT PIANO'!A64,3),EDATE('2) OUTPUT PIANO'!A64,3)),IF($B$3="S",IF(FORMULE!$B$15="OK",EOMONTH('2) OUTPUT PIANO'!A64,6),EDATE('2) OUTPUT PIANO'!A64,6)),IF($B$3="A",+IF(FORMULE!$B$15="OK",EOMONTH('2) OUTPUT PIANO'!A64,12),EDATE('2) OUTPUT PIANO'!A64,12)),"ERRORE")))) -> 2013-01-01 | B65: =IF(B64=0,0,IF(B64+1<='1) INPUT MUTUO'!$D$10,'2) OUTPUT PIANO'!B64+1,0)) -> 36 | D65: =IF(B64=0,0,IF('1) INPUT MUTUO'!$D$7="FRANCESE",F65-E65,'2) OUTPUT PIANO'!$C$17/'1) INPUT MUTUO'!$D$10)) -> 961.942284 | E65: =IF(B65=0,0,IF('1) INPUT MUTUO'!$D$13=360,L64*$C$3,L64*R65*FORMULE!$B$7)) -> 169.5036326 | F65: =IF(B65=0,0,IF('1) INPUT MUTUO'!$D$7="ITALIANO",'2) OUTPUT PIANO'!D65+'2) OUTPUT PIANO'!E65,IF(B65>'1) INPUT MUTUO'!$D$10,0,FORMULE!$B$13))) -> 1131.445917 | G65: =IF($B$7="SI",IF(F65=0,0,'1) INPUT MUTUO'!$D$19),0) -> 0 | I65: 0 | K65: -1131.445917 | L65: 66839.51074 | M65: =+IF('MATRIX SP. PERIODICHE'!AZ39=1,'1) INPUT MUTUO'!$C$31,0) -> 0 | N65: =+IF('MATRIX SP. PERIODICHE'!CZ39=1,'1) INPUT MUTUO'!$C$32,0) -> 0 | O65: =IF('MATRIX SP. PERIODICHE'!EZ39=1,'1) INPUT MUTUO'!$C$33,0) -> 0 | P65: =IF('MATRIX SP. PERIODICHE'!GZ39=1,'1) INPUT MUTUO'!$C$34,0) -> 0 | Q65: =IF('MATRIX SP. PERIODICHE'!IZ39=1,'1) INPUT MUTUO'!$C$35,0) -> 0 | R65: 31
A66: =IF($B$3="M",IF(FORMULE!$B$15="OK",EOMONTH('2) OUTPUT PIANO'!A65,1),EDATE('2) OUTPUT PIANO'!A65,1)),IF($B$3="T",IF(FORMULE!$B$15="OK",EOMONTH('2) OUTPUT PIANO'!A65,3),EDATE('2) OUTPUT PIANO'!A65,3)),IF($B$3="S",IF(FORMULE!$B$15="OK",EOMONTH('2) OUTPUT PIANO'!A65,6),EDATE('2) OUTPUT PIANO'!A65,6)),IF($B$3="A",+IF(FORMULE!$B$15="OK",EOMONTH('2) OUTPUT PIANO'!A65,12),EDATE('2) OUTPUT PIANO'!A65,12)),"ERRORE")))) -> 2013-02-01 | B66: =IF(B65=0,0,IF(B65+1<='1) INPUT MUTUO'!$D$10,'2) OUTPUT PIANO'!B65+1,0)) -> 37 | D66: =IF(B65=0,0,IF('1) INPUT MUTUO'!$D$7="FRANCESE",F66-E66,'2) OUTPUT PIANO'!$C$17/'1) INPUT MUTUO'!$D$10)) -> 964.3471397 | E66: =IF(B66=0,0,IF('1) INPUT MUTUO'!$D$13=360,L65*$C$3,L65*R66*FORMULE!$B$7)) -> 167.0987768 | F66: =IF(B66=0,0,IF('1) INPUT MUTUO'!$D$7="ITALIANO",'2) OUTPUT PIANO'!D66+'2) OUTPUT PIANO'!E66,IF(B66>'1) INPUT MUTUO'!$D$10,0,FORMULE!$B$13))) -> 1131.445917 | G66: =IF($B$7="SI",IF(F66=0,0,'1) INPUT MUTUO'!$D$19),0) -> 0 | I66: 0 | K66: -1131.445917 | L66: 65875.1636 | M66: =+IF('MATRIX SP. PERIODICHE'!AZ40=1,'1) INPUT MUTUO'!$C$31,0) -> 0 | N66: =+IF('MATRIX SP. PERIODICHE'!CZ40=1,'1) INPUT MUTUO'!$C$32,0) -> 0 | O66: =IF('MATRIX SP. PERIODICHE'!EZ40=1,'1) INPUT MUTUO'!$C$33,0) -> 0 | P66: =IF('MATRIX SP. PERIODICHE'!GZ40=1,'1) INPUT MUTUO'!$C$34,0) -> 0 | Q66: =IF('MATRIX SP. PERIODICHE'!IZ40=1,'1) INPUT MUTUO'!$C$35,0) -> 0 | R66: 28
A67: =IF($B$3="M",IF(FORMULE!$B$15="OK",EOMONTH('2) OUTPUT PIANO'!A66,1),EDATE('2) OUTPUT PIANO'!A66,1)),IF($B$3="T",IF(FORMULE!$B$15="OK",EOMONTH('2) OUTPUT PIANO'!A66,3),EDATE('2) OUTPUT PIANO'!A66,3)),IF($B$3="S",IF(FORMULE!$B$15="OK",EOMONTH('2) OUTPUT PIANO'!A66,6),EDATE('2) OUTPUT PIANO'!A66,6)),IF($B$3="A",+IF(FORMULE!$B$15="OK",EOMONTH('2) OUTPUT PIANO'!A66,12),EDATE('2) OUTPUT PIANO'!A66,12)),"ERRORE")))) -> 2013-03-01 | B67: =IF(B66=0,0,IF(B66+1<='1) INPUT MUTUO'!$D$10,'2) OUTPUT PIANO'!B66+1,0)) -> 38 | D67: =IF(B66=0,0,IF('1) INPUT MUTUO'!$D$7="FRANCESE",F67-E67,'2) OUTPUT PIANO'!$C$17/'1) INPUT MUTUO'!$D$10)) -> 966.7580075 | E67: =IF(B67=0,0,IF('1) INPUT MUTUO'!$D$13=360,L66*$C$3,L66*R67*FORMULE!$B$7)) -> 164.687909 | F67: =IF(B67=0,0,IF('1) INPUT MUTUO'!$D$7="ITALIANO",'2) OUTPUT PIANO'!D67+'2) OUTPUT PIANO'!E67,IF(B67>'1) INPUT MUTUO'!$D$10,0,FORMULE!$B$13))) -> 1131.445917 | G67: =IF($B$7="SI",IF(F67=0,0,'1) INPUT MUTUO'!$D$19),0) -> 0 | I67: 0 | K67: -1131.445917 | L67: 64908.40559 | M67: =+IF('MATRIX SP. PERIODICHE'!AZ41=1,'1) INPUT MUTUO'!$C$31,0) -> 0 | N67: =+IF('MATRIX SP. PERIODICHE'!CZ41=1,'1) INPUT MUTUO'!$C$32,0) -> 0 | O67: =IF('MATRIX SP. PERIODICHE'!EZ41=1,'1) INPUT MUTUO'!$C$33,0) -> 0 | P67: =IF('MATRIX SP. PERIODICHE'!GZ41=1,'1) INPUT MUTUO'!$C$34,0) -> 0 | Q67: =IF('MATRIX SP. PERIODICHE'!IZ41=1,'1) INPUT MUTUO'!$C$35,0) -> 0 | R67: 31
A68: =IF($B$3="M",IF(FORMULE!$B$15="OK",EOMONTH('2) OUTPUT PIANO'!A67,1),EDATE('2) OUTPUT PIANO'!A67,1)),IF($B$3="T",IF(FORMULE!$B$15="OK",EOMONTH('2) OUTPUT PIANO'!A67,3),EDATE('2) OUTPUT PIANO'!A67,3)),IF($B$3="S",IF(FORMULE!$B$15="OK",EOMONTH('2) OUTPUT PIANO'!A67,6),EDATE('2) OUTPUT PIANO'!A67,6)),IF($B$3="A",+IF(FORMULE!$B$15="OK",EOMONTH('2) OUTPUT PIANO'!A67,12),EDATE('2) OUTPUT PIANO'!A67,12)),"ERRORE")))) -> 2013-04-01 | B68: =IF(B67=0,0,IF(B67+1<='1) INPUT MUTUO'!$D$10,'2) OUTPUT PIANO'!B67+1,0)) -> 39 | D68: =IF(B67=0,0,IF('1) INPUT MUTUO'!$D$7="FRANCESE",F68-E68,'2) OUTPUT PIANO'!$C$17/'1) INPUT MUTUO'!$D$10)) -> 969.1749025 | E68: =IF(B68=0,0,IF('1) INPUT MUTUO'!$D$13=360,L67*$C$3,L67*R68*FORMULE!$B$7)) -> 162.271014 | F68: =IF(B68=0,0,IF('1) INPUT MUTUO'!$D$7="ITALIANO",'2) OUTPUT PIANO'!D68+'2) OUTPUT PIANO'!E68,IF(B68>'1) INPUT MUTUO'!$D$10,0,FORMULE!$B$13))) -> 1131.445917 | G68: =IF($B$7="SI",IF(F68=0,0,'1) INPUT MUTUO'!$D$19),0) -> 0 | I68: 0 | K68: -1131.445917 | L68: 63939.23069 | M68: =+IF('MATRIX SP. PERIODICHE'!AZ42=1,'1) INPUT MUTUO'!$C$31,0) -> 0 | N68: =+IF('MATRIX SP. PERIODICHE'!CZ42=1,'1) INPUT MUTUO'!$C$32,0) -> 0 | O68: =IF('MATRIX SP. PERIODICHE'!EZ42=1,'1) INPUT MUTUO'!$C$33,0) -> 0 | P68: =IF('MATRIX SP. PERIODICHE'!GZ42=1,'1) INPUT MUTUO'!$C$34,0) -> 0 | Q68: =IF('MATRIX SP. PERIODICHE'!IZ42=1,'1) INPUT MUTUO'!$C$35,0) -> 0 | R68: 30
A69: =IF($B$3="M",IF(FORMULE!$B$15="OK",EOMONTH('2) OUTPUT PIANO'!A68,1),EDATE('2) OUTPUT PIANO'!A68,1)),IF($B$3="T",IF(FORMULE!$B$15="OK",EOMONTH('2) OUTPUT PIANO'!A68,3),EDATE('2) OUTPUT PIANO'!A68,3)),IF($B$3="S",IF(FORMULE!$B$15="OK",EOMONTH('2) OUTPUT PIANO'!A68,6),EDATE('2) OUTPUT PIANO'!A68,6)),IF($B$3="A",+IF(FORMULE!$B$15="OK",EOMONTH('2) OUTPUT PIANO'!A68,12),EDATE('2) OUTPUT PIANO'!A68,12)),"ERRORE")))) -> 2013-05-01 | B69: =IF(B68=0,0,IF(B68+1<='1) INPUT MUTUO'!$D$10,'2) OUTPUT PIANO'!B68+1,0)) -> 40 | D69: =IF(B68=0,0,IF('1) INPUT MUTUO'!$D$7="FRANCESE",F69-E69,'2) OUTPUT PIANO'!$C$17/'1) INPUT MUTUO'!$D$10)) -> 971.5978398 | E69: =IF(B69=0,0,IF('1) INPUT MUTUO'!$D$13=360,L68*$C$3,L68*R69*FORMULE!$B$7)) -> 159.8480767 | F69: =IF(B69=0,0,IF('1) INPUT MUTUO'!$D$7="ITALIANO",'2) OUTPUT PIANO'!D69+'2) OUTPUT PIANO'!E69,IF(B69>'1) INPUT MUTUO'!$D$10,0,FORMULE!$B$13))) -> 1131.445917 | G69: =IF($B$7="SI",IF(F69=0,0,'1) INPUT MUTUO'!$D$19),0) -> 0 | I69: 0 | K69: -1131.445917 | L69: 62967.63285 | M69: =+IF('MATRIX SP. PERIODICHE'!AZ43=1,'1) INPUT MUTUO'!$C$31,0) -> 0 | N69: =+IF('MATRIX SP. PERIODICHE'!CZ43=1,'1) INPUT MUTUO'!$C$32,0) -> 0 | O69: =IF('MATRIX SP. PERIODICHE'!EZ43=1,'1) INPUT MUTUO'!$C$33,0) -> 0 | P69: =IF('MATRIX SP. PERIODICHE'!GZ43=1,'1) INPUT MUTUO'!$C$34,0) -> 0 | Q69: =IF('MATRIX SP. PERIODICHE'!IZ43=1,'1) INPUT MUTUO'!$C$35,0) -> 0 | R69: 31
A70: =IF($B$3="M",IF(FORMULE!$B$15="OK",EOMONTH('2) OUTPUT PIANO'!A69,1),EDATE('2) OUTPUT PIANO'!A69,1)),IF($B$3="T",IF(FORMULE!$B$15="OK",EOMONTH('2) OUTPUT PIANO'!A69,3),EDATE('2) OUTPUT PIANO'!A69,3)),IF($B$3="S",IF(FORMULE!$B$15="OK",EOMONTH('2) OUTPUT PIANO'!A69,6),EDATE('2) OUTPUT PIANO'!A69,6)),IF($B$3="A",+IF(FORMULE!$B$15="OK",EOMONTH('2) OUTPUT PIANO'!A69,12),EDATE('2) OUTPUT PIANO'!A69,12)),"ERRORE")))) -> 2013-06-01 | B70: =IF(B69=0,0,IF(B69+1<='1) INPUT MUTUO'!$D$10,'2) OUTPUT PIANO'!B69+1,0)) -> 41 | D70: =IF(B69=0,0,IF('1) INPUT MUTUO'!$D$7="FRANCESE",F70-E70,'2) OUTPUT PIANO'!$C$17/'1) INPUT MUTUO'!$D$10)) -> 974.0268344 | E70: =IF(B70=0,0,IF('1) INPUT MUTUO'!$D$13=360,L69*$C$3,L69*R70*FORMULE!$B$7)) -> 157.4190821 | F70: =IF(B70=0,0,IF('1) INPUT MUTUO'!$D$7="ITALIANO",'2) OUTPUT PIANO'!D70+'2) OUTPUT PIANO'!E70,IF(B70>'1) INPUT MUTUO'!$D$10,0,FORMULE!$B$13))) -> 1131.445917 | G70: =IF($B$7="SI",IF(F70=0,0,'1) INPUT MUTUO'!$D$19),0) -> 0 | I70: 0 | K70: -1131.445917 | L70: 61993.60601 | M70: =+IF('MATRIX SP. PERIODICHE'!AZ44=1,'1) INPUT MUTUO'!$C$31,0) -> 0 | N70: =+IF('MATRIX SP. PERIODICHE'!CZ44=1,'1) INPUT MUTUO'!$C$32,0) -> 0 | O70: =IF('MATRIX SP. PERIODICHE'!EZ44=1,'1) INPUT MUTUO'!$C$33,0) -> 0 | P70: =IF('MATRIX SP. PERIODICHE'!GZ44=1,'1) INPUT MUTUO'!$C$34,0) -> 0 | Q70: =IF('MATRIX SP. PERIODICHE'!IZ44=1,'1) INPUT MUTUO'!$C$35,0) -> 0 | R70: 30
A71: =IF($B$3="M",IF(FORMULE!$B$15="OK",EOMONTH('2) OUTPUT PIANO'!A70,1),EDATE('2) OUTPUT PIANO'!A70,1)),IF($B$3="T",IF(FORMULE!$B$15="OK",EOMONTH('2) OUTPUT PIANO'!A70,3),EDATE('2) OUTPUT PIANO'!A70,3)),IF($B$3="S",IF(FORMULE!$B$15="OK",EOMONTH('2) OUTPUT PIANO'!A70,6),EDATE('2) OUTPUT PIANO'!A70,6)),IF($B$3="A",+IF(FORMULE!$B$15="OK",EOMONTH('2) OUTPUT PIANO'!A70,12),EDATE('2) OUTPUT PIANO'!A70,12)),"ERRORE")))) -> 2013-07-01 | B71: =IF(B70=0,0,IF(B70+1<='1) INPUT MUTUO'!$D$10,'2) OUTPUT PIANO'!B70+1,0)) -> 42 | D71: =IF(B70=0,0,IF('1) INPUT MUTUO'!$D$7="FRANCESE",F71-E71,'2) OUTPUT PIANO'!$C$17/'1) INPUT MUTUO'!$D$10)) -> 976.4619015 | E71: =IF(B71=0,0,IF('1) INPUT MUTUO'!$D$13=360,L70*$C$3,L70*R71*FORMULE!$B$7)) -> 154.984015 | F71: =IF(B71=0,0,IF('1) INPUT MUTUO'!$D$7="ITALIANO",'2) OUTPUT PIANO'!D71+'2) OUTPUT PIANO'!E71,IF(B71>'1) INPUT MUTUO'!$D$10,0,FORMULE!$B$13))) -> 1131.445917 | G71: =IF($B$7="SI",IF(F71=0,0,'1) INPUT MUTUO'!$D$19),0) -> 0 | I71: 0 | K71: -1131.445917 | L71: 61017.14411 | M71: =+IF('MATRIX SP. PERIODICHE'!AZ45=1,'1) INPUT MUTUO'!$C$31,0) -> 0 | N71: =+IF('MATRIX SP. PERIODICHE'!CZ45=1,'1) INPUT MUTUO'!$C$32,0) -> 0 | O71: =IF('MATRIX SP. PERIODICHE'!EZ45=1,'1) INPUT MUTUO'!$C$33,0) -> 0 | P71: =IF('MATRIX SP. PERIODICHE'!GZ45=1,'1) INPUT MUTUO'!$C$34,0) -> 0 | Q71: =IF('MATRIX SP. PERIODICHE'!IZ45=1,'1) INPUT MUTUO'!$C$35,0) -> 0 | R71: 31
A72: =IF($B$3="M",IF(FORMULE!$B$15="OK",EOMONTH('2) OUTPUT PIANO'!A71,1),EDATE('2) OUTPUT PIANO'!A71,1)),IF($B$3="T",IF(FORMULE!$B$15="OK",EOMONTH('2) OUTPUT PIANO'!A71,3),EDATE('2) OUTPUT PIANO'!A71,3)),IF($B$3="S",IF(FORMULE!$B$15="OK",EOMONTH('2) OUTPUT PIANO'!A71,6),EDATE('2) OUTPUT PIANO'!A71,6)),IF($B$3="A",+IF(FORMULE!$B$15="OK",EOMONTH('2) OUTPUT PIANO'!A71,12),EDATE('2) OUTPUT PIANO'!A71,12)),"ERRORE")))) -> 2013-08-01 | B72: =IF(B71=0,0,IF(B71+1<='1) INPUT MUTUO'!$D$10,'2) OUTPUT PIANO'!B71+1,0)) -> 43 | D72: =IF(B71=0,0,IF('1) INPUT MUTUO'!$D$7="FRANCESE",F72-E72,'2) OUTPUT PIANO'!$C$17/'1) INPUT MUTUO'!$D$10)) -> 978.9030562 | E72: =IF(B72=0,0,IF('1) INPUT MUTUO'!$D$13=360,L71*$C$3,L71*R72*FORMULE!$B$7)) -> 152.5428603 | F72: =IF(B72=0,0,IF('1) INPUT MUTUO'!$D$7="ITALIANO",'2) OUTPUT PIANO'!D72+'2) OUTPUT PIANO'!E72,IF(B72>'1) INPUT MUTUO'!$D$10,0,FORMULE!$B$13))) -> 1131.445917 | G72: =IF($B$7="SI",IF(F72=0,0,'1) INPUT MUTUO'!$D$19),0) -> 0 | I72: 0 | K72: -1131.445917 | L72: 60038.24106 | M72: =+IF('MATRIX SP. PERIODICHE'!AZ46=1,'1) INPUT MUTUO'!$C$31,0) -> 0 | N72: =+IF('MATRIX SP. PERIODICHE'!CZ46=1,'1) INPUT MUTUO'!$C$32,0) -> 0 | O72: =IF('MATRIX SP. PERIODICHE'!EZ46=1,'1) INPUT MUTUO'!$C$33,0) -> 0 | P72: =IF('MATRIX SP. PERIODICHE'!GZ46=1,'1) INPUT MUTUO'!$C$34,0) -> 0 | Q72: =IF('MATRIX SP. PERIODICHE'!IZ46=1,'1) INPUT MUTUO'!$C$35,0) -> 0 | R72: 31
A73: =IF($B$3="M",IF(FORMULE!$B$15="OK",EOMONTH('2) OUTPUT PIANO'!A72,1),EDATE('2) OUTPUT PIANO'!A72,1)),IF($B$3="T",IF(FORMULE!$B$15="OK",EOMONTH('2) OUTPUT PIANO'!A72,3),EDATE('2) OUTPUT PIANO'!A72,3)),IF($B$3="S",IF(FORMULE!$B$15="OK",EOMONTH('2) OUTPUT PIANO'!A72,6),EDATE('2) OUTPUT PIANO'!A72,6)),IF($B$3="A",+IF(FORMULE!$B$15="OK",EOMONTH('2) OUTPUT PIANO'!A72,12),EDATE('2) OUTPUT PIANO'!A72,12)),"ERRORE")))) -> 2013-09-01 | B73: =IF(B72=0,0,IF(B72+1<='1) INPUT MUTUO'!$D$10,'2) OUTPUT PIANO'!B72+1,0)) -> 44 | D73: =IF(B72=0,0,IF('1) INPUT MUTUO'!$D$7="FRANCESE",F73-E73,'2) OUTPUT PIANO'!$C$17/'1) INPUT MUTUO'!$D$10)) -> 981.3503139 | E73: =IF(B73=0,0,IF('1) INPUT MUTUO'!$D$13=360,L72*$C$3,L72*R73*FORMULE!$B$7)) -> 150.0956026 | F73: =IF(B73=0,0,IF('1) INPUT MUTUO'!$D$7="ITALIANO",'2) OUTPUT PIANO'!D73+'2) OUTPUT PIANO'!E73,IF(B73>'1) INPUT MUTUO'!$D$10,0,FORMULE!$B$13))) -> 1131.445917 | G73: =IF($B$7="SI",IF(F73=0,0,'1) INPUT MUTUO'!$D$19),0) -> 0 | I73: 0 | K73: -1131.445917 | L73: 59056.89074 | M73: =+IF('MATRIX SP. PERIODICHE'!AZ47=1,'1) INPUT MUTUO'!$C$31,0) -> 0 | N73: =+IF('MATRIX SP. PERIODICHE'!CZ47=1,'1) INPUT MUTUO'!$C$32,0) -> 0 | O73: =IF('MATRIX SP. PERIODICHE'!EZ47=1,'1) INPUT MUTUO'!$C$33,0) -> 0 | P73: =IF('MATRIX SP. PERIODICHE'!GZ47=1,'1) INPUT MUTUO'!$C$34,0) -> 0 | Q73: =IF('MATRIX SP. PERIODICHE'!IZ47=1,'1) INPUT MUTUO'!$C$35,0) -> 0 | R73: 30
A74: =IF($B$3="M",IF(FORMULE!$B$15="OK",EOMONTH('2) OUTPUT PIANO'!A73,1),EDATE('2) OUTPUT PIANO'!A73,1)),IF($B$3="T",IF(FORMULE!$B$15="OK",EOMONTH('2) OUTPUT PIANO'!A73,3),EDATE('2) OUTPUT PIANO'!A73,3)),IF($B$3="S",IF(FORMULE!$B$15="OK",EOMONTH('2) OUTPUT PIANO'!A73,6),EDATE('2) OUTPUT PIANO'!A73,6)),IF($B$3="A",+IF(FORMULE!$B$15="OK",EOMONTH('2) OUTPUT PIANO'!A73,12),EDATE('2) OUTPUT PIANO'!A73,12)),"ERRORE")))) -> 2013-10-01 | B74: =IF(B73=0,0,IF(B73+1<='1) INPUT MUTUO'!$D$10,'2) OUTPUT PIANO'!B73+1,0)) -> 45 | D74: =IF(B73=0,0,IF('1) INPUT MUTUO'!$D$7="FRANCESE",F74-E74,'2) OUTPUT PIANO'!$C$17/'1) INPUT MUTUO'!$D$10)) -> 983.8036897 | E74: =IF(B74=0,0,IF('1) INPUT MUTUO'!$D$13=360,L73*$C$3,L73*R74*FORMULE!$B$7)) -> 147.6422269 | F74: =IF(B74=0,0,IF('1) INPUT MUTUO'!$D$7="ITALIANO",'2) OUTPUT PIANO'!D74+'2) OUTPUT PIANO'!E74,IF(B74>'1) INPUT MUTUO'!$D$10,0,FORMULE!$B$13))) -> 1131.445917 | G74: =IF($B$7="SI",IF(F74=0,0,'1) INPUT MUTUO'!$D$19),0) -> 0 | I74: 0 | K74: -1131.445917 | L74: 58073.08705 | M74: =+IF('MATRIX SP. PERIODICHE'!AZ48=1,'1) INPUT MUTUO'!$C$31,0) -> 0 | N74: =+IF('MATRIX SP. PERIODICHE'!CZ48=1,'1) INPUT MUTUO'!$C$32,0) -> 0 | O74: =IF('MATRIX SP. PERIODICHE'!EZ48=1,'1) INPUT MUTUO'!$C$33,0) -> 0 | P74: =IF('MATRIX SP. PERIODICHE'!GZ48=1,'1) INPUT MUTUO'!$C$34,0) -> 0 | Q74: =IF('MATRIX SP. PERIODICHE'!IZ48=1,'1) INPUT MUTUO'!$C$35,0) -> 0 | R74: 31
A75: =IF($B$3="M",IF(FORMULE!$B$15="OK",EOMONTH('2) OUTPUT PIANO'!A74,1),EDATE('2) OUTPUT PIANO'!A74,1)),IF($B$3="T",IF(FORMULE!$B$15="OK",EOMONTH('2) OUTPUT PIANO'!A74,3),EDATE('2) OUTPUT PIANO'!A74,3)),IF($B$3="S",IF(FORMULE!$B$15="OK",EOMONTH('2) OUTPUT PIANO'!A74,6),EDATE('2) OUTPUT PIANO'!A74,6)),IF($B$3="A",+IF(FORMULE!$B$15="OK",EOMONTH('2) OUTPUT PIANO'!A74,12),EDATE('2) OUTPUT PIANO'!A74,12)),"ERRORE")))) -> 2013-11-01 | B75: =IF(B74=0,0,IF(B74+1<='1) INPUT MUTUO'!$D$10,'2) OUTPUT PIANO'!B74+1,0)) -> 46 | D75: =IF(B74=0,0,IF('1) INPUT MUTUO'!$D$7="FRANCESE",F75-E75,'2) OUTPUT PIANO'!$C$17/'1) INPUT MUTUO'!$D$10)) -> 986.2631989 | E75: =IF(B75=0,0,IF('1) INPUT MUTUO'!$D$13=360,L74*$C$3,L74*R75*FORMULE!$B$7)) -> 145.1827176 | F75: =IF(B75=0,0,IF('1) INPUT MUTUO'!$D$7="ITALIANO",'2) OUTPUT PIANO'!D75+'2) OUTPUT PIANO'!E75,IF(B75>'1) INPUT MUTUO'!$D$10,0,FORMULE!$B$13))) -> 1131.445917 | G75: =IF($B$7="SI",IF(F75=0,0,'1) INPUT MUTUO'!$D$19),0) -> 0 | I75: 0 | K75: -1131.445917 | L75: 57086.82385 | M75: =+IF('MATRIX SP. PERIODICHE'!AZ49=1,'1) INPUT MUTUO'!$C$31,0) -> 0 | N75: =+IF('MATRIX SP. PERIODICHE'!CZ49=1,'1) INPUT MUTUO'!$C$32,0) -> 0 | O75: =IF('MATRIX SP. PERIODICHE'!EZ49=1,'1) INPUT MUTUO'!$C$33,0) -> 0 | P75: =IF('MATRIX SP. PERIODICHE'!GZ49=1,'1) INPUT MUTUO'!$C$34,0) -> 0 | Q75: =IF('MATRIX SP. PERIODICHE'!IZ49=1,'1) INPUT MUTUO'!$C$35,0) -> 0 | R75: 30
A76: =IF($B$3="M",IF(FORMULE!$B$15="OK",EOMONTH('2) OUTPUT PIANO'!A75,1),EDATE('2) OUTPUT PIANO'!A75,1)),IF($B$3="T",IF(FORMULE!$B$15="OK",EOMONTH('2) OUTPUT PIANO'!A75,3),EDATE('2) OUTPUT PIANO'!A75,3)),IF($B$3="S",IF(FORMULE!$B$15="OK",EOMONTH('2) OUTPUT PIANO'!A75,6),EDATE('2) OUTPUT PIANO'!A75,6)),IF($B$3="A",+IF(FORMULE!$B$15="OK",EOMONTH('2) OUTPUT PIANO'!A75,12),EDATE('2) OUTPUT PIANO'!A75,12)),"ERRORE")))) -> 2013-12-01 | B76: =IF(B75=0,0,IF(B75+1<='1) INPUT MUTUO'!$D$10,'2) OUTPUT PIANO'!B75+1,0)) -> 47 | D76: =IF(B75=0,0,IF('1) INPUT MUTUO'!$D$7="FRANCESE",F76-E76,'2) OUTPUT PIANO'!$C$17/'1) INPUT MUTUO'!$D$10)) -> 988.7288569 | E76: =IF(B76=0,0,IF('1) INPUT MUTUO'!$D$13=360,L75*$C$3,L75*R76*FORMULE!$B$7)) -> 142.7170596 | F76: =IF(B76=0,0,IF('1) INPUT MUTUO'!$D$7="ITALIANO",'2) OUTPUT PIANO'!D76+'2) OUTPUT PIANO'!E76,IF(B76>'1) INPUT MUTUO'!$D$10,0,FORMULE!$B$13))) -> 1131.445917 | G76: =IF($B$7="SI",IF(F76=0,0,'1) INPUT MUTUO'!$D$19),0) -> 0 | I76: 0 | K76: -1131.445917 | L76: 56098.095 | M76: =+IF('MATRIX SP. PERIODICHE'!AZ50=1,'1) INPUT MUTUO'!$C$31,0) -> 0 | N76: =+IF('MATRIX SP. PERIODICHE'!CZ50=1,'1) INPUT MUTUO'!$C$32,0) -> 0 | O76: =IF('MATRIX SP. PERIODICHE'!EZ50=1,'1) INPUT MUTUO'!$C$33,0) -> 0 | P76: =IF('MATRIX SP. PERIODICHE'!GZ50=1,'1) INPUT MUTUO'!$C$34,0) -> 0 | Q76: =IF('MATRIX SP. PERIODICHE'!IZ50=1,'1) INPUT MUTUO'!$C$35,0) -> 0 | R76: 31
A77: =IF($B$3="M",IF(FORMULE!$B$15="OK",EOMONTH('2) OUTPUT PIANO'!A76,1),EDATE('2) OUTPUT PIANO'!A76,1)),IF($B$3="T",IF(FORMULE!$B$15="OK",EOMONTH('2) OUTPUT PIANO'!A76,3),EDATE('2) OUTPUT PIANO'!A76,3)),IF($B$3="S",IF(FORMULE!$B$15="OK",EOMONTH('2) OUTPUT PIANO'!A76,6),EDATE('2) OUTPUT PIANO'!A76,6)),IF($B$3="A",+IF(FORMULE!$B$15="OK",EOMONTH('2) OUTPUT PIANO'!A76,12),EDATE('2) OUTPUT PIANO'!A76,12)),"ERRORE")))) -> 2014-01-01 | B77: =IF(B76=0,0,IF(B76+1<='1) INPUT MUTUO'!$D$10,'2) OUTPUT PIANO'!B76+1,0)) -> 48 | D77: =IF(B76=0,0,IF('1) INPUT MUTUO'!$D$7="FRANCESE",F77-E77,'2) OUTPUT PIANO'!$C$17/'1) INPUT MUTUO'!$D$10)) -> 991.200679 | E77: =IF(B77=0,0,IF('1) INPUT MUTUO'!$D$13=360,L76*$C$3,L76*R77*FORMULE!$B$7)) -> 140.2452375 | F77: =IF(B77=0,0,IF('1) INPUT MUTUO'!$D$7="ITALIANO",'2) OUTPUT PIANO'!D77+'2) OUTPUT PIANO'!E77,IF(B77>'1) INPUT MUTUO'!$D$10,0,FORMULE!$B$13))) -> 1131.445917 | G77: =IF($B$7="SI",IF(F77=0,0,'1) INPUT MUTUO'!$D$19),0) -> 0 | I77: 0 | K77: -1131.445917 | L77: 55106.89432 | M77: =+IF('MATRIX SP. PERIODICHE'!AZ51=1,'1) INPUT MUTUO'!$C$31,0) -> 0 | N77: =+IF('MATRIX SP. PERIODICHE'!CZ51=1,'1) INPUT MUTUO'!$C$32,0) -> 0 | O77: =IF('MATRIX SP. PERIODICHE'!EZ51=1,'1) INPUT MUTUO'!$C$33,0) -> 0 | P77: =IF('MATRIX SP. PERIODICHE'!GZ51=1,'1) INPUT MUTUO'!$C$34,0) -> 0 | Q77: =IF('MATRIX SP. PERIODICHE'!IZ51=1,'1) INPUT MUTUO'!$C$35,0) -> 0 | R77: 31
A78: =IF($B$3="M",IF(FORMULE!$B$15="OK",EOMONTH('2) OUTPUT PIANO'!A77,1),EDATE('2) OUTPUT PIANO'!A77,1)),IF($B$3="T",IF(FORMULE!$B$15="OK",EOMONTH('2) OUTPUT PIANO'!A77,3),EDATE('2) OUTPUT PIANO'!A77,3)),IF($B$3="S",IF(FORMULE!$B$15="OK",EOMONTH('2) OUTPUT PIANO'!A77,6),EDATE('2) OUTPUT PIANO'!A77,6)),IF($B$3="A",+IF(FORMULE!$B$15="OK",EOMONTH('2) OUTPUT PIANO'!A77,12),EDATE('2) OUTPUT PIANO'!A77,12)),"ERRORE")))) -> 2014-02-01 | B78: =IF(B77=0,0,IF(B77+1<='1) INPUT MUTUO'!$D$10,'2) OUTPUT PIANO'!B77+1,0)) -> 49 | D78: =IF(B77=0,0,IF('1) INPUT MUTUO'!$D$7="FRANCESE",F78-E78,'2) OUTPUT PIANO'!$C$17/'1) INPUT MUTUO'!$D$10)) -> 993.6786807 | E78: =IF(B78=0,0,IF('1) INPUT MUTUO'!$D$13=360,L77*$C$3,L77*R78*FORMULE!$B$7)) -> 137.7672358 | F78: =IF(B78=0,0,IF('1) INPUT MUTUO'!$D$7="ITALIANO",'2) OUTPUT PIANO'!D78+'2) OUTPUT PIANO'!E78,IF(B78>'1) INPUT MUTUO'!$D$10,0,FORMULE!$B$13))) -> 1131.445917 | G78: =IF($B$7="SI",IF(F78=0,0,'1) INPUT MUTUO'!$D$19),0) -> 0 | I78: 0 | K78: -1131.445917 | L78: 54113.21564 | M78: =+IF('MATRIX SP. PERIODICHE'!AZ52=1,'1) INPUT MUTUO'!$C$31,0) -> 0 | N78: =+IF('MATRIX SP. PERIODICHE'!CZ52=1,'1) INPUT MUTUO'!$C$32,0) -> 0 | O78: =IF('MATRIX SP. PERIODICHE'!EZ52=1,'1) INPUT MUTUO'!$C$33,0) -> 0 | P78: =IF('MATRIX SP. PERIODICHE'!GZ52=1,'1) INPUT MUTUO'!$C$34,0) -> 0 | Q78: =IF('MATRIX SP. PERIODICHE'!IZ52=1,'1) INPUT MUTUO'!$C$35,0) -> 0 | R78: 28
A79: =IF($B$3="M",IF(FORMULE!$B$15="OK",EOMONTH('2) OUTPUT PIANO'!A78,1),EDATE('2) OUTPUT PIANO'!A78,1)),IF($B$3="T",IF(FORMULE!$B$15="OK",EOMONTH('2) OUTPUT PIANO'!A78,3),EDATE('2) OUTPUT PIANO'!A78,3)),IF($B$3="S",IF(FORMULE!$B$15="OK",EOMONTH('2) OUTPUT PIANO'!A78,6),EDATE('2) OUTPUT PIANO'!A78,6)),IF($B$3="A",+IF(FORMULE!$B$15="OK",EOMONTH('2) OUTPUT PIANO'!A78,12),EDATE('2) OUTPUT PIANO'!A78,12)),"ERRORE")))) -> 2014-03-01 | B79: =IF(B78=0,0,IF(B78+1<='1) INPUT MUTUO'!$D$10,'2) OUTPUT PIANO'!B78+1,0)) -> 50 | D79: =IF(B78=0,0,IF('1) INPUT MUTUO'!$D$7="FRANCESE",F79-E79,'2) OUTPUT PIANO'!$C$17/'1) INPUT MUTUO'!$D$10)) -> 996.1628774 | E79: =IF(B79=0,0,IF('1) INPUT MUTUO'!$D$13=360,L78*$C$3,L78*R79*FORMULE!$B$7)) -> 135.2830391 | F79: =IF(B79=0,0,IF('1) INPUT MUTUO'!$D$7="ITALIANO",'2) OUTPUT PIANO'!D79+'2) OUTPUT PIANO'!E79,IF(B79>'1) INPUT MUTUO'!$D$10,0,FORMULE!$B$13))) -> 1131.445917 | G79: =IF($B$7="SI",IF(F79=0,0,'1) INPUT MUTUO'!$D$19),0) -> 0 | I79: 0 | K79: -1131.445917 | L79: 53117.05276 | M79: =+IF('MATRIX SP. PERIODICHE'!AZ53=1,'1) INPUT MUTUO'!$C$31,0) -> 0 | N79: =+IF('MATRIX SP. PERIODICHE'!CZ53=1,'1) INPUT MUTUO'!$C$32,0) -> 0 | O79: =IF('MATRIX SP. PERIODICHE'!EZ53=1,'1) INPUT MUTUO'!$C$33,0) -> 0 | P79: =IF('MATRIX SP. PERIODICHE'!GZ53=1,'1) INPUT MUTUO'!$C$34,0) -> 0 | Q79: =IF('MATRIX SP. PERIODICHE'!IZ53=1,'1) INPUT MUTUO'!$C$35,0) -> 0 | R79: 31
A80: =IF($B$3="M",IF(FORMULE!$B$15="OK",EOMONTH('2) OUTPUT PIANO'!A79,1),EDATE('2) OUTPUT PIANO'!A79,1)),IF($B$3="T",IF(FORMULE!$B$15="OK",EOMONTH('2) OUTPUT PIANO'!A79,3),EDATE('2) OUTPUT PIANO'!A79,3)),IF($B$3="S",IF(FORMULE!$B$15="OK",EOMONTH('2) OUTPUT PIANO'!A79,6),EDATE('2) OUTPUT PIANO'!A79,6)),IF($B$3="A",+IF(FORMULE!$B$15="OK",EOMONTH('2) OUTPUT PIANO'!A79,12),EDATE('2) OUTPUT PIANO'!A79,12)),"ERRORE")))) -> 2014-04-01 | B80: =IF(B79=0,0,IF(B79+1<='1) INPUT MUTUO'!$D$10,'2) OUTPUT PIANO'!B79+1,0)) -> 51 | D80: =IF(B79=0,0,IF('1) INPUT MUTUO'!$D$7="FRANCESE",F80-E80,'2) OUTPUT PIANO'!$C$17/'1) INPUT MUTUO'!$D$10)) -> 998.6532846 | E80: =IF(B80=0,0,IF('1) INPUT MUTUO'!$D$13=360,L79*$C$3,L79*R80*FORMULE!$B$7)) -> 132.7926319 | F80: =IF(B80=0,0,IF('1) INPUT MUTUO'!$D$7="ITALIANO",'2) OUTPUT PIANO'!D80+'2) OUTPUT PIANO'!E80,IF(B80>'1) INPUT MUTUO'!$D$10,0,FORMULE!$B$13))) -> 1131.445917 | G80: =IF($B$7="SI",IF(F80=0,0,'1) INPUT MUTUO'!$D$19),0) -> 0 | I80: 0 | K80: -1131.445917 | L80: 52118.39948 | M80: =+IF('MATRIX SP. PERIODICHE'!AZ54=1,'1) INPUT MUTUO'!$C$31,0) -> 0 | N80: =+IF('MATRIX SP. PERIODICHE'!CZ54=1,'1) INPUT MUTUO'!$C$32,0) -> 0 | O80: =IF('MATRIX SP. PERIODICHE'!EZ54=1,'1) INPUT MUTUO'!$C$33,0) -> 0 | P80: =IF('MATRIX SP. PERIODICHE'!GZ54=1,'1) INPUT MUTUO'!$C$34,0) -> 0 | Q80: =IF('MATRIX SP. PERIODICHE'!IZ54=1,'1) INPUT MUTUO'!$C$35,0) -> 0 | R80: 30
A81: =IF($B$3="M",IF(FORMULE!$B$15="OK",EOMONTH('2) OUTPUT PIANO'!A80,1),EDATE('2) OUTPUT PIANO'!A80,1)),IF($B$3="T",IF(FORMULE!$B$15="OK",EOMONTH('2) OUTPUT PIANO'!A80,3),EDATE('2) OUTPUT PIANO'!A80,3)),IF($B$3="S",IF(FORMULE!$B$15="OK",EOMONTH('2) OUTPUT PIANO'!A80,6),EDATE('2) OUTPUT PIANO'!A80,6)),IF($B$3="A",+IF(FORMULE!$B$15="OK",EOMONTH('2) OUTPUT PIANO'!A80,12),EDATE('2) OUTPUT PIANO'!A80,12)),"ERRORE")))) -> 2014-05-01 | B81: =IF(B80=0,0,IF(B80+1<='1) INPUT MUTUO'!$D$10,'2) OUTPUT PIANO'!B80+1,0)) -> 52 | D81: =IF(B80=0,0,IF('1) INPUT MUTUO'!$D$7="FRANCESE",F81-E81,'2) OUTPUT PIANO'!$C$17/'1) INPUT MUTUO'!$D$10)) -> 1001.149918 | E81: =IF(B81=0,0,IF('1) INPUT MUTUO'!$D$13=360,L80*$C$3,L80*R81*FORMULE!$B$7)) -> 130.2959987 | F81: =IF(B81=0,0,IF('1) INPUT MUTUO'!$D$7="ITALIANO",'2) OUTPUT PIANO'!D81+'2) OUTPUT PIANO'!E81,IF(B81>'1) INPUT MUTUO'!$D$10,0,FORMULE!$B$13))) -> 1131.445917 | G81: =IF($B$7="SI",IF(F81=0,0,'1) INPUT MUTUO'!$D$19),0) -> 0 | I81: 0 | K81: -1131.445917 | L81: 51117.24956 | M81: =+IF('MATRIX SP. PERIODICHE'!AZ55=1,'1) INPUT MUTUO'!$C$31,0) -> 0 | N81: =+IF('MATRIX SP. PERIODICHE'!CZ55=1,'1) INPUT MUTUO'!$C$32,0) -> 0 | O81: =IF('MATRIX SP. PERIODICHE'!EZ55=1,'1) INPUT MUTUO'!$C$33,0) -> 0 | P81: =IF('MATRIX SP. PERIODICHE'!GZ55=1,'1) INPUT MUTUO'!$C$34,0) -> 0 | Q81: =IF('MATRIX SP. PERIODICHE'!IZ55=1,'1) INPUT MUTUO'!$C$35,0) -> 0 | R81: 31
A82: =IF($B$3="M",IF(FORMULE!$B$15="OK",EOMONTH('2) OUTPUT PIANO'!A81,1),EDATE('2) OUTPUT PIANO'!A81,1)),IF($B$3="T",IF(FORMULE!$B$15="OK",EOMONTH('2) OUTPUT PIANO'!A81,3),EDATE('2) OUTPUT PIANO'!A81,3)),IF($B$3="S",IF(FORMULE!$B$15="OK",EOMONTH('2) OUTPUT PIANO'!A81,6),EDATE('2) OUTPUT PIANO'!A81,6)),IF($B$3="A",+IF(FORMULE!$B$15="OK",EOMONTH('2) OUTPUT PIANO'!A81,12),EDATE('2) OUTPUT PIANO'!A81,12)),"ERRORE")))) -> 2014-06-01 | B82: =IF(B81=0,0,IF(B81+1<='1) INPUT MUTUO'!$D$10,'2) OUTPUT PIANO'!B81+1,0)) -> 53 | D82: =IF(B81=0,0,IF('1) INPUT MUTUO'!$D$7="FRANCESE",F82-E82,'2) OUTPUT PIANO'!$C$17/'1) INPUT MUTUO'!$D$10)) -> 1003.652793 | E82: =IF(B82=0,0,IF('1) INPUT MUTUO'!$D$13=360,L81*$C$3,L81*R82*FORMULE!$B$7)) -> 127.7931239 | F82: =IF(B82=0,0,IF('1) INPUT MUTUO'!$D$7="ITALIANO",'2) OUTPUT PIANO'!D82+'2) OUTPUT PIANO'!E82,IF(B82>'1) INPUT MUTUO'!$D$10,0,FORMULE!$B$13))) -> 1131.445917 | G82: =IF($B$7="SI",IF(F82=0,0,'1) INPUT MUTUO'!$D$19),0) -> 0 | I82: 0 | K82: -1131.445917 | L82: 50113.59677 | M82: =+IF('MATRIX SP. PERIODICHE'!AZ56=1,'1) INPUT MUTUO'!$C$31,0) -> 0 | N82: =+IF('MATRIX SP. PERIODICHE'!CZ56=1,'1) INPUT MUTUO'!$C$32,0) -> 0 | O82: =IF('MATRIX SP. PERIODICHE'!EZ56=1,'1) INPUT MUTUO'!$C$33,0) -> 0 | P82: =IF('MATRIX SP. PERIODICHE'!GZ56=1,'1) INPUT MUTUO'!$C$34,0) -> 0 | Q82: =IF('MATRIX SP. PERIODICHE'!IZ56=1,'1) INPUT MUTUO'!$C$35,0) -> 0 | R82: 30
A83: =IF($B$3="M",IF(FORMULE!$B$15="OK",EOMONTH('2) OUTPUT PIANO'!A82,1),EDATE('2) OUTPUT PIANO'!A82,1)),IF($B$3="T",IF(FORMULE!$B$15="OK",EOMONTH('2) OUTPUT PIANO'!A82,3),EDATE('2) OUTPUT PIANO'!A82,3)),IF($B$3="S",IF(FORMULE!$B$15="OK",EOMONTH('2) OUTPUT PIANO'!A82,6),EDATE('2) OUTPUT PIANO'!A82,6)),IF($B$3="A",+IF(FORMULE!$B$15="OK",EOMONTH('2) OUTPUT PIANO'!A82,12),EDATE('2) OUTPUT PIANO'!A82,12)),"ERRORE")))) -> 2014-07-01 | B83: =IF(B82=0,0,IF(B82+1<='1) INPUT MUTUO'!$D$10,'2) OUTPUT PIANO'!B82+1,0)) -> 54 | D83: =IF(B82=0,0,IF('1) INPUT MUTUO'!$D$7="FRANCESE",F83-E83,'2) OUTPUT PIANO'!$C$17/'1) INPUT MUTUO'!$D$10)) -> 1006.161925 | E83: =IF(B83=0,0,IF('1) INPUT MUTUO'!$D$13=360,L82*$C$3,L82*R83*FORMULE!$B$7)) -> 125.2839919 | F83: =IF(B83=0,0,IF('1) INPUT MUTUO'!$D$7="ITALIANO",'2) OUTPUT PIANO'!D83+'2) OUTPUT PIANO'!E83,IF(B83>'1) INPUT MUTUO'!$D$10,0,FORMULE!$B$13))) -> 1131.445917 | G83: =IF($B$7="SI",IF(F83=0,0,'1) INPUT MUTUO'!$D$19),0) -> 0 | I83: 0 | K83: -1131.445917 | L83: 49107.43484 | M83: =+IF('MATRIX SP. PERIODICHE'!AZ57=1,'1) INPUT MUTUO'!$C$31,0) -> 0 | N83: =+IF('MATRIX SP. PERIODICHE'!CZ57=1,'1) INPUT MUTUO'!$C$32,0) -> 0 | O83: =IF('MATRIX SP. PERIODICHE'!EZ57=1,'1) INPUT MUTUO'!$C$33,0) -> 0 | P83: =IF('MATRIX SP. PERIODICHE'!GZ57=1,'1) INPUT MUTUO'!$C$34,0) -> 0 | Q83: =IF('MATRIX SP. PERIODICHE'!IZ57=1,'1) INPUT MUTUO'!$C$35,0) -> 0 | R83: 31
A84: =IF($B$3="M",IF(FORMULE!$B$15="OK",EOMONTH('2) OUTPUT PIANO'!A83,1),EDATE('2) OUTPUT PIANO'!A83,1)),IF($B$3="T",IF(FORMULE!$B$15="OK",EOMONTH('2) OUTPUT PIANO'!A83,3),EDATE('2) OUTPUT PIANO'!A83,3)),IF($B$3="S",IF(FORMULE!$B$15="OK",EOMONTH('2) OUTPUT PIANO'!A83,6),EDATE('2) OUTPUT PIANO'!A83,6)),IF($B$3="A",+IF(FORMULE!$B$15="OK",EOMONTH('2) OUTPUT PIANO'!A83,12),EDATE('2) OUTPUT PIANO'!A83,12)),"ERRORE")))) -> 2014-08-01 | B84: =IF(B83=0,0,IF(B83+1<='1) INPUT MUTUO'!$D$10,'2) OUTPUT PIANO'!B83+1,0)) -> 55 | D84: =IF(B83=0,0,IF('1) INPUT MUTUO'!$D$7="FRANCESE",F84-E84,'2) OUTPUT PIANO'!$C$17/'1) INPUT MUTUO'!$D$10)) -> 1008.677329 | E84: =IF(B84=0,0,IF('1) INPUT MUTUO'!$D$13=360,L83*$C$3,L83*R84*FORMULE!$B$7)) -> 122.7685871 | F84: =IF(B84=0,0,IF('1) INPUT MUTUO'!$D$7="ITALIANO",'2) OUTPUT PIANO'!D84+'2) OUTPUT PIANO'!E84,IF(B84>'1) INPUT MUTUO'!$D$10,0,FORMULE!$B$13))) -> 1131.445917 | G84: =IF($B$7="SI",IF(F84=0,0,'1) INPUT MUTUO'!$D$19),0) -> 0 | I84: 0 | K84: -1131.445917 | L84: 48098.75751 | M84: =+IF('MATRIX SP. PERIODICHE'!AZ58=1,'1) INPUT MUTUO'!$C$31,0) -> 0 | N84: =+IF('MATRIX SP. PERIODICHE'!CZ58=1,'1) INPUT MUTUO'!$C$32,0) -> 0 | O84: =IF('MATRIX SP. PERIODICHE'!EZ58=1,'1) INPUT MUTUO'!$C$33,0) -> 0 | P84: =IF('MATRIX SP. PERIODICHE'!GZ58=1,'1) INPUT MUTUO'!$C$34,0) -> 0 | Q84: =IF('MATRIX SP. PERIODICHE'!IZ58=1,'1) INPUT MUTUO'!$C$35,0) -> 0 | R84: 31
A85: =IF($B$3="M",IF(FORMULE!$B$15="OK",EOMONTH('2) OUTPUT PIANO'!A84,1),EDATE('2) OUTPUT PIANO'!A84,1)),IF($B$3="T",IF(FORMULE!$B$15="OK",EOMONTH('2) OUTPUT PIANO'!A84,3),EDATE('2) OUTPUT PIANO'!A84,3)),IF($B$3="S",IF(FORMULE!$B$15="OK",EOMONTH('2) OUTPUT PIANO'!A84,6),EDATE('2) OUTPUT PIANO'!A84,6)),IF($B$3="A",+IF(FORMULE!$B$15="OK",EOMONTH('2) OUTPUT PIANO'!A84,12),EDATE('2) OUTPUT PIANO'!A84,12)),"ERRORE")))) -> 2014-09-01 | B85: =IF(B84=0,0,IF(B84+1<='1) INPUT MUTUO'!$D$10,'2) OUTPUT PIANO'!B84+1,0)) -> 56 | D85: =IF(B84=0,0,IF('1) INPUT MUTUO'!$D$7="FRANCESE",F85-E85,'2) OUTPUT PIANO'!$C$17/'1) INPUT MUTUO'!$D$10)) -> 1011.199023 | E85: =IF(B85=0,0,IF('1) INPUT MUTUO'!$D$13=360,L84*$C$3,L84*R85*FORMULE!$B$7)) -> 120.2468938 | F85: =IF(B85=0,0,IF('1) INPUT MUTUO'!$D$7="ITALIANO",'2) OUTPUT PIANO'!D85+'2) OUTPUT PIANO'!E85,IF(B85>'1) INPUT MUTUO'!$D$10,0,FORMULE!$B$13))) -> 1131.445917 | G85: =IF($B$7="SI",IF(F85=0,0,'1) INPUT MUTUO'!$D$19),0) -> 0 | I85: 0 | K85: -1131.445917 | L85: 47087.55849 | M85: =+IF('MATRIX SP. PERIODICHE'!AZ59=1,'1) INPUT MUTUO'!$C$31,0) -> 0 | N85: =+IF('MATRIX SP. PERIODICHE'!CZ59=1,'1) INPUT MUTUO'!$C$32,0) -> 0 | O85: =IF('MATRIX SP. PERIODICHE'!EZ59=1,'1) INPUT MUTUO'!$C$33,0) -> 0 | P85: =IF('MATRIX SP. PERIODICHE'!GZ59=1,'1) INPUT MUTUO'!$C$34,0) -> 0 | Q85: =IF('MATRIX SP. PERIODICHE'!IZ59=1,'1) INPUT MUTUO'!$C$35,0) -> 0 | R85: 30
A86: =IF($B$3="M",IF(FORMULE!$B$15="OK",EOMONTH('2) OUTPUT PIANO'!A85,1),EDATE('2) OUTPUT PIANO'!A85,1)),IF($B$3="T",IF(FORMULE!$B$15="OK",EOMONTH('2) OUTPUT PIANO'!A85,3),EDATE('2) OUTPUT PIANO'!A85,3)),IF($B$3="S",IF(FORMULE!$B$15="OK",EOMONTH('2) OUTPUT PIANO'!A85,6),EDATE('2) OUTPUT PIANO'!A85,6)),IF($B$3="A",+IF(FORMULE!$B$15="OK",EOMONTH('2) OUTPUT PIANO'!A85,12),EDATE('2) OUTPUT PIANO'!A85,12)),"ERRORE")))) -> 2014-10-01 | B86: =IF(B85=0,0,IF(B85+1<='1) INPUT MUTUO'!$D$10,'2) OUTPUT PIANO'!B85+1,0)) -> 57 | D86: =IF(B85=0,0,IF('1) INPUT MUTUO'!$D$7="FRANCESE",F86-E86,'2) OUTPUT PIANO'!$C$17/'1) INPUT MUTUO'!$D$10)) -> 1013.72702 | E86: =IF(B86=0,0,IF('1) INPUT MUTUO'!$D$13=360,L85*$C$3,L85*R86*FORMULE!$B$7)) -> 117.7188962 | F86: =IF(B86=0,0,IF('1) INPUT MUTUO'!$D$7="ITALIANO",'2) OUTPUT PIANO'!D86+'2) OUTPUT PIANO'!E86,IF(B86>'1) INPUT MUTUO'!$D$10,0,FORMULE!$B$13))) -> 1131.445917 | G86: =IF($B$7="SI",IF(F86=0,0,'1) INPUT MUTUO'!$D$19),0) -> 0 | I86: 0 | K86: -1131.445917 | L86: 46073.83147 | M86: =+IF('MATRIX SP. PERIODICHE'!AZ60=1,'1) INPUT MUTUO'!$C$31,0) -> 0 | N86: =+IF('MATRIX SP. PERIODICHE'!CZ60=1,'1) INPUT MUTUO'!$C$32,0) -> 0 | O86: =IF('MATRIX SP. PERIODICHE'!EZ60=1,'1) INPUT MUTUO'!$C$33,0) -> 0 | P86: =IF('MATRIX SP. PERIODICHE'!GZ60=1,'1) INPUT MUTUO'!$C$34,0) -> 0 | Q86: =IF('MATRIX SP. PERIODICHE'!IZ60=1,'1) INPUT MUTUO'!$C$35,0) -> 0 | R86: 31
A87: =IF($B$3="M",IF(FORMULE!$B$15="OK",EOMONTH('2) OUTPUT PIANO'!A86,1),EDATE('2) OUTPUT PIANO'!A86,1)),IF($B$3="T",IF(FORMULE!$B$15="OK",EOMONTH('2) OUTPUT PIANO'!A86,3),EDATE('2) OUTPUT PIANO'!A86,3)),IF($B$3="S",IF(FORMULE!$B$15="OK",EOMONTH('2) OUTPUT PIANO'!A86,6),EDATE('2) OUTPUT PIANO'!A86,6)),IF($B$3="A",+IF(FORMULE!$B$15="OK",EOMONTH('2) OUTPUT PIANO'!A86,12),EDATE('2) OUTPUT PIANO'!A86,12)),"ERRORE")))) -> 2014-11-01 | B87: =IF(B86=0,0,IF(B86+1<='1) INPUT MUTUO'!$D$10,'2) OUTPUT PIANO'!B86+1,0)) -> 58 | D87: =IF(B86=0,0,IF('1) INPUT MUTUO'!$D$7="FRANCESE",F87-E87,'2) OUTPUT PIANO'!$C$17/'1) INPUT MUTUO'!$D$10)) -> 1016.261338 | E87: =IF(B87=0,0,IF('1) INPUT MUTUO'!$D$13=360,L86*$C$3,L86*R87*FORMULE!$B$7)) -> 115.1845787 | F87: =IF(B87=0,0,IF('1) INPUT MUTUO'!$D$7="ITALIANO",'2) OUTPUT PIANO'!D87+'2) OUTPUT PIANO'!E87,IF(B87>'1) INPUT MUTUO'!$D$10,0,FORMULE!$B$13))) -> 1131.445917 | G87: =IF($B$7="SI",IF(F87=0,0,'1) INPUT MUTUO'!$D$19),0) -> 0 | I87: 0 | K87: -1131.445917 | L87: 45057.57013 | M87: =+IF('MATRIX SP. PERIODICHE'!AZ61=1,'1) INPUT MUTUO'!$C$31,0) -> 0 | N87: =+IF('MATRIX SP. PERIODICHE'!CZ61=1,'1) INPUT MUTUO'!$C$32,0) -> 0 | O87: =IF('MATRIX SP. PERIODICHE'!EZ61=1,'1) INPUT MUTUO'!$C$33,0) -> 0 | P87: =IF('MATRIX SP. PERIODICHE'!GZ61=1,'1) INPUT MUTUO'!$C$34,0) -> 0 | Q87: =IF('MATRIX SP. PERIODICHE'!IZ61=1,'1) INPUT MUTUO'!$C$35,0) -> 0 | R87: 30
A88: =IF($B$3="M",IF(FORMULE!$B$15="OK",EOMONTH('2) OUTPUT PIANO'!A87,1),EDATE('2) OUTPUT PIANO'!A87,1)),IF($B$3="T",IF(FORMULE!$B$15="OK",EOMONTH('2) OUTPUT PIANO'!A87,3),EDATE('2) OUTPUT PIANO'!A87,3)),IF($B$3="S",IF(FORMULE!$B$15="OK",EOMONTH('2) OUTPUT PIANO'!A87,6),EDATE('2) OUTPUT PIANO'!A87,6)),IF($B$3="A",+IF(FORMULE!$B$15="OK",EOMONTH('2) OUTPUT PIANO'!A87,12),EDATE('2) OUTPUT PIANO'!A87,12)),"ERRORE")))) -> 2014-12-01 | B88: =IF(B87=0,0,IF(B87+1<='1) INPUT MUTUO'!$D$10,'2) OUTPUT PIANO'!B87+1,0)) -> 59 | D88: =IF(B87=0,0,IF('1) INPUT MUTUO'!$D$7="FRANCESE",F88-E88,'2) OUTPUT PIANO'!$C$17/'1) INPUT MUTUO'!$D$10)) -> 1018.801991 | E88: =IF(B88=0,0,IF('1) INPUT MUTUO'!$D$13=360,L87*$C$3,L87*R88*FORMULE!$B$7)) -> 112.6439253 | F88: =IF(B88=0,0,IF('1) INPUT MUTUO'!$D$7="ITALIANO",'2) OUTPUT PIANO'!D88+'2) OUTPUT PIANO'!E88,IF(B88>'1) INPUT MUTUO'!$D$10,0,FORMULE!$B$13))) -> 1131.445917 | G88: =IF($B$7="SI",IF(F88=0,0,'1) INPUT MUTUO'!$D$19),0) -> 0 | I88: 0 | K88: -1131.445917 | L88: 44038.76814 | M88: =+IF('MATRIX SP. PERIODICHE'!AZ62=1,'1) INPUT MUTUO'!$C$31,0) -> 0 | N88: =+IF('MATRIX SP. PERIODICHE'!CZ62=1,'1) INPUT MUTUO'!$C$32,0) -> 0 | O88: =IF('MATRIX SP. PERIODICHE'!EZ62=1,'1) INPUT MUTUO'!$C$33,0) -> 0 | P88: =IF('MATRIX SP. PERIODICHE'!GZ62=1,'1) INPUT MUTUO'!$C$34,0) -> 0 | Q88: =IF('MATRIX SP. PERIODICHE'!IZ62=1,'1) INPUT MUTUO'!$C$35,0) -> 0 | R88: 31
A89: =IF($B$3="M",IF(FORMULE!$B$15="OK",EOMONTH('2) OUTPUT PIANO'!A88,1),EDATE('2) OUTPUT PIANO'!A88,1)),IF($B$3="T",IF(FORMULE!$B$15="OK",EOMONTH('2) OUTPUT PIANO'!A88,3),EDATE('2) OUTPUT PIANO'!A88,3)),IF($B$3="S",IF(FORMULE!$B$15="OK",EOMONTH('2) OUTPUT PIANO'!A88,6),EDATE('2) OUTPUT PIANO'!A88,6)),IF($B$3="A",+IF(FORMULE!$B$15="OK",EOMONTH('2) OUTPUT PIANO'!A88,12),EDATE('2) OUTPUT PIANO'!A88,12)),"ERRORE")))) -> 2015-01-01 | B89: =IF(B88=0,0,IF(B88+1<='1) INPUT MUTUO'!$D$10,'2) OUTPUT PIANO'!B88+1,0)) -> 60 | D89: =IF(B88=0,0,IF('1) INPUT MUTUO'!$D$7="FRANCESE",F89-E89,'2) OUTPUT PIANO'!$C$17/'1) INPUT MUTUO'!$D$10)) -> 1021.348996 | E89: =IF(B89=0,0,IF('1) INPUT MUTUO'!$D$13=360,L88*$C$3,L88*R89*FORMULE!$B$7)) -> 110.0969203 | F89: =IF(B89=0,0,IF('1) INPUT MUTUO'!$D$7="ITALIANO",'2) OUTPUT PIANO'!D89+'2) OUTPUT PIANO'!E89,IF(B89>'1) INPUT MUTUO'!$D$10,0,FORMULE!$B$13))) -> 1131.445917 | G89: =IF($B$7="SI",IF(F89=0,0,'1) INPUT MUTUO'!$D$19),0) -> 0 | I89: 0 | K89: -1131.445917 | L89: 43017.41914 | M89: =+IF('MATRIX SP. PERIODICHE'!AZ63=1,'1) INPUT MUTUO'!$C$31,0) -> 0 | N89: =+IF('MATRIX SP. PERIODICHE'!CZ63=1,'1) INPUT MUTUO'!$C$32,0) -> 0 | O89: =IF('MATRIX SP. PERIODICHE'!EZ63=1,'1) INPUT MUTUO'!$C$33,0) -> 0 | P89: =IF('MATRIX SP. PERIODICHE'!GZ63=1,'1) INPUT MUTUO'!$C$34,0) -> 0 | Q89: =IF('MATRIX SP. PERIODICHE'!IZ63=1,'1) INPUT MUTUO'!$C$35,0) -> 0 | R89: 31
A90: =IF($B$3="M",IF(FORMULE!$B$15="OK",EOMONTH('2) OUTPUT PIANO'!A89,1),EDATE('2) OUTPUT PIANO'!A89,1)),IF($B$3="T",IF(FORMULE!$B$15="OK",EOMONTH('2) OUTPUT PIANO'!A89,3),EDATE('2) OUTPUT PIANO'!A89,3)),IF($B$3="S",IF(FORMULE!$B$15="OK",EOMONTH('2) OUTPUT PIANO'!A89,6),EDATE('2) OUTPUT PIANO'!A89,6)),IF($B$3="A",+IF(FORMULE!$B$15="OK",EOMONTH('2) OUTPUT PIANO'!A89,12),EDATE('2) OUTPUT PIANO'!A89,12)),"ERRORE")))) -> 2015-02-01 | B90: =IF(B89=0,0,IF(B89+1<='1) INPUT MUTUO'!$D$10,'2) OUTPUT PIANO'!B89+1,0)) -> 61 | D90: =IF(B89=0,0,IF('1) INPUT MUTUO'!$D$7="FRANCESE",F90-E90,'2) OUTPUT PIANO'!$C$17/'1) INPUT MUTUO'!$D$10)) -> 1023.902369 | E90: =IF(B90=0,0,IF('1) INPUT MUTUO'!$D$13=360,L89*$C$3,L89*R90*FORMULE!$B$7)) -> 107.5435479 | F90: =IF(B90=0,0,IF('1) INPUT MUTUO'!$D$7="ITALIANO",'2) OUTPUT PIANO'!D90+'2) OUTPUT PIANO'!E90,IF(B90>'1) INPUT MUTUO'!$D$10,0,FORMULE!$B$13))) -> 1131.445917 | G90: =IF($B$7="SI",IF(F90=0,0,'1) INPUT MUTUO'!$D$19),0) -> 0 | I90: 0 | K90: -1131.445917 | L90: 41993.51677 | M90: =+IF('MATRIX SP. PERIODICHE'!AZ64=1,'1) INPUT MUTUO'!$C$31,0) -> 0 | N90: =+IF('MATRIX SP. PERIODICHE'!CZ64=1,'1) INPUT MUTUO'!$C$32,0) -> 0 | O90: =IF('MATRIX SP. PERIODICHE'!EZ64=1,'1) INPUT MUTUO'!$C$33,0) -> 0 | P90: =IF('MATRIX SP. PERIODICHE'!GZ64=1,'1) INPUT MUTUO'!$C$34,0) -> 0 | Q90: =IF('MATRIX SP. PERIODICHE'!IZ64=1,'1) INPUT MUTUO'!$C$35,0) -> 0 | R90: 28
A91: =IF($B$3="M",IF(FORMULE!$B$15="OK",EOMONTH('2) OUTPUT PIANO'!A90,1),EDATE('2) OUTPUT PIANO'!A90,1)),IF($B$3="T",IF(FORMULE!$B$15="OK",EOMONTH('2) OUTPUT PIANO'!A90,3),EDATE('2) OUTPUT PIANO'!A90,3)),IF($B$3="S",IF(FORMULE!$B$15="OK",EOMONTH('2) OUTPUT PIANO'!A90,6),EDATE('2) OUTPUT PIANO'!A90,6)),IF($B$3="A",+IF(FORMULE!$B$15="OK",EOMONTH('2) OUTPUT PIANO'!A90,12),EDATE('2) OUTPUT PIANO'!A90,12)),"ERRORE")))) -> 2015-03-01 | B91: =IF(B90=0,0,IF(B90+1<='1) INPUT MUTUO'!$D$10,'2) OUTPUT PIANO'!B90+1,0)) -> 62 | D91: =IF(B90=0,0,IF('1) INPUT MUTUO'!$D$7="FRANCESE",F91-E91,'2) OUTPUT PIANO'!$C$17/'1) INPUT MUTUO'!$D$10)) -> 1026.462125 | E91: =IF(B91=0,0,IF('1) INPUT MUTUO'!$D$13=360,L90*$C$3,L90*R91*FORMULE!$B$7)) -> 104.9837919 | F91: =IF(B91=0,0,IF('1) INPUT MUTUO'!$D$7="ITALIANO",'2) OUTPUT PIANO'!D91+'2) OUTPUT PIANO'!E91,IF(B91>'1) INPUT MUTUO'!$D$10,0,FORMULE!$B$13))) -> 1131.445917 | G91: =IF($B$7="SI",IF(F91=0,0,'1) INPUT MUTUO'!$D$19),0) -> 0 | I91: 0 | K91: -1131.445917 | L91: 40967.05465 | M91: =+IF('MATRIX SP. PERIODICHE'!AZ65=1,'1) INPUT MUTUO'!$C$31,0) -> 0 | N91: =+IF('MATRIX SP. PERIODICHE'!CZ65=1,'1) INPUT MUTUO'!$C$32,0) -> 0 | O91: =IF('MATRIX SP. PERIODICHE'!EZ65=1,'1) INPUT MUTUO'!$C$33,0) -> 0 | P91: =IF('MATRIX SP. PERIODICHE'!GZ65=1,'1) INPUT MUTUO'!$C$34,0) -> 0 | Q91: =IF('MATRIX SP. PERIODICHE'!IZ65=1,'1) INPUT MUTUO'!$C$35,0) -> 0 | R91: 31
A92: =IF($B$3="M",IF(FORMULE!$B$15="OK",EOMONTH('2) OUTPUT PIANO'!A91,1),EDATE('2) OUTPUT PIANO'!A91,1)),IF($B$3="T",IF(FORMULE!$B$15="OK",EOMONTH('2) OUTPUT PIANO'!A91,3),EDATE('2) OUTPUT PIANO'!A91,3)),IF($B$3="S",IF(FORMULE!$B$15="OK",EOMONTH('2) OUTPUT PIANO'!A91,6),EDATE('2) OUTPUT PIANO'!A91,6)),IF($B$3="A",+IF(FORMULE!$B$15="OK",EOMONTH('2) OUTPUT PIANO'!A91,12),EDATE('2) OUTPUT PIANO'!A91,12)),"ERRORE")))) -> 2015-04-01 | B92: =IF(B91=0,0,IF(B91+1<='1) INPUT MUTUO'!$D$10,'2) OUTPUT PIANO'!B91+1,0)) -> 63 | D92: =IF(B91=0,0,IF('1) INPUT MUTUO'!$D$7="FRANCESE",F92-E92,'2) OUTPUT PIANO'!$C$17/'1) INPUT MUTUO'!$D$10)) -> 1029.02828 | E92: =IF(B92=0,0,IF('1) INPUT MUTUO'!$D$13=360,L91*$C$3,L91*R92*FORMULE!$B$7)) -> 102.4176366 | F92: =IF(B92=0,0,IF('1) INPUT MUTUO'!$D$7="ITALIANO",'2) OUTPUT PIANO'!D92+'2) OUTPUT PIANO'!E92,IF(B92>'1) INPUT MUTUO'!$D$10,0,FORMULE!$B$13))) -> 1131.445917 | G92: =IF($B$7="SI",IF(F92=0,0,'1) INPUT MUTUO'!$D$19),0) -> 0 | I92: 0 | K92: -1131.445917 | L92: 39938.02637 | M92: =+IF('MATRIX SP. PERIODICHE'!AZ66=1,'1) INPUT MUTUO'!$C$31,0) -> 0 | N92: =+IF('MATRIX SP. PERIODICHE'!CZ66=1,'1) INPUT MUTUO'!$C$32,0) -> 0 | O92: =IF('MATRIX SP. PERIODICHE'!EZ66=1,'1) INPUT MUTUO'!$C$33,0) -> 0 | P92: =IF('MATRIX SP. PERIODICHE'!GZ66=1,'1) INPUT MUTUO'!$C$34,0) -> 0 | Q92: =IF('MATRIX SP. PERIODICHE'!IZ66=1,'1) INPUT MUTUO'!$C$35,0) -> 0 | R92: 30
A93: =IF($B$3="M",IF(FORMULE!$B$15="OK",EOMONTH('2) OUTPUT PIANO'!A92,1),EDATE('2) OUTPUT PIANO'!A92,1)),IF($B$3="T",IF(FORMULE!$B$15="OK",EOMONTH('2) OUTPUT PIANO'!A92,3),EDATE('2) OUTPUT PIANO'!A92,3)),IF($B$3="S",IF(FORMULE!$B$15="OK",EOMONTH('2) OUTPUT PIANO'!A92,6),EDATE('2) OUTPUT PIANO'!A92,6)),IF($B$3="A",+IF(FORMULE!$B$15="OK",EOMONTH('2) OUTPUT PIANO'!A92,12),EDATE('2) OUTPUT PIANO'!A92,12)),"ERRORE")))) -> 2015-05-01 | B93: =IF(B92=0,0,IF(B92+1<='1) INPUT MUTUO'!$D$10,'2) OUTPUT PIANO'!B92+1,0)) -> 64 | D93: =IF(B92=0,0,IF('1) INPUT MUTUO'!$D$7="FRANCESE",F93-E93,'2) OUTPUT PIANO'!$C$17/'1) INPUT MUTUO'!$D$10)) -> 1031.600851 | E93: =IF(B93=0,0,IF('1) INPUT MUTUO'!$D$13=360,L92*$C$3,L92*R93*FORMULE!$B$7)) -> 99.84506593 | F93: =IF(B93=0,0,IF('1) INPUT MUTUO'!$D$7="ITALIANO",'2) OUTPUT PIANO'!D93+'2) OUTPUT PIANO'!E93,IF(B93>'1) INPUT MUTUO'!$D$10,0,FORMULE!$B$13))) -> 1131.445917 | G93: =IF($B$7="SI",IF(F93=0,0,'1) INPUT MUTUO'!$D$19),0) -> 0 | I93: 0 | K93: =IF(B93=0,0,C93-F93-G93-H93-I93-J93) -> -1131.445917 | L93: 38906.42552 | M93: =+IF('MATRIX SP. PERIODICHE'!AZ67=1,'1) INPUT MUTUO'!$C$31,0) -> 0 | N93: =+IF('MATRIX SP. PERIODICHE'!CZ67=1,'1) INPUT MUTUO'!$C$32,0) -> 0 | O93: =IF('MATRIX SP. PERIODICHE'!EZ67=1,'1) INPUT MUTUO'!$C$33,0) -> 0 | P93: =IF('MATRIX SP. PERIODICHE'!GZ67=1,'1) INPUT MUTUO'!$C$34,0) -> 0 | Q93: =IF('MATRIX SP. PERIODICHE'!IZ67=1,'1) INPUT MUTUO'!$C$35,0) -> 0 | R93: 31
A94: =IF($B$3="M",IF(FORMULE!$B$15="OK",EOMONTH('2) OUTPUT PIANO'!A93,1),EDATE('2) OUTPUT PIANO'!A93,1)),IF($B$3="T",IF(FORMULE!$B$15="OK",EOMONTH('2) OUTPUT PIANO'!A93,3),EDATE('2) OUTPUT PIANO'!A93,3)),IF($B$3="S",IF(FORMULE!$B$15="OK",EOMONTH('2) OUTPUT PIANO'!A93,6),EDATE('2) OUTPUT PIANO'!A93,6)),IF($B$3="A",+IF(FORMULE!$B$15="OK",EOMONTH('2) OUTPUT PIANO'!A93,12),EDATE('2) OUTPUT PIANO'!A93,12)),"ERRORE")))) -> 2015-06-01 | B94: =IF(B93=0,0,IF(B93+1<='1) INPUT MUTUO'!$D$10,'2) OUTPUT PIANO'!B93+1,0)) -> 65 | D94: =IF(B93=0,0,IF('1) INPUT MUTUO'!$D$7="FRANCESE",F94-E94,'2) OUTPUT PIANO'!$C$17/'1) INPUT MUTUO'!$D$10)) -> 1034.179853 | E94: =IF(B94=0,0,IF('1) INPUT MUTUO'!$D$13=360,L93*$C$3,L93*R94*FORMULE!$B$7)) -> 97.2660638 | F94: =IF(B94=0,0,IF('1) INPUT MUTUO'!$D$7="ITALIANO",'2) OUTPUT PIANO'!D94+'2) OUTPUT PIANO'!E94,IF(B94>'1) INPUT MUTUO'!$D$10,0,FORMULE!$B$13))) -> 1131.445917 | G94: =IF($B$7="SI",IF(F94=0,0,'1) INPUT MUTUO'!$D$19),0) -> 0 | I94: =IF($B$8="SI",IF(F94=0,0,SUM(M94:Q94)),0) -> 0 | K94: -1131.445917 | L94: =IF(B94=0,0,L93-D94) -> 37872.24567 | M94: =+IF('MATRIX SP. PERIODICHE'!AZ68=1,'1) INPUT MUTUO'!$C$31,0) -> 0 | N94: =+IF('MATRIX SP. PERIODICHE'!CZ68=1,'1) INPUT MUTUO'!$C$32,0) -> 0 | O94: =IF('MATRIX SP. PERIODICHE'!EZ68=1,'1) INPUT MUTUO'!$C$33,0) -> 0 | P94: =IF('MATRIX SP. PERIODICHE'!GZ68=1,'1) INPUT MUTUO'!$C$34,0) -> 0 | Q94: =IF('MATRIX SP. PERIODICHE'!IZ68=1,'1) INPUT MUTUO'!$C$35,0) -> 0 | R94: 30
A95: =IF($B$3="M",IF(FORMULE!$B$15="OK",EOMONTH('2) OUTPUT PIANO'!A94,1),EDATE('2) OUTPUT PIANO'!A94,1)),IF($B$3="T",IF(FORMULE!$B$15="OK",EOMONTH('2) OUTPUT PIANO'!A94,3),EDATE('2) OUTPUT PIANO'!A94,3)),IF($B$3="S",IF(FORMULE!$B$15="OK",EOMONTH('2) OUTPUT PIANO'!A94,6),EDATE('2) OUTPUT PIANO'!A94,6)),IF($B$3="A",+IF(FORMULE!$B$15="OK",EOMONTH('2) OUTPUT PIANO'!A94,12),EDATE('2) OUTPUT PIANO'!A94,12)),"ERRORE")))) -> 2015-07-01 | B95: =IF(B94=0,0,IF(B94+1<='1) INPUT MUTUO'!$D$10,'2) OUTPUT PIANO'!B94+1,0)) -> 66 | D95: =IF(B94=0,0,IF('1) INPUT MUTUO'!$D$7="FRANCESE",F95-E95,'2) OUTPUT PIANO'!$C$17/'1) INPUT MUTUO'!$D$10)) -> 1036.765302 | E95: =IF(B95=0,0,IF('1) INPUT MUTUO'!$D$13=360,L94*$C$3,L94*R95*FORMULE!$B$7)) -> 94.68061417 | F95: =IF(B95=0,0,IF('1) INPUT MUTUO'!$D$7="ITALIANO",'2) OUTPUT PIANO'!D95+'2) OUTPUT PIANO'!E95,IF(B95>'1) INPUT MUTUO'!$D$10,0,FORMULE!$B$13))) -> 1131.445917 | G95: =IF($B$7="SI",IF(F95=0,0,'1) INPUT MUTUO'!$D$19),0) -> 0 | I95: 0 | K95: -1131.445917 | L95: 36835.48036 | M95: =+IF('MATRIX SP. PERIODICHE'!AZ69=1,'1) INPUT MUTUO'!$C$31,0) -> 0 | N95: =+IF('MATRIX SP. PERIODICHE'!CZ69=1,'1) INPUT MUTUO'!$C$32,0) -> 0 | O95: =IF('MATRIX SP. PERIODICHE'!EZ69=1,'1) INPUT MUTUO'!$C$33,0) -> 0 | P95: =IF('MATRIX SP. PERIODICHE'!GZ69=1,'1) INPUT MUTUO'!$C$34,0) -> 0 | Q95: =IF('MATRIX SP. PERIODICHE'!IZ69=1,'1) INPUT MUTUO'!$C$35,0) -> 0 | R95: =IF(EOMONTH(A95,0)=A95,A95-EOMONTH(A95,-1),A96-A95) -> 31
A96: =IF($B$3="M",IF(FORMULE!$B$15="OK",EOMONTH('2) OUTPUT PIANO'!A95,1),EDATE('2) OUTPUT PIANO'!A95,1)),IF($B$3="T",IF(FORMULE!$B$15="OK",EOMONTH('2) OUTPUT PIANO'!A95,3),EDATE('2) OUTPUT PIANO'!A95,3)),IF($B$3="S",IF(FORMULE!$B$15="OK",EOMONTH('2) OUTPUT PIANO'!A95,6),EDATE('2) OUTPUT PIANO'!A95,6)),IF($B$3="A",+IF(FORMULE!$B$15="OK",EOMONTH('2) OUTPUT PIANO'!A95,12),EDATE('2) OUTPUT PIANO'!A95,12)),"ERRORE")))) -> 2015-08-01 | B96: =IF(B95=0,0,IF(B95+1<='1) INPUT MUTUO'!$D$10,'2) OUTPUT PIANO'!B95+1,0)) -> 67 | D96: =IF(B95=0,0,IF('1) INPUT MUTUO'!$D$7="FRANCESE",F96-E96,'2) OUTPUT PIANO'!$C$17/'1) INPUT MUTUO'!$D$10)) -> 1039.357216 | E96: =IF(B96=0,0,IF('1) INPUT MUTUO'!$D$13=360,L95*$C$3,L95*R96*FORMULE!$B$7)) -> 92.08870091 | F96: =IF(B96=0,0,IF('1) INPUT MUTUO'!$D$7="ITALIANO",'2) OUTPUT PIANO'!D96+'2) OUTPUT PIANO'!E96,IF(B96>'1) INPUT MUTUO'!$D$10,0,FORMULE!$B$13))) -> 1131.445917 | G96: =IF($B$7="SI",IF(F96=0,0,'1) INPUT MUTUO'!$D$19),0) -> 0 | I96: 0 | K96: -1131.445917 | L96: 35796.12315 | M96: =+IF('MATRIX SP. PERIODICHE'!AZ70=1,'1) INPUT MUTUO'!$C$31,0) -> 0 | N96: =+IF('MATRIX SP. PERIODICHE'!CZ70=1,'1) INPUT MUTUO'!$C$32,0) -> 0 | O96: =IF('MATRIX SP. PERIODICHE'!EZ70=1,'1) INPUT MUTUO'!$C$33,0) -> 0 | P96: =IF('MATRIX SP. PERIODICHE'!GZ70=1,'1) INPUT MUTUO'!$C$34,0) -> 0 | Q96: =IF('MATRIX SP. PERIODICHE'!IZ70=1,'1) INPUT MUTUO'!$C$35,0) -> 0 | R96: 31
A97: =IF($B$3="M",IF(FORMULE!$B$15="OK",EOMONTH('2) OUTPUT PIANO'!A96,1),EDATE('2) OUTPUT PIANO'!A96,1)),IF($B$3="T",IF(FORMULE!$B$15="OK",EOMONTH('2) OUTPUT PIANO'!A96,3),EDATE('2) OUTPUT PIANO'!A96,3)),IF($B$3="S",IF(FORMULE!$B$15="OK",EOMONTH('2) OUTPUT PIANO'!A96,6),EDATE('2) OUTPUT PIANO'!A96,6)),IF($B$3="A",+IF(FORMULE!$B$15="OK",EOMONTH('2) OUTPUT PIANO'!A96,12),EDATE('2) OUTPUT PIANO'!A96,12)),"ERRORE")))) -> 2015-09-01 | B97: =IF(B96=0,0,IF(B96+1<='1) INPUT MUTUO'!$D$10,'2) OUTPUT PIANO'!B96+1,0)) -> 68 | D97: =IF(B96=0,0,IF('1) INPUT MUTUO'!$D$7="FRANCESE",F97-E97,'2) OUTPUT PIANO'!$C$17/'1) INPUT MUTUO'!$D$10)) -> 1041.955609 | E97: =IF(B97=0,0,IF('1) INPUT MUTUO'!$D$13=360,L96*$C$3,L96*R97*FORMULE!$B$7)) -> 89.49030787 | F97: =IF(B97=0,0,IF('1) INPUT MUTUO'!$D$7="ITALIANO",'2) OUTPUT PIANO'!D97+'2) OUTPUT PIANO'!E97,IF(B97>'1) INPUT MUTUO'!$D$10,0,FORMULE!$B$13))) -> 1131.445917 | G97: =IF($B$7="SI",IF(F97=0,0,'1) INPUT MUTUO'!$D$19),0) -> 0 | I97: 0 | K97: -1131.445917 | L97: 34754.16754 | M97: =+IF('MATRIX SP. PERIODICHE'!AZ71=1,'1) INPUT MUTUO'!$C$31,0) -> 0 | N97: =+IF('MATRIX SP. PERIODICHE'!CZ71=1,'1) INPUT MUTUO'!$C$32,0) -> 0 | O97: =IF('MATRIX SP. PERIODICHE'!EZ71=1,'1) INPUT MUTUO'!$C$33,0) -> 0 | P97: =IF('MATRIX SP. PERIODICHE'!GZ71=1,'1) INPUT MUTUO'!$C$34,0) -> 0 | Q97: =IF('MATRIX SP. PERIODICHE'!IZ71=1,'1) INPUT MUTUO'!$C$35,0) -> 0 | R97: 30
A98: =IF($B$3="M",IF(FORMULE!$B$15="OK",EOMONTH('2) OUTPUT PIANO'!A97,1),EDATE('2) OUTPUT PIANO'!A97,1)),IF($B$3="T",IF(FORMULE!$B$15="OK",EOMONTH('2) OUTPUT PIANO'!A97,3),EDATE('2) OUTPUT PIANO'!A97,3)),IF($B$3="S",IF(FORMULE!$B$15="OK",EOMONTH('2) OUTPUT PIANO'!A97,6),EDATE('2) OUTPUT PIANO'!A97,6)),IF($B$3="A",+IF(FORMULE!$B$15="OK",EOMONTH('2) OUTPUT PIANO'!A97,12),EDATE('2) OUTPUT PIANO'!A97,12)),"ERRORE")))) -> 2015-10-01 | B98: =IF(B97=0,0,IF(B97+1<='1) INPUT MUTUO'!$D$10,'2) OUTPUT PIANO'!B97+1,0)) -> 69 | D98: =IF(B97=0,0,IF('1) INPUT MUTUO'!$D$7="FRANCESE",F98-E98,'2) OUTPUT PIANO'!$C$17/'1) INPUT MUTUO'!$D$10)) -> 1044.560498 | E98: =IF(B98=0,0,IF('1) INPUT MUTUO'!$D$13=360,L97*$C$3,L97*R98*FORMULE!$B$7)) -> 86.88541885 | F98: =IF(B98=0,0,IF('1) INPUT MUTUO'!$D$7="ITALIANO",'2) OUTPUT PIANO'!D98+'2) OUTPUT PIANO'!E98,IF(B98>'1) INPUT MUTUO'!$D$10,0,FORMULE!$B$13))) -> 1131.445917 | G98: =IF($B$7="SI",IF(F98=0,0,'1) INPUT MUTUO'!$D$19),0) -> 0 | I98: 0 | K98: -1131.445917 | L98: 33709.60704 | M98: =+IF('MATRIX SP. PERIODICHE'!AZ72=1,'1) INPUT MUTUO'!$C$31,0) -> 0 | N98: =+IF('MATRIX SP. PERIODICHE'!CZ72=1,'1) INPUT MUTUO'!$C$32,0) -> 0 | O98: =IF('MATRIX SP. PERIODICHE'!EZ72=1,'1) INPUT MUTUO'!$C$33,0) -> 0 | P98: =IF('MATRIX SP. PERIODICHE'!GZ72=1,'1) INPUT MUTUO'!$C$34,0) -> 0 | Q98: =IF('MATRIX SP. PERIODICHE'!IZ72=1,'1) INPUT MUTUO'!$C$35,0) -> 0 | R98: 31
A99: =IF($B$3="M",IF(FORMULE!$B$15="OK",EOMONTH('2) OUTPUT PIANO'!A98,1),EDATE('2) OUTPUT PIANO'!A98,1)),IF($B$3="T",IF(FORMULE!$B$15="OK",EOMONTH('2) OUTPUT PIANO'!A98,3),EDATE('2) OUTPUT PIANO'!A98,3)),IF($B$3="S",IF(FORMULE!$B$15="OK",EOMONTH('2) OUTPUT PIANO'!A98,6),EDATE('2) OUTPUT PIANO'!A98,6)),IF($B$3="A",+IF(FORMULE!$B$15="OK",EOMONTH('2) OUTPUT PIANO'!A98,12),EDATE('2) OUTPUT PIANO'!A98,12)),"ERRORE")))) -> 2015-11-01 | B99: =IF(B98=0,0,IF(B98+1<='1) INPUT MUTUO'!$D$10,'2) OUTPUT PIANO'!B98+1,0)) -> 70 | D99: =IF(B98=0,0,IF('1) INPUT MUTUO'!$D$7="FRANCESE",F99-E99,'2) OUTPUT PIANO'!$C$17/'1) INPUT MUTUO'!$D$10)) -> 1047.171899 | E99: =IF(B99=0,0,IF('1) INPUT MUTUO'!$D$13=360,L98*$C$3,L98*R99*FORMULE!$B$7)) -> 84.27401761 | F99: =IF(B99=0,0,IF('1) INPUT MUTUO'!$D$7="ITALIANO",'2) OUTPUT PIANO'!D99+'2) OUTPUT PIANO'!E99,IF(B99>'1) INPUT MUTUO'!$D$10,0,FORMULE!$B$13))) -> 1131.445917 | G99: =IF($B$7="SI",IF(F99=0,0,'1) INPUT MUTUO'!$D$19),0) -> 0 | I99: 0 | K99: -1131.445917 | L99: 32662.43514 | M99: =+IF('MATRIX SP. PERIODICHE'!AZ73=1,'1) INPUT MUTUO'!$C$31,0) -> 0 | N99: =+IF('MATRIX SP. PERIODICHE'!CZ73=1,'1) INPUT MUTUO'!$C$32,0) -> 0 | O99: =IF('MATRIX SP. PERIODICHE'!EZ73=1,'1) INPUT MUTUO'!$C$33,0) -> 0 | P99: =IF('MATRIX SP. PERIODICHE'!GZ73=1,'1) INPUT MUTUO'!$C$34,0) -> 0 | Q99: =IF('MATRIX SP. PERIODICHE'!IZ73=1,'1) INPUT MUTUO'!$C$35,0) -> 0 | R99: 30
A100: =IF($B$3="M",IF(FORMULE!$B$15="OK",EOMONTH('2) OUTPUT PIANO'!A99,1),EDATE('2) OUTPUT PIANO'!A99,1)),IF($B$3="T",IF(FORMULE!$B$15="OK",EOMONTH('2) OUTPUT PIANO'!A99,3),EDATE('2) OUTPUT PIANO'!A99,3)),IF($B$3="S",IF(FORMULE!$B$15="OK",EOMONTH('2) OUTPUT PIANO'!A99,6),EDATE('2) OUTPUT PIANO'!A99,6)),IF($B$3="A",+IF(FORMULE!$B$15="OK",EOMONTH('2) OUTPUT PIANO'!A99,12),EDATE('2) OUTPUT PIANO'!A99,12)),"ERRORE")))) -> 2015-12-01 | B100: =IF(B99=0,0,IF(B99+1<='1) INPUT MUTUO'!$D$10,'2) OUTPUT PIANO'!B99+1,0)) -> 71 | D100: =IF(B99=0,0,IF('1) INPUT MUTUO'!$D$7="FRANCESE",F100-E100,'2) OUTPUT PIANO'!$C$17/'1) INPUT MUTUO'!$D$10)) -> 1049.789829 | E100: =IF(B100=0,0,IF('1) INPUT MUTUO'!$D$13=360,L99*$C$3,L99*R100*FORMULE!$B$7)) -> 81.65608786 | F100: =IF(B100=0,0,IF('1) INPUT MUTUO'!$D$7="ITALIANO",'2) OUTPUT PIANO'!D100+'2) OUTPUT PIANO'!E100,IF(B100>'1) INPUT MUTUO'!$D$10,0,FORMULE!$B$13))) -> 1131.445917 | G100: =IF($B$7="SI",IF(F100=0,0,'1) INPUT MUTUO'!$D$19),0) -> 0 | I100: 0 | K100: -1131.445917 | L100: 31612.64532 | M100: =+IF('MATRIX SP. PERIODICHE'!AZ74=1,'1) INPUT MUTUO'!$C$31,0) -> 0 | N100: =+IF('MATRIX SP. PERIODICHE'!CZ74=1,'1) INPUT MUTUO'!$C$32,0) -> 0 | O100: =IF('MATRIX SP. PERIODICHE'!EZ74=1,'1) INPUT MUTUO'!$C$33,0) -> 0 | P100: =IF('MATRIX SP. PERIODICHE'!GZ74=1,'1) INPUT MUTUO'!$C$34,0) -> 0 | Q100: =IF('MATRIX SP. PERIODICHE'!IZ74=1,'1) INPUT MUTUO'!$C$35,0) -> 0 | R100: 31
A101: =IF($B$3="M",IF(FORMULE!$B$15="OK",EOMONTH('2) OUTPUT PIANO'!A100,1),EDATE('2) OUTPUT PIANO'!A100,1)),IF($B$3="T",IF(FORMULE!$B$15="OK",EOMONTH('2) OUTPUT PIANO'!A100,3),EDATE('2) OUTPUT PIANO'!A100,3)),IF($B$3="S",IF(FORMULE!$B$15="OK",EOMONTH('2) OUTPUT PIANO'!A100,6),EDATE('2) OUTPUT PIANO'!A100,6)),IF($B$3="A",+IF(FORMULE!$B$15="OK",EOMONTH('2) OUTPUT PIANO'!A100,12),EDATE('2) OUTPUT PIANO'!A100,12)),"ERRORE")))) -> 2016-01-01 | B101: =IF(B100=0,0,IF(B100+1<='1) INPUT MUTUO'!$D$10,'2) OUTPUT PIANO'!B100+1,0)) -> 72 | D101: =IF(B100=0,0,IF('1) INPUT MUTUO'!$D$7="FRANCESE",F101-E101,'2) OUTPUT PIANO'!$C$17/'1) INPUT MUTUO'!$D$10)) -> 1052.414303 | E101: =IF(B101=0,0,IF('1) INPUT MUTUO'!$D$13=360,L100*$C$3,L100*R101*FORMULE!$B$7)) -> 79.03161329 | F101: =IF(B101=0,0,IF('1) INPUT MUTUO'!$D$7="ITALIANO",'2) OUTPUT PIANO'!D101+'2) OUTPUT PIANO'!E101,IF(B101>'1) INPUT MUTUO'!$D$10,0,FORMULE!$B$13))) -> 1131.445917 | G101: =IF($B$7="SI",IF(F101=0,0,'1) INPUT MUTUO'!$D$19),0) -> 0 | I101: 0 | K101: -1131.445917 | L101: 30560.23101 | M101: =+IF('MATRIX SP. PERIODICHE'!AZ75=1,'1) INPUT MUTUO'!$C$31,0) -> 0 | N101: =+IF('MATRIX SP. PERIODICHE'!CZ75=1,'1) INPUT MUTUO'!$C$32,0) -> 0 | O101: =IF('MATRIX SP. PERIODICHE'!EZ75=1,'1) INPUT MUTUO'!$C$33,0) -> 0 | P101: =IF('MATRIX SP. PERIODICHE'!GZ75=1,'1) INPUT MUTUO'!$C$34,0) -> 0 | Q101: =IF('MATRIX SP. PERIODICHE'!IZ75=1,'1) INPUT MUTUO'!$C$35,0) -> 0 | R101: 31
A102: =IF($B$3="M",IF(FORMULE!$B$15="OK",EOMONTH('2) OUTPUT PIANO'!A101,1),EDATE('2) OUTPUT PIANO'!A101,1)),IF($B$3="T",IF(FORMULE!$B$15="OK",EOMONTH('2) OUTPUT PIANO'!A101,3),EDATE('2) OUTPUT PIANO'!A101,3)),IF($B$3="S",IF(FORMULE!$B$15="OK",EOMONTH('2) OUTPUT PIANO'!A101,6),EDATE('2) OUTPUT PIANO'!A101,6)),IF($B$3="A",+IF(FORMULE!$B$15="OK",EOMONTH('2) OUTPUT PIANO'!A101,12),EDATE('2) OUTPUT PIANO'!A101,12)),"ERRORE")))) -> 2016-02-01 | B102: =IF(B101=0,0,IF(B101+1<='1) INPUT MUTUO'!$D$10,'2) OUTPUT PIANO'!B101+1,0)) -> 73 | D102: =IF(B101=0,0,IF('1) INPUT MUTUO'!$D$7="FRANCESE",F102-E102,'2) OUTPUT PIANO'!$C$17/'1) INPUT MUTUO'!$D$10)) -> 1055.045339 | E102: =IF(B102=0,0,IF('1) INPUT MUTUO'!$D$13=360,L101*$C$3,L101*R102*FORMULE!$B$7)) -> 76.40057753 | F102: =IF(B102=0,0,IF('1) INPUT MUTUO'!$D$7="ITALIANO",'2) OUTPUT PIANO'!D102+'2) OUTPUT PIANO'!E102,IF(B102>'1) INPUT MUTUO'!$D$10,0,FORMULE!$B$13))) -> 1131.445917 | G102: =IF($B$7="SI",IF(F102=0,0,'1) INPUT MUTUO'!$D$19),0) -> 0 | I102: 0 | K102: -1131.445917 | L102: 29505.18567 | M102: =+IF('MATRIX SP. PERIODICHE'!AZ76=1,'1) INPUT MUTUO'!$C$31,0) -> 0 | N102: =+IF('MATRIX SP. PERIODICHE'!CZ76=1,'1) INPUT MUTUO'!$C$32,0) -> 0 | O102: =IF('MATRIX SP. PERIODICHE'!EZ76=1,'1) INPUT MUTUO'!$C$33,0) -> 0 | P102: =IF('MATRIX SP. PERIODICHE'!GZ76=1,'1) INPUT MUTUO'!$C$34,0) -> 0 | Q102: =IF('MATRIX SP. PERIODICHE'!IZ76=1,'1) INPUT MUTUO'!$C$35,0) -> 0 | R102: 29
A103: =IF($B$3="M",IF(FORMULE!$B$15="OK",EOMONTH('2) OUTPUT PIANO'!A102,1),EDATE('2) OUTPUT PIANO'!A102,1)),IF($B$3="T",IF(FORMULE!$B$15="OK",EOMONTH('2) OUTPUT PIANO'!A102,3),EDATE('2) OUTPUT PIANO'!A102,3)),IF($B$3="S",IF(FORMULE!$B$15="OK",EOMONTH('2) OUTPUT PIANO'!A102,6),EDATE('2) OUTPUT PIANO'!A102,6)),IF($B$3="A",+IF(FORMULE!$B$15="OK",EOMONTH('2) OUTPUT PIANO'!A102,12),EDATE('2) OUTPUT PIANO'!A102,12)),"ERRORE")))) -> 2016-03-01 | B103: =IF(B102=0,0,IF(B102+1<='1) INPUT MUTUO'!$D$10,'2) OUTPUT PIANO'!B102+1,0)) -> 74 | D103: =IF(B102=0,0,IF('1) INPUT MUTUO'!$D$7="FRANCESE",F103-E103,'2) OUTPUT PIANO'!$C$17/'1) INPUT MUTUO'!$D$10)) -> 1057.682952 | E103: =IF(B103=0,0,IF('1) INPUT MUTUO'!$D$13=360,L102*$C$3,L102*R103*FORMULE!$B$7)) -> 73.76296418 | F103: =IF(B103=0,0,IF('1) INPUT MUTUO'!$D$7="ITALIANO",'2) OUTPUT PIANO'!D103+'2) OUTPUT PIANO'!E103,IF(B103>'1) INPUT MUTUO'!$D$10,0,FORMULE!$B$13))) -> 1131.445917 | G103: =IF($B$7="SI",IF(F103=0,0,'1) INPUT MUTUO'!$D$19),0) -> 0 | I103: 0 | K103: -1131.445917 | L103: 28447.50272 | M103: =+IF('MATRIX SP. PERIODICHE'!AZ77=1,'1) INPUT MUTUO'!$C$31,0) -> 0 | N103: =+IF('MATRIX SP. PERIODICHE'!CZ77=1,'1) INPUT MUTUO'!$C$32,0) -> 0 | O103: =IF('MATRIX SP. PERIODICHE'!EZ77=1,'1) INPUT MUTUO'!$C$33,0) -> 0 | P103: =IF('MATRIX SP. PERIODICHE'!GZ77=1,'1) INPUT MUTUO'!$C$34,0) -> 0 | Q103: =IF('MATRIX SP. PERIODICHE'!IZ77=1,'1) INPUT MUTUO'!$C$35,0) -> 0 | R103: 31
A104: =IF($B$3="M",IF(FORMULE!$B$15="OK",EOMONTH('2) OUTPUT PIANO'!A103,1),EDATE('2) OUTPUT PIANO'!A103,1)),IF($B$3="T",IF(FORMULE!$B$15="OK",EOMONTH('2) OUTPUT PIANO'!A103,3),EDATE('2) OUTPUT PIANO'!A103,3)),IF($B$3="S",IF(FORMULE!$B$15="OK",EOMONTH('2) OUTPUT PIANO'!A103,6),EDATE('2) OUTPUT PIANO'!A103,6)),IF($B$3="A",+IF(FORMULE!$B$15="OK",EOMONTH('2) OUTPUT PIANO'!A103,12),EDATE('2) OUTPUT PIANO'!A103,12)),"ERRORE")))) -> 2016-04-01 | B104: =IF(B103=0,0,IF(B103+1<='1) INPUT MUTUO'!$D$10,'2) OUTPUT PIANO'!B103+1,0)) -> 75 | D104: =IF(B103=0,0,IF('1) INPUT MUTUO'!$D$7="FRANCESE",F104-E104,'2) OUTPUT PIANO'!$C$17/'1) INPUT MUTUO'!$D$10)) -> 1060.32716 | E104: =IF(B104=0,0,IF('1) INPUT MUTUO'!$D$13=360,L103*$C$3,L103*R104*FORMULE!$B$7)) -> 71.1187568 | F104: =IF(B104=0,0,IF('1) INPUT MUTUO'!$D$7="ITALIANO",'2) OUTPUT PIANO'!D104+'2) OUTPUT PIANO'!E104,IF(B104>'1) INPUT MUTUO'!$D$10,0,FORMULE!$B$13))) -> 1131.445917 | G104: =IF($B$7="SI",IF(F104=0,0,'1) INPUT MUTUO'!$D$19),0) -> 0 | I104: 0 | K104: -1131.445917 | L104: 27387.17556 | M104: =+IF('MATRIX SP. PERIODICHE'!AZ78=1,'1) INPUT MUTUO'!$C$31,0) -> 0 | N104: =+IF('MATRIX SP. PERIODICHE'!CZ78=1,'1) INPUT MUTUO'!$C$32,0) -> 0 | O104: =IF('MATRIX SP. PERIODICHE'!EZ78=1,'1) INPUT MUTUO'!$C$33,0) -> 0 | P104: =IF('MATRIX SP. PERIODICHE'!GZ78=1,'1) INPUT MUTUO'!$C$34,0) -> 0 | Q104: =IF('MATRIX SP. PERIODICHE'!IZ78=1,'1) INPUT MUTUO'!$C$35,0) -> 0 | R104: 30
A105: =IF($B$3="M",IF(FORMULE!$B$15="OK",EOMONTH('2) OUTPUT PIANO'!A104,1),EDATE('2) OUTPUT PIANO'!A104,1)),IF($B$3="T",IF(FORMULE!$B$15="OK",EOMONTH('2) OUTPUT PIANO'!A104,3),EDATE('2) OUTPUT PIANO'!A104,3)),IF($B$3="S",IF(FORMULE!$B$15="OK",EOMONTH('2) OUTPUT PIANO'!A104,6),EDATE('2) OUTPUT PIANO'!A104,6)),IF($B$3="A",+IF(FORMULE!$B$15="OK",EOMONTH('2) OUTPUT PIANO'!A104,12),EDATE('2) OUTPUT PIANO'!A104,12)),"ERRORE")))) -> 2016-05-01 | B105: =IF(B104=0,0,IF(B104+1<='1) INPUT MUTUO'!$D$10,'2) OUTPUT PIANO'!B104+1,0)) -> 76 | D105: =IF(B104=0,0,IF('1) INPUT MUTUO'!$D$7="FRANCESE",F105-E105,'2) OUTPUT PIANO'!$C$17/'1) INPUT MUTUO'!$D$10)) -> 1062.977978 | E105: =IF(B105=0,0,IF('1) INPUT MUTUO'!$D$13=360,L104*$C$3,L104*R105*FORMULE!$B$7)) -> 68.4679389 | F105: =IF(B105=0,0,IF('1) INPUT MUTUO'!$D$7="ITALIANO",'2) OUTPUT PIANO'!D105+'2) OUTPUT PIANO'!E105,IF(B105>'1) INPUT MUTUO'!$D$10,0,FORMULE!$B$13))) -> 1131.445917 | G105: =IF($B$7="SI",IF(F105=0,0,'1) INPUT MUTUO'!$D$19),0) -> 0 | I105: 0 | K105: -1131.445917 | L105: 26324.19758 | M105: =+IF('MATRIX SP. PERIODICHE'!AZ79=1,'1) INPUT MUTUO'!$C$31,0) -> 0 | N105: =+IF('MATRIX SP. PERIODICHE'!CZ79=1,'1) INPUT MUTUO'!$C$32,0) -> 0 | O105: =IF('MATRIX SP. PERIODICHE'!EZ79=1,'1) INPUT MUTUO'!$C$33,0) -> 0 | P105: =IF('MATRIX SP. PERIODICHE'!GZ79=1,'1) INPUT MUTUO'!$C$34,0) -> 0 | Q105: =IF('MATRIX SP. PERIODICHE'!IZ79=1,'1) INPUT MUTUO'!$C$35,0) -> 0 | R105: 31
A106: =IF($B$3="M",IF(FORMULE!$B$15="OK",EOMONTH('2) OUTPUT PIANO'!A105,1),EDATE('2) OUTPUT PIANO'!A105,1)),IF($B$3="T",IF(FORMULE!$B$15="OK",EOMONTH('2) OUTPUT PIANO'!A105,3),EDATE('2) OUTPUT PIANO'!A105,3)),IF($B$3="S",IF(FORMULE!$B$15="OK",EOMONTH('2) OUTPUT PIANO'!A105,6),EDATE('2) OUTPUT PIANO'!A105,6)),IF($B$3="A",+IF(FORMULE!$B$15="OK",EOMONTH('2) OUTPUT PIANO'!A105,12),EDATE('2) OUTPUT PIANO'!A105,12)),"ERRORE")))) -> 2016-06-01 | B106: =IF(B105=0,0,IF(B105+1<='1) INPUT MUTUO'!$D$10,'2) OUTPUT PIANO'!B105+1,0)) -> 77 | D106: =IF(B105=0,0,IF('1) INPUT MUTUO'!$D$7="FRANCESE",F106-E106,'2) OUTPUT PIANO'!$C$17/'1) INPUT MUTUO'!$D$10)) -> 1065.635423 | E106: =IF(B106=0,0,IF('1) INPUT MUTUO'!$D$13=360,L105*$C$3,L105*R106*FORMULE!$B$7)) -> 65.81049396 | F106: =IF(B106=0,0,IF('1) INPUT MUTUO'!$D$7="ITALIANO",'2) OUTPUT PIANO'!D106+'2) OUTPUT PIANO'!E106,IF(B106>'1) INPUT MUTUO'!$D$10,0,FORMULE!$B$13))) -> 1131.445917 | G106: =IF($B$7="SI",IF(F106=0,0,'1) INPUT MUTUO'!$D$19),0) -> 0 | I106: 0 | K106: -1131.445917 | L106: 25258.56216 | M106: =+IF('MATRIX SP. PERIODICHE'!AZ80=1,'1) INPUT MUTUO'!$C$31,0) -> 0 | N106: =+IF('MATRIX SP. PERIODICHE'!CZ80=1,'1) INPUT MUTUO'!$C$32,0) -> 0 | O106: =IF('MATRIX SP. PERIODICHE'!EZ80=1,'1) INPUT MUTUO'!$C$33,0) -> 0 | P106: =IF('MATRIX SP. PERIODICHE'!GZ80=1,'1) INPUT MUTUO'!$C$34,0) -> 0 | Q106: =IF('MATRIX SP. PERIODICHE'!IZ80=1,'1) INPUT MUTUO'!$C$35,0) -> 0 | R106: 30
A107: =IF($B$3="M",IF(FORMULE!$B$15="OK",EOMONTH('2) OUTPUT PIANO'!A106,1),EDATE('2) OUTPUT PIANO'!A106,1)),IF($B$3="T",IF(FORMULE!$B$15="OK",EOMONTH('2) OUTPUT PIANO'!A106,3),EDATE('2) OUTPUT PIANO'!A106,3)),IF($B$3="S",IF(FORMULE!$B$15="OK",EOMONTH('2) OUTPUT PIANO'!A106,6),EDATE('2) OUTPUT PIANO'!A106,6)),IF($B$3="A",+IF(FORMULE!$B$15="OK",EOMONTH('2) OUTPUT PIANO'!A106,12),EDATE('2) OUTPUT PIANO'!A106,12)),"ERRORE")))) -> 2016-07-01 | B107: =IF(B106=0,0,IF(B106+1<='1) INPUT MUTUO'!$D$10,'2) OUTPUT PIANO'!B106+1,0)) -> 78 | D107: =IF(B106=0,0,IF('1) INPUT MUTUO'!$D$7="FRANCESE",F107-E107,'2) OUTPUT PIANO'!$C$17/'1) INPUT MUTUO'!$D$10)) -> 1068.299511 | E107: =IF(B107=0,0,IF('1) INPUT MUTUO'!$D$13=360,L106*$C$3,L106*R107*FORMULE!$B$7)) -> 63.1464054 | F107: =IF(B107=0,0,IF('1) INPUT MUTUO'!$D$7="ITALIANO",'2) OUTPUT PIANO'!D107+'2) OUTPUT PIANO'!E107,IF(B107>'1) INPUT MUTUO'!$D$10,0,FORMULE!$B$13))) -> 1131.445917 | G107: =IF($B$7="SI",IF(F107=0,0,'1) INPUT MUTUO'!$D$19),0) -> 0 | I107: 0 | K107: -1131.445917 | L107: 24190.26265 | M107: =+IF('MATRIX SP. PERIODICHE'!AZ81=1,'1) INPUT MUTUO'!$C$31,0) -> 0 | N107: =+IF('MATRIX SP. PERIODICHE'!CZ81=1,'1) INPUT MUTUO'!$C$32,0) -> 0 | O107: =IF('MATRIX SP. PERIODICHE'!EZ81=1,'1) INPUT MUTUO'!$C$33,0) -> 0 | P107: =IF('MATRIX SP. PERIODICHE'!GZ81=1,'1) INPUT MUTUO'!$C$34,0) -> 0 | Q107: =IF('MATRIX SP. PERIODICHE'!IZ81=1,'1) INPUT MUTUO'!$C$35,0) -> 0 | R107: 31
A108: =IF($B$3="M",IF(FORMULE!$B$15="OK",EOMONTH('2) OUTPUT PIANO'!A107,1),EDATE('2) OUTPUT PIANO'!A107,1)),IF($B$3="T",IF(FORMULE!$B$15="OK",EOMONTH('2) OUTPUT PIANO'!A107,3),EDATE('2) OUTPUT PIANO'!A107,3)),IF($B$3="S",IF(FORMULE!$B$15="OK",EOMONTH('2) OUTPUT PIANO'!A107,6),EDATE('2) OUTPUT PIANO'!A107,6)),IF($B$3="A",+IF(FORMULE!$B$15="OK",EOMONTH('2) OUTPUT PIANO'!A107,12),EDATE('2) OUTPUT PIANO'!A107,12)),"ERRORE")))) -> 2016-08-01 | B108: =IF(B107=0,0,IF(B107+1<='1) INPUT MUTUO'!$D$10,'2) OUTPUT PIANO'!B107+1,0)) -> 79 | D108: =IF(B107=0,0,IF('1) INPUT MUTUO'!$D$7="FRANCESE",F108-E108,'2) OUTPUT PIANO'!$C$17/'1) INPUT MUTUO'!$D$10)) -> 1070.97026 | E108: =IF(B108=0,0,IF('1) INPUT MUTUO'!$D$13=360,L107*$C$3,L107*R108*FORMULE!$B$7)) -> 60.47565662 | F108: =IF(B108=0,0,IF('1) INPUT MUTUO'!$D$7="ITALIANO",'2) OUTPUT PIANO'!D108+'2) OUTPUT PIANO'!E108,IF(B108>'1) INPUT MUTUO'!$D$10,0,FORMULE!$B$13))) -> 1131.445917 | G108: =IF($B$7="SI",IF(F108=0,0,'1) INPUT MUTUO'!$D$19),0) -> 0 | I108: 0 | K108: -1131.445917 | L108: 23119.29239 | M108: =+IF('MATRIX SP. PERIODICHE'!AZ82=1,'1) INPUT MUTUO'!$C$31,0) -> 0 | N108: =+IF('MATRIX SP. PERIODICHE'!CZ82=1,'1) INPUT MUTUO'!$C$32,0) -> 0 | O108: =IF('MATRIX SP. PERIODICHE'!EZ82=1,'1) INPUT MUTUO'!$C$33,0) -> 0 | P108: =IF('MATRIX SP. PERIODICHE'!GZ82=1,'1) INPUT MUTUO'!$C$34,0) -> 0 | Q108: =IF('MATRIX SP. PERIODICHE'!IZ82=1,'1) INPUT MUTUO'!$C$35,0) -> 0 | R108: 31
A109: =IF($B$3="M",IF(FORMULE!$B$15="OK",EOMONTH('2) OUTPUT PIANO'!A108,1),EDATE('2) OUTPUT PIANO'!A108,1)),IF($B$3="T",IF(FORMULE!$B$15="OK",EOMONTH('2) OUTPUT PIANO'!A108,3),EDATE('2) OUTPUT PIANO'!A108,3)),IF($B$3="S",IF(FORMULE!$B$15="OK",EOMONTH('2) OUTPUT PIANO'!A108,6),EDATE('2) OUTPUT PIANO'!A108,6)),IF($B$3="A",+IF(FORMULE!$B$15="OK",EOMONTH('2) OUTPUT PIANO'!A108,12),EDATE('2) OUTPUT PIANO'!A108,12)),"ERRORE")))) -> 2016-09-01 | B109: =IF(B108=0,0,IF(B108+1<='1) INPUT MUTUO'!$D$10,'2) OUTPUT PIANO'!B108+1,0)) -> 80 | D109: =IF(B108=0,0,IF('1) INPUT MUTUO'!$D$7="FRANCESE",F109-E109,'2) OUTPUT PIANO'!$C$17/'1) INPUT MUTUO'!$D$10)) -> 1073.647686 | E109: =IF(B109=0,0,IF('1) INPUT MUTUO'!$D$13=360,L108*$C$3,L108*R109*FORMULE!$B$7)) -> 57.79823097 | F109: =IF(B109=0,0,IF('1) INPUT MUTUO'!$D$7="ITALIANO",'2) OUTPUT PIANO'!D109+'2) OUTPUT PIANO'!E109,IF(B109>'1) INPUT MUTUO'!$D$10,0,FORMULE!$B$13))) -> 1131.445917 | G109: =IF($B$7="SI",IF(F109=0,0,'1) INPUT MUTUO'!$D$19),0) -> 0 | I109: 0 | K109: -1131.445917 | L109: 22045.6447 | M109: =+IF('MATRIX SP. PERIODICHE'!AZ83=1,'1) INPUT MUTUO'!$C$31,0) -> 0 | N109: =+IF('MATRIX SP. PERIODICHE'!CZ83=1,'1) INPUT MUTUO'!$C$32,0) -> 0 | O109: =IF('MATRIX SP. PERIODICHE'!EZ83=1,'1) INPUT MUTUO'!$C$33,0) -> 0 | P109: =IF('MATRIX SP. PERIODICHE'!GZ83=1,'1) INPUT MUTUO'!$C$34,0) -> 0 | Q109: =IF('MATRIX SP. PERIODICHE'!IZ83=1,'1) INPUT MUTUO'!$C$35,0) -> 0 | R109: 30
A110: =IF($B$3="M",IF(FORMULE!$B$15="OK",EOMONTH('2) OUTPUT PIANO'!A109,1),EDATE('2) OUTPUT PIANO'!A109,1)),IF($B$3="T",IF(FORMULE!$B$15="OK",EOMONTH('2) OUTPUT PIANO'!A109,3),EDATE('2) OUTPUT PIANO'!A109,3)),IF($B$3="S",IF(FORMULE!$B$15="OK",EOMONTH('2) OUTPUT PIANO'!A109,6),EDATE('2) OUTPUT PIANO'!A109,6)),IF($B$3="A",+IF(FORMULE!$B$15="OK",EOMONTH('2) OUTPUT PIANO'!A109,12),EDATE('2) OUTPUT PIANO'!A109,12)),"ERRORE")))) -> 2016-10-01 | B110: =IF(B109=0,0,IF(B109+1<='1) INPUT MUTUO'!$D$10,'2) OUTPUT PIANO'!B109+1,0)) -> 81 | D110: =IF(B109=0,0,IF('1) INPUT MUTUO'!$D$7="FRANCESE",F110-E110,'2) OUTPUT PIANO'!$C$17/'1) INPUT MUTUO'!$D$10)) -> 1076.331805 | E110: =IF(B110=0,0,IF('1) INPUT MUTUO'!$D$13=360,L109*$C$3,L109*R110*FORMULE!$B$7)) -> 55.11411176 | F110: =IF(B110=0,0,IF('1) INPUT MUTUO'!$D$7="ITALIANO",'2) OUTPUT PIANO'!D110+'2) OUTPUT PIANO'!E110,IF(B110>'1) INPUT MUTUO'!$D$10,0,FORMULE!$B$13))) -> 1131.445917 | G110: =IF($B$7="SI",IF(F110=0,0,'1) INPUT MUTUO'!$D$19),0) -> 0 | I110: 0 | K110: -1131.445917 | L110: 20969.3129 | M110: =+IF('MATRIX SP. PERIODICHE'!AZ84=1,'1) INPUT MUTUO'!$C$31,0) -> 0 | N110: =+IF('MATRIX SP. PERIODICHE'!CZ84=1,'1) INPUT MUTUO'!$C$32,0) -> 0 | O110: =IF('MATRIX SP. PERIODICHE'!EZ84=1,'1) INPUT MUTUO'!$C$33,0) -> 0 | P110: =IF('MATRIX SP. PERIODICHE'!GZ84=1,'1) INPUT MUTUO'!$C$34,0) -> 0 | Q110: =IF('MATRIX SP. PERIODICHE'!IZ84=1,'1) INPUT MUTUO'!$C$35,0) -> 0 | R110: 31
A111: =IF($B$3="M",IF(FORMULE!$B$15="OK",EOMONTH('2) OUTPUT PIANO'!A110,1),EDATE('2) OUTPUT PIANO'!A110,1)),IF($B$3="T",IF(FORMULE!$B$15="OK",EOMONTH('2) OUTPUT PIANO'!A110,3),EDATE('2) OUTPUT PIANO'!A110,3)),IF($B$3="S",IF(FORMULE!$B$15="OK",EOMONTH('2) OUTPUT PIANO'!A110,6),EDATE('2) OUTPUT PIANO'!A110,6)),IF($B$3="A",+IF(FORMULE!$B$15="OK",EOMONTH('2) OUTPUT PIANO'!A110,12),EDATE('2) OUTPUT PIANO'!A110,12)),"ERRORE")))) -> 2016-11-01 | B111: =IF(B110=0,0,IF(B110+1<='1) INPUT MUTUO'!$D$10,'2) OUTPUT PIANO'!B110+1,0)) -> 82 | D111: =IF(B110=0,0,IF('1) INPUT MUTUO'!$D$7="FRANCESE",F111-E111,'2) OUTPUT PIANO'!$C$17/'1) INPUT MUTUO'!$D$10)) -> 1079.022634 | E111: =IF(B111=0,0,IF('1) INPUT MUTUO'!$D$13=360,L110*$C$3,L110*R111*FORMULE!$B$7)) -> 52.42328225 | F111: =IF(B111=0,0,IF('1) INPUT MUTUO'!$D$7="ITALIANO",'2) OUTPUT PIANO'!D111+'2) OUTPUT PIANO'!E111,IF(B111>'1) INPUT MUTUO'!$D$10,0,FORMULE!$B$13))) -> 1131.445917 | G111: =IF($B$7="SI",IF(F111=0,0,'1) INPUT MUTUO'!$D$19),0) -> 0 | I111: 0 | K111: -1131.445917 | L111: 19890.29027 | M111: =+IF('MATRIX SP. PERIODICHE'!AZ85=1,'1) INPUT MUTUO'!$C$31,0) -> 0 | N111: =+IF('MATRIX SP. PERIODICHE'!CZ85=1,'1) INPUT MUTUO'!$C$32,0) -> 0 | O111: =IF('MATRIX SP. PERIODICHE'!EZ85=1,'1) INPUT MUTUO'!$C$33,0) -> 0 | P111: =IF('MATRIX SP. PERIODICHE'!GZ85=1,'1) INPUT MUTUO'!$C$34,0) -> 0 | Q111: =IF('MATRIX SP. PERIODICHE'!IZ85=1,'1) INPUT MUTUO'!$C$35,0) -> 0 | R111: 30
A112: =IF($B$3="M",IF(FORMULE!$B$15="OK",EOMONTH('2) OUTPUT PIANO'!A111,1),EDATE('2) OUTPUT PIANO'!A111,1)),IF($B$3="T",IF(FORMULE!$B$15="OK",EOMONTH('2) OUTPUT PIANO'!A111,3),EDATE('2) OUTPUT PIANO'!A111,3)),IF($B$3="S",IF(FORMULE!$B$15="OK",EOMONTH('2) OUTPUT PIANO'!A111,6),EDATE('2) OUTPUT PIANO'!A111,6)),IF($B$3="A",+IF(FORMULE!$B$15="OK",EOMONTH('2) OUTPUT PIANO'!A111,12),EDATE('2) OUTPUT PIANO'!A111,12)),"ERRORE")))) -> 2016-12-01 | B112: =IF(B111=0,0,IF(B111+1<='1) INPUT MUTUO'!$D$10,'2) OUTPUT PIANO'!B111+1,0)) -> 83 | D112: =IF(B111=0,0,IF('1) INPUT MUTUO'!$D$7="FRANCESE",F112-E112,'2) OUTPUT PIANO'!$C$17/'1) INPUT MUTUO'!$D$10)) -> 1081.720191 | E112: =IF(B112=0,0,IF('1) INPUT MUTUO'!$D$13=360,L111*$C$3,L111*R112*FORMULE!$B$7)) -> 49.72572566 | F112: =IF(B112=0,0,IF('1) INPUT MUTUO'!$D$7="ITALIANO",'2) OUTPUT PIANO'!D112+'2) OUTPUT PIANO'!E112,IF(B112>'1) INPUT MUTUO'!$D$10,0,FORMULE!$B$13))) -> 1131.445917 | G112: =IF($B$7="SI",IF(F112=0,0,'1) INPUT MUTUO'!$D$19),0) -> 0 | I112: 0 | K112: -1131.445917 | L112: 18808.57007 | M112: =+IF('MATRIX SP. PERIODICHE'!AZ86=1,'1) INPUT MUTUO'!$C$31,0) -> 0 | N112: =+IF('MATRIX SP. PERIODICHE'!CZ86=1,'1) INPUT MUTUO'!$C$32,0) -> 0 | O112: =IF('MATRIX SP. PERIODICHE'!EZ86=1,'1) INPUT MUTUO'!$C$33,0) -> 0 | P112: =IF('MATRIX SP. PERIODICHE'!GZ86=1,'1) INPUT MUTUO'!$C$34,0) -> 0 | Q112: =IF('MATRIX SP. PERIODICHE'!IZ86=1,'1) INPUT MUTUO'!$C$35,0) -> 0 | R112: 31
A113: =IF($B$3="M",IF(FORMULE!$B$15="OK",EOMONTH('2) OUTPUT PIANO'!A112,1),EDATE('2) OUTPUT PIANO'!A112,1)),IF($B$3="T",IF(FORMULE!$B$15="OK",EOMONTH('2) OUTPUT PIANO'!A112,3),EDATE('2) OUTPUT PIANO'!A112,3)),IF($B$3="S",IF(FORMULE!$B$15="OK",EOMONTH('2) OUTPUT PIANO'!A112,6),EDATE('2) OUTPUT PIANO'!A112,6)),IF($B$3="A",+IF(FORMULE!$B$15="OK",EOMONTH('2) OUTPUT PIANO'!A112,12),EDATE('2) OUTPUT PIANO'!A112,12)),"ERRORE")))) -> 2017-01-01 | B113: =IF(B112=0,0,IF(B112+1<='1) INPUT MUTUO'!$D$10,'2) OUTPUT PIANO'!B112+1,0)) -> 84 | D113: =IF(B112=0,0,IF('1) INPUT MUTUO'!$D$7="FRANCESE",F113-E113,'2) OUTPUT PIANO'!$C$17/'1) INPUT MUTUO'!$D$10)) -> 1084.424491 | E113: =IF(B113=0,0,IF('1) INPUT MUTUO'!$D$13=360,L112*$C$3,L112*R113*FORMULE!$B$7)) -> 47.02142519 | F113: =IF(B113=0,0,IF('1) INPUT MUTUO'!$D$7="ITALIANO",'2) OUTPUT PIANO'!D113+'2) OUTPUT PIANO'!E113,IF(B113>'1) INPUT MUTUO'!$D$10,0,FORMULE!$B$13))) -> 1131.445917 | G113: =IF($B$7="SI",IF(F113=0,0,'1) INPUT MUTUO'!$D$19),0) -> 0 | I113: 0 | K113: -1131.445917 | L113: 17724.14558 | M113: =+IF('MATRIX SP. PERIODICHE'!AZ87=1,'1) INPUT MUTUO'!$C$31,0) -> 0 | N113: =+IF('MATRIX SP. PERIODICHE'!CZ87=1,'1) INPUT MUTUO'!$C$32,0) -> 0 | O113: =IF('MATRIX SP. PERIODICHE'!EZ87=1,'1) INPUT MUTUO'!$C$33,0) -> 0 | P113: =IF('MATRIX SP. PERIODICHE'!GZ87=1,'1) INPUT MUTUO'!$C$34,0) -> 0 | Q113: =IF('MATRIX SP. PERIODICHE'!IZ87=1,'1) INPUT MUTUO'!$C$35,0) -> 0 | R113: 31
A114: =IF($B$3="M",IF(FORMULE!$B$15="OK",EOMONTH('2) OUTPUT PIANO'!A113,1),EDATE('2) OUTPUT PIANO'!A113,1)),IF($B$3="T",IF(FORMULE!$B$15="OK",EOMONTH('2) OUTPUT PIANO'!A113,3),EDATE('2) OUTPUT PIANO'!A113,3)),IF($B$3="S",IF(FORMULE!$B$15="OK",EOMONTH('2) OUTPUT PIANO'!A113,6),EDATE('2) OUTPUT PIANO'!A113,6)),IF($B$3="A",+IF(FORMULE!$B$15="OK",EOMONTH('2) OUTPUT PIANO'!A113,12),EDATE('2) OUTPUT PIANO'!A113,12)),"ERRORE")))) -> 2017-02-01 | B114: =IF(B113=0,0,IF(B113+1<='1) INPUT MUTUO'!$D$10,'2) OUTPUT PIANO'!B113+1,0)) -> 85 | D114: =IF(B113=0,0,IF('1) INPUT MUTUO'!$D$7="FRANCESE",F114-E114,'2) OUTPUT PIANO'!$C$17/'1) INPUT MUTUO'!$D$10)) -> 1087.135553 | E114: =IF(B114=0,0,IF('1) INPUT MUTUO'!$D$13=360,L113*$C$3,L113*R114*FORMULE!$B$7)) -> 44.31036396 | F114: =IF(B114=0,0,IF('1) INPUT MUTUO'!$D$7="ITALIANO",'2) OUTPUT PIANO'!D114+'2) OUTPUT PIANO'!E114,IF(B114>'1) INPUT MUTUO'!$D$10,0,FORMULE!$B$13))) -> 1131.445917 | G114: =IF($B$7="SI",IF(F114=0,0,'1) INPUT MUTUO'!$D$19),0) -> 0 | I114: 0 | K114: -1131.445917 | L114: 16637.01003 | M114: =+IF('MATRIX SP. PERIODICHE'!AZ88=1,'1) INPUT MUTUO'!$C$31,0) -> 0 | N114: =+IF('MATRIX SP. PERIODICHE'!CZ88=1,'1) INPUT MUTUO'!$C$32,0) -> 0 | O114: =IF('MATRIX SP. PERIODICHE'!EZ88=1,'1) INPUT MUTUO'!$C$33,0) -> 0 | P114: =IF('MATRIX SP. PERIODICHE'!GZ88=1,'1) INPUT MUTUO'!$C$34,0) -> 0 | Q114: =IF('MATRIX SP. PERIODICHE'!IZ88=1,'1) INPUT MUTUO'!$C$35,0) -> 0 | R114: 28
A115: =IF($B$3="M",IF(FORMULE!$B$15="OK",EOMONTH('2) OUTPUT PIANO'!A114,1),EDATE('2) OUTPUT PIANO'!A114,1)),IF($B$3="T",IF(FORMULE!$B$15="OK",EOMONTH('2) OUTPUT PIANO'!A114,3),EDATE('2) OUTPUT PIANO'!A114,3)),IF($B$3="S",IF(FORMULE!$B$15="OK",EOMONTH('2) OUTPUT PIANO'!A114,6),EDATE('2) OUTPUT PIANO'!A114,6)),IF($B$3="A",+IF(FORMULE!$B$15="OK",EOMONTH('2) OUTPUT PIANO'!A114,12),EDATE('2) OUTPUT PIANO'!A114,12)),"ERRORE")))) -> 2017-03-01 | B115: =IF(B114=0,0,IF(B114+1<='1) INPUT MUTUO'!$D$10,'2) OUTPUT PIANO'!B114+1,0)) -> 86 | D115: =IF(B114=0,0,IF('1) INPUT MUTUO'!$D$7="FRANCESE",F115-E115,'2) OUTPUT PIANO'!$C$17/'1) INPUT MUTUO'!$D$10)) -> 1089.853391 | E115: =IF(B115=0,0,IF('1) INPUT MUTUO'!$D$13=360,L114*$C$3,L114*R115*FORMULE!$B$7)) -> 41.59252508 | F115: =IF(B115=0,0,IF('1) INPUT MUTUO'!$D$7="ITALIANO",'2) OUTPUT PIANO'!D115+'2) OUTPUT PIANO'!E115,IF(B115>'1) INPUT MUTUO'!$D$10,0,FORMULE!$B$13))) -> 1131.445917 | G115: =IF($B$7="SI",IF(F115=0,0,'1) INPUT MUTUO'!$D$19),0) -> 0 | I115: 0 | K115: -1131.445917 | L115: 15547.15664 | M115: =+IF('MATRIX SP. PERIODICHE'!AZ89=1,'1) INPUT MUTUO'!$C$31,0) -> 0 | N115: =+IF('MATRIX SP. PERIODICHE'!CZ89=1,'1) INPUT MUTUO'!$C$32,0) -> 0 | O115: =IF('MATRIX SP. PERIODICHE'!EZ89=1,'1) INPUT MUTUO'!$C$33,0) -> 0 | P115: =IF('MATRIX SP. PERIODICHE'!GZ89=1,'1) INPUT MUTUO'!$C$34,0) -> 0 | Q115: =IF('MATRIX SP. PERIODICHE'!IZ89=1,'1) INPUT MUTUO'!$C$35,0) -> 0 | R115: 31
A116: =IF($B$3="M",IF(FORMULE!$B$15="OK",EOMONTH('2) OUTPUT PIANO'!A115,1),EDATE('2) OUTPUT PIANO'!A115,1)),IF($B$3="T",IF(FORMULE!$B$15="OK",EOMONTH('2) OUTPUT PIANO'!A115,3),EDATE('2) OUTPUT PIANO'!A115,3)),IF($B$3="S",IF(FORMULE!$B$15="OK",EOMONTH('2) OUTPUT PIANO'!A115,6),EDATE('2) OUTPUT PIANO'!A115,6)),IF($B$3="A",+IF(FORMULE!$B$15="OK",EOMONTH('2) OUTPUT PIANO'!A115,12),EDATE('2) OUTPUT PIANO'!A115,12)),"ERRORE")))) -> 2017-04-01 | B116: =IF(B115=0,0,IF(B115+1<='1) INPUT MUTUO'!$D$10,'2) OUTPUT PIANO'!B115+1,0)) -> 87 | D116: =IF(B115=0,0,IF('1) INPUT MUTUO'!$D$7="FRANCESE",F116-E116,'2) OUTPUT PIANO'!$C$17/'1) INPUT MUTUO'!$D$10)) -> 1092.578025 | E116: =IF(B116=0,0,IF('1) INPUT MUTUO'!$D$13=360,L115*$C$3,L115*R116*FORMULE!$B$7)) -> 38.8678916 | F116: =IF(B116=0,0,IF('1) INPUT MUTUO'!$D$7="ITALIANO",'2) OUTPUT PIANO'!D116+'2) OUTPUT PIANO'!E116,IF(B116>'1) INPUT MUTUO'!$D$10,0,FORMULE!$B$13))) -> 1131.445917 | G116: =IF($B$7="SI",IF(F116=0,0,'1) INPUT MUTUO'!$D$19),0) -> 0 | I116: 0 | K116: -1131.445917 | L116: 14454.57861 | M116: =+IF('MATRIX SP. PERIODICHE'!AZ90=1,'1) INPUT MUTUO'!$C$31,0) -> 0 | N116: =+IF('MATRIX SP. PERIODICHE'!CZ90=1,'1) INPUT MUTUO'!$C$32,0) -> 0 | O116: =IF('MATRIX SP. PERIODICHE'!EZ90=1,'1) INPUT MUTUO'!$C$33,0) -> 0 | P116: =IF('MATRIX SP. PERIODICHE'!GZ90=1,'1) INPUT MUTUO'!$C$34,0) -> 0 | Q116: =IF('MATRIX SP. PERIODICHE'!IZ90=1,'1) INPUT MUTUO'!$C$35,0) -> 0 | R116: 30
A117: =IF($B$3="M",IF(FORMULE!$B$15="OK",EOMONTH('2) OUTPUT PIANO'!A116,1),EDATE('2) OUTPUT PIANO'!A116,1)),IF($B$3="T",IF(FORMULE!$B$15="OK",EOMONTH('2) OUTPUT PIANO'!A116,3),EDATE('2) OUTPUT PIANO'!A116,3)),IF($B$3="S",IF(FORMULE!$B$15="OK",EOMONTH('2) OUTPUT PIANO'!A116,6),EDATE('2) OUTPUT PIANO'!A116,6)),IF($B$3="A",+IF(FORMULE!$B$15="OK",EOMONTH('2) OUTPUT PIANO'!A116,12),EDATE('2) OUTPUT PIANO'!A116,12)),"ERRORE")))) -> 2017-05-01 | B117: =IF(B116=0,0,IF(B116+1<='1) INPUT MUTUO'!$D$10,'2) OUTPUT PIANO'!B116+1,0)) -> 88 | D117: =IF(B116=0,0,IF('1) INPUT MUTUO'!$D$7="FRANCESE",F117-E117,'2) OUTPUT PIANO'!$C$17/'1) INPUT MUTUO'!$D$10)) -> 1095.30947 | E117: =IF(B117=0,0,IF('1) INPUT MUTUO'!$D$13=360,L116*$C$3,L116*R117*FORMULE!$B$7)) -> 36.13644653 | F117: =IF(B117=0,0,IF('1) INPUT MUTUO'!$D$7="ITALIANO",'2) OUTPUT PIANO'!D117+'2) OUTPUT PIANO'!E117,IF(B117>'1) INPUT MUTUO'!$D$10,0,FORMULE!$B$13))) -> 1131.445917 | G117: =IF($B$7="SI",IF(F117=0,0,'1) INPUT MUTUO'!$D$19),0) -> 0 | I117: 0 | K117: -1131.445917 | L117: 13359.26914 | M117: =+IF('MATRIX SP. PERIODICHE'!AZ91=1,'1) INPUT MUTUO'!$C$31,0) -> 0 | N117: =+IF('MATRIX SP. PERIODICHE'!CZ91=1,'1) INPUT MUTUO'!$C$32,0) -> 0 | O117: =IF('MATRIX SP. PERIODICHE'!EZ91=1,'1) INPUT MUTUO'!$C$33,0) -> 0 | P117: =IF('MATRIX SP. PERIODICHE'!GZ91=1,'1) INPUT MUTUO'!$C$34,0) -> 0 | Q117: =IF('MATRIX SP. PERIODICHE'!IZ91=1,'1) INPUT MUTUO'!$C$35,0) -> 0 | R117: 31
A118: =IF($B$3="M",IF(FORMULE!$B$15="OK",EOMONTH('2) OUTPUT PIANO'!A117,1),EDATE('2) OUTPUT PIANO'!A117,1)),IF($B$3="T",IF(FORMULE!$B$15="OK",EOMONTH('2) OUTPUT PIANO'!A117,3),EDATE('2) OUTPUT PIANO'!A117,3)),IF($B$3="S",IF(FORMULE!$B$15="OK",EOMONTH('2) OUTPUT PIANO'!A117,6),EDATE('2) OUTPUT PIANO'!A117,6)),IF($B$3="A",+IF(FORMULE!$B$15="OK",EOMONTH('2) OUTPUT PIANO'!A117,12),EDATE('2) OUTPUT PIANO'!A117,12)),"ERRORE")))) -> 2017-06-01 | B118: =IF(B117=0,0,IF(B117+1<='1) INPUT MUTUO'!$D$10,'2) OUTPUT PIANO'!B117+1,0)) -> 89 | D118: =IF(B117=0,0,IF('1) INPUT MUTUO'!$D$7="FRANCESE",F118-E118,'2) OUTPUT PIANO'!$C$17/'1) INPUT MUTUO'!$D$10)) -> 1098.047744 | E118: =IF(B118=0,0,IF('1) INPUT MUTUO'!$D$13=360,L117*$C$3,L117*R118*FORMULE!$B$7)) -> 33.39817286 | F118: =IF(B118=0,0,IF('1) INPUT MUTUO'!$D$7="ITALIANO",'2) OUTPUT PIANO'!D118+'2) OUTPUT PIANO'!E118,IF(B118>'1) INPUT MUTUO'!$D$10,0,FORMULE!$B$13))) -> 1131.445917 | G118: =IF($B$7="SI",IF(F118=0,0,'1) INPUT MUTUO'!$D$19),0) -> 0 | I118: 0 | K118: -1131.445917 | L118: 12261.2214 | M118: =+IF('MATRIX SP. PERIODICHE'!AZ92=1,'1) INPUT MUTUO'!$C$31,0) -> 0 | N118: =+IF('MATRIX SP. PERIODICHE'!CZ92=1,'1) INPUT MUTUO'!$C$32,0) -> 0 | O118: =IF('MATRIX SP. PERIODICHE'!EZ92=1,'1) INPUT MUTUO'!$C$33,0) -> 0 | P118: =IF('MATRIX SP. PERIODICHE'!GZ92=1,'1) INPUT MUTUO'!$C$34,0) -> 0 | Q118: =IF('MATRIX SP. PERIODICHE'!IZ92=1,'1) INPUT MUTUO'!$C$35,0) -> 0 | R118: 30
A119: =IF($B$3="M",IF(FORMULE!$B$15="OK",EOMONTH('2) OUTPUT PIANO'!A118,1),EDATE('2) OUTPUT PIANO'!A118,1)),IF($B$3="T",IF(FORMULE!$B$15="OK",EOMONTH('2) OUTPUT PIANO'!A118,3),EDATE('2) OUTPUT PIANO'!A118,3)),IF($B$3="S",IF(FORMULE!$B$15="OK",EOMONTH('2) OUTPUT PIANO'!A118,6),EDATE('2) OUTPUT PIANO'!A118,6)),IF($B$3="A",+IF(FORMULE!$B$15="OK",EOMONTH('2) OUTPUT PIANO'!A118,12),EDATE('2) OUTPUT PIANO'!A118,12)),"ERRORE")))) -> 2017-07-01 | B119: =IF(B118=0,0,IF(B118+1<='1) INPUT MUTUO'!$D$10,'2) OUTPUT PIANO'!B118+1,0)) -> 90 | D119: =IF(B118=0,0,IF('1) INPUT MUTUO'!$D$7="FRANCESE",F119-E119,'2) OUTPUT PIANO'!$C$17/'1) INPUT MUTUO'!$D$10)) -> 1100.792863 | E119: =IF(B119=0,0,IF('1) INPUT MUTUO'!$D$13=360,L118*$C$3,L118*R119*FORMULE!$B$7)) -> 30.6530535 | F119: =IF(B119=0,0,IF('1) INPUT MUTUO'!$D$7="ITALIANO",'2) OUTPUT PIANO'!D119+'2) OUTPUT PIANO'!E119,IF(B119>'1) INPUT MUTUO'!$D$10,0,FORMULE!$B$13))) -> 1131.445917 | G119: =IF($B$7="SI",IF(F119=0,0,'1) INPUT MUTUO'!$D$19),0) -> 0 | I119: 0 | K119: -1131.445917 | L119: 11160.42854 | M119: =+IF('MATRIX SP. PERIODICHE'!AZ93=1,'1) INPUT MUTUO'!$C$31,0) -> 0 | N119: =+IF('MATRIX SP. PERIODICHE'!CZ93=1,'1) INPUT MUTUO'!$C$32,0) -> 0 | O119: =IF('MATRIX SP. PERIODICHE'!EZ93=1,'1) INPUT MUTUO'!$C$33,0) -> 0 | P119: =IF('MATRIX SP. PERIODICHE'!GZ93=1,'1) INPUT MUTUO'!$C$34,0) -> 0 | Q119: =IF('MATRIX SP. PERIODICHE'!IZ93=1,'1) INPUT MUTUO'!$C$35,0) -> 0 | R119: 31
A120: =IF($B$3="M",IF(FORMULE!$B$15="OK",EOMONTH('2) OUTPUT PIANO'!A119,1),EDATE('2) OUTPUT PIANO'!A119,1)),IF($B$3="T",IF(FORMULE!$B$15="OK",EOMONTH('2) OUTPUT PIANO'!A119,3),EDATE('2) OUTPUT PIANO'!A119,3)),IF($B$3="S",IF(FORMULE!$B$15="OK",EOMONTH('2) OUTPUT PIANO'!A119,6),EDATE('2) OUTPUT PIANO'!A119,6)),IF($B$3="A",+IF(FORMULE!$B$15="OK",EOMONTH('2) OUTPUT PIANO'!A119,12),EDATE('2) OUTPUT PIANO'!A119,12)),"ERRORE")))) -> 2017-08-01 | B120: =IF(B119=0,0,IF(B119+1<='1) INPUT MUTUO'!$D$10,'2) OUTPUT PIANO'!B119+1,0)) -> 91 | D120: =IF(B119=0,0,IF('1) INPUT MUTUO'!$D$7="FRANCESE",F120-E120,'2) OUTPUT PIANO'!$C$17/'1) INPUT MUTUO'!$D$10)) -> 1103.544845 | E120: =IF(B120=0,0,IF('1) INPUT MUTUO'!$D$13=360,L119*$C$3,L119*R120*FORMULE!$B$7)) -> 27.90107134 | F120: =IF(B120=0,0,IF('1) INPUT MUTUO'!$D$7="ITALIANO",'2) OUTPUT PIANO'!D120+'2) OUTPUT PIANO'!E120,IF(B120>'1) INPUT MUTUO'!$D$10,0,FORMULE!$B$13))) -> 1131.445917 | G120: =IF($B$7="SI",IF(F120=0,0,'1) INPUT MUTUO'!$D$19),0) -> 0 | I120: 0 | K120: -1131.445917 | L120: 10056.88369 | M120: =+IF('MATRIX SP. PERIODICHE'!AZ94=1,'1) INPUT MUTUO'!$C$31,0) -> 0 | N120: =+IF('MATRIX SP. PERIODICHE'!CZ94=1,'1) INPUT MUTUO'!$C$32,0) -> 0 | O120: =IF('MATRIX SP. PERIODICHE'!EZ94=1,'1) INPUT MUTUO'!$C$33,0) -> 0 | P120: =IF('MATRIX SP. PERIODICHE'!GZ94=1,'1) INPUT MUTUO'!$C$34,0) -> 0 | Q120: =IF('MATRIX SP. PERIODICHE'!IZ94=1,'1) INPUT MUTUO'!$C$35,0) -> 0 | R120: 31
A121: =IF($B$3="M",IF(FORMULE!$B$15="OK",EOMONTH('2) OUTPUT PIANO'!A120,1),EDATE('2) OUTPUT PIANO'!A120,1)),IF($B$3="T",IF(FORMULE!$B$15="OK",EOMONTH('2) OUTPUT PIANO'!A120,3),EDATE('2) OUTPUT PIANO'!A120,3)),IF($B$3="S",IF(FORMULE!$B$15="OK",EOMONTH('2) OUTPUT PIANO'!A120,6),EDATE('2) OUTPUT PIANO'!A120,6)),IF($B$3="A",+IF(FORMULE!$B$15="OK",EOMONTH('2) OUTPUT PIANO'!A120,12),EDATE('2) OUTPUT PIANO'!A120,12)),"ERRORE")))) -> 2017-09-01 | B121: =IF(B120=0,0,IF(B120+1<='1) INPUT MUTUO'!$D$10,'2) OUTPUT PIANO'!B120+1,0)) -> 92 | D121: =IF(B120=0,0,IF('1) INPUT MUTUO'!$D$7="FRANCESE",F121-E121,'2) OUTPUT PIANO'!$C$17/'1) INPUT MUTUO'!$D$10)) -> 1106.303707 | E121: =IF(B121=0,0,IF('1) INPUT MUTUO'!$D$13=360,L120*$C$3,L120*R121*FORMULE!$B$7)) -> 25.14220923 | F121: =IF(B121=0,0,IF('1) INPUT MUTUO'!$D$7="ITALIANO",'2) OUTPUT PIANO'!D121+'2) OUTPUT PIANO'!E121,IF(B121>'1) INPUT MUTUO'!$D$10,0,FORMULE!$B$13))) -> 1131.445917 | G121: =IF($B$7="SI",IF(F121=0,0,'1) INPUT MUTUO'!$D$19),0) -> 0 | I121: 0 | K121: -1131.445917 | L121: 8950.579985 | M121: =+IF('MATRIX SP. PERIODICHE'!AZ95=1,'1) INPUT MUTUO'!$C$31,0) -> 0 | N121: =+IF('MATRIX SP. PERIODICHE'!CZ95=1,'1) INPUT MUTUO'!$C$32,0) -> 0 | O121: =IF('MATRIX SP. PERIODICHE'!EZ95=1,'1) INPUT MUTUO'!$C$33,0) -> 0 | P121: =IF('MATRIX SP. PERIODICHE'!GZ95=1,'1) INPUT MUTUO'!$C$34,0) -> 0 | Q121: =IF('MATRIX SP. PERIODICHE'!IZ95=1,'1) INPUT MUTUO'!$C$35,0) -> 0 | R121: 30
A122: =IF($B$3="M",IF(FORMULE!$B$15="OK",EOMONTH('2) OUTPUT PIANO'!A121,1),EDATE('2) OUTPUT PIANO'!A121,1)),IF($B$3="T",IF(FORMULE!$B$15="OK",EOMONTH('2) OUTPUT PIANO'!A121,3),EDATE('2) OUTPUT PIANO'!A121,3)),IF($B$3="S",IF(FORMULE!$B$15="OK",EOMONTH('2) OUTPUT PIANO'!A121,6),EDATE('2) OUTPUT PIANO'!A121,6)),IF($B$3="A",+IF(FORMULE!$B$15="OK",EOMONTH('2) OUTPUT PIANO'!A121,12),EDATE('2) OUTPUT PIANO'!A121,12)),"ERRORE")))) -> 2017-10-01 | B122: =IF(B121=0,0,IF(B121+1<='1) INPUT MUTUO'!$D$10,'2) OUTPUT PIANO'!B121+1,0)) -> 93 | D122: =IF(B121=0,0,IF('1) INPUT MUTUO'!$D$7="FRANCESE",F122-E122,'2) OUTPUT PIANO'!$C$17/'1) INPUT MUTUO'!$D$10)) -> 1109.069467 | E122: =IF(B122=0,0,IF('1) INPUT MUTUO'!$D$13=360,L121*$C$3,L121*R122*FORMULE!$B$7)) -> 22.37644996 | F122: =IF(B122=0,0,IF('1) INPUT MUTUO'!$D$7="ITALIANO",'2) OUTPUT PIANO'!D122+'2) OUTPUT PIANO'!E122,IF(B122>'1) INPUT MUTUO'!$D$10,0,FORMULE!$B$13))) -> 1131.445917 | G122: =IF($B$7="SI",IF(F122=0,0,'1) INPUT MUTUO'!$D$19),0) -> 0 | I122: 0 | K122: -1131.445917 | L122: 7841.510518 | M122: =+IF('MATRIX SP. PERIODICHE'!AZ96=1,'1) INPUT MUTUO'!$C$31,0) -> 0 | N122: =+IF('MATRIX SP. PERIODICHE'!CZ96=1,'1) INPUT MUTUO'!$C$32,0) -> 0 | O122: =IF('MATRIX SP. PERIODICHE'!EZ96=1,'1) INPUT MUTUO'!$C$33,0) -> 0 | P122: =IF('MATRIX SP. PERIODICHE'!GZ96=1,'1) INPUT MUTUO'!$C$34,0) -> 0 | Q122: =IF('MATRIX SP. PERIODICHE'!IZ96=1,'1) INPUT MUTUO'!$C$35,0) -> 0 | R122: 31
A123: =IF($B$3="M",IF(FORMULE!$B$15="OK",EOMONTH('2) OUTPUT PIANO'!A122,1),EDATE('2) OUTPUT PIANO'!A122,1)),IF($B$3="T",IF(FORMULE!$B$15="OK",EOMONTH('2) OUTPUT PIANO'!A122,3),EDATE('2) OUTPUT PIANO'!A122,3)),IF($B$3="S",IF(FORMULE!$B$15="OK",EOMONTH('2) OUTPUT PIANO'!A122,6),EDATE('2) OUTPUT PIANO'!A122,6)),IF($B$3="A",+IF(FORMULE!$B$15="OK",EOMONTH('2) OUTPUT PIANO'!A122,12),EDATE('2) OUTPUT PIANO'!A122,12)),"ERRORE")))) -> 2017-11-01 | B123: =IF(B122=0,0,IF(B122+1<='1) INPUT MUTUO'!$D$10,'2) OUTPUT PIANO'!B122+1,0)) -> 94 | D123: =IF(B122=0,0,IF('1) INPUT MUTUO'!$D$7="FRANCESE",F123-E123,'2) OUTPUT PIANO'!$C$17/'1) INPUT MUTUO'!$D$10)) -> 1111.84214 | E123: =IF(B123=0,0,IF('1) INPUT MUTUO'!$D$13=360,L122*$C$3,L122*R123*FORMULE!$B$7)) -> 19.6037763 | F123: =IF(B123=0,0,IF('1) INPUT MUTUO'!$D$7="ITALIANO",'2) OUTPUT PIANO'!D123+'2) OUTPUT PIANO'!E123,IF(B123>'1) INPUT MUTUO'!$D$10,0,FORMULE!$B$13))) -> 1131.445917 | G123: =IF($B$7="SI",IF(F123=0,0,'1) INPUT MUTUO'!$D$19),0) -> 0 | I123: 0 | K123: -1131.445917 | L123: 6729.668378 | M123: =+IF('MATRIX SP. PERIODICHE'!AZ97=1,'1) INPUT MUTUO'!$C$31,0) -> 0 | N123: =+IF('MATRIX SP. PERIODICHE'!CZ97=1,'1) INPUT MUTUO'!$C$32,0) -> 0 | O123: =IF('MATRIX SP. PERIODICHE'!EZ97=1,'1) INPUT MUTUO'!$C$33,0) -> 0 | P123: =IF('MATRIX SP. PERIODICHE'!GZ97=1,'1) INPUT MUTUO'!$C$34,0) -> 0 | Q123: =IF('MATRIX SP. PERIODICHE'!IZ97=1,'1) INPUT MUTUO'!$C$35,0) -> 0 | R123: 30
A124: =IF($B$3="M",IF(FORMULE!$B$15="OK",EOMONTH('2) OUTPUT PIANO'!A123,1),EDATE('2) OUTPUT PIANO'!A123,1)),IF($B$3="T",IF(FORMULE!$B$15="OK",EOMONTH('2) OUTPUT PIANO'!A123,3),EDATE('2) OUTPUT PIANO'!A123,3)),IF($B$3="S",IF(FORMULE!$B$15="OK",EOMONTH('2) OUTPUT PIANO'!A123,6),EDATE('2) OUTPUT PIANO'!A123,6)),IF($B$3="A",+IF(FORMULE!$B$15="OK",EOMONTH('2) OUTPUT PIANO'!A123,12),EDATE('2) OUTPUT PIANO'!A123,12)),"ERRORE")))) -> 2017-12-01 | B124: =IF(B123=0,0,IF(B123+1<='1) INPUT MUTUO'!$D$10,'2) OUTPUT PIANO'!B123+1,0)) -> 95 | D124: =IF(B123=0,0,IF('1) INPUT MUTUO'!$D$7="FRANCESE",F124-E124,'2) OUTPUT PIANO'!$C$17/'1) INPUT MUTUO'!$D$10)) -> 1114.621746 | E124: =IF(B124=0,0,IF('1) INPUT MUTUO'!$D$13=360,L123*$C$3,L123*R124*FORMULE!$B$7)) -> 16.82417095 | F124: =IF(B124=0,0,IF('1) INPUT MUTUO'!$D$7="ITALIANO",'2) OUTPUT PIANO'!D124+'2) OUTPUT PIANO'!E124,IF(B124>'1) INPUT MUTUO'!$D$10,0,FORMULE!$B$13))) -> 1131.445917 | G124: =IF($B$7="SI",IF(F124=0,0,'1) INPUT MUTUO'!$D$19),0) -> 0 | I124: 0 | K124: -1131.445917 | L124: 5615.046633 | M124: =+IF('MATRIX SP. PERIODICHE'!AZ98=1,'1) INPUT MUTUO'!$C$31,0) -> 0 | N124: =+IF('MATRIX SP. PERIODICHE'!CZ98=1,'1) INPUT MUTUO'!$C$32,0) -> 0 | O124: =IF('MATRIX SP. PERIODICHE'!EZ98=1,'1) INPUT MUTUO'!$C$33,0) -> 0 | P124: =IF('MATRIX SP. PERIODICHE'!GZ98=1,'1) INPUT MUTUO'!$C$34,0) -> 0 | Q124: =IF('MATRIX SP. PERIODICHE'!IZ98=1,'1) INPUT MUTUO'!$C$35,0) -> 0 | R124: 31
A125: =IF($B$3="M",IF(FORMULE!$B$15="OK",EOMONTH('2) OUTPUT PIANO'!A124,1),EDATE('2) OUTPUT PIANO'!A124,1)),IF($B$3="T",IF(FORMULE!$B$15="OK",EOMONTH('2) OUTPUT PIANO'!A124,3),EDATE('2) OUTPUT PIANO'!A124,3)),IF($B$3="S",IF(FORMULE!$B$15="OK",EOMONTH('2) OUTPUT PIANO'!A124,6),EDATE('2) OUTPUT PIANO'!A124,6)),IF($B$3="A",+IF(FORMULE!$B$15="OK",EOMONTH('2) OUTPUT PIANO'!A124,12),EDATE('2) OUTPUT PIANO'!A124,12)),"ERRORE")))) -> 2018-01-01 | B125: =IF(B124=0,0,IF(B124+1<='1) INPUT MUTUO'!$D$10,'2) OUTPUT PIANO'!B124+1,0)) -> 96 | D125: =IF(B124=0,0,IF('1) INPUT MUTUO'!$D$7="FRANCESE",F125-E125,'2) OUTPUT PIANO'!$C$17/'1) INPUT MUTUO'!$D$10)) -> 1117.4083 | E125: =IF(B125=0,0,IF('1) INPUT MUTUO'!$D$13=360,L124*$C$3,L124*R125*FORMULE!$B$7)) -> 14.03761658 | F125: =IF(B125=0,0,IF('1) INPUT MUTUO'!$D$7="ITALIANO",'2) OUTPUT PIANO'!D125+'2) OUTPUT PIANO'!E125,IF(B125>'1) INPUT MUTUO'!$D$10,0,FORMULE!$B$13))) -> 1131.445917 | G125: =IF($B$7="SI",IF(F125=0,0,'1) INPUT MUTUO'!$D$19),0) -> 0 | I125: 0 | K125: -1131.445917 | L125: 4497.638333 | M125: =+IF('MATRIX SP. PERIODICHE'!AZ99=1,'1) INPUT MUTUO'!$C$31,0) -> 0 | N125: =+IF('MATRIX SP. PERIODICHE'!CZ99=1,'1) INPUT MUTUO'!$C$32,0) -> 0 | O125: =IF('MATRIX SP. PERIODICHE'!EZ99=1,'1) INPUT MUTUO'!$C$33,0) -> 0 | P125: =IF('MATRIX SP. PERIODICHE'!GZ99=1,'1) INPUT MUTUO'!$C$34,0) -> 0 | Q125: =IF('MATRIX SP. PERIODICHE'!IZ99=1,'1) INPUT MUTUO'!$C$35,0) -> 0 | R125: 31
A126: =IF($B$3="M",IF(FORMULE!$B$15="OK",EOMONTH('2) OUTPUT PIANO'!A125,1),EDATE('2) OUTPUT PIANO'!A125,1)),IF($B$3="T",IF(FORMULE!$B$15="OK",EOMONTH('2) OUTPUT PIANO'!A125,3),EDATE('2) OUTPUT PIANO'!A125,3)),IF($B$3="S",IF(FORMULE!$B$15="OK",EOMONTH('2) OUTPUT PIANO'!A125,6),EDATE('2) OUTPUT PIANO'!A125,6)),IF($B$3="A",+IF(FORMULE!$B$15="OK",EOMONTH('2) OUTPUT PIANO'!A125,12),EDATE('2) OUTPUT PIANO'!A125,12)),"ERRORE")))) -> 2018-02-01 | B126: =IF(B125=0,0,IF(B125+1<='1) INPUT MUTUO'!$D$10,'2) OUTPUT PIANO'!B125+1,0)) -> 97 | D126: =IF(B125=0,0,IF('1) INPUT MUTUO'!$D$7="FRANCESE",F126-E126,'2) OUTPUT PIANO'!$C$17/'1) INPUT MUTUO'!$D$10)) -> 1120.201821 | E126: =IF(B126=0,0,IF('1) INPUT MUTUO'!$D$13=360,L125*$C$3,L125*R126*FORMULE!$B$7)) -> 11.24409583 | F126: =IF(B126=0,0,IF('1) INPUT MUTUO'!$D$7="ITALIANO",'2) OUTPUT PIANO'!D126+'2) OUTPUT PIANO'!E126,IF(B126>'1) INPUT MUTUO'!$D$10,0,FORMULE!$B$13))) -> 1131.445917 | G126: =IF($B$7="SI",IF(F126=0,0,'1) INPUT MUTUO'!$D$19),0) -> 0 | I126: 0 | K126: -1131.445917 | L126: 3377.436512 | M126: =+IF('MATRIX SP. PERIODICHE'!AZ100=1,'1) INPUT MUTUO'!$C$31,0) -> 0 | N126: =+IF('MATRIX SP. PERIODICHE'!CZ100=1,'1) INPUT MUTUO'!$C$32,0) -> 0 | O126: =IF('MATRIX SP. PERIODICHE'!EZ100=1,'1) INPUT MUTUO'!$C$33,0) -> 0 | P126: =IF('MATRIX SP. PERIODICHE'!GZ100=1,'1) INPUT MUTUO'!$C$34,0) -> 0 | Q126: =IF('MATRIX SP. PERIODICHE'!IZ100=1,'1) INPUT MUTUO'!$C$35,0) -> 0 | R126: 28
A127: =IF($B$3="M",IF(FORMULE!$B$15="OK",EOMONTH('2) OUTPUT PIANO'!A126,1),EDATE('2) OUTPUT PIANO'!A126,1)),IF($B$3="T",IF(FORMULE!$B$15="OK",EOMONTH('2) OUTPUT PIANO'!A126,3),EDATE('2) OUTPUT PIANO'!A126,3)),IF($B$3="S",IF(FORMULE!$B$15="OK",EOMONTH('2) OUTPUT PIANO'!A126,6),EDATE('2) OUTPUT PIANO'!A126,6)),IF($B$3="A",+IF(FORMULE!$B$15="OK",EOMONTH('2) OUTPUT PIANO'!A126,12),EDATE('2) OUTPUT PIANO'!A126,12)),"ERRORE")))) -> 2018-03-01 | B127: =IF(B126=0,0,IF(B126+1<='1) INPUT MUTUO'!$D$10,'2) OUTPUT PIANO'!B126+1,0)) -> 98 | D127: =IF(B126=0,0,IF('1) INPUT MUTUO'!$D$7="FRANCESE",F127-E127,'2) OUTPUT PIANO'!$C$17/'1) INPUT MUTUO'!$D$10)) -> 1123.002325 | E127: =IF(B127=0,0,IF('1) INPUT MUTUO'!$D$13=360,L126*$C$3,L126*R127*FORMULE!$B$7)) -> 8.44359128 | F127: =IF(B127=0,0,IF('1) INPUT MUTUO'!$D$7="ITALIANO",'2) OUTPUT PIANO'!D127+'2) OUTPUT PIANO'!E127,IF(B127>'1) INPUT MUTUO'!$D$10,0,FORMULE!$B$13))) -> 1131.445917 | G127: =IF($B$7="SI",IF(F127=0,0,'1) INPUT MUTUO'!$D$19),0) -> 0 | I127: 0 | K127: -1131.445917 | L127: 2254.434187 | M127: =+IF('MATRIX SP. PERIODICHE'!AZ101=1,'1) INPUT MUTUO'!$C$31,0) -> 0 | N127: =+IF('MATRIX SP. PERIODICHE'!CZ101=1,'1) INPUT MUTUO'!$C$32,0) -> 0 | O127: =IF('MATRIX SP. PERIODICHE'!EZ101=1,'1) INPUT MUTUO'!$C$33,0) -> 0 | P127: =IF('MATRIX SP. PERIODICHE'!GZ101=1,'1) INPUT MUTUO'!$C$34,0) -> 0 | Q127: =IF('MATRIX SP. PERIODICHE'!IZ101=1,'1) INPUT MUTUO'!$C$35,0) -> 0 | R127: 31
A128: =IF($B$3="M",IF(FORMULE!$B$15="OK",EOMONTH('2) OUTPUT PIANO'!A127,1),EDATE('2) OUTPUT PIANO'!A127,1)),IF($B$3="T",IF(FORMULE!$B$15="OK",EOMONTH('2) OUTPUT PIANO'!A127,3),EDATE('2) OUTPUT PIANO'!A127,3)),IF($B$3="S",IF(FORMULE!$B$15="OK",EOMONTH('2) OUTPUT PIANO'!A127,6),EDATE('2) OUTPUT PIANO'!A127,6)),IF($B$3="A",+IF(FORMULE!$B$15="OK",EOMONTH('2) OUTPUT PIANO'!A127,12),EDATE('2) OUTPUT PIANO'!A127,12)),"ERRORE")))) -> 2018-04-01 | B128: =IF(B127=0,0,IF(B127+1<='1) INPUT MUTUO'!$D$10,'2) OUTPUT PIANO'!B127+1,0)) -> 99 | D128: =IF(B127=0,0,IF('1) INPUT MUTUO'!$D$7="FRANCESE",F128-E128,'2) OUTPUT PIANO'!$C$17/'1) INPUT MUTUO'!$D$10)) -> 1125.809831 | E128: =IF(B128=0,0,IF('1) INPUT MUTUO'!$D$13=360,L127*$C$3,L127*R128*FORMULE!$B$7)) -> 5.636085467 | F128: =IF(B128=0,0,IF('1) INPUT MUTUO'!$D$7="ITALIANO",'2) OUTPUT PIANO'!D128+'2) OUTPUT PIANO'!E128,IF(B128>'1) INPUT MUTUO'!$D$10,0,FORMULE!$B$13))) -> 1131.445917 | G128: =IF($B$7="SI",IF(F128=0,0,'1) INPUT MUTUO'!$D$19),0) -> 0 | I128: 0 | K128: -1131.445917 | L128: 1128.624356 | M128: =+IF('MATRIX SP. PERIODICHE'!AZ102=1,'1) INPUT MUTUO'!$C$31,0) -> 0 | N128: =+IF('MATRIX SP. PERIODICHE'!CZ102=1,'1) INPUT MUTUO'!$C$32,0) -> 0 | O128: =IF('MATRIX SP. PERIODICHE'!EZ102=1,'1) INPUT MUTUO'!$C$33,0) -> 0 | P128: =IF('MATRIX SP. PERIODICHE'!GZ102=1,'1) INPUT MUTUO'!$C$34,0) -> 0 | Q128: =IF('MATRIX SP. PERIODICHE'!IZ102=1,'1) INPUT MUTUO'!$C$35,0) -> 0 | R128: 30
A129: =IF($B$3="M",IF(FORMULE!$B$15="OK",EOMONTH('2) OUTPUT PIANO'!A128,1),EDATE('2) OUTPUT PIANO'!A128,1)),IF($B$3="T",IF(FORMULE!$B$15="OK",EOMONTH('2) OUTPUT PIANO'!A128,3),EDATE('2) OUTPUT PIANO'!A128,3)),IF($B$3="S",IF(FORMULE!$B$15="OK",EOMONTH('2) OUTPUT PIANO'!A128,6),EDATE('2) OUTPUT PIANO'!A128,6)),IF($B$3="A",+IF(FORMULE!$B$15="OK",EOMONTH('2) OUTPUT PIANO'!A128,12),EDATE('2) OUTPUT PIANO'!A128,12)),"ERRORE")))) -> 2018-05-01 | B129: =IF(B128=0,0,IF(B128+1<='1) INPUT MUTUO'!$D$10,'2) OUTPUT PIANO'!B128+1,0)) -> 100 | D129: =IF(B128=0,0,IF('1) INPUT MUTUO'!$D$7="FRANCESE",F129-E129,'2) OUTPUT PIANO'!$C$17/'1) INPUT MUTUO'!$D$10)) -> 1128.624356 | E129: =IF(B129=0,0,IF('1) INPUT MUTUO'!$D$13=360,L128*$C$3,L128*R129*FORMULE!$B$7)) -> 2.821560889 | F129: =IF(B129=0,0,IF('1) INPUT MUTUO'!$D$7="ITALIANO",'2) OUTPUT PIANO'!D129+'2) OUTPUT PIANO'!E129,IF(B129>'1) INPUT MUTUO'!$D$10,0,FORMULE!$B$13))) -> 1131.445917 | G129: =IF($B$7="SI",IF(F129=0,0,'1) INPUT MUTUO'!$D$19),0) -> 0 | I129: 0 | K129: -1131.445917 | L129: 1.250555215e-11 | M129: =+IF('MATRIX SP. PERIODICHE'!AZ103=1,'1) INPUT MUTUO'!$C$31,0) -> 0 | N129: =+IF('MATRIX SP. PERIODICHE'!CZ103=1,'1) INPUT MUTUO'!$C$32,0) -> 0 | O129: =IF('MATRIX SP. PERIODICHE'!EZ103=1,'1) INPUT MUTUO'!$C$33,0) -> 0 | P129: =IF('MATRIX SP. PERIODICHE'!GZ103=1,'1) INPUT MUTUO'!$C$34,0) -> 0 | Q129: =IF('MATRIX SP. PERIODICHE'!IZ103=1,'1) INPUT MUTUO'!$C$35,0) -> 0 | R129: 31
A130: =IF($B$3="M",IF(FORMULE!$B$15="OK",EOMONTH('2) OUTPUT PIANO'!A129,1),EDATE('2) OUTPUT PIANO'!A129,1)),IF($B$3="T",IF(FORMULE!$B$15="OK",EOMONTH('2) OUTPUT PIANO'!A129,3),EDATE('2) OUTPUT PIANO'!A129,3)),IF($B$3="S",IF(FORMULE!$B$15="OK",EOMONTH('2) OUTPUT PIANO'!A129,6),EDATE('2) OUTPUT PIANO'!A129,6)),IF($B$3="A",+IF(FORMULE!$B$15="OK",EOMONTH('2) OUTPUT PIANO'!A129,12),EDATE('2) OUTPUT PIANO'!A129,12)),"ERRORE")))) -> 2018-06-01 | B130: =IF(B129=0,0,IF(B129+1<='1) INPUT MUTUO'!$D$10,'2) OUTPUT PIANO'!B129+1,0)) -> 0 | D130: =IF(B129=0,0,IF('1) INPUT MUTUO'!$D$7="FRANCESE",F130-E130,'2) OUTPUT PIANO'!$C$17/'1) INPUT MUTUO'!$D$10)) -> 0 | E130: =IF(B130=0,0,IF('1) INPUT MUTUO'!$D$13=360,L129*$C$3,L129*R130*FORMULE!$B$7)) -> 0 | F130: =IF(B130=0,0,IF('1) INPUT MUTUO'!$D$7="ITALIANO",'2) OUTPUT PIANO'!D130+'2) OUTPUT PIANO'!E130,IF(B130>'1) INPUT MUTUO'!$D$10,0,FORMULE!$B$13))) -> 0 | G130: =IF($B$7="SI",IF(F130=0,0,'1) INPUT MUTUO'!$D$19),0) -> 0 | I130: 0 | K130: 0 | L130: 0 | M130: =+IF('MATRIX SP. PERIODICHE'!AZ104=1,'1) INPUT MUTUO'!$C$31,0) -> 0 | N130: =+IF('MATRIX SP. PERIODICHE'!CZ104=1,'1) INPUT MUTUO'!$C$32,0) -> 0 | O130: =IF('MATRIX SP. PERIODICHE'!EZ104=1,'1) INPUT MUTUO'!$C$33,0) -> 0 | P130: =IF('MATRIX SP. PERIODICHE'!GZ104=1,'1) INPUT MUTUO'!$C$34,0) -> 0 | Q130: =IF('MATRIX SP. PERIODICHE'!IZ104=1,'1) INPUT MUTUO'!$C$35,0) -> 0 | R130: 30
A131: =IF($B$3="M",IF(FORMULE!$B$15="OK",EOMONTH('2) OUTPUT PIANO'!A130,1),EDATE('2) OUTPUT PIANO'!A130,1)),IF($B$3="T",IF(FORMULE!$B$15="OK",EOMONTH('2) OUTPUT PIANO'!A130,3),EDATE('2) OUTPUT PIANO'!A130,3)),IF($B$3="S",IF(FORMULE!$B$15="OK",EOMONTH('2) OUTPUT PIANO'!A130,6),EDATE('2) OUTPUT PIANO'!A130,6)),IF($B$3="A",+IF(FORMULE!$B$15="OK",EOMONTH('2) OUTPUT PIANO'!A130,12),EDATE('2) OUTPUT PIANO'!A130,12)),"ERRORE")))) -> 2018-07-01 | B131: =IF(B130=0,0,IF(B130+1<='1) INPUT MUTUO'!$D$10,'2) OUTPUT PIANO'!B130+1,0)) -> 0 | D131: =IF(B130=0,0,IF('1) INPUT MUTUO'!$D$7="FRANCESE",F131-E131,'2) OUTPUT PIANO'!$C$17/'1) INPUT MUTUO'!$D$10)) -> 0 | E131: =IF(B131=0,0,IF('1) INPUT MUTUO'!$D$13=360,L130*$C$3,L130*R131*FORMULE!$B$7)) -> 0 | F131: =IF(B131=0,0,IF('1) INPUT MUTUO'!$D$7="ITALIANO",'2) OUTPUT PIANO'!D131+'2) OUTPUT PIANO'!E131,IF(B131>'1) INPUT MUTUO'!$D$10,0,FORMULE!$B$13))) -> 0 | G131: =IF($B$7="SI",IF(F131=0,0,'1) INPUT MUTUO'!$D$19),0) -> 0 | I131: 0 | K131: 0 | L131: 0 | M131: =+IF('MATRIX SP. PERIODICHE'!AZ105=1,'1) INPUT MUTUO'!$C$31,0) -> 0 | N131: =+IF('MATRIX SP. PERIODICHE'!CZ105=1,'1) INPUT MUTUO'!$C$32,0) -> 0 | O131: =IF('MATRIX SP. PERIODICHE'!EZ105=1,'1) INPUT MUTUO'!$C$33,0) -> 0 | P131: =IF('MATRIX SP. PERIODICHE'!GZ105=1,'1) INPUT MUTUO'!$C$34,0) -> 0 | Q131: =IF('MATRIX SP. PERIODICHE'!IZ105=1,'1) INPUT MUTUO'!$C$35,0) -> 0 | R131: 31
A132: =IF($B$3="M",IF(FORMULE!$B$15="OK",EOMONTH('2) OUTPUT PIANO'!A131,1),EDATE('2) OUTPUT PIANO'!A131,1)),IF($B$3="T",IF(FORMULE!$B$15="OK",EOMONTH('2) OUTPUT PIANO'!A131,3),EDATE('2) OUTPUT PIANO'!A131,3)),IF($B$3="S",IF(FORMULE!$B$15="OK",EOMONTH('2) OUTPUT PIANO'!A131,6),EDATE('2) OUTPUT PIANO'!A131,6)),IF($B$3="A",+IF(FORMULE!$B$15="OK",EOMONTH('2) OUTPUT PIANO'!A131,12),EDATE('2) OUTPUT PIANO'!A131,12)),"ERRORE")))) -> 2018-08-01 | B132: =IF(B131=0,0,IF(B131+1<='1) INPUT MUTUO'!$D$10,'2) OUTPUT PIANO'!B131+1,0)) -> 0 | D132: =IF(B131=0,0,IF('1) INPUT MUTUO'!$D$7="FRANCESE",F132-E132,'2) OUTPUT PIANO'!$C$17/'1) INPUT MUTUO'!$D$10)) -> 0 | E132: =IF(B132=0,0,IF('1) INPUT MUTUO'!$D$13=360,L131*$C$3,L131*R132*FORMULE!$B$7)) -> 0 | F132: =IF(B132=0,0,IF('1) INPUT MUTUO'!$D$7="ITALIANO",'2) OUTPUT PIANO'!D132+'2) OUTPUT PIANO'!E132,IF(B132>'1) INPUT MUTUO'!$D$10,0,FORMULE!$B$13))) -> 0 | G132: =IF($B$7="SI",IF(F132=0,0,'1) INPUT MUTUO'!$D$19),0) -> 0 | I132: 0 | K132: 0 | L132: 0 | M132: =+IF('MATRIX SP. PERIODICHE'!AZ106=1,'1) INPUT MUTUO'!$C$31,0) -> 0 | N132: =+IF('MATRIX SP. PERIODICHE'!CZ106=1,'1) INPUT MUTUO'!$C$32,0) -> 0 | O132: =IF('MATRIX SP. PERIODICHE'!EZ106=1,'1) INPUT MUTUO'!$C$33,0) -> 0 | P132: =IF('MATRIX SP. PERIODICHE'!GZ106=1,'1) INPUT MUTUO'!$C$34,0) -> 0 | Q132: =IF('MATRIX SP. PERIODICHE'!IZ106=1,'1) INPUT MUTUO'!$C$35,0) -> 0 | R132: 31
A133: =IF($B$3="M",IF(FORMULE!$B$15="OK",EOMONTH('2) OUTPUT PIANO'!A132,1),EDATE('2) OUTPUT PIANO'!A132,1)),IF($B$3="T",IF(FORMULE!$B$15="OK",EOMONTH('2) OUTPUT PIANO'!A132,3),EDATE('2) OUTPUT PIANO'!A132,3)),IF($B$3="S",IF(FORMULE!$B$15="OK",EOMONTH('2) OUTPUT PIANO'!A132,6),EDATE('2) OUTPUT PIANO'!A132,6)),IF($B$3="A",+IF(FORMULE!$B$15="OK",EOMONTH('2) OUTPUT PIANO'!A132,12),EDATE('2) OUTPUT PIANO'!A132,12)),"ERRORE")))) -> 2018-09-01 | B133: =IF(B132=0,0,IF(B132+1<='1) INPUT MUTUO'!$D$10,'2) OUTPUT PIANO'!B132+1,0)) -> 0 | D133: =IF(B132=0,0,IF('1) INPUT MUTUO'!$D$7="FRANCESE",F133-E133,'2) OUTPUT PIANO'!$C$17/'1) INPUT MUTUO'!$D$10)) -> 0 | E133: =IF(B133=0,0,IF('1) INPUT MUTUO'!$D$13=360,L132*$C$3,L132*R133*FORMULE!$B$7)) -> 0 | F133: =IF(B133=0,0,IF('1) INPUT MUTUO'!$D$7="ITALIANO",'2) OUTPUT PIANO'!D133+'2) OUTPUT PIANO'!E133,IF(B133>'1) INPUT MUTUO'!$D$10,0,FORMULE!$B$13))) -> 0 | G133: =IF($B$7="SI",IF(F133=0,0,'1) INPUT MUTUO'!$D$19),0) -> 0 | I133: 0 | K133: 0 | L133: 0 | M133: =+IF('MATRIX SP. PERIODICHE'!AZ107=1,'1) INPUT MUTUO'!$C$31,0) -> 0 | N133: =+IF('MATRIX SP. PERIODICHE'!CZ107=1,'1) INPUT MUTUO'!$C$32,0) -> 0 | O133: =IF('MATRIX SP. PERIODICHE'!EZ107=1,'1) INPUT MUTUO'!$C$33,0) -> 0 | P133: =IF('MATRIX SP. PERIODICHE'!GZ107=1,'1) INPUT MUTUO'!$C$34,0) -> 0 | Q133: =IF('MATRIX SP. PERIODICHE'!IZ107=1,'1) INPUT MUTUO'!$C$35,0) -> 0 | R133: 30
A134: =IF($B$3="M",IF(FORMULE!$B$15="OK",EOMONTH('2) OUTPUT PIANO'!A133,1),EDATE('2) OUTPUT PIANO'!A133,1)),IF($B$3="T",IF(FORMULE!$B$15="OK",EOMONTH('2) OUTPUT PIANO'!A133,3),EDATE('2) OUTPUT PIANO'!A133,3)),IF($B$3="S",IF(FORMULE!$B$15="OK",EOMONTH('2) OUTPUT PIANO'!A133,6),EDATE('2) OUTPUT PIANO'!A133,6)),IF($B$3="A",+IF(FORMULE!$B$15="OK",EOMONTH('2) OUTPUT PIANO'!A133,12),EDATE('2) OUTPUT PIANO'!A133,12)),"ERRORE")))) -> 2018-10-01 | B134: =IF(B133=0,0,IF(B133+1<='1) INPUT MUTUO'!$D$10,'2) OUTPUT PIANO'!B133+1,0)) -> 0 | D134: =IF(B133=0,0,IF('1) INPUT MUTUO'!$D$7="FRANCESE",F134-E134,'2) OUTPUT PIANO'!$C$17/'1) INPUT MUTUO'!$D$10)) -> 0 | E134: =IF(B134=0,0,IF('1) INPUT MUTUO'!$D$13=360,L133*$C$3,L133*R134*FORMULE!$B$7)) -> 0 | F134: =IF(B134=0,0,IF('1) INPUT MUTUO'!$D$7="ITALIANO",'2) OUTPUT PIANO'!D134+'2) OUTPUT PIANO'!E134,IF(B134>'1) INPUT MUTUO'!$D$10,0,FORMULE!$B$13))) -> 0 | G134: =IF($B$7="SI",IF(F134=0,0,'1) INPUT MUTUO'!$D$19),0) -> 0 | I134: 0 | K134: 0 | L134: 0 | M134: =+IF('MATRIX SP. PERIODICHE'!AZ108=1,'1) INPUT MUTUO'!$C$31,0) -> 0 | N134: =+IF('MATRIX SP. PERIODICHE'!CZ108=1,'1) INPUT MUTUO'!$C$32,0) -> 0 | O134: =IF('MATRIX SP. PERIODICHE'!EZ108=1,'1) INPUT MUTUO'!$C$33,0) -> 0 | P134: =IF('MATRIX SP. PERIODICHE'!GZ108=1,'1) INPUT MUTUO'!$C$34,0) -> 0 | Q134: =IF('MATRIX SP. PERIODICHE'!IZ108=1,'1) INPUT MUTUO'!$C$35,0) -> 0 | R134: 31
A135: =IF($B$3="M",IF(FORMULE!$B$15="OK",EOMONTH('2) OUTPUT PIANO'!A134,1),EDATE('2) OUTPUT PIANO'!A134,1)),IF($B$3="T",IF(FORMULE!$B$15="OK",EOMONTH('2) OUTPUT PIANO'!A134,3),EDATE('2) OUTPUT PIANO'!A134,3)),IF($B$3="S",IF(FORMULE!$B$15="OK",EOMONTH('2) OUTPUT PIANO'!A134,6),EDATE('2) OUTPUT PIANO'!A134,6)),IF($B$3="A",+IF(FORMULE!$B$15="OK",EOMONTH('2) OUTPUT PIANO'!A134,12),EDATE('2) OUTPUT PIANO'!A134,12)),"ERRORE")))) -> 2018-11-01 | B135: =IF(B134=0,0,IF(B134+1<='1) INPUT MUTUO'!$D$10,'2) OUTPUT PIANO'!B134+1,0)) -> 0 | D135: =IF(B134=0,0,IF('1) INPUT MUTUO'!$D$7="FRANCESE",F135-E135,'2) OUTPUT PIANO'!$C$17/'1) INPUT MUTUO'!$D$10)) -> 0 | E135: =IF(B135=0,0,IF('1) INPUT MUTUO'!$D$13=360,L134*$C$3,L134*R135*FORMULE!$B$7)) -> 0 | F135: =IF(B135=0,0,IF('1) INPUT MUTUO'!$D$7="ITALIANO",'2) OUTPUT PIANO'!D135+'2) OUTPUT PIANO'!E135,IF(B135>'1) INPUT MUTUO'!$D$10,0,FORMULE!$B$13))) -> 0 | G135: =IF($B$7="SI",IF(F135=0,0,'1) INPUT MUTUO'!$D$19),0) -> 0 | I135: 0 | K135: 0 | L135: 0 | M135: =+IF('MATRIX SP. PERIODICHE'!AZ109=1,'1) INPUT MUTUO'!$C$31,0) -> 0 | N135: =+IF('MATRIX SP. PERIODICHE'!CZ109=1,'1) INPUT MUTUO'!$C$32,0) -> 0 | O135: =IF('MATRIX SP. PERIODICHE'!EZ109=1,'1) INPUT MUTUO'!$C$33,0) -> 0 | P135: =IF('MATRIX SP. PERIODICHE'!GZ109=1,'1) INPUT MUTUO'!$C$34,0) -> 0 | Q135: =IF('MATRIX SP. PERIODICHE'!IZ109=1,'1) INPUT MUTUO'!$C$35,0) -> 0 | R135: 30
A136: =IF($B$3="M",IF(FORMULE!$B$15="OK",EOMONTH('2) OUTPUT PIANO'!A135,1),EDATE('2) OUTPUT PIANO'!A135,1)),IF($B$3="T",IF(FORMULE!$B$15="OK",EOMONTH('2) OUTPUT PIANO'!A135,3),EDATE('2) OUTPUT PIANO'!A135,3)),IF($B$3="S",IF(FORMULE!$B$15="OK",EOMONTH('2) OUTPUT PIANO'!A135,6),EDATE('2) OUTPUT PIANO'!A135,6)),IF($B$3="A",+IF(FORMULE!$B$15="OK",EOMONTH('2) OUTPUT PIANO'!A135,12),EDATE('2) OUTPUT PIANO'!A135,12)),"ERRORE")))) -> 2018-12-01 | B136: =IF(B135=0,0,IF(B135+1<='1) INPUT MUTUO'!$D$10,'2) OUTPUT PIANO'!B135+1,0)) -> 0 | D136: =IF(B135=0,0,IF('1) INPUT MUTUO'!$D$7="FRANCESE",F136-E136,'2) OUTPUT PIANO'!$C$17/'1) INPUT MUTUO'!$D$10)) -> 0 | E136: =IF(B136=0,0,IF('1) INPUT MUTUO'!$D$13=360,L135*$C$3,L135*R136*FORMULE!$B$7)) -> 0 | F136: =IF(B136=0,0,IF('1) INPUT MUTUO'!$D$7="ITALIANO",'2) OUTPUT PIANO'!D136+'2) OUTPUT PIANO'!E136,IF(B136>'1) INPUT MUTUO'!$D$10,0,FORMULE!$B$13))) -> 0 | G136: =IF($B$7="SI",IF(F136=0,0,'1) INPUT MUTUO'!$D$19),0) -> 0 | I136: 0 | K136: 0 | L136: 0 | M136: =+IF('MATRIX SP. PERIODICHE'!AZ110=1,'1) INPUT MUTUO'!$C$31,0) -> 0 | N136: =+IF('MATRIX SP. PERIODICHE'!CZ110=1,'1) INPUT MUTUO'!$C$32,0) -> 0 | O136: =IF('MATRIX SP. PERIODICHE'!EZ110=1,'1) INPUT MUTUO'!$C$33,0) -> 0 | P136: =IF('MATRIX SP. PERIODICHE'!GZ110=1,'1) INPUT MUTUO'!$C$34,0) -> 0 | Q136: =IF('MATRIX SP. PERIODICHE'!IZ110=1,'1) INPUT MUTUO'!$C$35,0) -> 0 | R136: 31
A137: =IF($B$3="M",IF(FORMULE!$B$15="OK",EOMONTH('2) OUTPUT PIANO'!A136,1),EDATE('2) OUTPUT PIANO'!A136,1)),IF($B$3="T",IF(FORMULE!$B$15="OK",EOMONTH('2) OUTPUT PIANO'!A136,3),EDATE('2) OUTPUT PIANO'!A136,3)),IF($B$3="S",IF(FORMULE!$B$15="OK",EOMONTH('2) OUTPUT PIANO'!A136,6),EDATE('2) OUTPUT PIANO'!A136,6)),IF($B$3="A",+IF(FORMULE!$B$15="OK",EOMONTH('2) OUTPUT PIANO'!A136,12),EDATE('2) OUTPUT PIANO'!A136,12)),"ERRORE")))) -> 2019-01-01 | B137: =IF(B136=0,0,IF(B136+1<='1) INPUT MUTUO'!$D$10,'2) OUTPUT PIANO'!B136+1,0)) -> 0 | D137: =IF(B136=0,0,IF('1) INPUT MUTUO'!$D$7="FRANCESE",F137-E137,'2) OUTPUT PIANO'!$C$17/'1) INPUT MUTUO'!$D$10)) -> 0 | E137: =IF(B137=0,0,IF('1) INPUT MUTUO'!$D$13=360,L136*$C$3,L136*R137*FORMULE!$B$7)) -> 0 | F137: =IF(B137=0,0,IF('1) INPUT MUTUO'!$D$7="ITALIANO",'2) OUTPUT PIANO'!D137+'2) OUTPUT PIANO'!E137,IF(B137>'1) INPUT MUTUO'!$D$10,0,FORMULE!$B$13))) -> 0 | G137: =IF($B$7="SI",IF(F137=0,0,'1) INPUT MUTUO'!$D$19),0) -> 0 | I137: 0 | K137: 0 | L137: 0 | M137: =+IF('MATRIX SP. PERIODICHE'!AZ111=1,'1) INPUT MUTUO'!$C$31,0) -> 0 | N137: =+IF('MATRIX SP. PERIODICHE'!CZ111=1,'1) INPUT MUTUO'!$C$32,0) -> 0 | O137: =IF('MATRIX SP. PERIODICHE'!EZ111=1,'1) INPUT MUTUO'!$C$33,0) -> 0 | P137: =IF('MATRIX SP. PERIODICHE'!GZ111=1,'1) INPUT MUTUO'!$C$34,0) -> 0 | Q137: =IF('MATRIX SP. PERIODICHE'!IZ111=1,'1) INPUT MUTUO'!$C$35,0) -> 0 | R137: 31
A138: =IF($B$3="M",IF(FORMULE!$B$15="OK",EOMONTH('2) OUTPUT PIANO'!A137,1),EDATE('2) OUTPUT PIANO'!A137,1)),IF($B$3="T",IF(FORMULE!$B$15="OK",EOMONTH('2) OUTPUT PIANO'!A137,3),EDATE('2) OUTPUT PIANO'!A137,3)),IF($B$3="S",IF(FORMULE!$B$15="OK",EOMONTH('2) OUTPUT PIANO'!A137,6),EDATE('2) OUTPUT PIANO'!A137,6)),IF($B$3="A",+IF(FORMULE!$B$15="OK",EOMONTH('2) OUTPUT PIANO'!A137,12),EDATE('2) OUTPUT PIANO'!A137,12)),"ERRORE")))) -> 2019-02-01 | B138: =IF(B137=0,0,IF(B137+1<='1) INPUT MUTUO'!$D$10,'2) OUTPUT PIANO'!B137+1,0)) -> 0 | D138: =IF(B137=0,0,IF('1) INPUT MUTUO'!$D$7="FRANCESE",F138-E138,'2) OUTPUT PIANO'!$C$17/'1) INPUT MUTUO'!$D$10)) -> 0 | E138: =IF(B138=0,0,IF('1) INPUT MUTUO'!$D$13=360,L137*$C$3,L137*R138*FORMULE!$B$7)) -> 0 | F138: =IF(B138=0,0,IF('1) INPUT MUTUO'!$D$7="ITALIANO",'2) OUTPUT PIANO'!D138+'2) OUTPUT PIANO'!E138,IF(B138>'1) INPUT MUTUO'!$D$10,0,FORMULE!$B$13))) -> 0 | G138: =IF($B$7="SI",IF(F138=0,0,'1) INPUT MUTUO'!$D$19),0) -> 0 | I138: 0 | K138: 0 | L138: 0 | M138: =+IF('MATRIX SP. PERIODICHE'!AZ112=1,'1) INPUT MUTUO'!$C$31,0) -> 0 | N138: =+IF('MATRIX SP. PERIODICHE'!CZ112=1,'1) INPUT MUTUO'!$C$32,0) -> 0 | O138: =IF('MATRIX SP. PERIODICHE'!EZ112=1,'1) INPUT MUTUO'!$C$33,0) -> 0 | P138: =IF('MATRIX SP. PERIODICHE'!GZ112=1,'1) INPUT MUTUO'!$C$34,0) -> 0 | Q138: =IF('MATRIX SP. PERIODICHE'!IZ112=1,'1) INPUT MUTUO'!$C$35,0) -> 0 | R138: 28
A139: =IF($B$3="M",IF(FORMULE!$B$15="OK",EOMONTH('2) OUTPUT PIANO'!A138,1),EDATE('2) OUTPUT PIANO'!A138,1)),IF($B$3="T",IF(FORMULE!$B$15="OK",EOMONTH('2) OUTPUT PIANO'!A138,3),EDATE('2) OUTPUT PIANO'!A138,3)),IF($B$3="S",IF(FORMULE!$B$15="OK",EOMONTH('2) OUTPUT PIANO'!A138,6),EDATE('2) OUTPUT PIANO'!A138,6)),IF($B$3="A",+IF(FORMULE!$B$15="OK",EOMONTH('2) OUTPUT PIANO'!A138,12),EDATE('2) OUTPUT PIANO'!A138,12)),"ERRORE")))) -> 2019-03-01 | B139: =IF(B138=0,0,IF(B138+1<='1) INPUT MUTUO'!$D$10,'2) OUTPUT PIANO'!B138+1,0)) -> 0 | D139: =IF(B138=0,0,IF('1) INPUT MUTUO'!$D$7="FRANCESE",F139-E139,'2) OUTPUT PIANO'!$C$17/'1) INPUT MUTUO'!$D$10)) -> 0 | E139: =IF(B139=0,0,IF('1) INPUT MUTUO'!$D$13=360,L138*$C$3,L138*R139*FORMULE!$B$7)) -> 0 | F139: =IF(B139=0,0,IF('1) INPUT MUTUO'!$D$7="ITALIANO",'2) OUTPUT PIANO'!D139+'2) OUTPUT PIANO'!E139,IF(B139>'1) INPUT MUTUO'!$D$10,0,FORMULE!$B$13))) -> 0 | G139: =IF($B$7="SI",IF(F139=0,0,'1) INPUT MUTUO'!$D$19),0) -> 0 | I139: 0 | K139: 0 | L139: 0 | M139: =+IF('MATRIX SP. PERIODICHE'!AZ113=1,'1) INPUT MUTUO'!$C$31,0) -> 0 | N139: =+IF('MATRIX SP. PERIODICHE'!CZ113=1,'1) INPUT MUTUO'!$C$32,0) -> 0 | O139: =IF('MATRIX SP. PERIODICHE'!EZ113=1,'1) INPUT MUTUO'!$C$33,0) -> 0 | P139: =IF('MATRIX SP. PERIODICHE'!GZ113=1,'1) INPUT MUTUO'!$C$34,0) -> 0 | Q139: =IF('MATRIX SP. PERIODICHE'!IZ113=1,'1) INPUT MUTUO'!$C$35,0) -> 0 | R139: 31
A140: =IF($B$3="M",IF(FORMULE!$B$15="OK",EOMONTH('2) OUTPUT PIANO'!A139,1),EDATE('2) OUTPUT PIANO'!A139,1)),IF($B$3="T",IF(FORMULE!$B$15="OK",EOMONTH('2) OUTPUT PIANO'!A139,3),EDATE('2) OUTPUT PIANO'!A139,3)),IF($B$3="S",IF(FORMULE!$B$15="OK",EOMONTH('2) OUTPUT PIANO'!A139,6),EDATE('2) OUTPUT PIANO'!A139,6)),IF($B$3="A",+IF(FORMULE!$B$15="OK",EOMONTH('2) OUTPUT PIANO'!A139,12),EDATE('2) OUTPUT PIANO'!A139,12)),"ERRORE")))) -> 2019-04-01 | B140: =IF(B139=0,0,IF(B139+1<='1) INPUT MUTUO'!$D$10,'2) OUTPUT PIANO'!B139+1,0)) -> 0 | D140: =IF(B139=0,0,IF('1) INPUT MUTUO'!$D$7="FRANCESE",F140-E140,'2) OUTPUT PIANO'!$C$17/'1) INPUT MUTUO'!$D$10)) -> 0 | E140: =IF(B140=0,0,IF('1) INPUT MUTUO'!$D$13=360,L139*$C$3,L139*R140*FORMULE!$B$7)) -> 0 | F140: =IF(B140=0,0,IF('1) INPUT MUTUO'!$D$7="ITALIANO",'2) OUTPUT PIANO'!D140+'2) OUTPUT PIANO'!E140,IF(B140>'1) INPUT MUTUO'!$D$10,0,FORMULE!$B$13))) -> 0 | G140: =IF($B$7="SI",IF(F140=0,0,'1) INPUT MUTUO'!$D$19),0) -> 0 | I140: 0 | K140: 0 | L140: 0 | M140: =+IF('MATRIX SP. PERIODICHE'!AZ114=1,'1) INPUT MUTUO'!$C$31,0) -> 0 | N140: =+IF('MATRIX SP. PERIODICHE'!CZ114=1,'1) INPUT MUTUO'!$C$32,0) -> 0 | O140: =IF('MATRIX SP. PERIODICHE'!EZ114=1,'1) INPUT MUTUO'!$C$33,0) -> 0 | P140: =IF('MATRIX SP. PERIODICHE'!GZ114=1,'1) INPUT MUTUO'!$C$34,0) -> 0 | Q140: =IF('MATRIX SP. PERIODICHE'!IZ114=1,'1) INPUT MUTUO'!$C$35,0) -> 0 | R140: 30
A141: =IF($B$3="M",IF(FORMULE!$B$15="OK",EOMONTH('2) OUTPUT PIANO'!A140,1),EDATE('2) OUTPUT PIANO'!A140,1)),IF($B$3="T",IF(FORMULE!$B$15="OK",EOMONTH('2) OUTPUT PIANO'!A140,3),EDATE('2) OUTPUT PIANO'!A140,3)),IF($B$3="S",IF(FORMULE!$B$15="OK",EOMONTH('2) OUTPUT PIANO'!A140,6),EDATE('2) OUTPUT PIANO'!A140,6)),IF($B$3="A",+IF(FORMULE!$B$15="OK",EOMONTH('2) OUTPUT PIANO'!A140,12),EDATE('2) OUTPUT PIANO'!A140,12)),"ERRORE")))) -> 2019-05-01 | B141: =IF(B140=0,0,IF(B140+1<='1) INPUT MUTUO'!$D$10,'2) OUTPUT PIANO'!B140+1,0)) -> 0 | D141: =IF(B140=0,0,IF('1) INPUT MUTUO'!$D$7="FRANCESE",F141-E141,'2) OUTPUT PIANO'!$C$17/'1) INPUT MUTUO'!$D$10)) -> 0 | E141: =IF(B141=0,0,IF('1) INPUT MUTUO'!$D$13=360,L140*$C$3,L140*R141*FORMULE!$B$7)) -> 0 | F141: =IF(B141=0,0,IF('1) INPUT MUTUO'!$D$7="ITALIANO",'2) OUTPUT PIANO'!D141+'2) OUTPUT PIANO'!E141,IF(B141>'1) INPUT MUTUO'!$D$10,0,FORMULE!$B$13))) -> 0 | G141: =IF($B$7="SI",IF(F141=0,0,'1) INPUT MUTUO'!$D$19),0) -> 0 | I141: 0 | K141: 0 | L141: 0 | M141: =+IF('MATRIX SP. PERIODICHE'!AZ115=1,'1) INPUT MUTUO'!$C$31,0) -> 0 | N141: =+IF('MATRIX SP. PERIODICHE'!CZ115=1,'1) INPUT MUTUO'!$C$32,0) -> 0 | O141: =IF('MATRIX SP. PERIODICHE'!EZ115=1,'1) INPUT MUTUO'!$C$33,0) -> 0 | P141: =IF('MATRIX SP. PERIODICHE'!GZ115=1,'1) INPUT MUTUO'!$C$34,0) -> 0 | Q141: =IF('MATRIX SP. PERIODICHE'!IZ115=1,'1) INPUT MUTUO'!$C$35,0) -> 0 | R141: 31
A142: =IF($B$3="M",IF(FORMULE!$B$15="OK",EOMONTH('2) OUTPUT PIANO'!A141,1),EDATE('2) OUTPUT PIANO'!A141,1)),IF($B$3="T",IF(FORMULE!$B$15="OK",EOMONTH('2) OUTPUT PIANO'!A141,3),EDATE('2) OUTPUT PIANO'!A141,3)),IF($B$3="S",IF(FORMULE!$B$15="OK",EOMONTH('2) OUTPUT PIANO'!A141,6),EDATE('2) OUTPUT PIANO'!A141,6)),IF($B$3="A",+IF(FORMULE!$B$15="OK",EOMONTH('2) OUTPUT PIANO'!A141,12),EDATE('2) OUTPUT PIANO'!A141,12)),"ERRORE")))) -> 2019-06-01 | B142: =IF(B141=0,0,IF(B141+1<='1) INPUT MUTUO'!$D$10,'2) OUTPUT PIANO'!B141+1,0)) -> 0 | D142: =IF(B141=0,0,IF('1) INPUT MUTUO'!$D$7="FRANCESE",F142-E142,'2) OUTPUT PIANO'!$C$17/'1) INPUT MUTUO'!$D$10)) -> 0 | E142: =IF(B142=0,0,IF('1) INPUT MUTUO'!$D$13=360,L141*$C$3,L141*R142*FORMULE!$B$7)) -> 0 | F142: =IF(B142=0,0,IF('1) INPUT MUTUO'!$D$7="ITALIANO",'2) OUTPUT PIANO'!D142+'2) OUTPUT PIANO'!E142,IF(B142>'1) INPUT MUTUO'!$D$10,0,FORMULE!$B$13))) -> 0 | G142: =IF($B$7="SI",IF(F142=0,0,'1) INPUT MUTUO'!$D$19),0) -> 0 | I142: 0 | K142: 0 | L142: 0 | M142: =+IF('MATRIX SP. PERIODICHE'!AZ116=1,'1) INPUT MUTUO'!$C$31,0) -> 0 | N142: =+IF('MATRIX SP. PERIODICHE'!CZ116=1,'1) INPUT MUTUO'!$C$32,0) -> 0 | O142: =IF('MATRIX SP. PERIODICHE'!EZ116=1,'1) INPUT MUTUO'!$C$33,0) -> 0 | P142: =IF('MATRIX SP. PERIODICHE'!GZ116=1,'1) INPUT MUTUO'!$C$34,0) -> 0 | Q142: =IF('MATRIX SP. PERIODICHE'!IZ116=1,'1) INPUT MUTUO'!$C$35,0) -> 0 | R142: 30
A143: =IF($B$3="M",IF(FORMULE!$B$15="OK",EOMONTH('2) OUTPUT PIANO'!A142,1),EDATE('2) OUTPUT PIANO'!A142,1)),IF($B$3="T",IF(FORMULE!$B$15="OK",EOMONTH('2) OUTPUT PIANO'!A142,3),EDATE('2) OUTPUT PIANO'!A142,3)),IF($B$3="S",IF(FORMULE!$B$15="OK",EOMONTH('2) OUTPUT PIANO'!A142,6),EDATE('2) OUTPUT PIANO'!A142,6)),IF($B$3="A",+IF(FORMULE!$B$15="OK",EOMONTH('2) OUTPUT PIANO'!A142,12),EDATE('2) OUTPUT PIANO'!A142,12)),"ERRORE")))) -> 2019-07-01 | B143: =IF(B142=0,0,IF(B142+1<='1) INPUT MUTUO'!$D$10,'2) OUTPUT PIANO'!B142+1,0)) -> 0 | D143: =IF(B142=0,0,IF('1) INPUT MUTUO'!$D$7="FRANCESE",F143-E143,'2) OUTPUT PIANO'!$C$17/'1) INPUT MUTUO'!$D$10)) -> 0 | E143: =IF(B143=0,0,IF('1) INPUT MUTUO'!$D$13=360,L142*$C$3,L142*R143*FORMULE!$B$7)) -> 0 | F143: =IF(B143=0,0,IF('1) INPUT MUTUO'!$D$7="ITALIANO",'2) OUTPUT PIANO'!D143+'2) OUTPUT PIANO'!E143,IF(B143>'1) INPUT MUTUO'!$D$10,0,FORMULE!$B$13))) -> 0 | G143: =IF($B$7="SI",IF(F143=0,0,'1) INPUT MUTUO'!$D$19),0) -> 0 | I143: 0 | K143: 0 | L143: 0 | M143: =+IF('MATRIX SP. PERIODICHE'!AZ117=1,'1) INPUT MUTUO'!$C$31,0) -> 0 | N143: =+IF('MATRIX SP. PERIODICHE'!CZ117=1,'1) INPUT MUTUO'!$C$32,0) -> 0 | O143: =IF('MATRIX SP. PERIODICHE'!EZ117=1,'1) INPUT MUTUO'!$C$33,0) -> 0 | P143: =IF('MATRIX SP. PERIODICHE'!GZ117=1,'1) INPUT MUTUO'!$C$34,0) -> 0 | Q143: =IF('MATRIX SP. PERIODICHE'!IZ117=1,'1) INPUT MUTUO'!$C$35,0) -> 0 | R143: 31
A144: =IF($B$3="M",IF(FORMULE!$B$15="OK",EOMONTH('2) OUTPUT PIANO'!A143,1),EDATE('2) OUTPUT PIANO'!A143,1)),IF($B$3="T",IF(FORMULE!$B$15="OK",EOMONTH('2) OUTPUT PIANO'!A143,3),EDATE('2) OUTPUT PIANO'!A143,3)),IF($B$3="S",IF(FORMULE!$B$15="OK",EOMONTH('2) OUTPUT PIANO'!A143,6),EDATE('2) OUTPUT PIANO'!A143,6)),IF($B$3="A",+IF(FORMULE!$B$15="OK",EOMONTH('2) OUTPUT PIANO'!A143,12),EDATE('2) OUTPUT PIANO'!A143,12)),"ERRORE")))) -> 2019-08-01 | B144: =IF(B143=0,0,IF(B143+1<='1) INPUT MUTUO'!$D$10,'2) OUTPUT PIANO'!B143+1,0)) -> 0 | D144: =IF(B143=0,0,IF('1) INPUT MUTUO'!$D$7="FRANCESE",F144-E144,'2) OUTPUT PIANO'!$C$17/'1) INPUT MUTUO'!$D$10)) -> 0 | E144: =IF(B144=0,0,IF('1) INPUT MUTUO'!$D$13=360,L143*$C$3,L143*R144*FORMULE!$B$7)) -> 0 | F144: =IF(B144=0,0,IF('1) INPUT MUTUO'!$D$7="ITALIANO",'2) OUTPUT PIANO'!D144+'2) OUTPUT PIANO'!E144,IF(B144>'1) INPUT MUTUO'!$D$10,0,FORMULE!$B$13))) -> 0 | G144: =IF($B$7="SI",IF(F144=0,0,'1) INPUT MUTUO'!$D$19),0) -> 0 | I144: 0 | K144: 0 | L144: 0 | M144: =+IF('MATRIX SP. PERIODICHE'!AZ118=1,'1) INPUT MUTUO'!$C$31,0) -> 0 | N144: =+IF('MATRIX SP. PERIODICHE'!CZ118=1,'1) INPUT MUTUO'!$C$32,0) -> 0 | O144: =IF('MATRIX SP. PERIODICHE'!EZ118=1,'1) INPUT MUTUO'!$C$33,0) -> 0 | P144: =IF('MATRIX SP. PERIODICHE'!GZ118=1,'1) INPUT MUTUO'!$C$34,0) -> 0 | Q144: =IF('MATRIX SP. PERIODICHE'!IZ118=1,'1) INPUT MUTUO'!$C$35,0) -> 0 | R144: 31
A145: =IF($B$3="M",IF(FORMULE!$B$15="OK",EOMONTH('2) OUTPUT PIANO'!A144,1),EDATE('2) OUTPUT PIANO'!A144,1)),IF($B$3="T",IF(FORMULE!$B$15="OK",EOMONTH('2) OUTPUT PIANO'!A144,3),EDATE('2) OUTPUT PIANO'!A144,3)),IF($B$3="S",IF(FORMULE!$B$15="OK",EOMONTH('2) OUTPUT PIANO'!A144,6),EDATE('2) OUTPUT PIANO'!A144,6)),IF($B$3="A",+IF(FORMULE!$B$15="OK",EOMONTH('2) OUTPUT PIANO'!A144,12),EDATE('2) OUTPUT PIANO'!A144,12)),"ERRORE")))) -> 2019-09-01 | B145: =IF(B144=0,0,IF(B144+1<='1) INPUT MUTUO'!$D$10,'2) OUTPUT PIANO'!B144+1,0)) -> 0 | D145: =IF(B144=0,0,IF('1) INPUT MUTUO'!$D$7="FRANCESE",F145-E145,'2) OUTPUT PIANO'!$C$17/'1) INPUT MUTUO'!$D$10)) -> 0 | E145: =IF(B145=0,0,IF('1) INPUT MUTUO'!$D$13=360,L144*$C$3,L144*R145*FORMULE!$B$7)) -> 0 | F145: =IF(B145=0,0,IF('1) INPUT MUTUO'!$D$7="ITALIANO",'2) OUTPUT PIANO'!D145+'2) OUTPUT PIANO'!E145,IF(B145>'1) INPUT MUTUO'!$D$10,0,FORMULE!$B$13))) -> 0 | G145: =IF($B$7="SI",IF(F145=0,0,'1) INPUT MUTUO'!$D$19),0) -> 0 | I145: 0 | K145: 0 | L145: 0 | M145: =+IF('MATRIX SP. PERIODICHE'!AZ119=1,'1) INPUT MUTUO'!$C$31,0) -> 0 | N145: =+IF('MATRIX SP. PERIODICHE'!CZ119=1,'1) INPUT MUTUO'!$C$32,0) -> 0 | O145: =IF('MATRIX SP. PERIODICHE'!EZ119=1,'1) INPUT MUTUO'!$C$33,0) -> 0 | P145: =IF('MATRIX SP. PERIODICHE'!GZ119=1,'1) INPUT MUTUO'!$C$34,0) -> 0 | Q145: =IF('MATRIX SP. PERIODICHE'!IZ119=1,'1) INPUT MUTUO'!$C$35,0) -> 0 | R145: 30
A146: =IF($B$3="M",IF(FORMULE!$B$15="OK",EOMONTH('2) OUTPUT PIANO'!A145,1),EDATE('2) OUTPUT PIANO'!A145,1)),IF($B$3="T",IF(FORMULE!$B$15="OK",EOMONTH('2) OUTPUT PIANO'!A145,3),EDATE('2) OUTPUT PIANO'!A145,3)),IF($B$3="S",IF(FORMULE!$B$15="OK",EOMONTH('2) OUTPUT PIANO'!A145,6),EDATE('2) OUTPUT PIANO'!A145,6)),IF($B$3="A",+IF(FORMULE!$B$15="OK",EOMONTH('2) OUTPUT PIANO'!A145,12),EDATE('2) OUTPUT PIANO'!A145,12)),"ERRORE")))) -> 2019-10-01 | B146: =IF(B145=0,0,IF(B145+1<='1) INPUT MUTUO'!$D$10,'2) OUTPUT PIANO'!B145+1,0)) -> 0 | D146: =IF(B145=0,0,IF('1) INPUT MUTUO'!$D$7="FRANCESE",F146-E146,'2) OUTPUT PIANO'!$C$17/'1) INPUT MUTUO'!$D$10)) -> 0 | E146: =IF(B146=0,0,IF('1) INPUT MUTUO'!$D$13=360,L145*$C$3,L145*R146*FORMULE!$B$7)) -> 0 | F146: =IF(B146=0,0,IF('1) INPUT MUTUO'!$D$7="ITALIANO",'2) OUTPUT PIANO'!D146+'2) OUTPUT PIANO'!E146,IF(B146>'1) INPUT MUTUO'!$D$10,0,FORMULE!$B$13))) -> 0 | G146: =IF($B$7="SI",IF(F146=0,0,'1) INPUT MUTUO'!$D$19),0) -> 0 | I146: 0 | K146: 0 | L146: 0 | M146: =+IF('MATRIX SP. PERIODICHE'!AZ120=1,'1) INPUT MUTUO'!$C$31,0) -> 0 | N146: =+IF('MATRIX SP. PERIODICHE'!CZ120=1,'1) INPUT MUTUO'!$C$32,0) -> 0 | O146: =IF('MATRIX SP. PERIODICHE'!EZ120=1,'1) INPUT MUTUO'!$C$33,0) -> 0 | P146: =IF('MATRIX SP. PERIODICHE'!GZ120=1,'1) INPUT MUTUO'!$C$34,0) -> 0 | Q146: =IF('MATRIX SP. PERIODICHE'!IZ120=1,'1) INPUT MUTUO'!$C$35,0) -> 0 | R146: 31
A147: =IF($B$3="M",IF(FORMULE!$B$15="OK",EOMONTH('2) OUTPUT PIANO'!A146,1),EDATE('2) OUTPUT PIANO'!A146,1)),IF($B$3="T",IF(FORMULE!$B$15="OK",EOMONTH('2) OUTPUT PIANO'!A146,3),EDATE('2) OUTPUT PIANO'!A146,3)),IF($B$3="S",IF(FORMULE!$B$15="OK",EOMONTH('2) OUTPUT PIANO'!A146,6),EDATE('2) OUTPUT PIANO'!A146,6)),IF($B$3="A",+IF(FORMULE!$B$15="OK",EOMONTH('2) OUTPUT PIANO'!A146,12),EDATE('2) OUTPUT PIANO'!A146,12)),"ERRORE")))) -> 2019-11-01 | B147: =IF(B146=0,0,IF(B146+1<='1) INPUT MUTUO'!$D$10,'2) OUTPUT PIANO'!B146+1,0)) -> 0 | D147: =IF(B146=0,0,IF('1) INPUT MUTUO'!$D$7="FRANCESE",F147-E147,'2) OUTPUT PIANO'!$C$17/'1) INPUT MUTUO'!$D$10)) -> 0 | E147: =IF(B147=0,0,IF('1) INPUT MUTUO'!$D$13=360,L146*$C$3,L146*R147*FORMULE!$B$7)) -> 0 | F147: =IF(B147=0,0,IF('1) INPUT MUTUO'!$D$7="ITALIANO",'2) OUTPUT PIANO'!D147+'2) OUTPUT PIANO'!E147,IF(B147>'1) INPUT MUTUO'!$D$10,0,FORMULE!$B$13))) -> 0 | G147: =IF($B$7="SI",IF(F147=0,0,'1) INPUT MUTUO'!$D$19),0) -> 0 | I147: 0 | K147: 0 | L147: 0 | M147: =+IF('MATRIX SP. PERIODICHE'!AZ121=1,'1) INPUT MUTUO'!$C$31,0) -> 0 | N147: =+IF('MATRIX SP. PERIODICHE'!CZ121=1,'1) INPUT MUTUO'!$C$32,0) -> 0 | O147: =IF('MATRIX SP. PERIODICHE'!EZ121=1,'1) INPUT MUTUO'!$C$33,0) -> 0 | P147: =IF('MATRIX SP. PERIODICHE'!GZ121=1,'1) INPUT MUTUO'!$C$34,0) -> 0 | Q147: =IF('MATRIX SP. PERIODICHE'!IZ121=1,'1) INPUT MUTUO'!$C$35,0) -> 0 | R147: 30
A148: =IF($B$3="M",IF(FORMULE!$B$15="OK",EOMONTH('2) OUTPUT PIANO'!A147,1),EDATE('2) OUTPUT PIANO'!A147,1)),IF($B$3="T",IF(FORMULE!$B$15="OK",EOMONTH('2) OUTPUT PIANO'!A147,3),EDATE('2) OUTPUT PIANO'!A147,3)),IF($B$3="S",IF(FORMULE!$B$15="OK",EOMONTH('2) OUTPUT PIANO'!A147,6),EDATE('2) OUTPUT PIANO'!A147,6)),IF($B$3="A",+IF(FORMULE!$B$15="OK",EOMONTH('2) OUTPUT PIANO'!A147,12),EDATE('2) OUTPUT PIANO'!A147,12)),"ERRORE")))) -> 2019-12-01 | B148: =IF(B147=0,0,IF(B147+1<='1) INPUT MUTUO'!$D$10,'2) OUTPUT PIANO'!B147+1,0)) -> 0 | D148: =IF(B147=0,0,IF('1) INPUT MUTUO'!$D$7="FRANCESE",F148-E148,'2) OUTPUT PIANO'!$C$17/'1) INPUT MUTUO'!$D$10)) -> 0 | E148: =IF(B148=0,0,IF('1) INPUT MUTUO'!$D$13=360,L147*$C$3,L147*R148*FORMULE!$B$7)) -> 0 | F148: =IF(B148=0,0,IF('1) INPUT MUTUO'!$D$7="ITALIANO",'2) OUTPUT PIANO'!D148+'2) OUTPUT PIANO'!E148,IF(B148>'1) INPUT MUTUO'!$D$10,0,FORMULE!$B$13))) -> 0 | G148: =IF($B$7="SI",IF(F148=0,0,'1) INPUT MUTUO'!$D$19),0) -> 0 | I148: 0 | K148: 0 | L148: 0 | M148: =+IF('MATRIX SP. PERIODICHE'!AZ122=1,'1) INPUT MUTUO'!$C$31,0) -> 0 | N148: =+IF('MATRIX SP. PERIODICHE'!CZ122=1,'1) INPUT MUTUO'!$C$32,0) -> 0 | O148: =IF('MATRIX SP. PERIODICHE'!EZ122=1,'1) INPUT MUTUO'!$C$33,0) -> 0 | P148: =IF('MATRIX SP. PERIODICHE'!GZ122=1,'1) INPUT MUTUO'!$C$34,0) -> 0 | Q148: =IF('MATRIX SP. PERIODICHE'!IZ122=1,'1) INPUT MUTUO'!$C$35,0) -> 0 | R148: 31
A149: =IF($B$3="M",IF(FORMULE!$B$15="OK",EOMONTH('2) OUTPUT PIANO'!A148,1),EDATE('2) OUTPUT PIANO'!A148,1)),IF($B$3="T",IF(FORMULE!$B$15="OK",EOMONTH('2) OUTPUT PIANO'!A148,3),EDATE('2) OUTPUT PIANO'!A148,3)),IF($B$3="S",IF(FORMULE!$B$15="OK",EOMONTH('2) OUTPUT PIANO'!A148,6),EDATE('2) OUTPUT PIANO'!A148,6)),IF($B$3="A",+IF(FORMULE!$B$15="OK",EOMONTH('2) OUTPUT PIANO'!A148,12),EDATE('2) OUTPUT PIANO'!A148,12)),"ERRORE")))) -> 2020-01-01 | B149: =IF(B148=0,0,IF(B148+1<='1) INPUT MUTUO'!$D$10,'2) OUTPUT PIANO'!B148+1,0)) -> 0 | D149: =IF(B148=0,0,IF('1) INPUT MUTUO'!$D$7="FRANCESE",F149-E149,'2) OUTPUT PIANO'!$C$17/'1) INPUT MUTUO'!$D$10)) -> 0 | E149: =IF(B149=0,0,IF('1) INPUT MUTUO'!$D$13=360,L148*$C$3,L148*R149*FORMULE!$B$7)) -> 0 | F149: =IF(B149=0,0,IF('1) INPUT MUTUO'!$D$7="ITALIANO",'2) OUTPUT PIANO'!D149+'2) OUTPUT PIANO'!E149,IF(B149>'1) INPUT MUTUO'!$D$10,0,FORMULE!$B$13))) -> 0 | G149: =IF($B$7="SI",IF(F149=0,0,'1) INPUT MUTUO'!$D$19),0) -> 0 | I149: 0 | K149: 0 | L149: 0 | M149: =+IF('MATRIX SP. PERIODICHE'!AZ123=1,'1) INPUT MUTUO'!$C$31,0) -> 0 | N149: =+IF('MATRIX SP. PERIODICHE'!CZ123=1,'1) INPUT MUTUO'!$C$32,0) -> 0 | O149: =IF('MATRIX SP. PERIODICHE'!EZ123=1,'1) INPUT MUTUO'!$C$33,0) -> 0 | P149: =IF('MATRIX SP. PERIODICHE'!GZ123=1,'1) INPUT MUTUO'!$C$34,0) -> 0 | Q149: =IF('MATRIX SP. PERIODICHE'!IZ123=1,'1) INPUT MUTUO'!$C$35,0) -> 0 | R149: 31
A150: =IF($B$3="M",IF(FORMULE!$B$15="OK",EOMONTH('2) OUTPUT PIANO'!A149,1),EDATE('2) OUTPUT PIANO'!A149,1)),IF($B$3="T",IF(FORMULE!$B$15="OK",EOMONTH('2) OUTPUT PIANO'!A149,3),EDATE('2) OUTPUT PIANO'!A149,3)),IF($B$3="S",IF(FORMULE!$B$15="OK",EOMONTH('2) OUTPUT PIANO'!A149,6),EDATE('2) OUTPUT PIANO'!A149,6)),IF($B$3="A",+IF(FORMULE!$B$15="OK",EOMONTH('2) OUTPUT PIANO'!A149,12),EDATE('2) OUTPUT PIANO'!A149,12)),"ERRORE")))) -> 2020-02-01 | B150: =IF(B149=0,0,IF(B149+1<='1) INPUT MUTUO'!$D$10,'2) OUTPUT PIANO'!B149+1,0)) -> 0 | D150: =IF(B149=0,0,IF('1) INPUT MUTUO'!$D$7="FRANCESE",F150-E150,'2) OUTPUT PIANO'!$C$17/'1) INPUT MUTUO'!$D$10)) -> 0 | E150: =IF(B150=0,0,IF('1) INPUT MUTUO'!$D$13=360,L149*$C$3,L149*R150*FORMULE!$B$7)) -> 0 | F150: =IF(B150=0,0,IF('1) INPUT MUTUO'!$D$7="ITALIANO",'2) OUTPUT PIANO'!D150+'2) OUTPUT PIANO'!E150,IF(B150>'1) INPUT MUTUO'!$D$10,0,FORMULE!$B$13))) -> 0 | G150: =IF($B$7="SI",IF(F150=0,0,'1) INPUT MUTUO'!$D$19),0) -> 0 | I150: 0 | K150: 0 | L150: 0 | M150: =+IF('MATRIX SP. PERIODICHE'!AZ124=1,'1) INPUT MUTUO'!$C$31,0) -> 0 | N150: =+IF('MATRIX SP. PERIODICHE'!CZ124=1,'1) INPUT MUTUO'!$C$32,0) -> 0 | O150: =IF('MATRIX SP. PERIODICHE'!EZ124=1,'1) INPUT MUTUO'!$C$33,0) -> 0 | P150: =IF('MATRIX SP. PERIODICHE'!GZ124=1,'1) INPUT MUTUO'!$C$34,0) -> 0 | Q150: =IF('MATRIX SP. PERIODICHE'!IZ124=1,'1) INPUT MUTUO'!$C$35,0) -> 0 | R150: 29
A151: =IF($B$3="M",IF(FORMULE!$B$15="OK",EOMONTH('2) OUTPUT PIANO'!A150,1),EDATE('2) OUTPUT PIANO'!A150,1)),IF($B$3="T",IF(FORMULE!$B$15="OK",EOMONTH('2) OUTPUT PIANO'!A150,3),EDATE('2) OUTPUT PIANO'!A150,3)),IF($B$3="S",IF(FORMULE!$B$15="OK",EOMONTH('2) OUTPUT PIANO'!A150,6),EDATE('2) OUTPUT PIANO'!A150,6)),IF($B$3="A",+IF(FORMULE!$B$15="OK",EOMONTH('2) OUTPUT PIANO'!A150,12),EDATE('2) OUTPUT PIANO'!A150,12)),"ERRORE")))) -> 2020-03-01 | B151: =IF(B150=0,0,IF(B150+1<='1) INPUT MUTUO'!$D$10,'2) OUTPUT PIANO'!B150+1,0)) -> 0 | D151: =IF(B150=0,0,IF('1) INPUT MUTUO'!$D$7="FRANCESE",F151-E151,'2) OUTPUT PIANO'!$C$17/'1) INPUT MUTUO'!$D$10)) -> 0 | E151: =IF(B151=0,0,IF('1) INPUT MUTUO'!$D$13=360,L150*$C$3,L150*R151*FORMULE!$B$7)) -> 0 | F151: =IF(B151=0,0,IF('1) INPUT MUTUO'!$D$7="ITALIANO",'2) OUTPUT PIANO'!D151+'2) OUTPUT PIANO'!E151,IF(B151>'1) INPUT MUTUO'!$D$10,0,FORMULE!$B$13))) -> 0 | G151: =IF($B$7="SI",IF(F151=0,0,'1) INPUT MUTUO'!$D$19),0) -> 0 | I151: 0 | K151: 0 | L151: 0 | M151: =+IF('MATRIX SP. PERIODICHE'!AZ125=1,'1) INPUT MUTUO'!$C$31,0) -> 0 | N151: =+IF('MATRIX SP. PERIODICHE'!CZ125=1,'1) INPUT MUTUO'!$C$32,0) -> 0 | O151: =IF('MATRIX SP. PERIODICHE'!EZ125=1,'1) INPUT MUTUO'!$C$33,0) -> 0 | P151: =IF('MATRIX SP. PERIODICHE'!GZ125=1,'1) INPUT MUTUO'!$C$34,0) -> 0 | Q151: =IF('MATRIX SP. PERIODICHE'!IZ125=1,'1) INPUT MUTUO'!$C$35,0) -> 0 | R151: 31
A152: =IF($B$3="M",IF(FORMULE!$B$15="OK",EOMONTH('2) OUTPUT PIANO'!A151,1),EDATE('2) OUTPUT PIANO'!A151,1)),IF($B$3="T",IF(FORMULE!$B$15="OK",EOMONTH('2) OUTPUT PIANO'!A151,3),EDATE('2) OUTPUT PIANO'!A151,3)),IF($B$3="S",IF(FORMULE!$B$15="OK",EOMONTH('2) OUTPUT PIANO'!A151,6),EDATE('2) OUTPUT PIANO'!A151,6)),IF($B$3="A",+IF(FORMULE!$B$15="OK",EOMONTH('2) OUTPUT PIANO'!A151,12),EDATE('2) OUTPUT PIANO'!A151,12)),"ERRORE")))) -> 2020-04-01 | B152: =IF(B151=0,0,IF(B151+1<='1) INPUT MUTUO'!$D$10,'2) OUTPUT PIANO'!B151+1,0)) -> 0 | D152: =IF(B151=0,0,IF('1) INPUT MUTUO'!$D$7="FRANCESE",F152-E152,'2) OUTPUT PIANO'!$C$17/'1) INPUT MUTUO'!$D$10)) -> 0 | E152: =IF(B152=0,0,IF('1) INPUT MUTUO'!$D$13=360,L151*$C$3,L151*R152*FORMULE!$B$7)) -> 0 | F152: =IF(B152=0,0,IF('1) INPUT MUTUO'!$D$7="ITALIANO",'2) OUTPUT PIANO'!D152+'2) OUTPUT PIANO'!E152,IF(B152>'1) INPUT MUTUO'!$D$10,0,FORMULE!$B$13))) -> 0 | G152: =IF($B$7="SI",IF(F152=0,0,'1) INPUT MUTUO'!$D$19),0) -> 0 | I152: 0 | K152: 0 | L152: 0 | M152: =+IF('MATRIX SP. PERIODICHE'!AZ126=1,'1) INPUT MUTUO'!$C$31,0) -> 0 | N152: =+IF('MATRIX SP. PERIODICHE'!CZ126=1,'1) INPUT MUTUO'!$C$32,0) -> 0 | O152: =IF('MATRIX SP. PERIODICHE'!EZ126=1,'1) INPUT MUTUO'!$C$33,0) -> 0 | P152: =IF('MATRIX SP. PERIODICHE'!GZ126=1,'1) INPUT MUTUO'!$C$34,0) -> 0 | Q152: =IF('MATRIX SP. PERIODICHE'!IZ126=1,'1) INPUT MUTUO'!$C$35,0) -> 0 | R152: 30
A153: =IF($B$3="M",IF(FORMULE!$B$15="OK",EOMONTH('2) OUTPUT PIANO'!A152,1),EDATE('2) OUTPUT PIANO'!A152,1)),IF($B$3="T",IF(FORMULE!$B$15="OK",EOMONTH('2) OUTPUT PIANO'!A152,3),EDATE('2) OUTPUT PIANO'!A152,3)),IF($B$3="S",IF(FORMULE!$B$15="OK",EOMONTH('2) OUTPUT PIANO'!A152,6),EDATE('2) OUTPUT PIANO'!A152,6)),IF($B$3="A",+IF(FORMULE!$B$15="OK",EOMONTH('2) OUTPUT PIANO'!A152,12),EDATE('2) OUTPUT PIANO'!A152,12)),"ERRORE")))) -> 2020-05-01 | B153: =IF(B152=0,0,IF(B152+1<='1) INPUT MUTUO'!$D$10,'2) OUTPUT PIANO'!B152+1,0)) -> 0 | D153: =IF(B152=0,0,IF('1) INPUT MUTUO'!$D$7="FRANCESE",F153-E153,'2) OUTPUT PIANO'!$C$17/'1) INPUT MUTUO'!$D$10)) -> 0 | E153: =IF(B153=0,0,IF('1) INPUT MUTUO'!$D$13=360,L152*$C$3,L152*R153*FORMULE!$B$7)) -> 0 | F153: =IF(B153=0,0,IF('1) INPUT MUTUO'!$D$7="ITALIANO",'2) OUTPUT PIANO'!D153+'2) OUTPUT PIANO'!E153,IF(B153>'1) INPUT MUTUO'!$D$10,0,FORMULE!$B$13))) -> 0 | G153: =IF($B$7="SI",IF(F153=0,0,'1) INPUT MUTUO'!$D$19),0) -> 0 | I153: 0 | K153: 0 | L153: 0 | M153: =+IF('MATRIX SP. PERIODICHE'!AZ127=1,'1) INPUT MUTUO'!$C$31,0) -> 0 | N153: =+IF('MATRIX SP. PERIODICHE'!CZ127=1,'1) INPUT MUTUO'!$C$32,0) -> 0 | O153: =IF('MATRIX SP. PERIODICHE'!EZ127=1,'1) INPUT MUTUO'!$C$33,0) -> 0 | P153: =IF('MATRIX SP. PERIODICHE'!GZ127=1,'1) INPUT MUTUO'!$C$34,0) -> 0 | Q153: =IF('MATRIX SP. PERIODICHE'!IZ127=1,'1) INPUT MUTUO'!$C$35,0) -> 0 | R153: 31
A154: =IF($B$3="M",IF(FORMULE!$B$15="OK",EOMONTH('2) OUTPUT PIANO'!A153,1),EDATE('2) OUTPUT PIANO'!A153,1)),IF($B$3="T",IF(FORMULE!$B$15="OK",EOMONTH('2) OUTPUT PIANO'!A153,3),EDATE('2) OUTPUT PIANO'!A153,3)),IF($B$3="S",IF(FORMULE!$B$15="OK",EOMONTH('2) OUTPUT PIANO'!A153,6),EDATE('2) OUTPUT PIANO'!A153,6)),IF($B$3="A",+IF(FORMULE!$B$15="OK",EOMONTH('2) OUTPUT PIANO'!A153,12),EDATE('2) OUTPUT PIANO'!A153,12)),"ERRORE")))) -> 2020-06-01 | B154: =IF(B153=0,0,IF(B153+1<='1) INPUT MUTUO'!$D$10,'2) OUTPUT PIANO'!B153+1,0)) -> 0 | D154: =IF(B153=0,0,IF('1) INPUT MUTUO'!$D$7="FRANCESE",F154-E154,'2) OUTPUT PIANO'!$C$17/'1) INPUT MUTUO'!$D$10)) -> 0 | E154: =IF(B154=0,0,IF('1) INPUT MUTUO'!$D$13=360,L153*$C$3,L153*R154*FORMULE!$B$7)) -> 0 | F154: =IF(B154=0,0,IF('1) INPUT MUTUO'!$D$7="ITALIANO",'2) OUTPUT PIANO'!D154+'2) OUTPUT PIANO'!E154,IF(B154>'1) INPUT MUTUO'!$D$10,0,FORMULE!$B$13))) -> 0 | G154: =IF($B$7="SI",IF(F154=0,0,'1) INPUT MUTUO'!$D$19),0) -> 0 | I154: 0 | K154: 0 | L154: 0 | M154: =+IF('MATRIX SP. PERIODICHE'!AZ128=1,'1) INPUT MUTUO'!$C$31,0) -> 0 | N154: =+IF('MATRIX SP. PERIODICHE'!CZ128=1,'1) INPUT MUTUO'!$C$32,0) -> 0 | O154: =IF('MATRIX SP. PERIODICHE'!EZ128=1,'1) INPUT MUTUO'!$C$33,0) -> 0 | P154: =IF('MATRIX SP. PERIODICHE'!GZ128=1,'1) INPUT MUTUO'!$C$34,0) -> 0 | Q154: =IF('MATRIX SP. PERIODICHE'!IZ128=1,'1) INPUT MUTUO'!$C$35,0) -> 0 | R154: 30
A155: =IF($B$3="M",IF(FORMULE!$B$15="OK",EOMONTH('2) OUTPUT PIANO'!A154,1),EDATE('2) OUTPUT PIANO'!A154,1)),IF($B$3="T",IF(FORMULE!$B$15="OK",EOMONTH('2) OUTPUT PIANO'!A154,3),EDATE('2) OUTPUT PIANO'!A154,3)),IF($B$3="S",IF(FORMULE!$B$15="OK",EOMONTH('2) OUTPUT PIANO'!A154,6),EDATE('2) OUTPUT PIANO'!A154,6)),IF($B$3="A",+IF(FORMULE!$B$15="OK",EOMONTH('2) OUTPUT PIANO'!A154,12),EDATE('2) OUTPUT PIANO'!A154,12)),"ERRORE")))) -> 2020-07-01 | B155: =IF(B154=0,0,IF(B154+1<='1) INPUT MUTUO'!$D$10,'2) OUTPUT PIANO'!B154+1,0)) -> 0 | D155: =IF(B154=0,0,IF('1) INPUT MUTUO'!$D$7="FRANCESE",F155-E155,'2) OUTPUT PIANO'!$C$17/'1) INPUT MUTUO'!$D$10)) -> 0 | E155: =IF(B155=0,0,IF('1) INPUT MUTUO'!$D$13=360,L154*$C$3,L154*R155*FORMULE!$B$7)) -> 0 | F155: =IF(B155=0,0,IF('1) INPUT MUTUO'!$D$7="ITALIANO",'2) OUTPUT PIANO'!D155+'2) OUTPUT PIANO'!E155,IF(B155>'1) INPUT MUTUO'!$D$10,0,FORMULE!$B$13))) -> 0 | G155: =IF($B$7="SI",IF(F155=0,0,'1) INPUT MUTUO'!$D$19),0) -> 0 | I155: 0 | K155: 0 | L155: 0 | M155: =+IF('MATRIX SP. PERIODICHE'!AZ129=1,'1) INPUT MUTUO'!$C$31,0) -> 0 | N155: =+IF('MATRIX SP. PERIODICHE'!CZ129=1,'1) INPUT MUTUO'!$C$32,0) -> 0 | O155: =IF('MATRIX SP. PERIODICHE'!EZ129=1,'1) INPUT MUTUO'!$C$33,0) -> 0 | P155: =IF('MATRIX SP. PERIODICHE'!GZ129=1,'1) INPUT MUTUO'!$C$34,0) -> 0 | Q155: =IF('MATRIX SP. PERIODICHE'!IZ129=1,'1) INPUT MUTUO'!$C$35,0) -> 0 | R155: 31
A156: =IF($B$3="M",IF(FORMULE!$B$15="OK",EOMONTH('2) OUTPUT PIANO'!A155,1),EDATE('2) OUTPUT PIANO'!A155,1)),IF($B$3="T",IF(FORMULE!$B$15="OK",EOMONTH('2) OUTPUT PIANO'!A155,3),EDATE('2) OUTPUT PIANO'!A155,3)),IF($B$3="S",IF(FORMULE!$B$15="OK",EOMONTH('2) OUTPUT PIANO'!A155,6),EDATE('2) OUTPUT PIANO'!A155,6)),IF($B$3="A",+IF(FORMULE!$B$15="OK",EOMONTH('2) OUTPUT PIANO'!A155,12),EDATE('2) OUTPUT PIANO'!A155,12)),"ERRORE")))) -> 2020-08-01 | B156: =IF(B155=0,0,IF(B155+1<='1) INPUT MUTUO'!$D$10,'2) OUTPUT PIANO'!B155+1,0)) -> 0 | D156: =IF(B155=0,0,IF('1) INPUT MUTUO'!$D$7="FRANCESE",F156-E156,'2) OUTPUT PIANO'!$C$17/'1) INPUT MUTUO'!$D$10)) -> 0 | E156: =IF(B156=0,0,IF('1) INPUT MUTUO'!$D$13=360,L155*$C$3,L155*R156*FORMULE!$B$7)) -> 0 | F156: =IF(B156=0,0,IF('1) INPUT MUTUO'!$D$7="ITALIANO",'2) OUTPUT PIANO'!D156+'2) OUTPUT PIANO'!E156,IF(B156>'1) INPUT MUTUO'!$D$10,0,FORMULE!$B$13))) -> 0 | G156: =IF($B$7="SI",IF(F156=0,0,'1) INPUT MUTUO'!$D$19),0) -> 0 | I156: 0 | K156: 0 | L156: 0 | M156: =+IF('MATRIX SP. PERIODICHE'!AZ130=1,'1) INPUT MUTUO'!$C$31,0) -> 0 | N156: =+IF('MATRIX SP. PERIODICHE'!CZ130=1,'1) INPUT MUTUO'!$C$32,0) -> 0 | O156: =IF('MATRIX SP. PERIODICHE'!EZ130=1,'1) INPUT MUTUO'!$C$33,0) -> 0 | P156: =IF('MATRIX SP. PERIODICHE'!GZ130=1,'1) INPUT MUTUO'!$C$34,0) -> 0 | Q156: =IF('MATRIX SP. PERIODICHE'!IZ130=1,'1) INPUT MUTUO'!$C$35,0) -> 0 | R156: 31
A157: =IF($B$3="M",IF(FORMULE!$B$15="OK",EOMONTH('2) OUTPUT PIANO'!A156,1),EDATE('2) OUTPUT PIANO'!A156,1)),IF($B$3="T",IF(FORMULE!$B$15="OK",EOMONTH('2) OUTPUT PIANO'!A156,3),EDATE('2) OUTPUT PIANO'!A156,3)),IF($B$3="S",IF(FORMULE!$B$15="OK",EOMONTH('2) OUTPUT PIANO'!A156,6),EDATE('2) OUTPUT PIANO'!A156,6)),IF($B$3="A",+IF(FORMULE!$B$15="OK",EOMONTH('2) OUTPUT PIANO'!A156,12),EDATE('2) OUTPUT PIANO'!A156,12)),"ERRORE")))) -> 2020-09-01 | B157: =IF(B156=0,0,IF(B156+1<='1) INPUT MUTUO'!$D$10,'2) OUTPUT PIANO'!B156+1,0)) -> 0 | D157: =IF(B156=0,0,IF('1) INPUT MUTUO'!$D$7="FRANCESE",F157-E157,'2) OUTPUT PIANO'!$C$17/'1) INPUT MUTUO'!$D$10)) -> 0 | E157: =IF(B157=0,0,IF('1) INPUT MUTUO'!$D$13=360,L156*$C$3,L156*R157*FORMULE!$B$7)) -> 0 | F157: =IF(B157=0,0,IF('1) INPUT MUTUO'!$D$7="ITALIANO",'2) OUTPUT PIANO'!D157+'2) OUTPUT PIANO'!E157,IF(B157>'1) INPUT MUTUO'!$D$10,0,FORMULE!$B$13))) -> 0 | G157: =IF($B$7="SI",IF(F157=0,0,'1) INPUT MUTUO'!$D$19),0) -> 0 | I157: 0 | K157: =IF(B157=0,0,C157-F157-G157-H157-I157-J157) -> 0 | L157: 0 | M157: =+IF('MATRIX SP. PERIODICHE'!AZ131=1,'1) INPUT MUTUO'!$C$31,0) -> 0 | N157: =+IF('MATRIX SP. PERIODICHE'!CZ131=1,'1) INPUT MUTUO'!$C$32,0) -> 0 | O157: =IF('MATRIX SP. PERIODICHE'!EZ131=1,'1) INPUT MUTUO'!$C$33,0) -> 0 | P157: =IF('MATRIX SP. PERIODICHE'!GZ131=1,'1) INPUT MUTUO'!$C$34,0) -> 0 | Q157: =IF('MATRIX SP. PERIODICHE'!IZ131=1,'1) INPUT MUTUO'!$C$35,0) -> 0 | R157: 30
A158: =IF($B$3="M",IF(FORMULE!$B$15="OK",EOMONTH('2) OUTPUT PIANO'!A157,1),EDATE('2) OUTPUT PIANO'!A157,1)),IF($B$3="T",IF(FORMULE!$B$15="OK",EOMONTH('2) OUTPUT PIANO'!A157,3),EDATE('2) OUTPUT PIANO'!A157,3)),IF($B$3="S",IF(FORMULE!$B$15="OK",EOMONTH('2) OUTPUT PIANO'!A157,6),EDATE('2) OUTPUT PIANO'!A157,6)),IF($B$3="A",+IF(FORMULE!$B$15="OK",EOMONTH('2) OUTPUT PIANO'!A157,12),EDATE('2) OUTPUT PIANO'!A157,12)),"ERRORE")))) -> 2020-10-01 | B158: =IF(B157=0,0,IF(B157+1<='1) INPUT MUTUO'!$D$10,'2) OUTPUT PIANO'!B157+1,0)) -> 0 | D158: =IF(B157=0,0,IF('1) INPUT MUTUO'!$D$7="FRANCESE",F158-E158,'2) OUTPUT PIANO'!$C$17/'1) INPUT MUTUO'!$D$10)) -> 0 | E158: =IF(B158=0,0,IF('1) INPUT MUTUO'!$D$13=360,L157*$C$3,L157*R158*FORMULE!$B$7)) -> 0 | F158: =IF(B158=0,0,IF('1) INPUT MUTUO'!$D$7="ITALIANO",'2) OUTPUT PIANO'!D158+'2) OUTPUT PIANO'!E158,IF(B158>'1) INPUT MUTUO'!$D$10,0,FORMULE!$B$13))) -> 0 | G158: =IF($B$7="SI",IF(F158=0,0,'1) INPUT MUTUO'!$D$19),0) -> 0 | I158: =IF($B$8="SI",IF(F158=0,0,SUM(M158:Q158)),0) -> 0 | K158: 0 | L158: =IF(B158=0,0,L157-D158) -> 0 | M158: =+IF('MATRIX SP. PERIODICHE'!AZ132=1,'1) INPUT MUTUO'!$C$31,0) -> 0 | N158: =+IF('MATRIX SP. PERIODICHE'!CZ132=1,'1) INPUT MUTUO'!$C$32,0) -> 0 | O158: =IF('MATRIX SP. PERIODICHE'!EZ132=1,'1) INPUT MUTUO'!$C$33,0) -> 0 | P158: =IF('MATRIX SP. PERIODICHE'!GZ132=1,'1) INPUT MUTUO'!$C$34,0) -> 0 | Q158: =IF('MATRIX SP. PERIODICHE'!IZ132=1,'1) INPUT MUTUO'!$C$35,0) -> 0 | R158: 31
A159: =IF($B$3="M",IF(FORMULE!$B$15="OK",EOMONTH('2) OUTPUT PIANO'!A158,1),EDATE('2) OUTPUT PIANO'!A158,1)),IF($B$3="T",IF(FORMULE!$B$15="OK",EOMONTH('2) OUTPUT PIANO'!A158,3),EDATE('2) OUTPUT PIANO'!A158,3)),IF($B$3="S",IF(FORMULE!$B$15="OK",EOMONTH('2) OUTPUT PIANO'!A158,6),EDATE('2) OUTPUT PIANO'!A158,6)),IF($B$3="A",+IF(FORMULE!$B$15="OK",EOMONTH('2) OUTPUT PIANO'!A158,12),EDATE('2) OUTPUT PIANO'!A158,12)),"ERRORE")))) -> 2020-11-01 | B159: =IF(B158=0,0,IF(B158+1<='1) INPUT MUTUO'!$D$10,'2) OUTPUT PIANO'!B158+1,0)) -> 0 | D159: =IF(B158=0,0,IF('1) INPUT MUTUO'!$D$7="FRANCESE",F159-E159,'2) OUTPUT PIANO'!$C$17/'1) INPUT MUTUO'!$D$10)) -> 0 | E159: =IF(B159=0,0,IF('1) INPUT MUTUO'!$D$13=360,L158*$C$3,L158*R159*FORMULE!$B$7)) -> 0 | F159: =IF(B159=0,0,IF('1) INPUT MUTUO'!$D$7="ITALIANO",'2) OUTPUT PIANO'!D159+'2) OUTPUT PIANO'!E159,IF(B159>'1) INPUT MUTUO'!$D$10,0,FORMULE!$B$13))) -> 0 | G159: =IF($B$7="SI",IF(F159=0,0,'1) INPUT MUTUO'!$D$19),0) -> 0 | I159: 0 | K159: 0 | L159: 0 | M159: =+IF('MATRIX SP. PERIODICHE'!AZ133=1,'1) INPUT MUTUO'!$C$31,0) -> 0 | N159: =+IF('MATRIX SP. PERIODICHE'!CZ133=1,'1) INPUT MUTUO'!$C$32,0) -> 0 | O159: =IF('MATRIX SP. PERIODICHE'!EZ133=1,'1) INPUT MUTUO'!$C$33,0) -> 0 | P159: =IF('MATRIX SP. PERIODICHE'!GZ133=1,'1) INPUT MUTUO'!$C$34,0) -> 0 | Q159: =IF('MATRIX SP. PERIODICHE'!IZ133=1,'1) INPUT MUTUO'!$C$35,0) -> 0 | R159: =IF(EOMONTH(A159,0)=A159,A159-EOMONTH(A159,-1),A160-A159) -> 30
A160: =IF($B$3="M",IF(FORMULE!$B$15="OK",EOMONTH('2) OUTPUT PIANO'!A159,1),EDATE('2) OUTPUT PIANO'!A159,1)),IF($B$3="T",IF(FORMULE!$B$15="OK",EOMONTH('2) OUTPUT PIANO'!A159,3),EDATE('2) OUTPUT PIANO'!A159,3)),IF($B$3="S",IF(FORMULE!$B$15="OK",EOMONTH('2) OUTPUT PIANO'!A159,6),EDATE('2) OUTPUT PIANO'!A159,6)),IF($B$3="A",+IF(FORMULE!$B$15="OK",EOMONTH('2) OUTPUT PIANO'!A159,12),EDATE('2) OUTPUT PIANO'!A159,12)),"ERRORE")))) -> 2020-12-01 | B160: =IF(B159=0,0,IF(B159+1<='1) INPUT MUTUO'!$D$10,'2) OUTPUT PIANO'!B159+1,0)) -> 0 | D160: =IF(B159=0,0,IF('1) INPUT MUTUO'!$D$7="FRANCESE",F160-E160,'2) OUTPUT PIANO'!$C$17/'1) INPUT MUTUO'!$D$10)) -> 0 | E160: =IF(B160=0,0,IF('1) INPUT MUTUO'!$D$13=360,L159*$C$3,L159*R160*FORMULE!$B$7)) -> 0 | F160: =IF(B160=0,0,IF('1) INPUT MUTUO'!$D$7="ITALIANO",'2) OUTPUT PIANO'!D160+'2) OUTPUT PIANO'!E160,IF(B160>'1) INPUT MUTUO'!$D$10,0,FORMULE!$B$13))) -> 0 | G160: =IF($B$7="SI",IF(F160=0,0,'1) INPUT MUTUO'!$D$19),0) -> 0 | I160: 0 | K160: 0 | L160: 0 | M160: =+IF('MATRIX SP. PERIODICHE'!AZ134=1,'1) INPUT MUTUO'!$C$31,0) -> 0 | N160: =+IF('MATRIX SP. PERIODICHE'!CZ134=1,'1) INPUT MUTUO'!$C$32,0) -> 0 | O160: =IF('MATRIX SP. PERIODICHE'!EZ134=1,'1) INPUT MUTUO'!$C$33,0) -> 0 | P160: =IF('MATRIX SP. PERIODICHE'!GZ134=1,'1) INPUT MUTUO'!$C$34,0) -> 0 | Q160: =IF('MATRIX SP. PERIODICHE'!IZ134=1,'1) INPUT MUTUO'!$C$35,0) -> 0 | R160: 31
A161: =IF($B$3="M",IF(FORMULE!$B$15="OK",EOMONTH('2) OUTPUT PIANO'!A160,1),EDATE('2) OUTPUT PIANO'!A160,1)),IF($B$3="T",IF(FORMULE!$B$15="OK",EOMONTH('2) OUTPUT PIANO'!A160,3),EDATE('2) OUTPUT PIANO'!A160,3)),IF($B$3="S",IF(FORMULE!$B$15="OK",EOMONTH('2) OUTPUT PIANO'!A160,6),EDATE('2) OUTPUT PIANO'!A160,6)),IF($B$3="A",+IF(FORMULE!$B$15="OK",EOMONTH('2) OUTPUT PIANO'!A160,12),EDATE('2) OUTPUT PIANO'!A160,12)),"ERRORE")))) -> 2021-01-01 | B161: =IF(B160=0,0,IF(B160+1<='1) INPUT MUTUO'!$D$10,'2) OUTPUT PIANO'!B160+1,0)) -> 0 | D161: =IF(B160=0,0,IF('1) INPUT MUTUO'!$D$7="FRANCESE",F161-E161,'2) OUTPUT PIANO'!$C$17/'1) INPUT MUTUO'!$D$10)) -> 0 | E161: =IF(B161=0,0,IF('1) INPUT MUTUO'!$D$13=360,L160*$C$3,L160*R161*FORMULE!$B$7)) -> 0 | F161: =IF(B161=0,0,IF('1) INPUT MUTUO'!$D$7="ITALIANO",'2) OUTPUT PIANO'!D161+'2) OUTPUT PIANO'!E161,IF(B161>'1) INPUT MUTUO'!$D$10,0,FORMULE!$B$13))) -> 0 | G161: =IF($B$7="SI",IF(F161=0,0,'1) INPUT MUTUO'!$D$19),0) -> 0 | I161: 0 | K161: 0 | L161: 0 | M161: =+IF('MATRIX SP. PERIODICHE'!AZ135=1,'1) INPUT MUTUO'!$C$31,0) -> 0 | N161: =+IF('MATRIX SP. PERIODICHE'!CZ135=1,'1) INPUT MUTUO'!$C$32,0) -> 0 | O161: =IF('MATRIX SP. PERIODICHE'!EZ135=1,'1) INPUT MUTUO'!$C$33,0) -> 0 | P161: =IF('MATRIX SP. PERIODICHE'!GZ135=1,'1) INPUT MUTUO'!$C$34,0) -> 0 | Q161: =IF('MATRIX SP. PERIODICHE'!IZ135=1,'1) INPUT MUTUO'!$C$35,0) -> 0 | R161: 31
A162: =IF($B$3="M",IF(FORMULE!$B$15="OK",EOMONTH('2) OUTPUT PIANO'!A161,1),EDATE('2) OUTPUT PIANO'!A161,1)),IF($B$3="T",IF(FORMULE!$B$15="OK",EOMONTH('2) OUTPUT PIANO'!A161,3),EDATE('2) OUTPUT PIANO'!A161,3)),IF($B$3="S",IF(FORMULE!$B$15="OK",EOMONTH('2) OUTPUT PIANO'!A161,6),EDATE('2) OUTPUT PIANO'!A161,6)),IF($B$3="A",+IF(FORMULE!$B$15="OK",EOMONTH('2) OUTPUT PIANO'!A161,12),EDATE('2) OUTPUT PIANO'!A161,12)),"ERRORE")))) -> 2021-02-01 | B162: =IF(B161=0,0,IF(B161+1<='1) INPUT MUTUO'!$D$10,'2) OUTPUT PIANO'!B161+1,0)) -> 0 | D162: =IF(B161=0,0,IF('1) INPUT MUTUO'!$D$7="FRANCESE",F162-E162,'2) OUTPUT PIANO'!$C$17/'1) INPUT MUTUO'!$D$10)) -> 0 | E162: =IF(B162=0,0,IF('1) INPUT MUTUO'!$D$13=360,L161*$C$3,L161*R162*FORMULE!$B$7)) -> 0 | F162: =IF(B162=0,0,IF('1) INPUT MUTUO'!$D$7="ITALIANO",'2) OUTPUT PIANO'!D162+'2) OUTPUT PIANO'!E162,IF(B162>'1) INPUT MUTUO'!$D$10,0,FORMULE!$B$13))) -> 0 | G162: =IF($B$7="SI",IF(F162=0,0,'1) INPUT MUTUO'!$D$19),0) -> 0 | I162: 0 | K162: 0 | L162: 0 | M162: =+IF('MATRIX SP. PERIODICHE'!AZ136=1,'1) INPUT MUTUO'!$C$31,0) -> 0 | N162: =+IF('MATRIX SP. PERIODICHE'!CZ136=1,'1) INPUT MUTUO'!$C$32,0) -> 0 | O162: =IF('MATRIX SP. PERIODICHE'!EZ136=1,'1) INPUT MUTUO'!$C$33,0) -> 0 | P162: =IF('MATRIX SP. PERIODICHE'!GZ136=1,'1) INPUT MUTUO'!$C$34,0) -> 0 | Q162: =IF('MATRIX SP. PERIODICHE'!IZ136=1,'1) INPUT MUTUO'!$C$35,0) -> 0 | R162: 28
A163: =IF($B$3="M",IF(FORMULE!$B$15="OK",EOMONTH('2) OUTPUT PIANO'!A162,1),EDATE('2) OUTPUT PIANO'!A162,1)),IF($B$3="T",IF(FORMULE!$B$15="OK",EOMONTH('2) OUTPUT PIANO'!A162,3),EDATE('2) OUTPUT PIANO'!A162,3)),IF($B$3="S",IF(FORMULE!$B$15="OK",EOMONTH('2) OUTPUT PIANO'!A162,6),EDATE('2) OUTPUT PIANO'!A162,6)),IF($B$3="A",+IF(FORMULE!$B$15="OK",EOMONTH('2) OUTPUT PIANO'!A162,12),EDATE('2) OUTPUT PIANO'!A162,12)),"ERRORE")))) -> 2021-03-01 | B163: =IF(B162=0,0,IF(B162+1<='1) INPUT MUTUO'!$D$10,'2) OUTPUT PIANO'!B162+1,0)) -> 0 | D163: =IF(B162=0,0,IF('1) INPUT MUTUO'!$D$7="FRANCESE",F163-E163,'2) OUTPUT PIANO'!$C$17/'1) INPUT MUTUO'!$D$10)) -> 0 | E163: =IF(B163=0,0,IF('1) INPUT MUTUO'!$D$13=360,L162*$C$3,L162*R163*FORMULE!$B$7)) -> 0 | F163: =IF(B163=0,0,IF('1) INPUT MUTUO'!$D$7="ITALIANO",'2) OUTPUT PIANO'!D163+'2) OUTPUT PIANO'!E163,IF(B163>'1) INPUT MUTUO'!$D$10,0,FORMULE!$B$13))) -> 0 | G163: =IF($B$7="SI",IF(F163=0,0,'1) INPUT MUTUO'!$D$19),0) -> 0 | I163: 0 | K163: 0 | L163: 0 | M163: =+IF('MATRIX SP. PERIODICHE'!AZ137=1,'1) INPUT MUTUO'!$C$31,0) -> 0 | N163: =+IF('MATRIX SP. PERIODICHE'!CZ137=1,'1) INPUT MUTUO'!$C$32,0) -> 0 | O163: =IF('MATRIX SP. PERIODICHE'!EZ137=1,'1) INPUT MUTUO'!$C$33,0) -> 0 | P163: =IF('MATRIX SP. PERIODICHE'!GZ137=1,'1) INPUT MUTUO'!$C$34,0) -> 0 | Q163: =IF('MATRIX SP. PERIODICHE'!IZ137=1,'1) INPUT MUTUO'!$C$35,0) -> 0 | R163: 31
A164: =IF($B$3="M",IF(FORMULE!$B$15="OK",EOMONTH('2) OUTPUT PIANO'!A163,1),EDATE('2) OUTPUT PIANO'!A163,1)),IF($B$3="T",IF(FORMULE!$B$15="OK",EOMONTH('2) OUTPUT PIANO'!A163,3),EDATE('2) OUTPUT PIANO'!A163,3)),IF($B$3="S",IF(FORMULE!$B$15="OK",EOMONTH('2) OUTPUT PIANO'!A163,6),EDATE('2) OUTPUT PIANO'!A163,6)),IF($B$3="A",+IF(FORMULE!$B$15="OK",EOMONTH('2) OUTPUT PIANO'!A163,12),EDATE('2) OUTPUT PIANO'!A163,12)),"ERRORE")))) -> 2021-04-01 | B164: =IF(B163=0,0,IF(B163+1<='1) INPUT MUTUO'!$D$10,'2) OUTPUT PIANO'!B163+1,0)) -> 0 | D164: =IF(B163=0,0,IF('1) INPUT MUTUO'!$D$7="FRANCESE",F164-E164,'2) OUTPUT PIANO'!$C$17/'1) INPUT MUTUO'!$D$10)) -> 0 | E164: =IF(B164=0,0,IF('1) INPUT MUTUO'!$D$13=360,L163*$C$3,L163*R164*FORMULE!$B$7)) -> 0 | F164: =IF(B164=0,0,IF('1) INPUT MUTUO'!$D$7="ITALIANO",'2) OUTPUT PIANO'!D164+'2) OUTPUT PIANO'!E164,IF(B164>'1) INPUT MUTUO'!$D$10,0,FORMULE!$B$13))) -> 0 | G164: =IF($B$7="SI",IF(F164=0,0,'1) INPUT MUTUO'!$D$19),0) -> 0 | I164: 0 | K164: 0 | L164: 0 | M164: =+IF('MATRIX SP. PERIODICHE'!AZ138=1,'1) INPUT MUTUO'!$C$31,0) -> 0 | N164: =+IF('MATRIX SP. PERIODICHE'!CZ138=1,'1) INPUT MUTUO'!$C$32,0) -> 0 | O164: =IF('MATRIX SP. PERIODICHE'!EZ138=1,'1) INPUT MUTUO'!$C$33,0) -> 0 | P164: =IF('MATRIX SP. PERIODICHE'!GZ138=1,'1) INPUT MUTUO'!$C$34,0) -> 0 | Q164: =IF('MATRIX SP. PERIODICHE'!IZ138=1,'1) INPUT MUTUO'!$C$35,0) -> 0 | R164: 30
A165: =IF($B$3="M",IF(FORMULE!$B$15="OK",EOMONTH('2) OUTPUT PIANO'!A164,1),EDATE('2) OUTPUT PIANO'!A164,1)),IF($B$3="T",IF(FORMULE!$B$15="OK",EOMONTH('2) OUTPUT PIANO'!A164,3),EDATE('2) OUTPUT PIANO'!A164,3)),IF($B$3="S",IF(FORMULE!$B$15="OK",EOMONTH('2) OUTPUT PIANO'!A164,6),EDATE('2) OUTPUT PIANO'!A164,6)),IF($B$3="A",+IF(FORMULE!$B$15="OK",EOMONTH('2) OUTPUT PIANO'!A164,12),EDATE('2) OUTPUT PIANO'!A164,12)),"ERRORE")))) -> 2021-05-01 | B165: =IF(B164=0,0,IF(B164+1<='1) INPUT MUTUO'!$D$10,'2) OUTPUT PIANO'!B164+1,0)) -> 0 | D165: =IF(B164=0,0,IF('1) INPUT MUTUO'!$D$7="FRANCESE",F165-E165,'2) OUTPUT PIANO'!$C$17/'1) INPUT MUTUO'!$D$10)) -> 0 | E165: =IF(B165=0,0,IF('1) INPUT MUTUO'!$D$13=360,L164*$C$3,L164*R165*FORMULE!$B$7)) -> 0 | F165: =IF(B165=0,0,IF('1) INPUT MUTUO'!$D$7="ITALIANO",'2) OUTPUT PIANO'!D165+'2) OUTPUT PIANO'!E165,IF(B165>'1) INPUT MUTUO'!$D$10,0,FORMULE!$B$13))) -> 0 | G165: =IF($B$7="SI",IF(F165=0,0,'1) INPUT MUTUO'!$D$19),0) -> 0 | I165: 0 | K165: 0 | L165: 0 | M165: =+IF('MATRIX SP. PERIODICHE'!AZ139=1,'1) INPUT MUTUO'!$C$31,0) -> 0 | N165: =+IF('MATRIX SP. PERIODICHE'!CZ139=1,'1) INPUT MUTUO'!$C$32,0) -> 0 | O165: =IF('MATRIX SP. PERIODICHE'!EZ139=1,'1) INPUT MUTUO'!$C$33,0) -> 0 | P165: =IF('MATRIX SP. PERIODICHE'!GZ139=1,'1) INPUT MUTUO'!$C$34,0) -> 0 | Q165: =IF('MATRIX SP. PERIODICHE'!IZ139=1,'1) INPUT MUTUO'!$C$35,0) -> 0 | R165: 31
A166: =IF($B$3="M",IF(FORMULE!$B$15="OK",EOMONTH('2) OUTPUT PIANO'!A165,1),EDATE('2) OUTPUT PIANO'!A165,1)),IF($B$3="T",IF(FORMULE!$B$15="OK",EOMONTH('2) OUTPUT PIANO'!A165,3),EDATE('2) OUTPUT PIANO'!A165,3)),IF($B$3="S",IF(FORMULE!$B$15="OK",EOMONTH('2) OUTPUT PIANO'!A165,6),EDATE('2) OUTPUT PIANO'!A165,6)),IF($B$3="A",+IF(FORMULE!$B$15="OK",EOMONTH('2) OUTPUT PIANO'!A165,12),EDATE('2) OUTPUT PIANO'!A165,12)),"ERRORE")))) -> 2021-06-01 | B166: =IF(B165=0,0,IF(B165+1<='1) INPUT MUTUO'!$D$10,'2) OUTPUT PIANO'!B165+1,0)) -> 0 | D166: =IF(B165=0,0,IF('1) INPUT MUTUO'!$D$7="FRANCESE",F166-E166,'2) OUTPUT PIANO'!$C$17/'1) INPUT MUTUO'!$D$10)) -> 0 | E166: =IF(B166=0,0,IF('1) INPUT MUTUO'!$D$13=360,L165*$C$3,L165*R166*FORMULE!$B$7)) -> 0 | F166: =IF(B166=0,0,IF('1) INPUT MUTUO'!$D$7="ITALIANO",'2) OUTPUT PIANO'!D166+'2) OUTPUT PIANO'!E166,IF(B166>'1) INPUT MUTUO'!$D$10,0,FORMULE!$B$13))) -> 0 | G166: =IF($B$7="SI",IF(F166=0,0,'1) INPUT MUTUO'!$D$19),0) -> 0 | I166: 0 | K166: 0 | L166: 0 | M166: =+IF('MATRIX SP. PERIODICHE'!AZ140=1,'1) INPUT MUTUO'!$C$31,0) -> 0 | N166: =+IF('MATRIX SP. PERIODICHE'!CZ140=1,'1) INPUT MUTUO'!$C$32,0) -> 0 | O166: =IF('MATRIX SP. PERIODICHE'!EZ140=1,'1) INPUT MUTUO'!$C$33,0) -> 0 | P166: =IF('MATRIX SP. PERIODICHE'!GZ140=1,'1) INPUT MUTUO'!$C$34,0) -> 0 | Q166: =IF('MATRIX SP. PERIODICHE'!IZ140=1,'1) INPUT MUTUO'!$C$35,0) -> 0 | R166: 30
A167: =IF($B$3="M",IF(FORMULE!$B$15="OK",EOMONTH('2) OUTPUT PIANO'!A166,1),EDATE('2) OUTPUT PIANO'!A166,1)),IF($B$3="T",IF(FORMULE!$B$15="OK",EOMONTH('2) OUTPUT PIANO'!A166,3),EDATE('2) OUTPUT PIANO'!A166,3)),IF($B$3="S",IF(FORMULE!$B$15="OK",EOMONTH('2) OUTPUT PIANO'!A166,6),EDATE('2) OUTPUT PIANO'!A166,6)),IF($B$3="A",+IF(FORMULE!$B$15="OK",EOMONTH('2) OUTPUT PIANO'!A166,12),EDATE('2) OUTPUT PIANO'!A166,12)),"ERRORE")))) -> 2021-07-01 | B167: =IF(B166=0,0,IF(B166+1<='1) INPUT MUTUO'!$D$10,'2) OUTPUT PIANO'!B166+1,0)) -> 0 | D167: =IF(B166=0,0,IF('1) INPUT MUTUO'!$D$7="FRANCESE",F167-E167,'2) OUTPUT PIANO'!$C$17/'1) INPUT MUTUO'!$D$10)) -> 0 | E167: =IF(B167=0,0,IF('1) INPUT MUTUO'!$D$13=360,L166*$C$3,L166*R167*FORMULE!$B$7)) -> 0 | F167: =IF(B167=0,0,IF('1) INPUT MUTUO'!$D$7="ITALIANO",'2) OUTPUT PIANO'!D167+'2) OUTPUT PIANO'!E167,IF(B167>'1) INPUT MUTUO'!$D$10,0,FORMULE!$B$13))) -> 0 | G167: =IF($B$7="SI",IF(F167=0,0,'1) INPUT MUTUO'!$D$19),0) -> 0 | I167: 0 | K167: 0 | L167: 0 | M167: =+IF('MATRIX SP. PERIODICHE'!AZ141=1,'1) INPUT MUTUO'!$C$31,0) -> 0 | N167: =+IF('MATRIX SP. PERIODICHE'!CZ141=1,'1) INPUT MUTUO'!$C$32,0) -> 0 | O167: =IF('MATRIX SP. PERIODICHE'!EZ141=1,'1) INPUT MUTUO'!$C$33,0) -> 0 | P167: =IF('MATRIX SP. PERIODICHE'!GZ141=1,'1) INPUT MUTUO'!$C$34,0) -> 0 | Q167: =IF('MATRIX SP. PERIODICHE'!IZ141=1,'1) INPUT MUTUO'!$C$35,0) -> 0 | R167: 31
A168: =IF($B$3="M",IF(FORMULE!$B$15="OK",EOMONTH('2) OUTPUT PIANO'!A167,1),EDATE('2) OUTPUT PIANO'!A167,1)),IF($B$3="T",IF(FORMULE!$B$15="OK",EOMONTH('2) OUTPUT PIANO'!A167,3),EDATE('2) OUTPUT PIANO'!A167,3)),IF($B$3="S",IF(FORMULE!$B$15="OK",EOMONTH('2) OUTPUT PIANO'!A167,6),EDATE('2) OUTPUT PIANO'!A167,6)),IF($B$3="A",+IF(FORMULE!$B$15="OK",EOMONTH('2) OUTPUT PIANO'!A167,12),EDATE('2) OUTPUT PIANO'!A167,12)),"ERRORE")))) -> 2021-08-01 | B168: =IF(B167=0,0,IF(B167+1<='1) INPUT MUTUO'!$D$10,'2) OUTPUT PIANO'!B167+1,0)) -> 0 | D168: =IF(B167=0,0,IF('1) INPUT MUTUO'!$D$7="FRANCESE",F168-E168,'2) OUTPUT PIANO'!$C$17/'1) INPUT MUTUO'!$D$10)) -> 0 | E168: =IF(B168=0,0,IF('1) INPUT MUTUO'!$D$13=360,L167*$C$3,L167*R168*FORMULE!$B$7)) -> 0 | F168: =IF(B168=0,0,IF('1) INPUT MUTUO'!$D$7="ITALIANO",'2) OUTPUT PIANO'!D168+'2) OUTPUT PIANO'!E168,IF(B168>'1) INPUT MUTUO'!$D$10,0,FORMULE!$B$13))) -> 0 | G168: =IF($B$7="SI",IF(F168=0,0,'1) INPUT MUTUO'!$D$19),0) -> 0 | I168: 0 | K168: 0 | L168: 0 | M168: =+IF('MATRIX SP. PERIODICHE'!AZ142=1,'1) INPUT MUTUO'!$C$31,0) -> 0 | N168: =+IF('MATRIX SP. PERIODICHE'!CZ142=1,'1) INPUT MUTUO'!$C$32,0) -> 0 | O168: =IF('MATRIX SP. PERIODICHE'!EZ142=1,'1) INPUT MUTUO'!$C$33,0) -> 0 | P168: =IF('MATRIX SP. PERIODICHE'!GZ142=1,'1) INPUT MUTUO'!$C$34,0) -> 0 | Q168: =IF('MATRIX SP. PERIODICHE'!IZ142=1,'1) INPUT MUTUO'!$C$35,0) -> 0 | R168: 31
A169: =IF($B$3="M",IF(FORMULE!$B$15="OK",EOMONTH('2) OUTPUT PIANO'!A168,1),EDATE('2) OUTPUT PIANO'!A168,1)),IF($B$3="T",IF(FORMULE!$B$15="OK",EOMONTH('2) OUTPUT PIANO'!A168,3),EDATE('2) OUTPUT PIANO'!A168,3)),IF($B$3="S",IF(FORMULE!$B$15="OK",EOMONTH('2) OUTPUT PIANO'!A168,6),EDATE('2) OUTPUT PIANO'!A168,6)),IF($B$3="A",+IF(FORMULE!$B$15="OK",EOMONTH('2) OUTPUT PIANO'!A168,12),EDATE('2) OUTPUT PIANO'!A168,12)),"ERRORE")))) -> 2021-09-01 | B169: =IF(B168=0,0,IF(B168+1<='1) INPUT MUTUO'!$D$10,'2) OUTPUT PIANO'!B168+1,0)) -> 0 | D169: =IF(B168=0,0,IF('1) INPUT MUTUO'!$D$7="FRANCESE",F169-E169,'2) OUTPUT PIANO'!$C$17/'1) INPUT MUTUO'!$D$10)) -> 0 | E169: =IF(B169=0,0,IF('1) INPUT MUTUO'!$D$13=360,L168*$C$3,L168*R169*FORMULE!$B$7)) -> 0 | F169: =IF(B169=0,0,IF('1) INPUT MUTUO'!$D$7="ITALIANO",'2) OUTPUT PIANO'!D169+'2) OUTPUT PIANO'!E169,IF(B169>'1) INPUT MUTUO'!$D$10,0,FORMULE!$B$13))) -> 0 | G169: =IF($B$7="SI",IF(F169=0,0,'1) INPUT MUTUO'!$D$19),0) -> 0 | I169: 0 | K169: 0 | L169: 0 | M169: =+IF('MATRIX SP. PERIODICHE'!AZ143=1,'1) INPUT MUTUO'!$C$31,0) -> 0 | N169: =+IF('MATRIX SP. PERIODICHE'!CZ143=1,'1) INPUT MUTUO'!$C$32,0) -> 0 | O169: =IF('MATRIX SP. PERIODICHE'!EZ143=1,'1) INPUT MUTUO'!$C$33,0) -> 0 | P169: =IF('MATRIX SP. PERIODICHE'!GZ143=1,'1) INPUT MUTUO'!$C$34,0) -> 0 | Q169: =IF('MATRIX SP. PERIODICHE'!IZ143=1,'1) INPUT MUTUO'!$C$35,0) -> 0 | R169: 30
A170: =IF($B$3="M",IF(FORMULE!$B$15="OK",EOMONTH('2) OUTPUT PIANO'!A169,1),EDATE('2) OUTPUT PIANO'!A169,1)),IF($B$3="T",IF(FORMULE!$B$15="OK",EOMONTH('2) OUTPUT PIANO'!A169,3),EDATE('2) OUTPUT PIANO'!A169,3)),IF($B$3="S",IF(FORMULE!$B$15="OK",EOMONTH('2) OUTPUT PIANO'!A169,6),EDATE('2) OUTPUT PIANO'!A169,6)),IF($B$3="A",+IF(FORMULE!$B$15="OK",EOMONTH('2) OUTPUT PIANO'!A169,12),EDATE('2) OUTPUT PIANO'!A169,12)),"ERRORE")))) -> 2021-10-01 | B170: =IF(B169=0,0,IF(B169+1<='1) INPUT MUTUO'!$D$10,'2) OUTPUT PIANO'!B169+1,0)) -> 0 | D170: =IF(B169=0,0,IF('1) INPUT MUTUO'!$D$7="FRANCESE",F170-E170,'2) OUTPUT PIANO'!$C$17/'1) INPUT MUTUO'!$D$10)) -> 0 | E170: =IF(B170=0,0,IF('1) INPUT MUTUO'!$D$13=360,L169*$C$3,L169*R170*FORMULE!$B$7)) -> 0 | F170: =IF(B170=0,0,IF('1) INPUT MUTUO'!$D$7="ITALIANO",'2) OUTPUT PIANO'!D170+'2) OUTPUT PIANO'!E170,IF(B170>'1) INPUT MUTUO'!$D$10,0,FORMULE!$B$13))) -> 0 | G170: =IF($B$7="SI",IF(F170=0,0,'1) INPUT MUTUO'!$D$19),0) -> 0 | I170: 0 | K170: 0 | L170: 0 | M170: =+IF('MATRIX SP. PERIODICHE'!AZ144=1,'1) INPUT MUTUO'!$C$31,0) -> 0 | N170: =+IF('MATRIX SP. PERIODICHE'!CZ144=1,'1) INPUT MUTUO'!$C$32,0) -> 0 | O170: =IF('MATRIX SP. PERIODICHE'!EZ144=1,'1) INPUT MUTUO'!$C$33,0) -> 0 | P170: =IF('MATRIX SP. PERIODICHE'!GZ144=1,'1) INPUT MUTUO'!$C$34,0) -> 0 | Q170: =IF('MATRIX SP. PERIODICHE'!IZ144=1,'1) INPUT MUTUO'!$C$35,0) -> 0 | R170: 31
A171: =IF($B$3="M",IF(FORMULE!$B$15="OK",EOMONTH('2) OUTPUT PIANO'!A170,1),EDATE('2) OUTPUT PIANO'!A170,1)),IF($B$3="T",IF(FORMULE!$B$15="OK",EOMONTH('2) OUTPUT PIANO'!A170,3),EDATE('2) OUTPUT PIANO'!A170,3)),IF($B$3="S",IF(FORMULE!$B$15="OK",EOMONTH('2) OUTPUT PIANO'!A170,6),EDATE('2) OUTPUT PIANO'!A170,6)),IF($B$3="A",+IF(FORMULE!$B$15="OK",EOMONTH('2) OUTPUT PIANO'!A170,12),EDATE('2) OUTPUT PIANO'!A170,12)),"ERRORE")))) -> 2021-11-01 | B171: =IF(B170=0,0,IF(B170+1<='1) INPUT MUTUO'!$D$10,'2) OUTPUT PIANO'!B170+1,0)) -> 0 | D171: =IF(B170=0,0,IF('1) INPUT MUTUO'!$D$7="FRANCESE",F171-E171,'2) OUTPUT PIANO'!$C$17/'1) INPUT MUTUO'!$D$10)) -> 0 | E171: =IF(B171=0,0,IF('1) INPUT MUTUO'!$D$13=360,L170*$C$3,L170*R171*FORMULE!$B$7)) -> 0 | F171: =IF(B171=0,0,IF('1) INPUT MUTUO'!$D$7="ITALIANO",'2) OUTPUT PIANO'!D171+'2) OUTPUT PIANO'!E171,IF(B171>'1) INPUT MUTUO'!$D$10,0,FORMULE!$B$13))) -> 0 | G171: =IF($B$7="SI",IF(F171=0,0,'1) INPUT MUTUO'!$D$19),0) -> 0 | I171: 0 | K171: 0 | L171: 0 | M171: =+IF('MATRIX SP. PERIODICHE'!AZ145=1,'1) INPUT MUTUO'!$C$31,0) -> 0 | N171: =+IF('MATRIX SP. PERIODICHE'!CZ145=1,'1) INPUT MUTUO'!$C$32,0) -> 0 | O171: =IF('MATRIX SP. PERIODICHE'!EZ145=1,'1) INPUT MUTUO'!$C$33,0) -> 0 | P171: =IF('MATRIX SP. PERIODICHE'!GZ145=1,'1) INPUT MUTUO'!$C$34,0) -> 0 | Q171: =IF('MATRIX SP. PERIODICHE'!IZ145=1,'1) INPUT MUTUO'!$C$35,0) -> 0 | R171: 30
A172: =IF($B$3="M",IF(FORMULE!$B$15="OK",EOMONTH('2) OUTPUT PIANO'!A171,1),EDATE('2) OUTPUT PIANO'!A171,1)),IF($B$3="T",IF(FORMULE!$B$15="OK",EOMONTH('2) OUTPUT PIANO'!A171,3),EDATE('2) OUTPUT PIANO'!A171,3)),IF($B$3="S",IF(FORMULE!$B$15="OK",EOMONTH('2) OUTPUT PIANO'!A171,6),EDATE('2) OUTPUT PIANO'!A171,6)),IF($B$3="A",+IF(FORMULE!$B$15="OK",EOMONTH('2) OUTPUT PIANO'!A171,12),EDATE('2) OUTPUT PIANO'!A171,12)),"ERRORE")))) -> 2021-12-01 | B172: =IF(B171=0,0,IF(B171+1<='1) INPUT MUTUO'!$D$10,'2) OUTPUT PIANO'!B171+1,0)) -> 0 | D172: =IF(B171=0,0,IF('1) INPUT MUTUO'!$D$7="FRANCESE",F172-E172,'2) OUTPUT PIANO'!$C$17/'1) INPUT MUTUO'!$D$10)) -> 0 | E172: =IF(B172=0,0,IF('1) INPUT MUTUO'!$D$13=360,L171*$C$3,L171*R172*FORMULE!$B$7)) -> 0 | F172: =IF(B172=0,0,IF('1) INPUT MUTUO'!$D$7="ITALIANO",'2) OUTPUT PIANO'!D172+'2) OUTPUT PIANO'!E172,IF(B172>'1) INPUT MUTUO'!$D$10,0,FORMULE!$B$13))) -> 0 | G172: =IF($B$7="SI",IF(F172=0,0,'1) INPUT MUTUO'!$D$19),0) -> 0 | I172: 0 | K172: 0 | L172: 0 | M172: =+IF('MATRIX SP. PERIODICHE'!AZ146=1,'1) INPUT MUTUO'!$C$31,0) -> 0 | N172: =+IF('MATRIX SP. PERIODICHE'!CZ146=1,'1) INPUT MUTUO'!$C$32,0) -> 0 | O172: =IF('MATRIX SP. PERIODICHE'!EZ146=1,'1) INPUT MUTUO'!$C$33,0) -> 0 | P172: =IF('MATRIX SP. PERIODICHE'!GZ146=1,'1) INPUT MUTUO'!$C$34,0) -> 0 | Q172: =IF('MATRIX SP. PERIODICHE'!IZ146=1,'1) INPUT MUTUO'!$C$35,0) -> 0 | R172: 31
A173: =IF($B$3="M",IF(FORMULE!$B$15="OK",EOMONTH('2) OUTPUT PIANO'!A172,1),EDATE('2) OUTPUT PIANO'!A172,1)),IF($B$3="T",IF(FORMULE!$B$15="OK",EOMONTH('2) OUTPUT PIANO'!A172,3),EDATE('2) OUTPUT PIANO'!A172,3)),IF($B$3="S",IF(FORMULE!$B$15="OK",EOMONTH('2) OUTPUT PIANO'!A172,6),EDATE('2) OUTPUT PIANO'!A172,6)),IF($B$3="A",+IF(FORMULE!$B$15="OK",EOMONTH('2) OUTPUT PIANO'!A172,12),EDATE('2) OUTPUT PIANO'!A172,12)),"ERRORE")))) -> 2022-01-01 | B173: =IF(B172=0,0,IF(B172+1<='1) INPUT MUTUO'!$D$10,'2) OUTPUT PIANO'!B172+1,0)) -> 0 | D173: =IF(B172=0,0,IF('1) INPUT MUTUO'!$D$7="FRANCESE",F173-E173,'2) OUTPUT PIANO'!$C$17/'1) INPUT MUTUO'!$D$10)) -> 0 | E173: =IF(B173=0,0,IF('1) INPUT MUTUO'!$D$13=360,L172*$C$3,L172*R173*FORMULE!$B$7)) -> 0 | F173: =IF(B173=0,0,IF('1) INPUT MUTUO'!$D$7="ITALIANO",'2) OUTPUT PIANO'!D173+'2) OUTPUT PIANO'!E173,IF(B173>'1) INPUT MUTUO'!$D$10,0,FORMULE!$B$13))) -> 0 | G173: =IF($B$7="SI",IF(F173=0,0,'1) INPUT MUTUO'!$D$19),0) -> 0 | I173: 0 | K173: 0 | L173: 0 | M173: =+IF('MATRIX SP. PERIODICHE'!AZ147=1,'1) INPUT MUTUO'!$C$31,0) -> 0 | N173: =+IF('MATRIX SP. PERIODICHE'!CZ147=1,'1) INPUT MUTUO'!$C$32,0) -> 0 | O173: =IF('MATRIX SP. PERIODICHE'!EZ147=1,'1) INPUT MUTUO'!$C$33,0) -> 0 | P173: =IF('MATRIX SP. PERIODICHE'!GZ147=1,'1) INPUT MUTUO'!$C$34,0) -> 0 | Q173: =IF('MATRIX SP. PERIODICHE'!IZ147=1,'1) INPUT MUTUO'!$C$35,0) -> 0 | R173: 31
A174: =IF($B$3="M",IF(FORMULE!$B$15="OK",EOMONTH('2) OUTPUT PIANO'!A173,1),EDATE('2) OUTPUT PIANO'!A173,1)),IF($B$3="T",IF(FORMULE!$B$15="OK",EOMONTH('2) OUTPUT PIANO'!A173,3),EDATE('2) OUTPUT PIANO'!A173,3)),IF($B$3="S",IF(FORMULE!$B$15="OK",EOMONTH('2) OUTPUT PIANO'!A173,6),EDATE('2) OUTPUT PIANO'!A173,6)),IF($B$3="A",+IF(FORMULE!$B$15="OK",EOMONTH('2) OUTPUT PIANO'!A173,12),EDATE('2) OUTPUT PIANO'!A173,12)),"ERRORE")))) -> 2022-02-01 | B174: =IF(B173=0,0,IF(B173+1<='1) INPUT MUTUO'!$D$10,'2) OUTPUT PIANO'!B173+1,0)) -> 0 | D174: =IF(B173=0,0,IF('1) INPUT MUTUO'!$D$7="FRANCESE",F174-E174,'2) OUTPUT PIANO'!$C$17/'1) INPUT MUTUO'!$D$10)) -> 0 | E174: =IF(B174=0,0,IF('1) INPUT MUTUO'!$D$13=360,L173*$C$3,L173*R174*FORMULE!$B$7)) -> 0 | F174: =IF(B174=0,0,IF('1) INPUT MUTUO'!$D$7="ITALIANO",'2) OUTPUT PIANO'!D174+'2) OUTPUT PIANO'!E174,IF(B174>'1) INPUT MUTUO'!$D$10,0,FORMULE!$B$13))) -> 0 | G174: =IF($B$7="SI",IF(F174=0,0,'1) INPUT MUTUO'!$D$19),0) -> 0 | I174: 0 | K174: 0 | L174: 0 | M174: =+IF('MATRIX SP. PERIODICHE'!AZ148=1,'1) INPUT MUTUO'!$C$31,0) -> 0 | N174: =+IF('MATRIX SP. PERIODICHE'!CZ148=1,'1) INPUT MUTUO'!$C$32,0) -> 0 | O174: =IF('MATRIX SP. PERIODICHE'!EZ148=1,'1) INPUT MUTUO'!$C$33,0) -> 0 | P174: =IF('MATRIX SP. PERIODICHE'!GZ148=1,'1) INPUT MUTUO'!$C$34,0) -> 0 | Q174: =IF('MATRIX SP. PERIODICHE'!IZ148=1,'1) INPUT MUTUO'!$C$35,0) -> 0 | R174: 28
A175: =IF($B$3="M",IF(FORMULE!$B$15="OK",EOMONTH('2) OUTPUT PIANO'!A174,1),EDATE('2) OUTPUT PIANO'!A174,1)),IF($B$3="T",IF(FORMULE!$B$15="OK",EOMONTH('2) OUTPUT PIANO'!A174,3),EDATE('2) OUTPUT PIANO'!A174,3)),IF($B$3="S",IF(FORMULE!$B$15="OK",EOMONTH('2) OUTPUT PIANO'!A174,6),EDATE('2) OUTPUT PIANO'!A174,6)),IF($B$3="A",+IF(FORMULE!$B$15="OK",EOMONTH('2) OUTPUT PIANO'!A174,12),EDATE('2) OUTPUT PIANO'!A174,12)),"ERRORE")))) -> 2022-03-01 | B175: =IF(B174=0,0,IF(B174+1<='1) INPUT MUTUO'!$D$10,'2) OUTPUT PIANO'!B174+1,0)) -> 0 | D175: =IF(B174=0,0,IF('1) INPUT MUTUO'!$D$7="FRANCESE",F175-E175,'2) OUTPUT PIANO'!$C$17/'1) INPUT MUTUO'!$D$10)) -> 0 | E175: =IF(B175=0,0,IF('1) INPUT MUTUO'!$D$13=360,L174*$C$3,L174*R175*FORMULE!$B$7)) -> 0 | F175: =IF(B175=0,0,IF('1) INPUT MUTUO'!$D$7="ITALIANO",'2) OUTPUT PIANO'!D175+'2) OUTPUT PIANO'!E175,IF(B175>'1) INPUT MUTUO'!$D$10,0,FORMULE!$B$13))) -> 0 | G175: =IF($B$7="SI",IF(F175=0,0,'1) INPUT MUTUO'!$D$19),0) -> 0 | I175: 0 | K175: 0 | L175: 0 | M175: =+IF('MATRIX SP. PERIODICHE'!AZ149=1,'1) INPUT MUTUO'!$C$31,0) -> 0 | N175: =+IF('MATRIX SP. PERIODICHE'!CZ149=1,'1) INPUT MUTUO'!$C$32,0) -> 0 | O175: =IF('MATRIX SP. PERIODICHE'!EZ149=1,'1) INPUT MUTUO'!$C$33,0) -> 0 | P175: =IF('MATRIX SP. PERIODICHE'!GZ149=1,'1) INPUT MUTUO'!$C$34,0) -> 0 | Q175: =IF('MATRIX SP. PERIODICHE'!IZ149=1,'1) INPUT MUTUO'!$C$35,0) -> 0 | R175: 31
A176: =IF($B$3="M",IF(FORMULE!$B$15="OK",EOMONTH('2) OUTPUT PIANO'!A175,1),EDATE('2) OUTPUT PIANO'!A175,1)),IF($B$3="T",IF(FORMULE!$B$15="OK",EOMONTH('2) OUTPUT PIANO'!A175,3),EDATE('2) OUTPUT PIANO'!A175,3)),IF($B$3="S",IF(FORMULE!$B$15="OK",EOMONTH('2) OUTPUT PIANO'!A175,6),EDATE('2) OUTPUT PIANO'!A175,6)),IF($B$3="A",+IF(FORMULE!$B$15="OK",EOMONTH('2) OUTPUT PIANO'!A175,12),EDATE('2) OUTPUT PIANO'!A175,12)),"ERRORE")))) -> 2022-04-01 | B176: =IF(B175=0,0,IF(B175+1<='1) INPUT MUTUO'!$D$10,'2) OUTPUT PIANO'!B175+1,0)) -> 0 | D176: =IF(B175=0,0,IF('1) INPUT MUTUO'!$D$7="FRANCESE",F176-E176,'2) OUTPUT PIANO'!$C$17/'1) INPUT MUTUO'!$D$10)) -> 0 | E176: =IF(B176=0,0,IF('1) INPUT MUTUO'!$D$13=360,L175*$C$3,L175*R176*FORMULE!$B$7)) -> 0 | F176: =IF(B176=0,0,IF('1) INPUT MUTUO'!$D$7="ITALIANO",'2) OUTPUT PIANO'!D176+'2) OUTPUT PIANO'!E176,IF(B176>'1) INPUT MUTUO'!$D$10,0,FORMULE!$B$13))) -> 0 | G176: =IF($B$7="SI",IF(F176=0,0,'1) INPUT MUTUO'!$D$19),0) -> 0 | I176: 0 | K176: 0 | L176: 0 | M176: =+IF('MATRIX SP. PERIODICHE'!AZ150=1,'1) INPUT MUTUO'!$C$31,0) -> 0 | N176: =+IF('MATRIX SP. PERIODICHE'!CZ150=1,'1) INPUT MUTUO'!$C$32,0) -> 0 | O176: =IF('MATRIX SP. PERIODICHE'!EZ150=1,'1) INPUT MUTUO'!$C$33,0) -> 0 | P176: =IF('MATRIX SP. PERIODICHE'!GZ150=1,'1) INPUT MUTUO'!$C$34,0) -> 0 | Q176: =IF('MATRIX SP. PERIODICHE'!IZ150=1,'1) INPUT MUTUO'!$C$35,0) -> 0 | R176: 30
A177: =IF($B$3="M",IF(FORMULE!$B$15="OK",EOMONTH('2) OUTPUT PIANO'!A176,1),EDATE('2) OUTPUT PIANO'!A176,1)),IF($B$3="T",IF(FORMULE!$B$15="OK",EOMONTH('2) OUTPUT PIANO'!A176,3),EDATE('2) OUTPUT PIANO'!A176,3)),IF($B$3="S",IF(FORMULE!$B$15="OK",EOMONTH('2) OUTPUT PIANO'!A176,6),EDATE('2) OUTPUT PIANO'!A176,6)),IF($B$3="A",+IF(FORMULE!$B$15="OK",EOMONTH('2) OUTPUT PIANO'!A176,12),EDATE('2) OUTPUT PIANO'!A176,12)),"ERRORE")))) -> 2022-05-01 | B177: =IF(B176=0,0,IF(B176+1<='1) INPUT MUTUO'!$D$10,'2) OUTPUT PIANO'!B176+1,0)) -> 0 | D177: =IF(B176=0,0,IF('1) INPUT MUTUO'!$D$7="FRANCESE",F177-E177,'2) OUTPUT PIANO'!$C$17/'1) INPUT MUTUO'!$D$10)) -> 0 | E177: =IF(B177=0,0,IF('1) INPUT MUTUO'!$D$13=360,L176*$C$3,L176*R177*FORMULE!$B$7)) -> 0 | F177: =IF(B177=0,0,IF('1) INPUT MUTUO'!$D$7="ITALIANO",'2) OUTPUT PIANO'!D177+'2) OUTPUT PIANO'!E177,IF(B177>'1) INPUT MUTUO'!$D$10,0,FORMULE!$B$13))) -> 0 | G177: =IF($B$7="SI",IF(F177=0,0,'1) INPUT MUTUO'!$D$19),0) -> 0 | I177: 0 | K177: 0 | L177: 0 | M177: =+IF('MATRIX SP. PERIODICHE'!AZ151=1,'1) INPUT MUTUO'!$C$31,0) -> 0 | N177: =+IF('MATRIX SP. PERIODICHE'!CZ151=1,'1) INPUT MUTUO'!$C$32,0) -> 0 | O177: =IF('MATRIX SP. PERIODICHE'!EZ151=1,'1) INPUT MUTUO'!$C$33,0) -> 0 | P177: =IF('MATRIX SP. PERIODICHE'!GZ151=1,'1) INPUT MUTUO'!$C$34,0) -> 0 | Q177: =IF('MATRIX SP. PERIODICHE'!IZ151=1,'1) INPUT MUTUO'!$C$35,0) -> 0 | R177: 31
A178: =IF($B$3="M",IF(FORMULE!$B$15="OK",EOMONTH('2) OUTPUT PIANO'!A177,1),EDATE('2) OUTPUT PIANO'!A177,1)),IF($B$3="T",IF(FORMULE!$B$15="OK",EOMONTH('2) OUTPUT PIANO'!A177,3),EDATE('2) OUTPUT PIANO'!A177,3)),IF($B$3="S",IF(FORMULE!$B$15="OK",EOMONTH('2) OUTPUT PIANO'!A177,6),EDATE('2) OUTPUT PIANO'!A177,6)),IF($B$3="A",+IF(FORMULE!$B$15="OK",EOMONTH('2) OUTPUT PIANO'!A177,12),EDATE('2) OUTPUT PIANO'!A177,12)),"ERRORE")))) -> 2022-06-01 | B178: =IF(B177=0,0,IF(B177+1<='1) INPUT MUTUO'!$D$10,'2) OUTPUT PIANO'!B177+1,0)) -> 0 | D178: =IF(B177=0,0,IF('1) INPUT MUTUO'!$D$7="FRANCESE",F178-E178,'2) OUTPUT PIANO'!$C$17/'1) INPUT MUTUO'!$D$10)) -> 0 | E178: =IF(B178=0,0,IF('1) INPUT MUTUO'!$D$13=360,L177*$C$3,L177*R178*FORMULE!$B$7)) -> 0 | F178: =IF(B178=0,0,IF('1) INPUT MUTUO'!$D$7="ITALIANO",'2) OUTPUT PIANO'!D178+'2) OUTPUT PIANO'!E178,IF(B178>'1) INPUT MUTUO'!$D$10,0,FORMULE!$B$13))) -> 0 | G178: =IF($B$7="SI",IF(F178=0,0,'1) INPUT MUTUO'!$D$19),0) -> 0 | I178: 0 | K178: 0 | L178: 0 | M178: =+IF('MATRIX SP. PERIODICHE'!AZ152=1,'1) INPUT MUTUO'!$C$31,0) -> 0 | N178: =+IF('MATRIX SP. PERIODICHE'!CZ152=1,'1) INPUT MUTUO'!$C$32,0) -> 0 | O178: =IF('MATRIX SP. PERIODICHE'!EZ152=1,'1) INPUT MUTUO'!$C$33,0) -> 0 | P178: =IF('MATRIX SP. PERIODICHE'!GZ152=1,'1) INPUT MUTUO'!$C$34,0) -> 0 | Q178: =IF('MATRIX SP. PERIODICHE'!IZ152=1,'1) INPUT MUTUO'!$C$35,0) -> 0 | R178: 30
A179: =IF($B$3="M",IF(FORMULE!$B$15="OK",EOMONTH('2) OUTPUT PIANO'!A178,1),EDATE('2) OUTPUT PIANO'!A178,1)),IF($B$3="T",IF(FORMULE!$B$15="OK",EOMONTH('2) OUTPUT PIANO'!A178,3),EDATE('2) OUTPUT PIANO'!A178,3)),IF($B$3="S",IF(FORMULE!$B$15="OK",EOMONTH('2) OUTPUT PIANO'!A178,6),EDATE('2) OUTPUT PIANO'!A178,6)),IF($B$3="A",+IF(FORMULE!$B$15="OK",EOMONTH('2) OUTPUT PIANO'!A178,12),EDATE('2) OUTPUT PIANO'!A178,12)),"ERRORE")))) -> 2022-07-01 | B179: =IF(B178=0,0,IF(B178+1<='1) INPUT MUTUO'!$D$10,'2) OUTPUT PIANO'!B178+1,0)) -> 0 | D179: =IF(B178=0,0,IF('1) INPUT MUTUO'!$D$7="FRANCESE",F179-E179,'2) OUTPUT PIANO'!$C$17/'1) INPUT MUTUO'!$D$10)) -> 0 | E179: =IF(B179=0,0,IF('1) INPUT MUTUO'!$D$13=360,L178*$C$3,L178*R179*FORMULE!$B$7)) -> 0 | F179: =IF(B179=0,0,IF('1) INPUT MUTUO'!$D$7="ITALIANO",'2) OUTPUT PIANO'!D179+'2) OUTPUT PIANO'!E179,IF(B179>'1) INPUT MUTUO'!$D$10,0,FORMULE!$B$13))) -> 0 | G179: =IF($B$7="SI",IF(F179=0,0,'1) INPUT MUTUO'!$D$19),0) -> 0 | I179: 0 | K179: 0 | L179: 0 | M179: =+IF('MATRIX SP. PERIODICHE'!AZ153=1,'1) INPUT MUTUO'!$C$31,0) -> 0 | N179: =+IF('MATRIX SP. PERIODICHE'!CZ153=1,'1) INPUT MUTUO'!$C$32,0) -> 0 | O179: =IF('MATRIX SP. PERIODICHE'!EZ153=1,'1) INPUT MUTUO'!$C$33,0) -> 0 | P179: =IF('MATRIX SP. PERIODICHE'!GZ153=1,'1) INPUT MUTUO'!$C$34,0) -> 0 | Q179: =IF('MATRIX SP. PERIODICHE'!IZ153=1,'1) INPUT MUTUO'!$C$35,0) -> 0 | R179: 31
A180: =IF($B$3="M",IF(FORMULE!$B$15="OK",EOMONTH('2) OUTPUT PIANO'!A179,1),EDATE('2) OUTPUT PIANO'!A179,1)),IF($B$3="T",IF(FORMULE!$B$15="OK",EOMONTH('2) OUTPUT PIANO'!A179,3),EDATE('2) OUTPUT PIANO'!A179,3)),IF($B$3="S",IF(FORMULE!$B$15="OK",EOMONTH('2) OUTPUT PIANO'!A179,6),EDATE('2) OUTPUT PIANO'!A179,6)),IF($B$3="A",+IF(FORMULE!$B$15="OK",EOMONTH('2) OUTPUT PIANO'!A179,12),EDATE('2) OUTPUT PIANO'!A179,12)),"ERRORE")))) -> 2022-08-01 | B180: =IF(B179=0,0,IF(B179+1<='1) INPUT MUTUO'!$D$10,'2) OUTPUT PIANO'!B179+1,0)) -> 0 | D180: =IF(B179=0,0,IF('1) INPUT MUTUO'!$D$7="FRANCESE",F180-E180,'2) OUTPUT PIANO'!$C$17/'1) INPUT MUTUO'!$D$10)) -> 0 | E180: =IF(B180=0,0,IF('1) INPUT MUTUO'!$D$13=360,L179*$C$3,L179*R180*FORMULE!$B$7)) -> 0 | F180: =IF(B180=0,0,IF('1) INPUT MUTUO'!$D$7="ITALIANO",'2) OUTPUT PIANO'!D180+'2) OUTPUT PIANO'!E180,IF(B180>'1) INPUT MUTUO'!$D$10,0,FORMULE!$B$13))) -> 0 | G180: =IF($B$7="SI",IF(F180=0,0,'1) INPUT MUTUO'!$D$19),0) -> 0 | I180: 0 | K180: 0 | L180: 0 | M180: =+IF('MATRIX SP. PERIODICHE'!AZ154=1,'1) INPUT MUTUO'!$C$31,0) -> 0 | N180: =+IF('MATRIX SP. PERIODICHE'!CZ154=1,'1) INPUT MUTUO'!$C$32,0) -> 0 | O180: =IF('MATRIX SP. PERIODICHE'!EZ154=1,'1) INPUT MUTUO'!$C$33,0) -> 0 | P180: =IF('MATRIX SP. PERIODICHE'!GZ154=1,'1) INPUT MUTUO'!$C$34,0) -> 0 | Q180: =IF('MATRIX SP. PERIODICHE'!IZ154=1,'1) INPUT MUTUO'!$C$35,0) -> 0 | R180: 31
A181: =IF($B$3="M",IF(FORMULE!$B$15="OK",EOMONTH('2) OUTPUT PIANO'!A180,1),EDATE('2) OUTPUT PIANO'!A180,1)),IF($B$3="T",IF(FORMULE!$B$15="OK",EOMONTH('2) OUTPUT PIANO'!A180,3),EDATE('2) OUTPUT PIANO'!A180,3)),IF($B$3="S",IF(FORMULE!$B$15="OK",EOMONTH('2) OUTPUT PIANO'!A180,6),EDATE('2) OUTPUT PIANO'!A180,6)),IF($B$3="A",+IF(FORMULE!$B$15="OK",EOMONTH('2) OUTPUT PIANO'!A180,12),EDATE('2) OUTPUT PIANO'!A180,12)),"ERRORE")))) -> 2022-09-01 | B181: =IF(B180=0,0,IF(B180+1<='1) INPUT MUTUO'!$D$10,'2) OUTPUT PIANO'!B180+1,0)) -> 0 | D181: =IF(B180=0,0,IF('1) INPUT MUTUO'!$D$7="FRANCESE",F181-E181,'2) OUTPUT PIANO'!$C$17/'1) INPUT MUTUO'!$D$10)) -> 0 | E181: =IF(B181=0,0,IF('1) INPUT MUTUO'!$D$13=360,L180*$C$3,L180*R181*FORMULE!$B$7)) -> 0 | F181: =IF(B181=0,0,IF('1) INPUT MUTUO'!$D$7="ITALIANO",'2) OUTPUT PIANO'!D181+'2) OUTPUT PIANO'!E181,IF(B181>'1) INPUT MUTUO'!$D$10,0,FORMULE!$B$13))) -> 0 | G181: =IF($B$7="SI",IF(F181=0,0,'1) INPUT MUTUO'!$D$19),0) -> 0 | I181: 0 | K181: 0 | L181: 0 | M181: =+IF('MATRIX SP. PERIODICHE'!AZ155=1,'1) INPUT MUTUO'!$C$31,0) -> 0 | N181: =+IF('MATRIX SP. PERIODICHE'!CZ155=1,'1) INPUT MUTUO'!$C$32,0) -> 0 | O181: =IF('MATRIX SP. PERIODICHE'!EZ155=1,'1) INPUT MUTUO'!$C$33,0) -> 0 | P181: =IF('MATRIX SP. PERIODICHE'!GZ155=1,'1) INPUT MUTUO'!$C$34,0) -> 0 | Q181: =IF('MATRIX SP. PERIODICHE'!IZ155=1,'1) INPUT MUTUO'!$C$35,0) -> 0 | R181: 30
A182: =IF($B$3="M",IF(FORMULE!$B$15="OK",EOMONTH('2) OUTPUT PIANO'!A181,1),EDATE('2) OUTPUT PIANO'!A181,1)),IF($B$3="T",IF(FORMULE!$B$15="OK",EOMONTH('2) OUTPUT PIANO'!A181,3),EDATE('2) OUTPUT PIANO'!A181,3)),IF($B$3="S",IF(FORMULE!$B$15="OK",EOMONTH('2) OUTPUT PIANO'!A181,6),EDATE('2) OUTPUT PIANO'!A181,6)),IF($B$3="A",+IF(FORMULE!$B$15="OK",EOMONTH('2) OUTPUT PIANO'!A181,12),EDATE('2) OUTPUT PIANO'!A181,12)),"ERRORE")))) -> 2022-10-01 | B182: =IF(B181=0,0,IF(B181+1<='1) INPUT MUTUO'!$D$10,'2) OUTPUT PIANO'!B181+1,0)) -> 0 | D182: =IF(B181=0,0,IF('1) INPUT MUTUO'!$D$7="FRANCESE",F182-E182,'2) OUTPUT PIANO'!$C$17/'1) INPUT MUTUO'!$D$10)) -> 0 | E182: =IF(B182=0,0,IF('1) INPUT MUTUO'!$D$13=360,L181*$C$3,L181*R182*FORMULE!$B$7)) -> 0 | F182: =IF(B182=0,0,IF('1) INPUT MUTUO'!$D$7="ITALIANO",'2) OUTPUT PIANO'!D182+'2) OUTPUT PIANO'!E182,IF(B182>'1) INPUT MUTUO'!$D$10,0,FORMULE!$B$13))) -> 0 | G182: =IF($B$7="SI",IF(F182=0,0,'1) INPUT MUTUO'!$D$19),0) -> 0 | I182: 0 | K182: 0 | L182: 0 | M182: =+IF('MATRIX SP. PERIODICHE'!AZ156=1,'1) INPUT MUTUO'!$C$31,0) -> 0 | N182: =+IF('MATRIX SP. PERIODICHE'!CZ156=1,'1) INPUT MUTUO'!$C$32,0) -> 0 | O182: =IF('MATRIX SP. PERIODICHE'!EZ156=1,'1) INPUT MUTUO'!$C$33,0) -> 0 | P182: =IF('MATRIX SP. PERIODICHE'!GZ156=1,'1) INPUT MUTUO'!$C$34,0) -> 0 | Q182: =IF('MATRIX SP. PERIODICHE'!IZ156=1,'1) INPUT MUTUO'!$C$35,0) -> 0 | R182: 31
A183: =IF($B$3="M",IF(FORMULE!$B$15="OK",EOMONTH('2) OUTPUT PIANO'!A182,1),EDATE('2) OUTPUT PIANO'!A182,1)),IF($B$3="T",IF(FORMULE!$B$15="OK",EOMONTH('2) OUTPUT PIANO'!A182,3),EDATE('2) OUTPUT PIANO'!A182,3)),IF($B$3="S",IF(FORMULE!$B$15="OK",EOMONTH('2) OUTPUT PIANO'!A182,6),EDATE('2) OUTPUT PIANO'!A182,6)),IF($B$3="A",+IF(FORMULE!$B$15="OK",EOMONTH('2) OUTPUT PIANO'!A182,12),EDATE('2) OUTPUT PIANO'!A182,12)),"ERRORE")))) -> 2022-11-01 | B183: =IF(B182=0,0,IF(B182+1<='1) INPUT MUTUO'!$D$10,'2) OUTPUT PIANO'!B182+1,0)) -> 0 | D183: =IF(B182=0,0,IF('1) INPUT MUTUO'!$D$7="FRANCESE",F183-E183,'2) OUTPUT PIANO'!$C$17/'1) INPUT MUTUO'!$D$10)) -> 0 | E183: =IF(B183=0,0,IF('1) INPUT MUTUO'!$D$13=360,L182*$C$3,L182*R183*FORMULE!$B$7)) -> 0 | F183: =IF(B183=0,0,IF('1) INPUT MUTUO'!$D$7="ITALIANO",'2) OUTPUT PIANO'!D183+'2) OUTPUT PIANO'!E183,IF(B183>'1) INPUT MUTUO'!$D$10,0,FORMULE!$B$13))) -> 0 | G183: =IF($B$7="SI",IF(F183=0,0,'1) INPUT MUTUO'!$D$19),0) -> 0 | I183: 0 | K183: 0 | L183: 0 | M183: =+IF('MATRIX SP. PERIODICHE'!AZ157=1,'1) INPUT MUTUO'!$C$31,0) -> 0 | N183: =+IF('MATRIX SP. PERIODICHE'!CZ157=1,'1) INPUT MUTUO'!$C$32,0) -> 0 | O183: =IF('MATRIX SP. PERIODICHE'!EZ157=1,'1) INPUT MUTUO'!$C$33,0) -> 0 | P183: =IF('MATRIX SP. PERIODICHE'!GZ157=1,'1) INPUT MUTUO'!$C$34,0) -> 0 | Q183: =IF('MATRIX SP. PERIODICHE'!IZ157=1,'1) INPUT MUTUO'!$C$35,0) -> 0 | R183: 30
A184: =IF($B$3="M",IF(FORMULE!$B$15="OK",EOMONTH('2) OUTPUT PIANO'!A183,1),EDATE('2) OUTPUT PIANO'!A183,1)),IF($B$3="T",IF(FORMULE!$B$15="OK",EOMONTH('2) OUTPUT PIANO'!A183,3),EDATE('2) OUTPUT PIANO'!A183,3)),IF($B$3="S",IF(FORMULE!$B$15="OK",EOMONTH('2) OUTPUT PIANO'!A183,6),EDATE('2) OUTPUT PIANO'!A183,6)),IF($B$3="A",+IF(FORMULE!$B$15="OK",EOMONTH('2) OUTPUT PIANO'!A183,12),EDATE('2) OUTPUT PIANO'!A183,12)),"ERRORE")))) -> 2022-12-01 | B184: =IF(B183=0,0,IF(B183+1<='1) INPUT MUTUO'!$D$10,'2) OUTPUT PIANO'!B183+1,0)) -> 0 | D184: =IF(B183=0,0,IF('1) INPUT MUTUO'!$D$7="FRANCESE",F184-E184,'2) OUTPUT PIANO'!$C$17/'1) INPUT MUTUO'!$D$10)) -> 0 | E184: =IF(B184=0,0,IF('1) INPUT MUTUO'!$D$13=360,L183*$C$3,L183*R184*FORMULE!$B$7)) -> 0 | F184: =IF(B184=0,0,IF('1) INPUT MUTUO'!$D$7="ITALIANO",'2) OUTPUT PIANO'!D184+'2) OUTPUT PIANO'!E184,IF(B184>'1) INPUT MUTUO'!$D$10,0,FORMULE!$B$13))) -> 0 | G184: =IF($B$7="SI",IF(F184=0,0,'1) INPUT MUTUO'!$D$19),0) -> 0 | I184: 0 | K184: 0 | L184: 0 | M184: =+IF('MATRIX SP. PERIODICHE'!AZ158=1,'1) INPUT MUTUO'!$C$31,0) -> 0 | N184: =+IF('MATRIX SP. PERIODICHE'!CZ158=1,'1) INPUT MUTUO'!$C$32,0) -> 0 | O184: =IF('MATRIX SP. PERIODICHE'!EZ158=1,'1) INPUT MUTUO'!$C$33,0) -> 0 | P184: =IF('MATRIX SP. PERIODICHE'!GZ158=1,'1) INPUT MUTUO'!$C$34,0) -> 0 | Q184: =IF('MATRIX SP. PERIODICHE'!IZ158=1,'1) INPUT MUTUO'!$C$35,0) -> 0 | R184: 31
A185: =IF($B$3="M",IF(FORMULE!$B$15="OK",EOMONTH('2) OUTPUT PIANO'!A184,1),EDATE('2) OUTPUT PIANO'!A184,1)),IF($B$3="T",IF(FORMULE!$B$15="OK",EOMONTH('2) OUTPUT PIANO'!A184,3),EDATE('2) OUTPUT PIANO'!A184,3)),IF($B$3="S",IF(FORMULE!$B$15="OK",EOMONTH('2) OUTPUT PIANO'!A184,6),EDATE('2) OUTPUT PIANO'!A184,6)),IF($B$3="A",+IF(FORMULE!$B$15="OK",EOMONTH('2) OUTPUT PIANO'!A184,12),EDATE('2) OUTPUT PIANO'!A184,12)),"ERRORE")))) -> 2023-01-01 | B185: =IF(B184=0,0,IF(B184+1<='1) INPUT MUTUO'!$D$10,'2) OUTPUT PIANO'!B184+1,0)) -> 0 | D185: =IF(B184=0,0,IF('1) INPUT MUTUO'!$D$7="FRANCESE",F185-E185,'2) OUTPUT PIANO'!$C$17/'1) INPUT MUTUO'!$D$10)) -> 0 | E185: =IF(B185=0,0,IF('1) INPUT MUTUO'!$D$13=360,L184*$C$3,L184*R185*FORMULE!$B$7)) -> 0 | F185: =IF(B185=0,0,IF('1) INPUT MUTUO'!$D$7="ITALIANO",'2) OUTPUT PIANO'!D185+'2) OUTPUT PIANO'!E185,IF(B185>'1) INPUT MUTUO'!$D$10,0,FORMULE!$B$13))) -> 0 | G185: =IF($B$7="SI",IF(F185=0,0,'1) INPUT MUTUO'!$D$19),0) -> 0 | I185: 0 | K185: 0 | L185: 0 | M185: =+IF('MATRIX SP. PERIODICHE'!AZ159=1,'1) INPUT MUTUO'!$C$31,0) -> 0 | N185: =+IF('MATRIX SP. PERIODICHE'!CZ159=1,'1) INPUT MUTUO'!$C$32,0) -> 0 | O185: =IF('MATRIX SP. PERIODICHE'!EZ159=1,'1) INPUT MUTUO'!$C$33,0) -> 0 | P185: =IF('MATRIX SP. PERIODICHE'!GZ159=1,'1) INPUT MUTUO'!$C$34,0) -> 0 | Q185: =IF('MATRIX SP. PERIODICHE'!IZ159=1,'1) INPUT MUTUO'!$C$35,0) -> 0 | R185: 31
A186: =IF($B$3="M",IF(FORMULE!$B$15="OK",EOMONTH('2) OUTPUT PIANO'!A185,1),EDATE('2) OUTPUT PIANO'!A185,1)),IF($B$3="T",IF(FORMULE!$B$15="OK",EOMONTH('2) OUTPUT PIANO'!A185,3),EDATE('2) OUTPUT PIANO'!A185,3)),IF($B$3="S",IF(FORMULE!$B$15="OK",EOMONTH('2) OUTPUT PIANO'!A185,6),EDATE('2) OUTPUT PIANO'!A185,6)),IF($B$3="A",+IF(FORMULE!$B$15="OK",EOMONTH('2) OUTPUT PIANO'!A185,12),EDATE('2) OUTPUT PIANO'!A185,12)),"ERRORE")))) -> 2023-02-01 | B186: =IF(B185=0,0,IF(B185+1<='1) INPUT MUTUO'!$D$10,'2) OUTPUT PIANO'!B185+1,0)) -> 0 | D186: =IF(B185=0,0,IF('1) INPUT MUTUO'!$D$7="FRANCESE",F186-E186,'2) OUTPUT PIANO'!$C$17/'1) INPUT MUTUO'!$D$10)) -> 0 | E186: =IF(B186=0,0,IF('1) INPUT MUTUO'!$D$13=360,L185*$C$3,L185*R186*FORMULE!$B$7)) -> 0 | F186: =IF(B186=0,0,IF('1) INPUT MUTUO'!$D$7="ITALIANO",'2) OUTPUT PIANO'!D186+'2) OUTPUT PIANO'!E186,IF(B186>'1) INPUT MUTUO'!$D$10,0,FORMULE!$B$13))) -> 0 | G186: =IF($B$7="SI",IF(F186=0,0,'1) INPUT MUTUO'!$D$19),0) -> 0 | I186: 0 | K186: 0 | L186: 0 | M186: =+IF('MATRIX SP. PERIODICHE'!AZ160=1,'1) INPUT MUTUO'!$C$31,0) -> 0 | N186: =+IF('MATRIX SP. PERIODICHE'!CZ160=1,'1) INPUT MUTUO'!$C$32,0) -> 0 | O186: =IF('MATRIX SP. PERIODICHE'!EZ160=1,'1) INPUT MUTUO'!$C$33,0) -> 0 | P186: =IF('MATRIX SP. PERIODICHE'!GZ160=1,'1) INPUT MUTUO'!$C$34,0) -> 0 | Q186: =IF('MATRIX SP. PERIODICHE'!IZ160=1,'1) INPUT MUTUO'!$C$35,0) -> 0 | R186: 28
A187: =IF($B$3="M",IF(FORMULE!$B$15="OK",EOMONTH('2) OUTPUT PIANO'!A186,1),EDATE('2) OUTPUT PIANO'!A186,1)),IF($B$3="T",IF(FORMULE!$B$15="OK",EOMONTH('2) OUTPUT PIANO'!A186,3),EDATE('2) OUTPUT PIANO'!A186,3)),IF($B$3="S",IF(FORMULE!$B$15="OK",EOMONTH('2) OUTPUT PIANO'!A186,6),EDATE('2) OUTPUT PIANO'!A186,6)),IF($B$3="A",+IF(FORMULE!$B$15="OK",EOMONTH('2) OUTPUT PIANO'!A186,12),EDATE('2) OUTPUT PIANO'!A186,12)),"ERRORE")))) -> 2023-03-01 | B187: =IF(B186=0,0,IF(B186+1<='1) INPUT MUTUO'!$D$10,'2) OUTPUT PIANO'!B186+1,0)) -> 0 | D187: =IF(B186=0,0,IF('1) INPUT MUTUO'!$D$7="FRANCESE",F187-E187,'2) OUTPUT PIANO'!$C$17/'1) INPUT MUTUO'!$D$10)) -> 0 | E187: =IF(B187=0,0,IF('1) INPUT MUTUO'!$D$13=360,L186*$C$3,L186*R187*FORMULE!$B$7)) -> 0 | F187: =IF(B187=0,0,IF('1) INPUT MUTUO'!$D$7="ITALIANO",'2) OUTPUT PIANO'!D187+'2) OUTPUT PIANO'!E187,IF(B187>'1) INPUT MUTUO'!$D$10,0,FORMULE!$B$13))) -> 0 | G187: =IF($B$7="SI",IF(F187=0,0,'1) INPUT MUTUO'!$D$19),0) -> 0 | I187: 0 | K187: 0 | L187: 0 | M187: =+IF('MATRIX SP. PERIODICHE'!AZ161=1,'1) INPUT MUTUO'!$C$31,0) -> 0 | N187: =+IF('MATRIX SP. PERIODICHE'!CZ161=1,'1) INPUT MUTUO'!$C$32,0) -> 0 | O187: =IF('MATRIX SP. PERIODICHE'!EZ161=1,'1) INPUT MUTUO'!$C$33,0) -> 0 | P187: =IF('MATRIX SP. PERIODICHE'!GZ161=1,'1) INPUT MUTUO'!$C$34,0) -> 0 | Q187: =IF('MATRIX SP. PERIODICHE'!IZ161=1,'1) INPUT MUTUO'!$C$35,0) -> 0 | R187: 31
A188: =IF($B$3="M",IF(FORMULE!$B$15="OK",EOMONTH('2) OUTPUT PIANO'!A187,1),EDATE('2) OUTPUT PIANO'!A187,1)),IF($B$3="T",IF(FORMULE!$B$15="OK",EOMONTH('2) OUTPUT PIANO'!A187,3),EDATE('2) OUTPUT PIANO'!A187,3)),IF($B$3="S",IF(FORMULE!$B$15="OK",EOMONTH('2) OUTPUT PIANO'!A187,6),EDATE('2) OUTPUT PIANO'!A187,6)),IF($B$3="A",+IF(FORMULE!$B$15="OK",EOMONTH('2) OUTPUT PIANO'!A187,12),EDATE('2) OUTPUT PIANO'!A187,12)),"ERRORE")))) -> 2023-04-01 | B188: =IF(B187=0,0,IF(B187+1<='1) INPUT MUTUO'!$D$10,'2) OUTPUT PIANO'!B187+1,0)) -> 0 | D188: =IF(B187=0,0,IF('1) INPUT MUTUO'!$D$7="FRANCESE",F188-E188,'2) OUTPUT PIANO'!$C$17/'1) INPUT MUTUO'!$D$10)) -> 0 | E188: =IF(B188=0,0,IF('1) INPUT MUTUO'!$D$13=360,L187*$C$3,L187*R188*FORMULE!$B$7)) -> 0 | F188: =IF(B188=0,0,IF('1) INPUT MUTUO'!$D$7="ITALIANO",'2) OUTPUT PIANO'!D188+'2) OUTPUT PIANO'!E188,IF(B188>'1) INPUT MUTUO'!$D$10,0,FORMULE!$B$13))) -> 0 | G188: =IF($B$7="SI",IF(F188=0,0,'1) INPUT MUTUO'!$D$19),0) -> 0 | I188: 0 | K188: 0 | L188: 0 | M188: =+IF('MATRIX SP. PERIODICHE'!AZ162=1,'1) INPUT MUTUO'!$C$31,0) -> 0 | N188: =+IF('MATRIX SP. PERIODICHE'!CZ162=1,'1) INPUT MUTUO'!$C$32,0) -> 0 | O188: =IF('MATRIX SP. PERIODICHE'!EZ162=1,'1) INPUT MUTUO'!$C$33,0) -> 0 | P188: =IF('MATRIX SP. PERIODICHE'!GZ162=1,'1) INPUT MUTUO'!$C$34,0) -> 0 | Q188: =IF('MATRIX SP. PERIODICHE'!IZ162=1,'1) INPUT MUTUO'!$C$35,0) -> 0 | R188: 30
A189: =IF($B$3="M",IF(FORMULE!$B$15="OK",EOMONTH('2) OUTPUT PIANO'!A188,1),EDATE('2) OUTPUT PIANO'!A188,1)),IF($B$3="T",IF(FORMULE!$B$15="OK",EOMONTH('2) OUTPUT PIANO'!A188,3),EDATE('2) OUTPUT PIANO'!A188,3)),IF($B$3="S",IF(FORMULE!$B$15="OK",EOMONTH('2) OUTPUT PIANO'!A188,6),EDATE('2) OUTPUT PIANO'!A188,6)),IF($B$3="A",+IF(FORMULE!$B$15="OK",EOMONTH('2) OUTPUT PIANO'!A188,12),EDATE('2) OUTPUT PIANO'!A188,12)),"ERRORE")))) -> 2023-05-01 | B189: =IF(B188=0,0,IF(B188+1<='1) INPUT MUTUO'!$D$10,'2) OUTPUT PIANO'!B188+1,0)) -> 0 | D189: =IF(B188=0,0,IF('1) INPUT MUTUO'!$D$7="FRANCESE",F189-E189,'2) OUTPUT PIANO'!$C$17/'1) INPUT MUTUO'!$D$10)) -> 0 | E189: =IF(B189=0,0,IF('1) INPUT MUTUO'!$D$13=360,L188*$C$3,L188*R189*FORMULE!$B$7)) -> 0 | F189: =IF(B189=0,0,IF('1) INPUT MUTUO'!$D$7="ITALIANO",'2) OUTPUT PIANO'!D189+'2) OUTPUT PIANO'!E189,IF(B189>'1) INPUT MUTUO'!$D$10,0,FORMULE!$B$13))) -> 0 | G189: =IF($B$7="SI",IF(F189=0,0,'1) INPUT MUTUO'!$D$19),0) -> 0 | I189: 0 | K189: 0 | L189: 0 | M189: =+IF('MATRIX SP. PERIODICHE'!AZ163=1,'1) INPUT MUTUO'!$C$31,0) -> 0 | N189: =+IF('MATRIX SP. PERIODICHE'!CZ163=1,'1) INPUT MUTUO'!$C$32,0) -> 0 | O189: =IF('MATRIX SP. PERIODICHE'!EZ163=1,'1) INPUT MUTUO'!$C$33,0) -> 0 | P189: =IF('MATRIX SP. PERIODICHE'!GZ163=1,'1) INPUT MUTUO'!$C$34,0) -> 0 | Q189: =IF('MATRIX SP. PERIODICHE'!IZ163=1,'1) INPUT MUTUO'!$C$35,0) -> 0 | R189: 31
A190: =IF($B$3="M",IF(FORMULE!$B$15="OK",EOMONTH('2) OUTPUT PIANO'!A189,1),EDATE('2) OUTPUT PIANO'!A189,1)),IF($B$3="T",IF(FORMULE!$B$15="OK",EOMONTH('2) OUTPUT PIANO'!A189,3),EDATE('2) OUTPUT PIANO'!A189,3)),IF($B$3="S",IF(FORMULE!$B$15="OK",EOMONTH('2) OUTPUT PIANO'!A189,6),EDATE('2) OUTPUT PIANO'!A189,6)),IF($B$3="A",+IF(FORMULE!$B$15="OK",EOMONTH('2) OUTPUT PIANO'!A189,12),EDATE('2) OUTPUT PIANO'!A189,12)),"ERRORE")))) -> 2023-06-01 | B190: =IF(B189=0,0,IF(B189+1<='1) INPUT MUTUO'!$D$10,'2) OUTPUT PIANO'!B189+1,0)) -> 0 | D190: =IF(B189=0,0,IF('1) INPUT MUTUO'!$D$7="FRANCESE",F190-E190,'2) OUTPUT PIANO'!$C$17/'1) INPUT MUTUO'!$D$10)) -> 0 | E190: =IF(B190=0,0,IF('1) INPUT MUTUO'!$D$13=360,L189*$C$3,L189*R190*FORMULE!$B$7)) -> 0 | F190: =IF(B190=0,0,IF('1) INPUT MUTUO'!$D$7="ITALIANO",'2) OUTPUT PIANO'!D190+'2) OUTPUT PIANO'!E190,IF(B190>'1) INPUT MUTUO'!$D$10,0,FORMULE!$B$13))) -> 0 | G190: =IF($B$7="SI",IF(F190=0,0,'1) INPUT MUTUO'!$D$19),0) -> 0 | I190: 0 | K190: 0 | L190: 0 | M190: =+IF('MATRIX SP. PERIODICHE'!AZ164=1,'1) INPUT MUTUO'!$C$31,0) -> 0 | N190: =+IF('MATRIX SP. PERIODICHE'!CZ164=1,'1) INPUT MUTUO'!$C$32,0) -> 0 | O190: =IF('MATRIX SP. PERIODICHE'!EZ164=1,'1) INPUT MUTUO'!$C$33,0) -> 0 | P190: =IF('MATRIX SP. PERIODICHE'!GZ164=1,'1) INPUT MUTUO'!$C$34,0) -> 0 | Q190: =IF('MATRIX SP. PERIODICHE'!IZ164=1,'1) INPUT MUTUO'!$C$35,0) -> 0 | R190: 30
A191: =IF($B$3="M",IF(FORMULE!$B$15="OK",EOMONTH('2) OUTPUT PIANO'!A190,1),EDATE('2) OUTPUT PIANO'!A190,1)),IF($B$3="T",IF(FORMULE!$B$15="OK",EOMONTH('2) OUTPUT PIANO'!A190,3),EDATE('2) OUTPUT PIANO'!A190,3)),IF($B$3="S",IF(FORMULE!$B$15="OK",EOMONTH('2) OUTPUT PIANO'!A190,6),EDATE('2) OUTPUT PIANO'!A190,6)),IF($B$3="A",+IF(FORMULE!$B$15="OK",EOMONTH('2) OUTPUT PIANO'!A190,12),EDATE('2) OUTPUT PIANO'!A190,12)),"ERRORE")))) -> 2023-07-01 | B191: =IF(B190=0,0,IF(B190+1<='1) INPUT MUTUO'!$D$10,'2) OUTPUT PIANO'!B190+1,0)) -> 0 | D191: =IF(B190=0,0,IF('1) INPUT MUTUO'!$D$7="FRANCESE",F191-E191,'2) OUTPUT PIANO'!$C$17/'1) INPUT MUTUO'!$D$10)) -> 0 | E191: =IF(B191=0,0,IF('1) INPUT MUTUO'!$D$13=360,L190*$C$3,L190*R191*FORMULE!$B$7)) -> 0 | F191: =IF(B191=0,0,IF('1) INPUT MUTUO'!$D$7="ITALIANO",'2) OUTPUT PIANO'!D191+'2) OUTPUT PIANO'!E191,IF(B191>'1) INPUT MUTUO'!$D$10,0,FORMULE!$B$13))) -> 0 | G191: =IF($B$7="SI",IF(F191=0,0,'1) INPUT MUTUO'!$D$19),0) -> 0 | I191: 0 | K191: 0 | L191: 0 | M191: =+IF('MATRIX SP. PERIODICHE'!AZ165=1,'1) INPUT MUTUO'!$C$31,0) -> 0 | N191: =+IF('MATRIX SP. PERIODICHE'!CZ165=1,'1) INPUT MUTUO'!$C$32,0) -> 0 | O191: =IF('MATRIX SP. PERIODICHE'!EZ165=1,'1) INPUT MUTUO'!$C$33,0) -> 0 | P191: =IF('MATRIX SP. PERIODICHE'!GZ165=1,'1) INPUT MUTUO'!$C$34,0) -> 0 | Q191: =IF('MATRIX SP. PERIODICHE'!IZ165=1,'1) INPUT MUTUO'!$C$35,0) -> 0 | R191: 31
A192: =IF($B$3="M",IF(FORMULE!$B$15="OK",EOMONTH('2) OUTPUT PIANO'!A191,1),EDATE('2) OUTPUT PIANO'!A191,1)),IF($B$3="T",IF(FORMULE!$B$15="OK",EOMONTH('2) OUTPUT PIANO'!A191,3),EDATE('2) OUTPUT PIANO'!A191,3)),IF($B$3="S",IF(FORMULE!$B$15="OK",EOMONTH('2) OUTPUT PIANO'!A191,6),EDATE('2) OUTPUT PIANO'!A191,6)),IF($B$3="A",+IF(FORMULE!$B$15="OK",EOMONTH('2) OUTPUT PIANO'!A191,12),EDATE('2) OUTPUT PIANO'!A191,12)),"ERRORE")))) -> 2023-08-01 | B192: =IF(B191=0,0,IF(B191+1<='1) INPUT MUTUO'!$D$10,'2) OUTPUT PIANO'!B191+1,0)) -> 0 | D192: =IF(B191=0,0,IF('1) INPUT MUTUO'!$D$7="FRANCESE",F192-E192,'2) OUTPUT PIANO'!$C$17/'1) INPUT MUTUO'!$D$10)) -> 0 | E192: =IF(B192=0,0,IF('1) INPUT MUTUO'!$D$13=360,L191*$C$3,L191*R192*FORMULE!$B$7)) -> 0 | F192: =IF(B192=0,0,IF('1) INPUT MUTUO'!$D$7="ITALIANO",'2) OUTPUT PIANO'!D192+'2) OUTPUT PIANO'!E192,IF(B192>'1) INPUT MUTUO'!$D$10,0,FORMULE!$B$13))) -> 0 | G192: =IF($B$7="SI",IF(F192=0,0,'1) INPUT MUTUO'!$D$19),0) -> 0 | I192: 0 | K192: 0 | L192: 0 | M192: =+IF('MATRIX SP. PERIODICHE'!AZ166=1,'1) INPUT MUTUO'!$C$31,0) -> 0 | N192: =+IF('MATRIX SP. PERIODICHE'!CZ166=1,'1) INPUT MUTUO'!$C$32,0) -> 0 | O192: =IF('MATRIX SP. PERIODICHE'!EZ166=1,'1) INPUT MUTUO'!$C$33,0) -> 0 | P192: =IF('MATRIX SP. PERIODICHE'!GZ166=1,'1) INPUT MUTUO'!$C$34,0) -> 0 | Q192: =IF('MATRIX SP. PERIODICHE'!IZ166=1,'1) INPUT MUTUO'!$C$35,0) -> 0 | R192: 31
A193: =IF($B$3="M",IF(FORMULE!$B$15="OK",EOMONTH('2) OUTPUT PIANO'!A192,1),EDATE('2) OUTPUT PIANO'!A192,1)),IF($B$3="T",IF(FORMULE!$B$15="OK",EOMONTH('2) OUTPUT PIANO'!A192,3),EDATE('2) OUTPUT PIANO'!A192,3)),IF($B$3="S",IF(FORMULE!$B$15="OK",EOMONTH('2) OUTPUT PIANO'!A192,6),EDATE('2) OUTPUT PIANO'!A192,6)),IF($B$3="A",+IF(FORMULE!$B$15="OK",EOMONTH('2) OUTPUT PIANO'!A192,12),EDATE('2) OUTPUT PIANO'!A192,12)),"ERRORE")))) -> 2023-09-01 | B193: =IF(B192=0,0,IF(B192+1<='1) INPUT MUTUO'!$D$10,'2) OUTPUT PIANO'!B192+1,0)) -> 0 | D193: =IF(B192=0,0,IF('1) INPUT MUTUO'!$D$7="FRANCESE",F193-E193,'2) OUTPUT PIANO'!$C$17/'1) INPUT MUTUO'!$D$10)) -> 0 | E193: =IF(B193=0,0,IF('1) INPUT MUTUO'!$D$13=360,L192*$C$3,L192*R193*FORMULE!$B$7)) -> 0 | F193: =IF(B193=0,0,IF('1) INPUT MUTUO'!$D$7="ITALIANO",'2) OUTPUT PIANO'!D193+'2) OUTPUT PIANO'!E193,IF(B193>'1) INPUT MUTUO'!$D$10,0,FORMULE!$B$13))) -> 0 | G193: =IF($B$7="SI",IF(F193=0,0,'1) INPUT MUTUO'!$D$19),0) -> 0 | I193: 0 | K193: 0 | L193: 0 | M193: =+IF('MATRIX SP. PERIODICHE'!AZ167=1,'1) INPUT MUTUO'!$C$31,0) -> 0 | N193: =+IF('MATRIX SP. PERIODICHE'!CZ167=1,'1) INPUT MUTUO'!$C$32,0) -> 0 | O193: =IF('MATRIX SP. PERIODICHE'!EZ167=1,'1) INPUT MUTUO'!$C$33,0) -> 0 | P193: =IF('MATRIX SP. PERIODICHE'!GZ167=1,'1) INPUT MUTUO'!$C$34,0) -> 0 | Q193: =IF('MATRIX SP. PERIODICHE'!IZ167=1,'1) INPUT MUTUO'!$C$35,0) -> 0 | R193: 30
A194: =IF($B$3="M",IF(FORMULE!$B$15="OK",EOMONTH('2) OUTPUT PIANO'!A193,1),EDATE('2) OUTPUT PIANO'!A193,1)),IF($B$3="T",IF(FORMULE!$B$15="OK",EOMONTH('2) OUTPUT PIANO'!A193,3),EDATE('2) OUTPUT PIANO'!A193,3)),IF($B$3="S",IF(FORMULE!$B$15="OK",EOMONTH('2) OUTPUT PIANO'!A193,6),EDATE('2) OUTPUT PIANO'!A193,6)),IF($B$3="A",+IF(FORMULE!$B$15="OK",EOMONTH('2) OUTPUT PIANO'!A193,12),EDATE('2) OUTPUT PIANO'!A193,12)),"ERRORE")))) -> 2023-10-01 | B194: =IF(B193=0,0,IF(B193+1<='1) INPUT MUTUO'!$D$10,'2) OUTPUT PIANO'!B193+1,0)) -> 0 | D194: =IF(B193=0,0,IF('1) INPUT MUTUO'!$D$7="FRANCESE",F194-E194,'2) OUTPUT PIANO'!$C$17/'1) INPUT MUTUO'!$D$10)) -> 0 | E194: =IF(B194=0,0,IF('1) INPUT MUTUO'!$D$13=360,L193*$C$3,L193*R194*FORMULE!$B$7)) -> 0 | F194: =IF(B194=0,0,IF('1) INPUT MUTUO'!$D$7="ITALIANO",'2) OUTPUT PIANO'!D194+'2) OUTPUT PIANO'!E194,IF(B194>'1) INPUT MUTUO'!$D$10,0,FORMULE!$B$13))) -> 0 | G194: =IF($B$7="SI",IF(F194=0,0,'1) INPUT MUTUO'!$D$19),0) -> 0 | I194: 0 | K194: 0 | L194: 0 | M194: =+IF('MATRIX SP. PERIODICHE'!AZ168=1,'1) INPUT MUTUO'!$C$31,0) -> 0 | N194: =+IF('MATRIX SP. PERIODICHE'!CZ168=1,'1) INPUT MUTUO'!$C$32,0) -> 0 | O194: =IF('MATRIX SP. PERIODICHE'!EZ168=1,'1) INPUT MUTUO'!$C$33,0) -> 0 | P194: =IF('MATRIX SP. PERIODICHE'!GZ168=1,'1) INPUT MUTUO'!$C$34,0) -> 0 | Q194: =IF('MATRIX SP. PERIODICHE'!IZ168=1,'1) INPUT MUTUO'!$C$35,0) -> 0 | R194: 31
A195: =IF($B$3="M",IF(FORMULE!$B$15="OK",EOMONTH('2) OUTPUT PIANO'!A194,1),EDATE('2) OUTPUT PIANO'!A194,1)),IF($B$3="T",IF(FORMULE!$B$15="OK",EOMONTH('2) OUTPUT PIANO'!A194,3),EDATE('2) OUTPUT PIANO'!A194,3)),IF($B$3="S",IF(FORMULE!$B$15="OK",EOMONTH('2) OUTPUT PIANO'!A194,6),EDATE('2) OUTPUT PIANO'!A194,6)),IF($B$3="A",+IF(FORMULE!$B$15="OK",EOMONTH('2) OUTPUT PIANO'!A194,12),EDATE('2) OUTPUT PIANO'!A194,12)),"ERRORE")))) -> 2023-11-01 | B195: =IF(B194=0,0,IF(B194+1<='1) INPUT MUTUO'!$D$10,'2) OUTPUT PIANO'!B194+1,0)) -> 0 | D195: =IF(B194=0,0,IF('1) INPUT MUTUO'!$D$7="FRANCESE",F195-E195,'2) OUTPUT PIANO'!$C$17/'1) INPUT MUTUO'!$D$10)) -> 0 | E195: =IF(B195=0,0,IF('1) INPUT MUTUO'!$D$13=360,L194*$C$3,L194*R195*FORMULE!$B$7)) -> 0 | F195: =IF(B195=0,0,IF('1) INPUT MUTUO'!$D$7="ITALIANO",'2) OUTPUT PIANO'!D195+'2) OUTPUT PIANO'!E195,IF(B195>'1) INPUT MUTUO'!$D$10,0,FORMULE!$B$13))) -> 0 | G195: =IF($B$7="SI",IF(F195=0,0,'1) INPUT MUTUO'!$D$19),0) -> 0 | I195: 0 | K195: 0 | L195: 0 | M195: =+IF('MATRIX SP. PERIODICHE'!AZ169=1,'1) INPUT MUTUO'!$C$31,0) -> 0 | N195: =+IF('MATRIX SP. PERIODICHE'!CZ169=1,'1) INPUT MUTUO'!$C$32,0) -> 0 | O195: =IF('MATRIX SP. PERIODICHE'!EZ169=1,'1) INPUT MUTUO'!$C$33,0) -> 0 | P195: =IF('MATRIX SP. PERIODICHE'!GZ169=1,'1) INPUT MUTUO'!$C$34,0) -> 0 | Q195: =IF('MATRIX SP. PERIODICHE'!IZ169=1,'1) INPUT MUTUO'!$C$35,0) -> 0 | R195: 30
A196: =IF($B$3="M",IF(FORMULE!$B$15="OK",EOMONTH('2) OUTPUT PIANO'!A195,1),EDATE('2) OUTPUT PIANO'!A195,1)),IF($B$3="T",IF(FORMULE!$B$15="OK",EOMONTH('2) OUTPUT PIANO'!A195,3),EDATE('2) OUTPUT PIANO'!A195,3)),IF($B$3="S",IF(FORMULE!$B$15="OK",EOMONTH('2) OUTPUT PIANO'!A195,6),EDATE('2) OUTPUT PIANO'!A195,6)),IF($B$3="A",+IF(FORMULE!$B$15="OK",EOMONTH('2) OUTPUT PIANO'!A195,12),EDATE('2) OUTPUT PIANO'!A195,12)),"ERRORE")))) -> 2023-12-01 | B196: =IF(B195=0,0,IF(B195+1<='1) INPUT MUTUO'!$D$10,'2) OUTPUT PIANO'!B195+1,0)) -> 0 | D196: =IF(B195=0,0,IF('1) INPUT MUTUO'!$D$7="FRANCESE",F196-E196,'2) OUTPUT PIANO'!$C$17/'1) INPUT MUTUO'!$D$10)) -> 0 | E196: =IF(B196=0,0,IF('1) INPUT MUTUO'!$D$13=360,L195*$C$3,L195*R196*FORMULE!$B$7)) -> 0 | F196: =IF(B196=0,0,IF('1) INPUT MUTUO'!$D$7="ITALIANO",'2) OUTPUT PIANO'!D196+'2) OUTPUT PIANO'!E196,IF(B196>'1) INPUT MUTUO'!$D$10,0,FORMULE!$B$13))) -> 0 | G196: =IF($B$7="SI",IF(F196=0,0,'1) INPUT MUTUO'!$D$19),0) -> 0 | I196: 0 | K196: 0 | L196: 0 | M196: =+IF('MATRIX SP. PERIODICHE'!AZ170=1,'1) INPUT MUTUO'!$C$31,0) -> 0 | N196: =+IF('MATRIX SP. PERIODICHE'!CZ170=1,'1) INPUT MUTUO'!$C$32,0) -> 0 | O196: =IF('MATRIX SP. PERIODICHE'!EZ170=1,'1) INPUT MUTUO'!$C$33,0) -> 0 | P196: =IF('MATRIX SP. PERIODICHE'!GZ170=1,'1) INPUT MUTUO'!$C$34,0) -> 0 | Q196: =IF('MATRIX SP. PERIODICHE'!IZ170=1,'1) INPUT MUTUO'!$C$35,0) -> 0 | R196: 31
A197: =IF($B$3="M",IF(FORMULE!$B$15="OK",EOMONTH('2) OUTPUT PIANO'!A196,1),EDATE('2) OUTPUT PIANO'!A196,1)),IF($B$3="T",IF(FORMULE!$B$15="OK",EOMONTH('2) OUTPUT PIANO'!A196,3),EDATE('2) OUTPUT PIANO'!A196,3)),IF($B$3="S",IF(FORMULE!$B$15="OK",EOMONTH('2) OUTPUT PIANO'!A196,6),EDATE('2) OUTPUT PIANO'!A196,6)),IF($B$3="A",+IF(FORMULE!$B$15="OK",EOMONTH('2) OUTPUT PIANO'!A196,12),EDATE('2) OUTPUT PIANO'!A196,12)),"ERRORE")))) -> 2024-01-01 | B197: =IF(B196=0,0,IF(B196+1<='1) INPUT MUTUO'!$D$10,'2) OUTPUT PIANO'!B196+1,0)) -> 0 | D197: =IF(B196=0,0,IF('1) INPUT MUTUO'!$D$7="FRANCESE",F197-E197,'2) OUTPUT PIANO'!$C$17/'1) INPUT MUTUO'!$D$10)) -> 0 | E197: =IF(B197=0,0,IF('1) INPUT MUTUO'!$D$13=360,L196*$C$3,L196*R197*FORMULE!$B$7)) -> 0 | F197: =IF(B197=0,0,IF('1) INPUT MUTUO'!$D$7="ITALIANO",'2) OUTPUT PIANO'!D197+'2) OUTPUT PIANO'!E197,IF(B197>'1) INPUT MUTUO'!$D$10,0,FORMULE!$B$13))) -> 0 | G197: =IF($B$7="SI",IF(F197=0,0,'1) INPUT MUTUO'!$D$19),0) -> 0 | I197: 0 | K197: 0 | L197: 0 | M197: =+IF('MATRIX SP. PERIODICHE'!AZ171=1,'1) INPUT MUTUO'!$C$31,0) -> 0 | N197: =+IF('MATRIX SP. PERIODICHE'!CZ171=1,'1) INPUT MUTUO'!$C$32,0) -> 0 | O197: =IF('MATRIX SP. PERIODICHE'!EZ171=1,'1) INPUT MUTUO'!$C$33,0) -> 0 | P197: =IF('MATRIX SP. PERIODICHE'!GZ171=1,'1) INPUT MUTUO'!$C$34,0) -> 0 | Q197: =IF('MATRIX SP. PERIODICHE'!IZ171=1,'1) INPUT MUTUO'!$C$35,0) -> 0 | R197: 31
A198: =IF($B$3="M",IF(FORMULE!$B$15="OK",EOMONTH('2) OUTPUT PIANO'!A197,1),EDATE('2) OUTPUT PIANO'!A197,1)),IF($B$3="T",IF(FORMULE!$B$15="OK",EOMONTH('2) OUTPUT PIANO'!A197,3),EDATE('2) OUTPUT PIANO'!A197,3)),IF($B$3="S",IF(FORMULE!$B$15="OK",EOMONTH('2) OUTPUT PIANO'!A197,6),EDATE('2) OUTPUT PIANO'!A197,6)),IF($B$3="A",+IF(FORMULE!$B$15="OK",EOMONTH('2) OUTPUT PIANO'!A197,12),EDATE('2) OUTPUT PIANO'!A197,12)),"ERRORE")))) -> 2024-02-01 | B198: =IF(B197=0,0,IF(B197+1<='1) INPUT MUTUO'!$D$10,'2) OUTPUT PIANO'!B197+1,0)) -> 0 | D198: =IF(B197=0,0,IF('1) INPUT MUTUO'!$D$7="FRANCESE",F198-E198,'2) OUTPUT PIANO'!$C$17/'1) INPUT MUTUO'!$D$10)) -> 0 | E198: =IF(B198=0,0,IF('1) INPUT MUTUO'!$D$13=360,L197*$C$3,L197*R198*FORMULE!$B$7)) -> 0 | F198: =IF(B198=0,0,IF('1) INPUT MUTUO'!$D$7="ITALIANO",'2) OUTPUT PIANO'!D198+'2) OUTPUT PIANO'!E198,IF(B198>'1) INPUT MUTUO'!$D$10,0,FORMULE!$B$13))) -> 0 | G198: =IF($B$7="SI",IF(F198=0,0,'1) INPUT MUTUO'!$D$19),0) -> 0 | I198: 0 | K198: 0 | L198: 0 | M198: =+IF('MATRIX SP. PERIODICHE'!AZ172=1,'1) INPUT MUTUO'!$C$31,0) -> 0 | N198: =+IF('MATRIX SP. PERIODICHE'!CZ172=1,'1) INPUT MUTUO'!$C$32,0) -> 0 | O198: =IF('MATRIX SP. PERIODICHE'!EZ172=1,'1) INPUT MUTUO'!$C$33,0) -> 0 | P198: =IF('MATRIX SP. PERIODICHE'!GZ172=1,'1) INPUT MUTUO'!$C$34,0) -> 0 | Q198: =IF('MATRIX SP. PERIODICHE'!IZ172=1,'1) INPUT MUTUO'!$C$35,0) -> 0 | R198: 29
A199: =IF($B$3="M",IF(FORMULE!$B$15="OK",EOMONTH('2) OUTPUT PIANO'!A198,1),EDATE('2) OUTPUT PIANO'!A198,1)),IF($B$3="T",IF(FORMULE!$B$15="OK",EOMONTH('2) OUTPUT PIANO'!A198,3),EDATE('2) OUTPUT PIANO'!A198,3)),IF($B$3="S",IF(FORMULE!$B$15="OK",EOMONTH('2) OUTPUT PIANO'!A198,6),EDATE('2) OUTPUT PIANO'!A198,6)),IF($B$3="A",+IF(FORMULE!$B$15="OK",EOMONTH('2) OUTPUT PIANO'!A198,12),EDATE('2) OUTPUT PIANO'!A198,12)),"ERRORE")))) -> 2024-03-01 | B199: =IF(B198=0,0,IF(B198+1<='1) INPUT MUTUO'!$D$10,'2) OUTPUT PIANO'!B198+1,0)) -> 0 | D199: =IF(B198=0,0,IF('1) INPUT MUTUO'!$D$7="FRANCESE",F199-E199,'2) OUTPUT PIANO'!$C$17/'1) INPUT MUTUO'!$D$10)) -> 0 | E199: =IF(B199=0,0,IF('1) INPUT MUTUO'!$D$13=360,L198*$C$3,L198*R199*FORMULE!$B$7)) -> 0 | F199: =IF(B199=0,0,IF('1) INPUT MUTUO'!$D$7="ITALIANO",'2) OUTPUT PIANO'!D199+'2) OUTPUT PIANO'!E199,IF(B199>'1) INPUT MUTUO'!$D$10,0,FORMULE!$B$13))) -> 0 | G199: =IF($B$7="SI",IF(F199=0,0,'1) INPUT MUTUO'!$D$19),0) -> 0 | I199: 0 | K199: 0 | L199: 0 | M199: =+IF('MATRIX SP. PERIODICHE'!AZ173=1,'1) INPUT MUTUO'!$C$31,0) -> 0 | N199: =+IF('MATRIX SP. PERIODICHE'!CZ173=1,'1) INPUT MUTUO'!$C$32,0) -> 0 | O199: =IF('MATRIX SP. PERIODICHE'!EZ173=1,'1) INPUT MUTUO'!$C$33,0) -> 0 | P199: =IF('MATRIX SP. PERIODICHE'!GZ173=1,'1) INPUT MUTUO'!$C$34,0) -> 0 | Q199: =IF('MATRIX SP. PERIODICHE'!IZ173=1,'1) INPUT MUTUO'!$C$35,0) -> 0 | R199: 31
A200: =IF($B$3="M",IF(FORMULE!$B$15="OK",EOMONTH('2) OUTPUT PIANO'!A199,1),EDATE('2) OUTPUT PIANO'!A199,1)),IF($B$3="T",IF(FORMULE!$B$15="OK",EOMONTH('2) OUTPUT PIANO'!A199,3),EDATE('2) OUTPUT PIANO'!A199,3)),IF($B$3="S",IF(FORMULE!$B$15="OK",EOMONTH('2) OUTPUT PIANO'!A199,6),EDATE('2) OUTPUT PIANO'!A199,6)),IF($B$3="A",+IF(FORMULE!$B$15="OK",EOMONTH('2) OUTPUT PIANO'!A199,12),EDATE('2) OUTPUT PIANO'!A199,12)),"ERRORE")))) -> 2024-04-01 | B200: =IF(B199=0,0,IF(B199+1<='1) INPUT MUTUO'!$D$10,'2) OUTPUT PIANO'!B199+1,0)) -> 0 | D200: =IF(B199=0,0,IF('1) INPUT MUTUO'!$D$7="FRANCESE",F200-E200,'2) OUTPUT PIANO'!$C$17/'1) INPUT MUTUO'!$D$10)) -> 0 | E200: =IF(B200=0,0,IF('1) INPUT MUTUO'!$D$13=360,L199*$C$3,L199*R200*FORMULE!$B$7)) -> 0 | F200: =IF(B200=0,0,IF('1) INPUT MUTUO'!$D$7="ITALIANO",'2) OUTPUT PIANO'!D200+'2) OUTPUT PIANO'!E200,IF(B200>'1) INPUT MUTUO'!$D$10,0,FORMULE!$B$13))) -> 0 | G200: =IF($B$7="SI",IF(F200=0,0,'1) INPUT MUTUO'!$D$19),0) -> 0 | I200: 0 | K200: 0 | L200: 0 | M200: =+IF('MATRIX SP. PERIODICHE'!AZ174=1,'1) INPUT MUTUO'!$C$31,0) -> 0 | N200: =+IF('MATRIX SP. PERIODICHE'!CZ174=1,'1) INPUT MUTUO'!$C$32,0) -> 0 | O200: =IF('MATRIX SP. PERIODICHE'!EZ174=1,'1) INPUT MUTUO'!$C$33,0) -> 0 | P200: =IF('MATRIX SP. PERIODICHE'!GZ174=1,'1) INPUT MUTUO'!$C$34,0) -> 0 | Q200: =IF('MATRIX SP. PERIODICHE'!IZ174=1,'1) INPUT MUTUO'!$C$35,0) -> 0 | R200: 30
A201: =IF($B$3="M",IF(FORMULE!$B$15="OK",EOMONTH('2) OUTPUT PIANO'!A200,1),EDATE('2) OUTPUT PIANO'!A200,1)),IF($B$3="T",IF(FORMULE!$B$15="OK",EOMONTH('2) OUTPUT PIANO'!A200,3),EDATE('2) OUTPUT PIANO'!A200,3)),IF($B$3="S",IF(FORMULE!$B$15="OK",EOMONTH('2) OUTPUT PIANO'!A200,6),EDATE('2) OUTPUT PIANO'!A200,6)),IF($B$3="A",+IF(FORMULE!$B$15="OK",EOMONTH('2) OUTPUT PIANO'!A200,12),EDATE('2) OUTPUT PIANO'!A200,12)),"ERRORE")))) -> 2024-05-01 | B201: =IF(B200=0,0,IF(B200+1<='1) INPUT MUTUO'!$D$10,'2) OUTPUT PIANO'!B200+1,0)) -> 0 | D201: =IF(B200=0,0,IF('1) INPUT MUTUO'!$D$7="FRANCESE",F201-E201,'2) OUTPUT PIANO'!$C$17/'1) INPUT MUTUO'!$D$10)) -> 0 | E201: =IF(B201=0,0,IF('1) INPUT MUTUO'!$D$13=360,L200*$C$3,L200*R201*FORMULE!$B$7)) -> 0 | F201: =IF(B201=0,0,IF('1) INPUT MUTUO'!$D$7="ITALIANO",'2) OUTPUT PIANO'!D201+'2) OUTPUT PIANO'!E201,IF(B201>'1) INPUT MUTUO'!$D$10,0,FORMULE!$B$13))) -> 0 | G201: =IF($B$7="SI",IF(F201=0,0,'1) INPUT MUTUO'!$D$19),0) -> 0 | I201: 0 | K201: 0 | L201: 0 | M201: =+IF('MATRIX SP. PERIODICHE'!AZ175=1,'1) INPUT MUTUO'!$C$31,0) -> 0 | N201: =+IF('MATRIX SP. PERIODICHE'!CZ175=1,'1) INPUT MUTUO'!$C$32,0) -> 0 | O201: =IF('MATRIX SP. PERIODICHE'!EZ175=1,'1) INPUT MUTUO'!$C$33,0) -> 0 | P201: =IF('MATRIX SP. PERIODICHE'!GZ175=1,'1) INPUT MUTUO'!$C$34,0) -> 0 | Q201: =IF('MATRIX SP. PERIODICHE'!IZ175=1,'1) INPUT MUTUO'!$C$35,0) -> 0 | R201: 31
... 831 more rows

Sheet FORMULE (hidden)
A1: FORMULE | D1: FORMULE PREAMMORTAMENTO
A2: TAN MENSILE | B2: =+'1) INPUT MUTUO'!D9/12 -> 0.0025 | D2: =+A2 -> TAN MENSILE | E2: =+'1) INPUT MUTUO'!$C$41/12 -> 0
A3: TAN TRIMESTRALE | B3: =+'1) INPUT MUTUO'!D9/4 -> 0.0075 | D3: =+A3 -> TAN TRIMESTRALE | E3: =+'1) INPUT MUTUO'!$C$41/4 -> 0
A4: TAN SEMESTRALE | B4: =+'1) INPUT MUTUO'!D9/2 -> 0.015 | D4: =+A4 -> TAN SEMESTRALE | E4: =+'1) INPUT MUTUO'!$C$41/2 -> 0
A5: TAN ANNUALE | B5: =+'1) INPUT MUTUO'!D9 -> 0.03 | D5: =+A5 -> TAN ANNUALE | E5: =+'1) INPUT MUTUO'!$C$41 -> 0
A6: TAN PERIODALE | B6: =IF('1) INPUT MUTUO'!$D$11="M",B2,IF('1) INPUT MUTUO'!$D$11="T",B3,IF('1) INPUT MUTUO'!$D$11="S",B4,IF('1) INPUT MUTUO'!$D$11="A",B5)))) -> 0.0025 | D6: TAN PERIODALE | E6: =IF('1) INPUT MUTUO'!$D$11="M",E2,IF('1) INPUT MUTUO'!$D$11="T",E3,IF('1) INPUT MUTUO'!$D$11="S",E4,IF('1) INPUT MUTUO'!$D$11="A",E5)))) -> 0
A7: TAN GIORNALIERO | B7: =B5/365 -> 8.219178082e-05 | D7: =+A7 -> TAN GIORNALIERO | E7: =+'1) INPUT MUTUO'!$C$41/360 -> 0
A9: RATA MENSILE | B9: =-PMT(B2,'1) INPUT MUTUO'!$D$10,'1) INPUT MUTUO'!$D$8) -> 1131.445917
A10: RATA TRIMESTRALE | B10: =-PMT(B3,'1) INPUT MUTUO'!$D$10,'1) INPUT MUTUO'!$D$8) -> 1425.016568
A11: RATA SEMESTRALE | B11: =-PMT(B4,'1) INPUT MUTUO'!$D$10,'1) INPUT MUTUO'!$D$8) -> 1937.057124
A12: RATA ANNUALE | B12: =-PMT(B5,'1) INPUT MUTUO'!$D$10,'1) INPUT MUTUO'!$D$8) -> 3164.66659
A13: RATA EFFETTIVA | B13: =+IF('1) INPUT MUTUO'!D11="M",B9,IF('1) INPUT MUTUO'!D11="T",B10,IF('1) INPUT MUTUO'!D11="S",B11,IF('1) INPUT MUTUO'!D11="A",B12,"FALSO")))) -> 1131.445917
A15: CHECK DATA FINE MESE | B15: =+IF(EOMONTH('1) INPUT MUTUO'!D6,0)='1) INPUT MUTUO'!D6,"OK","NO") -> NO
A16: CHECK DATA INZIO MESE | B16: =+IF(B15="OK","NO","OK") -> OK

Sheet 3) VERIFICA IP MORA-ESTINZIONE
A1: DOTT. LEONE GABRIELE
A2: CALCOLO PIANO IN IPOTESI DI MORA E/O ESTINZIONE ANTICIPATA | M2: CRUSCOTTO CALCOLO MORA
M3: ISTRUZIONI: nella colonna PAGAMENTO bisogna indicare S se si vuole ipotizzare la rata regolarmente saldata, mentre bisogna indicare N se si vuole ipotizzare che tale rata sia insoluta. Il software, per semplicità di ipotesi, calcolerà il saldo dell'insoluto alla prima data di pagamento regolare. Indifferente l'indicazione dalla data di estinzione in poi.
Y6: TOTALE MORA | Z6: =SUM(T9:T1008) -> 0
A7: DATA | B7: RATA N. | C7: EROGATO | D7: QUOTA CAPITALE | E7: QUOTA INTERESSI | F7: IMPORTO RATA | G7: SPESE RATA | H7: SPESE ALL'EROGAZIONE | I7: SPESE PERIODICHE | J7: ALTRE SPESE | K7: FLUSSO | L7: DEBITO RESIDUO | M7: IMPORTO DOVUTO | N7: PAGAMENTO (S/N) | O7: STATUS | P7: INSOLUTO | Q7: DEBITO | R7: GG MORA | S7: SPESE RATA INSOLUTA | T7: MORA | U7: Q.TA RATE RESTANTE | V7: PENALE ESTINZIONE | W7: DATE ADDEBITO/ACCREDITO | X7: PAGAMENTI | Y7: TEG (By LeoneAdvisor) | Z7: =+XIRR(X8:X1009,W8:W1009,1) -> 0.05399617925
A8: =+'2) OUTPUT PIANO'!A17 -> 2010-01-01 | B8: =+'2) OUTPUT PIANO'!B17 -> EROGAZIONE | C8: =+'2) OUTPUT PIANO'!C17 -> 100000 | D8: =+'2) OUTPUT PIANO'!D17 -> 0 | E8: =+'2) OUTPUT PIANO'!D17 -> 0 | F8: =+'2) OUTPUT PIANO'!F17 -> 0 | G8: =+'2) OUTPUT PIANO'!G17 -> 0 | H8: =+'2) OUTPUT PIANO'!H17 -> 0 | I8: =+'2) OUTPUT PIANO'!I17 -> 0 | J8: =+'2) OUTPUT PIANO'!J17 -> 0 | K8: =+'2) OUTPUT PIANO'!K17 -> 100000 | L8: =+'2) OUTPUT PIANO'!L17 -> 100000 | U8: =SUM(F9:F1008) -> 113144.5917 | W8: =IF(O8="E",'1) INPUT MUTUO'!$C$51,IF(O7="E","0",IF(W7="0","0",A8))) -> 2010-01-01 | X8: =IF(W8="0",0,IF(O8="E",-L8-V8,K8)) -> 100000
A9: =+'2) OUTPUT PIANO'!A18 -> 2010-01-01 | B9: =+'2) OUTPUT PIANO'!B18 -> preammortamento | C9: =+'2) OUTPUT PIANO'!C18 -> 0 | D9: =+'2) OUTPUT PIANO'!D18 -> 0 | E9: =+'2) OUTPUT PIANO'!D18 -> 0 | F9: =+'2) OUTPUT PIANO'!F18 -> 0 | G9: =+'2) OUTPUT PIANO'!G18 -> 0 | H9: =+'2) OUTPUT PIANO'!H18 -> 0 | I9: =+'2) OUTPUT PIANO'!I18 -> 0 | J9: =+'2) OUTPUT PIANO'!J18 -> 0 | K9: =+'2) OUTPUT PIANO'!K18 -> 0 | L9: =+'2) OUTPUT PIANO'!L18 -> 100000 | M9: =-K9 -> 0 | N9: S | O9: =IF(O8="0","0",IF(O8="E","0",IF('1) INPUT MUTUO'!$C$46="NO",'3) VERIFICA IP MORA-ESTINZIONE'!N9,IF(A9>='1) INPUT MUTUO'!$C$51,"E",'3) VERIFICA IP MORA-ESTINZIONE'!N9)))) -> S | P9: =IF(O9="0",0,IF('1) INPUT MUTUO'!$D$15="RATA",IF(O9="N",M9,IF(O9="S",0,IF(O9="E",0,"ERRORE"))),IF(O9="N",D9,IF(O9="S",0,IF(O9="E",0,"ERRORE"))))) -> 0 | Q9: =IF(P9=0,0,Q8+P9) -> 0 | R9: =IF(O9="n",W10-A9,IF(O9="s",0,)) -> 0 | S9: =+IF(P9>0,'1) INPUT MUTUO'!$D$16,0) -> 0 | T9: =IF(O9="0",0,(R9*Q9*'1) INPUT MUTUO'!$D$14/'1) INPUT MUTUO'!$D$13)) -> 0 | U9: 113144.5917 | V9: =+IF(O9="0",0,'1) INPUT MUTUO'!$C$50+'1) INPUT MUTUO'!$C$49+'1) INPUT MUTUO'!$C$48*'3) VERIFICA IP MORA-ESTINZIONE'!L8+'1) INPUT MUTUO'!$C$47*'3) VERIFICA IP MORA-ESTINZIONE'!U9) -> 11314.45917 | W9: =IF(O9="E",'1) INPUT MUTUO'!$C$51,IF(O8="E","0",IF(W8="0","0",A9))) -> 2010-01-01 | X9: =IF(W9="0",0,IF(O9="E",IF(W9=A9,-L9-M9-V9-S9,-L8-V8),-M9-S9)) -> 0
A10: =+'2) OUTPUT PIANO'!A19 -> 2010-01-01 | B10: =+'2) OUTPUT PIANO'!B19 -> preammortamento | C10: =+'2) OUTPUT PIANO'!C19 -> 0 | D10: =+'2) OUTPUT PIANO'!D19 -> 0 | E10: =+'2) OUTPUT PIANO'!D19 -> 0 | F10: =+'2) OUTPUT PIANO'!F19 -> 0 | G10: =+'2) OUTPUT PIANO'!G19 -> 0 | H10: =+'2) OUTPUT PIANO'!H19 -> 0 | I10: =+'2) OUTPUT PIANO'!I19 -> 0 | J10: =+'2) OUTPUT PIANO'!J19 -> 0 | K10: =+'2) OUTPUT PIANO'!K19 -> 0 | L10: =+'2) OUTPUT PIANO'!L19 -> 100000 | M10: =-K10 -> 0 | N10: S | O10: =IF(O9="0","0",IF(O9="E","0",IF('1) INPUT MUTUO'!$C$46="NO",'3) VERIFICA IP MORA-ESTINZIONE'!N10,IF(A10>='1) INPUT MUTUO'!$C$51,"E",'3) VERIFICA IP MORA-ESTINZIONE'!N10)))) -> S | P10: =IF(O10="0",0,IF('1) INPUT MUTUO'!$D$15="RATA",IF(O10="N",M10,IF(O10="S",0,IF(O10="E",0,"ERRORE"))),IF(O10="N",D10,IF(O10="S",0,IF(O10="E",0,"ERRORE"))))) -> 0 | Q10: =IF(P10=0,0,Q9+P10) -> 0 | R10: 0 | S10: =+IF(P10>0,'1) INPUT MUTUO'!$D$16,0) -> 0 | T10: =IF(O10="0",0,(R10*Q10*'1) INPUT MUTUO'!$D$14/'1) INPUT MUTUO'!$D$13)) -> 0 | U10: 113144.5917 | V10: =+IF(O10="0",0,'1) INPUT MUTUO'!$C$50+'1) INPUT MUTUO'!$C$49+'1) INPUT MUTUO'!$C$48*'3) VERIFICA IP MORA-ESTINZIONE'!L9+'1) INPUT MUTUO'!$C$47*'3) VERIFICA IP MORA-ESTINZIONE'!U10) -> 11314.45917 | W10: =IF(O10="E",'1) INPUT MUTUO'!$C$51,IF(O9="E","0",IF(W9="0","0",A10))) -> 2010-01-01 | X10: =IF(W10="0",0,IF(O10="E",IF(W10=A10,-L10-M10-V10-S10-T9,-L9-V9-T9),-M10-S10-T9)) -> 0
A11: =+'2) OUTPUT PIANO'!A20 -> 2010-01-01 | B11: =+'2) OUTPUT PIANO'!B20 -> preammortamento | C11: =+'2) OUTPUT PIANO'!C20 -> 0 | D11: =+'2) OUTPUT PIANO'!D20 -> 0 | E11: =+'2) OUTPUT PIANO'!D20 -> 0 | F11: =+'2) OUTPUT PIANO'!F20 -> 0 | G11: =+'2) OUTPUT PIANO'!G20 -> 0 | H11: =+'2) OUTPUT PIANO'!H20 -> 0 | I11: =+'2) OUTPUT PIANO'!I20 -> 0 | J11: =+'2) OUTPUT PIANO'!J20 -> 0 | K11: =+'2) OUTPUT PIANO'!K20 -> 0 | L11: =+'2) OUTPUT PIANO'!L20 -> 100000 | M11: 0 | N11: S | O11: =IF(O10="0","0",IF(O10="E","0",IF('1) INPUT MUTUO'!$C$46="NO",'3) VERIFICA IP MORA-ESTINZIONE'!N11,IF(A11>='1) INPUT MUTUO'!$C$51,"E",'3) VERIFICA IP MORA-ESTINZIONE'!N11)))) -> S | P11: =IF(O11="0",0,IF('1) INPUT MUTUO'!$D$15="RATA",IF(O11="N",M11,IF(O11="S",0,IF(O11="E",0,"ERRORE"))),IF(O11="N",D11,IF(O11="S",0,IF(O11="E",0,"ERRORE"))))) -> 0 | Q11: 0 | R11: 0 | S11: =+IF(P11>0,'1) INPUT MUTUO'!$D$16,0) -> 0 | T11: =IF(O11="0",0,(R11*Q11*'1) INPUT MUTUO'!$D$14/'1) INPUT MUTUO'!$D$13)) -> 0 | U11: 113144.5917 | V11: =+IF(O11="0",0,'1) INPUT MUTUO'!$C$50+'1) INPUT MUTUO'!$C$49+'1) INPUT MUTUO'!$C$48*'3) VERIFICA IP MORA-ESTINZIONE'!L10+'1) INPUT MUTUO'!$C$47*'3) VERIFICA IP MORA-ESTINZIONE'!U11) -> 11314.45917 | W11: =IF(O11="E",'1) INPUT MUTUO'!$C$51,IF(O10="E","0",IF(W10="0","0",A11))) -> 2010-01-01 | X11: 0
A12: =+'2) OUTPUT PIANO'!A21 -> 2010-01-01 | B12: =+'2) OUTPUT PIANO'!B21 -> preammortamento | C12: =+'2) OUTPUT PIANO'!C21 -> 0 | D12: =+'2) OUTPUT PIANO'!D21 -> 0 | E12: =+'2) OUTPUT PIANO'!D21 -> 0 | F12: =+'2) OUTPUT PIANO'!F21 -> 0 | G12: =+'2) OUTPUT PIANO'!G21 -> 0 | H12: =+'2) OUTPUT PIANO'!H21 -> 0 | I12: =+'2) OUTPUT PIANO'!I21 -> 0 | J12: =+'2) OUTPUT PIANO'!J21 -> 0 | K12: =+'2) OUTPUT PIANO'!K21 -> 0 | L12: =+'2) OUTPUT PIANO'!L21 -> 100000 | M12: 0 | N12: s | O12: =IF(O11="0","0",IF(O11="E","0",IF('1) INPUT MUTUO'!$C$46="NO",'3) VERIFICA IP MORA-ESTINZIONE'!N12,IF(A12>='1) INPUT MUTUO'!$C$51,"E",'3) VERIFICA IP MORA-ESTINZIONE'!N12)))) -> s | P12: =IF(O12="0",0,IF('1) INPUT MUTUO'!$D$15="RATA",IF(O12="N",M12,IF(O12="S",0,IF(O12="E",0,"ERRORE"))),IF(O12="N",D12,IF(O12="S",0,IF(O12="E",0,"ERRORE"))))) -> 0 | Q12: 0 | R12: 0 | S12: =+IF(P12>0,'1) INPUT MUTUO'!$D$16,0) -> 0 | T12: =IF(O12="0",0,(R12*Q12*'1) INPUT MUTUO'!$D$14/'1) INPUT MUTUO'!$D$13)) -> 0 | U12: 113144.5917 | V12: =+IF(O12="0",0,'1) INPUT MUTUO'!$C$50+'1) INPUT MUTUO'!$C$49+'1) INPUT MUTUO'!$C$48*'3) VERIFICA IP MORA-ESTINZIONE'!L11+'1) INPUT MUTUO'!$C$47*'3) VERIFICA IP MORA-ESTINZIONE'!U12) -> 11314.45917 | W12: =IF(O12="E",'1) INPUT MUTUO'!$C$51,IF(O11="E","0",IF(W11="0","0",A12))) -> 2010-01-01 | X12: 0
A13: =+'2) OUTPUT PIANO'!A22 -> 2010-01-01 | B13: =+'2) OUTPUT PIANO'!B22 -> preammortamento | C13: =+'2) OUTPUT PIANO'!C22 -> 0 | D13: =+'2) OUTPUT PIANO'!D22 -> 0 | E13: =+'2) OUTPUT PIANO'!D22 -> 0 | F13: =+'2) OUTPUT PIANO'!F22 -> 0 | G13: =+'2) OUTPUT PIANO'!G22 -> 0 | H13: =+'2) OUTPUT PIANO'!H22 -> 0 | I13: =+'2) OUTPUT PIANO'!I22 -> 0 | J13: =+'2) OUTPUT PIANO'!J22 -> 0 | K13: =+'2) OUTPUT PIANO'!K22 -> 0 | L13: =+'2) OUTPUT PIANO'!L22 -> 100000 | M13: 0 | N13: s | O13: =IF(O12="0","0",IF(O12="E","0",IF('1) INPUT MUTUO'!$C$46="NO",'3) VERIFICA IP MORA-ESTINZIONE'!N13,IF(A13>='1) INPUT MUTUO'!$C$51,"E",'3) VERIFICA IP MORA-ESTINZIONE'!N13)))) -> s | P13: =IF(O13="0",0,IF('1) INPUT MUTUO'!$D$15="RATA",IF(O13="N",M13,IF(O13="S",0,IF(O13="E",0,"ERRORE"))),IF(O13="N",D13,IF(O13="S",0,IF(O13="E",0,"ERRORE"))))) -> 0 | Q13: 0 | R13: 0 | S13: =+IF(P13>0,'1) INPUT MUTUO'!$D$16,0) -> 0 | T13: =IF(O13="0",0,(R13*Q13*'1) INPUT MUTUO'!$D$14/'1) INPUT MUTUO'!$D$13)) -> 0 | U13: 113144.5917 | V13: =+IF(O13="0",0,'1) INPUT MUTUO'!$C$50+'1) INPUT MUTUO'!$C$49+'1) INPUT MUTUO'!$C$48*'3) VERIFICA IP MORA-ESTINZIONE'!L12+'1) INPUT MUTUO'!$C$47*'3) VERIFICA IP MORA-ESTINZIONE'!U13) -> 11314.45917 | W13: =IF(O13="E",'1) INPUT MUTUO'!$C$51,IF(O12="E","0",IF(W12="0","0",A13))) -> 2010-01-01 | X13: 0
A14: =+'2) OUTPUT PIANO'!A23 -> 2010-01-01 | B14: =+'2) OUTPUT PIANO'!B23 -> preammortamento | C14: =+'2) OUTPUT PIANO'!C23 -> 0 | D14: =+'2) OUTPUT PIANO'!D23 -> 0 | E14: =+'2) OUTPUT PIANO'!D23 -> 0 | F14: =+'2) OUTPUT PIANO'!F23 -> 0 | G14: =+'2) OUTPUT PIANO'!G23 -> 0 | H14: =+'2) OUTPUT PIANO'!H23 -> 0 | I14: =+'2) OUTPUT PIANO'!I23 -> 0 | J14: =+'2) OUTPUT PIANO'!J23 -> 0 | K14: =+'2) OUTPUT PIANO'!K23 -> 0 | L14: =+'2) OUTPUT PIANO'!L23 -> 100000 | M14: 0 | N14: s | O14: =IF(O13="0","0",IF(O13="E","0",IF('1) INPUT MUTUO'!$C$46="NO",'3) VERIFICA IP MORA-ESTINZIONE'!N14,IF(A14>='1) INPUT MUTUO'!$C$51,"E",'3) VERIFICA IP MORA-ESTINZIONE'!N14)))) -> s | P14: =IF(O14="0",0,IF('1) INPUT MUTUO'!$D$15="RATA",IF(O14="N",M14,IF(O14="S",0,IF(O14="E",0,"ERRORE"))),IF(O14="N",D14,IF(O14="S",0,IF(O14="E",0,"ERRORE"))))) -> 0 | Q14: 0 | R14: 0 | S14: =+IF(P14>0,'1) INPUT MUTUO'!$D$16,0) -> 0 | T14: =IF(O14="0",0,(R14*Q14*'1) INPUT MUTUO'!$D$14/'1) INPUT MUTUO'!$D$13)) -> 0 | U14: 113144.5917 | V14: =+IF(O14="0",0,'1) INPUT MUTUO'!$C$50+'1) INPUT MUTUO'!$C$49+'1) INPUT MUTUO'!$C$48*'3) VERIFICA IP MORA-ESTINZIONE'!L13+'1) INPUT MUTUO'!$C$47*'3) VERIFICA IP MORA-ESTINZIONE'!U14) -> 11314.45917 | W14: =IF(O14="E",'1) INPUT MUTUO'!$C$51,IF(O13="E","0",IF(W13="0","0",A14))) -> 2010-01-01 | X14: 0
A15: =+'2) OUTPUT PIANO'!A24 -> 2010-01-01 | B15: =+'2) OUTPUT PIANO'!B24 -> preammortamento | C15: =+'2) OUTPUT PIANO'!C24 -> 0 | D15: =+'2) OUTPUT PIANO'!D24 -> 0 | E15: =+'2) OUTPUT PIANO'!D24 -> 0 | F15: =+'2) OUTPUT PIANO'!F24 -> 0 | G15: =+'2) OUTPUT PIANO'!G24 -> 0 | H15: =+'2) OUTPUT PIANO'!H24 -> 0 | I15: =+'2) OUTPUT PIANO'!I24 -> 0 | J15: =+'2) OUTPUT PIANO'!J24 -> 0 | K15: =+'2) OUTPUT PIANO'!K24 -> 0 | L15: =+'2) OUTPUT PIANO'!L24 -> 100000 | M15: 0 | N15: s | O15: =IF(O14="0","0",IF(O14="E","0",IF('1) INPUT MUTUO'!$C$46="NO",'3) VERIFICA IP MORA-ESTINZIONE'!N15,IF(A15>='1) INPUT MUTUO'!$C$51,"E",'3) VERIFICA IP MORA-ESTINZIONE'!N15)))) -> s | P15: =IF(O15="0",0,IF('1) INPUT MUTUO'!$D$15="RATA",IF(O15="N",M15,IF(O15="S",0,IF(O15="E",0,"ERRORE"))),IF(O15="N",D15,IF(O15="S",0,IF(O15="E",0,"ERRORE"))))) -> 0 | Q15: 0 | R15: 0 | S15: =+IF(P15>0,'1) INPUT MUTUO'!$D$16,0) -> 0 | T15: =IF(O15="0",0,(R15*Q15*'1) INPUT MUTUO'!$D$14/'1) INPUT MUTUO'!$D$13)) -> 0 | U15: 113144.5917 | V15: =+IF(O15="0",0,'1) INPUT MUTUO'!$C$50+'1) INPUT MUTUO'!$C$49+'1) INPUT MUTUO'!$C$48*'3) VERIFICA IP MORA-ESTINZIONE'!L14+'1) INPUT MUTUO'!$C$47*'3) VERIFICA IP MORA-ESTINZIONE'!U15) -> 11314.45917 | W15: =IF(O15="E",'1) INPUT MUTUO'!$C$51,IF(O14="E","0",IF(W14="0","0",A15))) -> 2010-01-01 | X15: 0
A16: =+'2) OUTPUT PIANO'!A25 -> 2010-01-01 | B16: =+'2) OUTPUT PIANO'!B25 -> preammortamento | C16: =+'2) OUTPUT PIANO'!C25 -> 0 | D16: =+'2) OUTPUT PIANO'!D25 -> 0 | E16: =+'2) OUTPUT PIANO'!D25 -> 0 | F16: =+'2) OUTPUT PIANO'!F25 -> 0 | G16: =+'2) OUTPUT PIANO'!G25 -> 0 | H16: =+'2) OUTPUT PIANO'!H25 -> 0 | I16: =+'2) OUTPUT PIANO'!I25 -> 0 | J16: =+'2) OUTPUT PIANO'!J25 -> 0 | K16: =+'2) OUTPUT PIANO'!K25 -> 0 | L16: =+'2) OUTPUT PIANO'!L25 -> 100000 | M16: 0 | N16: s | O16: =IF(O15="0","0",IF(O15="E","0",IF('1) INPUT MUTUO'!$C$46="NO",'3) VERIFICA IP MORA-ESTINZIONE'!N16,IF(A16>='1) INPUT MUTUO'!$C$51,"E",'3) VERIFICA IP MORA-ESTINZIONE'!N16)))) -> s | P16: =IF(O16="0",0,IF('1) INPUT MUTUO'!$D$15="RATA",IF(O16="N",M16,IF(O16="S",0,IF(O16="E",0,"ERRORE"))),IF(O16="N",D16,IF(O16="S",0,IF(O16="E",0,"ERRORE"))))) -> 0 | Q16: 0 | R16: 0 | S16: =+IF(P16>0,'1) INPUT MUTUO'!$D$16,0) -> 0 | T16: =IF(O16="0",0,(R16*Q16*'1) INPUT MUTUO'!$D$14/'1) INPUT MUTUO'!$D$13)) -> 0 | U16: 113144.5917 | V16: =+IF(O16="0",0,'1) INPUT MUTUO'!$C$50+'1) INPUT MUTUO'!$C$49+'1) INPUT MUTUO'!$C$48*'3) VERIFICA IP MORA-ESTINZIONE'!L15+'1) INPUT MUTUO'!$C$47*'3) VERIFICA IP MORA-ESTINZIONE'!U16) -> 11314.45917 | W16: =IF(O16="E",'1) INPUT MUTUO'!$C$51,IF(O15="E","0",IF(W15="0","0",A16))) -> 2010-01-01 | X16: 0
A17: =+'2) OUTPUT PIANO'!A26 -> 2010-01-01 | B17: =+'2) OUTPUT PIANO'!B26 -> preammortamento | C17: =+'2) OUTPUT PIANO'!C26 -> 0 | D17: =+'2) OUTPUT PIANO'!D26 -> 0 | E17: =+'2) OUTPUT PIANO'!D26 -> 0 | F17: =+'2) OUTPUT PIANO'!F26 -> 0 | G17: =+'2) OUTPUT PIANO'!G26 -> 0 | H17: =+'2) OUTPUT PIANO'!H26 -> 0 | I17: =+'2) OUTPUT PIANO'!I26 -> 0 | J17: =+'2) OUTPUT PIANO'!J26 -> 0 | K17: =+'2) OUTPUT PIANO'!K26 -> 0 | L17: =+'2) OUTPUT PIANO'!L26 -> 100000 | M17: 0 | N17: s | O17: =IF(O16="0","0",IF(O16="E","0",IF('1) INPUT MUTUO'!$C$46="NO",'3) VERIFICA IP MORA-ESTINZIONE'!N17,IF(A17>='1) INPUT MUTUO'!$C$51,"E",'3) VERIFICA IP MORA-ESTINZIONE'!N17)))) -> s | P17: =IF(O17="0",0,IF('1) INPUT MUTUO'!$D$15="RATA",IF(O17="N",M17,IF(O17="S",0,IF(O17="E",0,"ERRORE"))),IF(O17="N",D17,IF(O17="S",0,IF(O17="E",0,"ERRORE"))))) -> 0 | Q17: 0 | R17: 0 | S17: =+IF(P17>0,'1) INPUT MUTUO'!$D$16,0) -> 0 | T17: =IF(O17="0",0,(R17*Q17*'1) INPUT MUTUO'!$D$14/'1) INPUT MUTUO'!$D$13)) -> 0 | U17: 113144.5917 | V17: =+IF(O17="0",0,'1) INPUT MUTUO'!$C$50+'1) INPUT MUTUO'!$C$49+'1) INPUT MUTUO'!$C$48*'3) VERIFICA IP MORA-ESTINZIONE'!L16+'1) INPUT MUTUO'!$C$47*'3) VERIFICA IP MORA-ESTINZIONE'!U17) -> 11314.45917 | W17: =IF(O17="E",'1) INPUT MUTUO'!$C$51,IF(O16="E","0",IF(W16="0","0",A17))) -> 2010-01-01 | X17: 0
A18: =+'2) OUTPUT PIANO'!A27 -> 2010-01-01 | B18: =+'2) OUTPUT PIANO'!B27 -> preammortamento | C18: =+'2) OUTPUT PIANO'!C27 -> 0 | D18: =+'2) OUTPUT PIANO'!D27 -> 0 | E18: =+'2) OUTPUT PIANO'!D27 -> 0 | F18: =+'2) OUTPUT PIANO'!F27 -> 0 | G18: =+'2) OUTPUT PIANO'!G27 -> 0 | H18: =+'2) OUTPUT PIANO'!H27 -> 0 | I18: =+'2) OUTPUT PIANO'!I27 -> 0 | J18: =+'2) OUTPUT PIANO'!J27 -> 0 | K18: =+'2) OUTPUT PIANO'!K27 -> 0 | L18: =+'2) OUTPUT PIANO'!L27 -> 100000 | M18: 0 | N18: s | O18: =IF(O17="0","0",IF(O17="E","0",IF('1) INPUT MUTUO'!$C$46="NO",'3) VERIFICA IP MORA-ESTINZIONE'!N18,IF(A18>='1) INPUT MUTUO'!$C$51,"E",'3) VERIFICA IP MORA-ESTINZIONE'!N18)))) -> s | P18: =IF(O18="0",0,IF('1) INPUT MUTUO'!$D$15="RATA",IF(O18="N",M18,IF(O18="S",0,IF(O18="E",0,"ERRORE"))),IF(O18="N",D18,IF(O18="S",0,IF(O18="E",0,"ERRORE"))))) -> 0 | Q18: 0 | R18: 0 | S18: =+IF(P18>0,'1) INPUT MUTUO'!$D$16,0) -> 0 | T18: =IF(O18="0",0,(R18*Q18*'1) INPUT MUTUO'!$D$14/'1) INPUT MUTUO'!$D$13)) -> 0 | U18: 113144.5917 | V18: =+IF(O18="0",0,'1) INPUT MUTUO'!$C$50+'1) INPUT MUTUO'!$C$49+'1) INPUT MUTUO'!$C$48*'3) VERIFICA IP MORA-ESTINZIONE'!L17+'1) INPUT MUTUO'!$C$47*'3) VERIFICA IP MORA-ESTINZIONE'!U18) -> 11314.45917 | W18: =IF(O18="E",'1) INPUT MUTUO'!$C$51,IF(O17="E","0",IF(W17="0","0",A18))) -> 2010-01-01 | X18: 0
A19: =+'2) OUTPUT PIANO'!A28 -> 2010-01-01 | B19: =+'2) OUTPUT PIANO'!B28 -> preammortamento | C19: =+'2) OUTPUT PIANO'!C28 -> 0 | D19: =+'2) OUTPUT PIANO'!D28 -> 0 | E19: =+'2) OUTPUT PIANO'!D28 -> 0 | F19: =+'2) OUTPUT PIANO'!F28 -> 0 | G19: =+'2) OUTPUT PIANO'!G28 -> 0 | H19: =+'2) OUTPUT PIANO'!H28 -> 0 | I19: =+'2) OUTPUT PIANO'!I28 -> 0 | J19: =+'2) OUTPUT PIANO'!J28 -> 0 | K19: =+'2) OUTPUT PIANO'!K28 -> 0 | L19: =+'2) OUTPUT PIANO'!L28 -> 100000 | M19: 0 | N19: s | O19: =IF(O18="0","0",IF(O18="E","0",IF('1) INPUT MUTUO'!$C$46="NO",'3) VERIFICA IP MORA-ESTINZIONE'!N19,IF(A19>='1) INPUT MUTUO'!$C$51,"E",'3) VERIFICA IP MORA-ESTINZIONE'!N19)))) -> s | P19: =IF(O19="0",0,IF('1) INPUT MUTUO'!$D$15="RATA",IF(O19="N",M19,IF(O19="S",0,IF(O19="E",0,"ERRORE"))),IF(O19="N",D19,IF(O19="S",0,IF(O19="E",0,"ERRORE"))))) -> 0 | Q19: =IF(P19=0,0,Q18+P19) -> 0 | R19: 0 | S19: =+IF(P19>0,'1) INPUT MUTUO'!$D$16,0) -> 0 | T19: =IF(O19="0",0,(R19*Q19*'1) INPUT MUTUO'!$D$14/'1) INPUT MUTUO'!$D$13)) -> 0 | U19: 113144.5917 | V19: =+IF(O19="0",0,'1) INPUT MUTUO'!$C$50+'1) INPUT MUTUO'!$C$49+'1) INPUT MUTUO'!$C$48*'3) VERIFICA IP MORA-ESTINZIONE'!L18+'1) INPUT MUTUO'!$C$47*'3) VERIFICA IP MORA-ESTINZIONE'!U19) -> 11314.45917 | W19: =IF(O19="E",'1) INPUT MUTUO'!$C$51,IF(O18="E","0",IF(W18="0","0",A19))) -> 2010-01-01 | X19: 0
A20: =+'2) OUTPUT PIANO'!A29 -> 2010-01-01 | B20: =+'2) OUTPUT PIANO'!B29 -> preammortamento | C20: =+'2) OUTPUT PIANO'!C29 -> 0 | D20: =+'2) OUTPUT PIANO'!D29 -> 0 | E20: =+'2) OUTPUT PIANO'!D29 -> 0 | F20: =+'2) OUTPUT PIANO'!F29 -> 0 | G20: =+'2) OUTPUT PIANO'!G29 -> 0 | H20: =+'2) OUTPUT PIANO'!H29 -> 0 | I20: =+'2) OUTPUT PIANO'!I29 -> 0 | J20: =+'2) OUTPUT PIANO'!J29 -> 0 | K20: =+'2) OUTPUT PIANO'!K29 -> 0 | L20: =+'2) OUTPUT PIANO'!L29 -> 100000 | M20: 0 | N20: s | O20: =IF(O19="0","0",IF(O19="E","0",IF('1) INPUT MUTUO'!$C$46="NO",'3) VERIFICA IP MORA-ESTINZIONE'!N20,IF(A20>='1) INPUT MUTUO'!$C$51,"E",'3) VERIFICA IP MORA-ESTINZIONE'!N20)))) -> s | P20: =IF(O20="0",0,IF('1) INPUT MUTUO'!$D$15="RATA",IF(O20="N",M20,IF(O20="S",0,IF(O20="E",0,"ERRORE"))),IF(O20="N",D20,IF(O20="S",0,IF(O20="E",0,"ERRORE"))))) -> 0 | Q20: 0 | R20: 0 | S20: =+IF(P20>0,'1) INPUT MUTUO'!$D$16,0) -> 0 | T20: =IF(O20="0",0,(R20*Q20*'1) INPUT MUTUO'!$D$14/'1) INPUT MUTUO'!$D$13)) -> 0 | U20: 113144.5917 | V20: =+IF(O20="0",0,'1) INPUT MUTUO'!$C$50+'1) INPUT MUTUO'!$C$49+'1) INPUT MUTUO'!$C$48*'3) VERIFICA IP MORA-ESTINZIONE'!L19+'1) INPUT MUTUO'!$C$47*'3) VERIFICA IP MORA-ESTINZIONE'!U20) -> 11314.45917 | W20: =IF(O20="E",'1) INPUT MUTUO'!$C$51,IF(O19="E","0",IF(W19="0","0",A20))) -> 2010-01-01 | X20: 0
A21: =+'2) OUTPUT PIANO'!A30 -> 2010-02-01 | B21: =+'2) OUTPUT PIANO'!B30 -> 1 | C21: =+'2) OUTPUT PIANO'!C30 -> 0 | D21: =+'2) OUTPUT PIANO'!D30 -> 881.4459165 | E21: =+'2) OUTPUT PIANO'!E30 -> 250 | F21: =+'2) OUTPUT PIANO'!F30 -> 1131.445917 | G21: =+'2) OUTPUT PIANO'!G30 -> 0 | H21: =+'2) OUTPUT PIANO'!H30 -> 0 | I21: =+'2) OUTPUT PIANO'!I30 -> 0 | J21: =+'2) OUTPUT PIANO'!J30 -> 0 | K21: =+'2) OUTPUT PIANO'!K30 -> -1131.445917 | L21: =+'2) OUTPUT PIANO'!L30 -> 99118.55408 | M21: 1131.445917 | N21: s | O21: =IF(O20="0","0",IF(O20="E","0",IF('1) INPUT MUTUO'!$C$46="NO",'3) VERIFICA IP MORA-ESTINZIONE'!N21,IF(A21>='1) INPUT MUTUO'!$C$51,"E",'3) VERIFICA IP MORA-ESTINZIONE'!N21)))) -> s | P21: =IF(O21="0",0,IF('1) INPUT MUTUO'!$D$15="RATA",IF(O21="N",M21,IF(O21="S",0,IF(O21="E",0,"ERRORE"))),IF(O21="N",D21,IF(O21="S",0,IF(O21="E",0,"ERRORE"))))) -> 0 | Q21: 0 | R21: 0 | S21: =+IF(P21>0,'1) INPUT MUTUO'!$D$16,0) -> 0 | T21: =IF(O21="0",0,(R21*Q21*'1) INPUT MUTUO'!$D$14/'1) INPUT MUTUO'!$D$13)) -> 0 | U21: 112013.1457 | V21: =+IF(O21="0",0,'1) INPUT MUTUO'!$C$50+'1) INPUT MUTUO'!$C$49+'1) INPUT MUTUO'!$C$48*'3) VERIFICA IP MORA-ESTINZIONE'!L20+'1) INPUT MUTUO'!$C$47*'3) VERIFICA IP MORA-ESTINZIONE'!U21) -> 11201.31457 | W21: =IF(O21="E",'1) INPUT MUTUO'!$C$51,IF(O20="E","0",IF(W20="0","0",A21))) -> 2010-02-01 | X21: -1131.445917
A22: =+'2) OUTPUT PIANO'!A31 -> 2010-03-01 | B22: =+'2) OUTPUT PIANO'!B31 -> 2 | C22: =+'2) OUTPUT PIANO'!C31 -> 0 | D22: =+'2) OUTPUT PIANO'!D31 -> 883.6495313 | E22: =+'2) OUTPUT PIANO'!E31 -> 247.7963852 | F22: =+'2) OUTPUT PIANO'!F31 -> 1131.445917 | G22: =+'2) OUTPUT PIANO'!G31 -> 0 | H22: =+'2) OUTPUT PIANO'!H31 -> 0 | I22: =+'2) OUTPUT PIANO'!I31 -> 0 | J22: =+'2) OUTPUT PIANO'!J31 -> 0 | K22: =+'2) OUTPUT PIANO'!K31 -> -1131.445917 | L22: =+'2) OUTPUT PIANO'!L31 -> 98234.90455 | M22: 1131.445917 | N22: s | O22: =IF(O21="0","0",IF(O21="E","0",IF('1) INPUT MUTUO'!$C$46="NO",'3) VERIFICA IP MORA-ESTINZIONE'!N22,IF(A22>='1) INPUT MUTUO'!$C$51,"E",'3) VERIFICA IP MORA-ESTINZIONE'!N22)))) -> s | P22: =IF(O22="0",0,IF('1) INPUT MUTUO'!$D$15="RATA",IF(O22="N",M22,IF(O22="S",0,IF(O22="E",0,"ERRORE"))),IF(O22="N",D22,IF(O22="S",0,IF(O22="E",0,"ERRORE"))))) -> 0 | Q22: 0 | R22: 0 | S22: =+IF(P22>0,'1) INPUT MUTUO'!$D$16,0) -> 0 | T22: =IF(O22="0",0,(R22*Q22*'1) INPUT MUTUO'!$D$14/'1) INPUT MUTUO'!$D$13)) -> 0 | U22: 110881.6998 | V22: =+IF(O22="0",0,'1) INPUT MUTUO'!$C$50+'1) INPUT MUTUO'!$C$49+'1) INPUT MUTUO'!$C$48*'3) VERIFICA IP MORA-ESTINZIONE'!L21+'1) INPUT MUTUO'!$C$47*'3) VERIFICA IP MORA-ESTINZIONE'!U22) -> 11088.16998 | W22: =IF(O22="E",'1) INPUT MUTUO'!$C$51,IF(O21="E","0",IF(W21="0","0",A22))) -> 2010-03-01 | X22: -1131.445917
A23: =+'2) OUTPUT PIANO'!A32 -> 2010-04-01 | B23: =+'2) OUTPUT PIANO'!B32 -> 3 | C23: =+'2) OUTPUT PIANO'!C32 -> 0 | D23: =+'2) OUTPUT PIANO'!D32 -> 885.8586551 | E23: =+'2) OUTPUT PIANO'!E32 -> 245.5872614 | F23: =+'2) OUTPUT PIANO'!F32 -> 1131.445917 | G23: =+'2) OUTPUT PIANO'!G32 -> 0 | H23: =+'2) OUTPUT PIANO'!H32 -> 0 | I23: =+'2) OUTPUT PIANO'!I32 -> 0 | J23: =+'2) OUTPUT PIANO'!J32 -> 0 | K23: =+'2) OUTPUT PIANO'!K32 -> -1131.445917 | L23: =+'2) OUTPUT PIANO'!L32 -> 97349.0459 | M23: 1131.445917 | N23: s | O23: =IF(O22="0","0",IF(O22="E","0",IF('1) INPUT MUTUO'!$C$46="NO",'3) VERIFICA IP MORA-ESTINZIONE'!N23,IF(A23>='1) INPUT MUTUO'!$C$51,"E",'3) VERIFICA IP MORA-ESTINZIONE'!N23)))) -> s | P23: =IF(O23="0",0,IF('1) INPUT MUTUO'!$D$15="RATA",IF(O23="N",M23,IF(O23="S",0,IF(O23="E",0,"ERRORE"))),IF(O23="N",D23,IF(O23="S",0,IF(O23="E",0,"ERRORE"))))) -> 0 | Q23: 0 | R23: 0 | S23: =+IF(P23>0,'1) INPUT MUTUO'!$D$16,0) -> 0 | T23: =IF(O23="0",0,(R23*Q23*'1) INPUT MUTUO'!$D$14/'1) INPUT MUTUO'!$D$13)) -> 0 | U23: 109750.2539 | V23: =+IF(O23="0",0,'1) INPUT MUTUO'!$C$50+'1) INPUT MUTUO'!$C$49+'1) INPUT MUTUO'!$C$48*'3) VERIFICA IP MORA-ESTINZIONE'!L22+'1) INPUT MUTUO'!$C$47*'3) VERIFICA IP MORA-ESTINZIONE'!U23) -> 10975.02539 | W23: =IF(O23="E",'1) INPUT MUTUO'!$C$51,IF(O22="E","0",IF(W22="0","0",A23))) -> 2010-04-01 | X23: -1131.445917
A24: =+'2) OUTPUT PIANO'!A33 -> 2010-05-01 | B24: =+'2) OUTPUT PIANO'!B33 -> 4 | C24: =+'2) OUTPUT PIANO'!C33 -> 0 | D24: =+'2) OUTPUT PIANO'!D33 -> 888.0733018 | E24: =+'2) OUTPUT PIANO'!E33 -> 243.3726147 | F24: =+'2) OUTPUT PIANO'!F33 -> 1131.445917 | G24: =+'2) OUTPUT PIANO'!G33 -> 0 | H24: =+'2) OUTPUT PIANO'!H33 -> 0 | I24: =+'2) OUTPUT PIANO'!I33 -> 0 | J24: =+'2) OUTPUT PIANO'!J33 -> 0 | K24: =+'2) OUTPUT PIANO'!K33 -> -1131.445917 | L24: =+'2) OUTPUT PIANO'!L33 -> 96460.9726 | M24: 1131.445917 | N24: s | O24: =IF(O23="0","0",IF(O23="E","0",IF('1) INPUT MUTUO'!$C$46="NO",'3) VERIFICA IP MORA-ESTINZIONE'!N24,IF(A24>='1) INPUT MUTUO'!$C$51,"E",'3) VERIFICA IP MORA-ESTINZIONE'!N24)))) -> s | P24: =IF(O24="0",0,IF('1) INPUT MUTUO'!$D$15="RATA",IF(O24="N",M24,IF(O24="S",0,IF(O24="E",0,"ERRORE"))),IF(O24="N",D24,IF(O24="S",0,IF(O24="E",0,"ERRORE"))))) -> 0 | Q24: 0 | R24: 0 | S24: =+IF(P24>0,'1) INPUT MUTUO'!$D$16,0) -> 0 | T24: =IF(O24="0",0,(R24*Q24*'1) INPUT MUTUO'!$D$14/'1) INPUT MUTUO'!$D$13)) -> 0 | U24: 108618.808 | V24: =+IF(O24="0",0,'1) INPUT MUTUO'!$C$50+'1) INPUT MUTUO'!$C$49+'1) INPUT MUTUO'!$C$48*'3) VERIFICA IP MORA-ESTINZIONE'!L23+'1) INPUT MUTUO'!$C$47*'3) VERIFICA IP MORA-ESTINZIONE'!U24) -> 10861.8808 | W24: =IF(O24="E",'1) INPUT MUTUO'!$C$51,IF(O23="E","0",IF(W23="0","0",A24))) -> 2010-05-01 | X24: -1131.445917
A25: =+'2) OUTPUT PIANO'!A34 -> 2010-06-01 | B25: =+'2) OUTPUT PIANO'!B34 -> 5 | C25: =+'2) OUTPUT PIANO'!C34 -> 0 | D25: =+'2) OUTPUT PIANO'!D34 -> 890.293485 | E25: =+'2) OUTPUT PIANO'!E34 -> 241.1524315 | F25: =+'2) OUTPUT PIANO'!F34 -> 1131.445917 | G25: =+'2) OUTPUT PIANO'!G34 -> 0 | H25: =+'2) OUTPUT PIANO'!H34 -> 0 | I25: =+'2) OUTPUT PIANO'!I34 -> 0 | J25: =+'2) OUTPUT PIANO'!J34 -> 0 | K25: =+'2) OUTPUT PIANO'!K34 -> -1131.445917 | L25: =+'2) OUTPUT PIANO'!L34 -> 95570.67911 | M25: 1131.445917 | N25: s | O25: =IF(O24="0","0",IF(O24="E","0",IF('1) INPUT MUTUO'!$C$46="NO",'3) VERIFICA IP MORA-ESTINZIONE'!N25,IF(A25>='1) INPUT MUTUO'!$C$51,"E",'3) VERIFICA IP MORA-ESTINZIONE'!N25)))) -> s | P25: =IF(O25="0",0,IF('1) INPUT MUTUO'!$D$15="RATA",IF(O25="N",M25,IF(O25="S",0,IF(O25="E",0,"ERRORE"))),IF(O25="N",D25,IF(O25="S",0,IF(O25="E",0,"ERRORE"))))) -> 0 | Q25: 0 | R25: 0 | S25: =+IF(P25>0,'1) INPUT MUTUO'!$D$16,0) -> 0 | T25: =IF(O25="0",0,(R25*Q25*'1) INPUT MUTUO'!$D$14/'1) INPUT MUTUO'!$D$13)) -> 0 | U25: 107487.3621 | V25: =+IF(O25="0",0,'1) INPUT MUTUO'!$C$50+'1) INPUT MUTUO'!$C$49+'1) INPUT MUTUO'!$C$48*'3) VERIFICA IP MORA-ESTINZIONE'!L24+'1) INPUT MUTUO'!$C$47*'3) VERIFICA IP MORA-ESTINZIONE'!U25) -> 10748.73621 | W25: =IF(O25="E",'1) INPUT MUTUO'!$C$51,IF(O24="E","0",IF(W24="0","0",A25))) -> 2010-06-01 | X25: -1131.445917
A26: =+'2) OUTPUT PIANO'!A35 -> 2010-07-01 | B26: =+'2) OUTPUT PIANO'!B35 -> 6 | C26: =+'2) OUTPUT PIANO'!C35 -> 0 | D26: =+'2) OUTPUT PIANO'!D35 -> 892.5192187 | E26: =+'2) OUTPUT PIANO'!E35 -> 238.9266978 | F26: =+'2) OUTPUT PIANO'!F35 -> 1131.445917 | G26: =+'2) OUTPUT PIANO'!G35 -> 0 | H26: =+'2) OUTPUT PIANO'!H35 -> 0 | I26: =+'2) OUTPUT PIANO'!I35 -> 0 | J26: =+'2) OUTPUT PIANO'!J35 -> 0 | K26: =+'2) OUTPUT PIANO'!K35 -> -1131.445917 | L26: =+'2) OUTPUT PIANO'!L35 -> 94678.15989 | M26: 1131.445917 | N26: s | O26: =IF(O25="0","0",IF(O25="E","0",IF('1) INPUT MUTUO'!$C$46="NO",'3) VERIFICA IP MORA-ESTINZIONE'!N26,IF(A26>='1) INPUT MUTUO'!$C$51,"E",'3) VERIFICA IP MORA-ESTINZIONE'!N26)))) -> s | P26: =IF(O26="0",0,IF('1) INPUT MUTUO'!$D$15="RATA",IF(O26="N",M26,IF(O26="S",0,IF(O26="E",0,"ERRORE"))),IF(O26="N",D26,IF(O26="S",0,IF(O26="E",0,"ERRORE"))))) -> 0 | Q26: 0 | R26: 0 | S26: =+IF(P26>0,'1) INPUT MUTUO'!$D$16,0) -> 0 | T26: =IF(O26="0",0,(R26*Q26*'1) INPUT MUTUO'!$D$14/'1) INPUT MUTUO'!$D$13)) -> 0 | U26: 106355.9162 | V26: =+IF(O26="0",0,'1) INPUT MUTUO'!$C$50+'1) INPUT MUTUO'!$C$49+'1) INPUT MUTUO'!$C$48*'3) VERIFICA IP MORA-ESTINZIONE'!L25+'1) INPUT MUTUO'!$C$47*'3) VERIFICA IP MORA-ESTINZIONE'!U26) -> 10635.59162 | W26: =IF(O26="E",'1) INPUT MUTUO'!$C$51,IF(O25="E","0",IF(W25="0","0",A26))) -> 2010-07-01 | X26: -1131.445917
A27: =+'2) OUTPUT PIANO'!A36 -> 2010-08-01 | B27: =+'2) OUTPUT PIANO'!B36 -> 7 | C27: =+'2) OUTPUT PIANO'!C36 -> 0 | D27: =+'2) OUTPUT PIANO'!D36 -> 894.7505168 | E27: =+'2) OUTPUT PIANO'!E36 -> 236.6953997 | F27: =+'2) OUTPUT PIANO'!F36 -> 1131.445917 | G27: =+'2) OUTPUT PIANO'!G36 -> 0 | H27: =+'2) OUTPUT PIANO'!H36 -> 0 | I27: =+'2) OUTPUT PIANO'!I36 -> 0 | J27: =+'2) OUTPUT PIANO'!J36 -> 0 | K27: =+'2) OUTPUT PIANO'!K36 -> -1131.445917 | L27: =+'2) OUTPUT PIANO'!L36 -> 93783.40937 | M27: 1131.445917 | N27: s | O27: =IF(O26="0","0",IF(O26="E","0",IF('1) INPUT MUTUO'!$C$46="NO",'3) VERIFICA IP MORA-ESTINZIONE'!N27,IF(A27>='1) INPUT MUTUO'!$C$51,"E",'3) VERIFICA IP MORA-ESTINZIONE'!N27)))) -> s | P27: =IF(O27="0",0,IF('1) INPUT MUTUO'!$D$15="RATA",IF(O27="N",M27,IF(O27="S",0,IF(O27="E",0,"ERRORE"))),IF(O27="N",D27,IF(O27="S",0,IF(O27="E",0,"ERRORE"))))) -> 0 | Q27: 0 | R27: 0 | S27: =+IF(P27>0,'1) INPUT MUTUO'!$D$16,0) -> 0 | T27: =IF(O27="0",0,(R27*Q27*'1) INPUT MUTUO'!$D$14/'1) INPUT MUTUO'!$D$13)) -> 0 | U27: 105224.4702 | V27: =+IF(O27="0",0,'1) INPUT MUTUO'!$C$50+'1) INPUT MUTUO'!$C$49+'1) INPUT MUTUO'!$C$48*'3) VERIFICA IP MORA-ESTINZIONE'!L26+'1) INPUT MUTUO'!$C$47*'3) VERIFICA IP MORA-ESTINZIONE'!U27) -> 10522.44702 | W27: =IF(O27="E",'1) INPUT MUTUO'!$C$51,IF(O26="E","0",IF(W26="0","0",A27))) -> 2010-08-01 | X27: -1131.445917
A28: =+'2) OUTPUT PIANO'!A37 -> 2010-09-01 | B28: =+'2) OUTPUT PIANO'!B37 -> 8 | C28: =+'2) OUTPUT PIANO'!C37 -> 0 | D28: =+'2) OUTPUT PIANO'!D37 -> 896.9873931 | E28: =+'2) OUTPUT PIANO'!E37 -> 234.4585234 | F28: =+'2) OUTPUT PIANO'!F37 -> 1131.445917 | G28: =+'2) OUTPUT PIANO'!G37 -> 0 | H28: =+'2) OUTPUT PIANO'!H37 -> 0 | I28: =+'2) OUTPUT PIANO'!I37 -> 0 | J28: =+'2) OUTPUT PIANO'!J37 -> 0 | K28: =+'2) OUTPUT PIANO'!K37 -> -1131.445917 | L28: =+'2) OUTPUT PIANO'!L37 -> 92886.42198 | M28: 1131.445917 | N28: s | O28: =IF(O27="0","0",IF(O27="E","0",IF('1) INPUT MUTUO'!$C$46="NO",'3) VERIFICA IP MORA-ESTINZIONE'!N28,IF(A28>='1) INPUT MUTUO'!$C$51,"E",'3) VERIFICA IP MORA-ESTINZIONE'!N28)))) -> s | P28: =IF(O28="0",0,IF('1) INPUT MUTUO'!$D$15="RATA",IF(O28="N",M28,IF(O28="S",0,IF(O28="E",0,"ERRORE"))),IF(O28="N",D28,IF(O28="S",0,IF(O28="E",0,"ERRORE"))))) -> 0 | Q28: 0 | R28: 0 | S28: =+IF(P28>0,'1) INPUT MUTUO'!$D$16,0) -> 0 | T28: =IF(O28="0",0,(R28*Q28*'1) INPUT MUTUO'!$D$14/'1) INPUT MUTUO'!$D$13)) -> 0 | U28: 104093.0243 | V28: =+IF(O28="0",0,'1) INPUT MUTUO'!$C$50+'1) INPUT MUTUO'!$C$49+'1) INPUT MUTUO'!$C$48*'3) VERIFICA IP MORA-ESTINZIONE'!L27+'1) INPUT MUTUO'!$C$47*'3) VERIFICA IP MORA-ESTINZIONE'!U28) -> 10409.30243 | W28: =IF(O28="E",'1) INPUT MUTUO'!$C$51,IF(O27="E","0",IF(W27="0","0",A28))) -> 2010-09-01 | X28: -1131.445917
A29: =+'2) OUTPUT PIANO'!A38 -> 2010-10-01 | B29: =+'2) OUTPUT PIANO'!B38 -> 9 | C29: =+'2) OUTPUT PIANO'!C38 -> 0 | D29: =+'2) OUTPUT PIANO'!D38 -> 899.2298616 | E29: =+'2) OUTPUT PIANO'!E38 -> 232.216055 | F29: =+'2) OUTPUT PIANO'!F38 -> 1131.445917 | G29: =+'2) OUTPUT PIANO'!G38 -> 0 | H29: =+'2) OUTPUT PIANO'!H38 -> 0 | I29: =+'2) OUTPUT PIANO'!I38 -> 0 | J29: =+'2) OUTPUT PIANO'!J38 -> 0 | K29: =+'2) OUTPUT PIANO'!K38 -> -1131.445917 | L29: =+'2) OUTPUT PIANO'!L38 -> 91987.19212 | M29: 1131.445917 | N29: s | O29: =IF(O28="0","0",IF(O28="E","0",IF('1) INPUT MUTUO'!$C$46="NO",'3) VERIFICA IP MORA-ESTINZIONE'!N29,IF(A29>='1) INPUT MUTUO'!$C$51,"E",'3) VERIFICA IP MORA-ESTINZIONE'!N29)))) -> s | P29: =IF(O29="0",0,IF('1) INPUT MUTUO'!$D$15="RATA",IF(O29="N",M29,IF(O29="S",0,IF(O29="E",0,"ERRORE"))),IF(O29="N",D29,IF(O29="S",0,IF(O29="E",0,"ERRORE"))))) -> 0 | Q29: 0 | R29: 0 | S29: =+IF(P29>0,'1) INPUT MUTUO'!$D$16,0) -> 0 | T29: =IF(O29="0",0,(R29*Q29*'1) INPUT MUTUO'!$D$14/'1) INPUT MUTUO'!$D$13)) -> 0 | U29: 102961.5784 | V29: =+IF(O29="0",0,'1) INPUT MUTUO'!$C$50+'1) INPUT MUTUO'!$C$49+'1) INPUT MUTUO'!$C$48*'3) VERIFICA IP MORA-ESTINZIONE'!L28+'1) INPUT MUTUO'!$C$47*'3) VERIFICA IP MORA-ESTINZIONE'!U29) -> 10296.15784 | W29: =IF(O29="E",'1) INPUT MUTUO'!$C$51,IF(O28="E","0",IF(W28="0","0",A29))) -> 2010-10-01 | X29: -1131.445917
A30: =+'2) OUTPUT PIANO'!A39 -> 2010-11-01 | B30: =+'2) OUTPUT PIANO'!B39 -> 10 | C30: =+'2) OUTPUT PIANO'!C39 -> 0 | D30: =+'2) OUTPUT PIANO'!D39 -> 901.4779362 | E30: =+'2) OUTPUT PIANO'!E39 -> 229.9679803 | F30: =+'2) OUTPUT PIANO'!F39 -> 1131.445917 | G30: =+'2) OUTPUT PIANO'!G39 -> 0 | H30: =+'2) OUTPUT PIANO'!H39 -> 0 | I30: =+'2) OUTPUT PIANO'!I39 -> 0 | J30: =+'2) OUTPUT PIANO'!J39 -> 0 | K30: =+'2) OUTPUT PIANO'!K39 -> -1131.445917 | L30: =+'2) OUTPUT PIANO'!L39 -> 91085.71418 | M30: 1131.445917 | N30: s | O30: =IF(O29="0","0",IF(O29="E","0",IF('1) INPUT MUTUO'!$C$46="NO",'3) VERIFICA IP MORA-ESTINZIONE'!N30,IF(A30>='1) INPUT MUTUO'!$C$51,"E",'3) VERIFICA IP MORA-ESTINZIONE'!N30)))) -> s | P30: =IF(O30="0",0,IF('1) INPUT MUTUO'!$D$15="RATA",IF(O30="N",M30,IF(O30="S",0,IF(O30="E",0,"ERRORE"))),IF(O30="N",D30,IF(O30="S",0,IF(O30="E",0,"ERRORE"))))) -> 0 | Q30: 0 | R30: 0 | S30: =+IF(P30>0,'1) INPUT MUTUO'!$D$16,0) -> 0 | T30: =IF(O30="0",0,(R30*Q30*'1) INPUT MUTUO'!$D$14/'1) INPUT MUTUO'!$D$13)) -> 0 | U30: 101830.1325 | V30: =+IF(O30="0",0,'1) INPUT MUTUO'!$C$50+'1) INPUT MUTUO'!$C$49+'1) INPUT MUTUO'!$C$48*'3) VERIFICA IP MORA-ESTINZIONE'!L29+'1) INPUT MUTUO'!$C$47*'3) VERIFICA IP MORA-ESTINZIONE'!U30) -> 10183.01325 | W30: =IF(O30="E",'1) INPUT MUTUO'!$C$51,IF(O29="E","0",IF(W29="0","0",A30))) -> 2010-11-01 | X30: -1131.445917
A31: =+'2) OUTPUT PIANO'!A40 -> 2010-12-01 | B31: =+'2) OUTPUT PIANO'!B40 -> 11 | C31: =+'2) OUTPUT PIANO'!C40 -> 0 | D31: =+'2) OUTPUT PIANO'!D40 -> 903.7316311 | E31: =+'2) OUTPUT PIANO'!E40 -> 227.7142855 | F31: =+'2) OUTPUT PIANO'!F40 -> 1131.445917 | G31: =+'2) OUTPUT PIANO'!G40 -> 0 | H31: =+'2) OUTPUT PIANO'!H40 -> 0 | I31: =+'2) OUTPUT PIANO'!I40 -> 0 | J31: =+'2) OUTPUT PIANO'!J40 -> 0 | K31: =+'2) OUTPUT PIANO'!K40 -> -1131.445917 | L31: =+'2) OUTPUT PIANO'!L40 -> 90181.98255 | M31: 1131.445917 | N31: s | O31: =IF(O30="0","0",IF(O30="E","0",IF('1) INPUT MUTUO'!$C$46="NO",'3) VERIFICA IP MORA-ESTINZIONE'!N31,IF(A31>='1) INPUT MUTUO'!$C$51,"E",'3) VERIFICA IP MORA-ESTINZIONE'!N31)))) -> s | P31: =IF(O31="0",0,IF('1) INPUT MUTUO'!$D$15="RATA",IF(O31="N",M31,IF(O31="S",0,IF(O31="E",0,"ERRORE"))),IF(O31="N",D31,IF(O31="S",0,IF(O31="E",0,"ERRORE"))))) -> 0 | Q31: 0 | R31: 0 | S31: =+IF(P31>0,'1) INPUT MUTUO'!$D$16,0) -> 0 | T31: =IF(O31="0",0,(R31*Q31*'1) INPUT MUTUO'!$D$14/'1) INPUT MUTUO'!$D$13)) -> 0 | U31: 100698.6866 | V31: =+IF(O31="0",0,'1) INPUT MUTUO'!$C$50+'1) INPUT MUTUO'!$C$49+'1) INPUT MUTUO'!$C$48*'3) VERIFICA IP MORA-ESTINZIONE'!L30+'1) INPUT MUTUO'!$C$47*'3) VERIFICA IP MORA-ESTINZIONE'!U31) -> 10069.86866 | W31: =IF(O31="E",'1) INPUT MUTUO'!$C$51,IF(O30="E","0",IF(W30="0","0",A31))) -> 2010-12-01 | X31: =IF(W31="0",0,IF(O31="E",IF(W31=A31,-L31-M31-V31-S31-T30,-L30-V30-T30),-M31-S31-T30)) -> -1131.445917
A32: =+'2) OUTPUT PIANO'!A41 -> 2011-01-01 | B32: =+'2) OUTPUT PIANO'!B41 -> 12 | C32: =+'2) OUTPUT PIANO'!C41 -> 0 | D32: =+'2) OUTPUT PIANO'!D41 -> 905.9909601 | E32: =+'2) OUTPUT PIANO'!E41 -> 225.4549564 | F32: =+'2) OUTPUT PIANO'!F41 -> 1131.445917 | G32: =+'2) OUTPUT PIANO'!G41 -> 0 | H32: =+'2) OUTPUT PIANO'!H41 -> 0 | I32: =+'2) OUTPUT PIANO'!I41 -> 0 | J32: =+'2) OUTPUT PIANO'!J41 -> 0 | K32: =+'2) OUTPUT PIANO'!K41 -> -1131.445917 | L32: =+'2) OUTPUT PIANO'!L41 -> 89275.99159 | M32: 1131.445917 | N32: s | O32: =IF(O31="0","0",IF(O31="E","0",IF('1) INPUT MUTUO'!$C$46="NO",'3) VERIFICA IP MORA-ESTINZIONE'!N32,IF(A32>='1) INPUT MUTUO'!$C$51,"E",'3) VERIFICA IP MORA-ESTINZIONE'!N32)))) -> s | P32: =IF(O32="0",0,IF('1) INPUT MUTUO'!$D$15="RATA",IF(O32="N",M32,IF(O32="S",0,IF(O32="E",0,"ERRORE"))),IF(O32="N",D32,IF(O32="S",0,IF(O32="E",0,"ERRORE"))))) -> 0 | Q32: 0 | R32: 0 | S32: =+IF(P32>0,'1) INPUT MUTUO'!$D$16,0) -> 0 | T32: =IF(O32="0",0,(R32*Q32*'1) INPUT MUTUO'!$D$14/'1) INPUT MUTUO'!$D$13)) -> 0 | U32: 99567.24065 | V32: =+IF(O32="0",0,'1) INPUT MUTUO'!$C$50+'1) INPUT MUTUO'!$C$49+'1) INPUT MUTUO'!$C$48*'3) VERIFICA IP MORA-ESTINZIONE'!L31+'1) INPUT MUTUO'!$C$47*'3) VERIFICA IP MORA-ESTINZIONE'!U32) -> 9956.724065 | W32: =IF(O32="E",'1) INPUT MUTUO'!$C$51,IF(O31="E","0",IF(W31="0","0",A32))) -> 2011-01-01 | X32: -1131.445917
A33: =+'2) OUTPUT PIANO'!A42 -> 2011-02-01 | B33: =+'2) OUTPUT PIANO'!B42 -> 13 | C33: =+'2) OUTPUT PIANO'!C42 -> 0 | D33: =+'2) OUTPUT PIANO'!D42 -> 908.2559375 | E33: =+'2) OUTPUT PIANO'!E42 -> 223.189979 | F33: =+'2) OUTPUT PIANO'!F42 -> 1131.445917 | G33: =+'2) OUTPUT PIANO'!G42 -> 0 | H33: =+'2) OUTPUT PIANO'!H42 -> 0 | I33: =+'2) OUTPUT PIANO'!I42 -> 0 | J33: =+'2) OUTPUT PIANO'!J42 -> 0 | K33: =+'2) OUTPUT PIANO'!K42 -> -1131.445917 | L33: =+'2) OUTPUT PIANO'!L42 -> 88367.73566 | M33: 1131.445917 | N33: s | O33: =IF(O32="0","0",IF(O32="E","0",IF('1) INPUT MUTUO'!$C$46="NO",'3) VERIFICA IP MORA-ESTINZIONE'!N33,IF(A33>='1) INPUT MUTUO'!$C$51,"E",'3) VERIFICA IP MORA-ESTINZIONE'!N33)))) -> s | P33: =IF(O33="0",0,IF('1) INPUT MUTUO'!$D$15="RATA",IF(O33="N",M33,IF(O33="S",0,IF(O33="E",0,"ERRORE"))),IF(O33="N",D33,IF(O33="S",0,IF(O33="E",0,"ERRORE"))))) -> 0 | Q33: 0 | R33: 0 | S33: =+IF(P33>0,'1) INPUT MUTUO'!$D$16,0) -> 0 | T33: =IF(O33="0",0,(R33*Q33*'1) INPUT MUTUO'!$D$14/'1) INPUT MUTUO'!$D$13)) -> 0 | U33: 98435.79474 | V33: =+IF(O33="0",0,'1) INPUT MUTUO'!$C$50+'1) INPUT MUTUO'!$C$49+'1) INPUT MUTUO'!$C$48*'3) VERIFICA IP MORA-ESTINZIONE'!L32+'1) INPUT MUTUO'!$C$47*'3) VERIFICA IP MORA-ESTINZIONE'!U33) -> 9843.579474 | W33: =IF(O33="E",'1) INPUT MUTUO'!$C$51,IF(O32="E","0",IF(W32="0","0",A33))) -> 2011-02-01 | X33: -1131.445917
A34: =+'2) OUTPUT PIANO'!A43 -> 2011-03-01 | B34: =+'2) OUTPUT PIANO'!B43 -> 14 | C34: =+'2) OUTPUT PIANO'!C43 -> 0 | D34: =+'2) OUTPUT PIANO'!D43 -> 910.5265774 | E34: =+'2) OUTPUT PIANO'!E43 -> 220.9193391 | F34: =+'2) OUTPUT PIANO'!F43 -> 1131.445917 | G34: =+'2) OUTPUT PIANO'!G43 -> 0 | H34: =+'2) OUTPUT PIANO'!H43 -> 0 | I34: =+'2) OUTPUT PIANO'!I43 -> 0 | J34: =+'2) OUTPUT PIANO'!J43 -> 0 | K34: =+'2) OUTPUT PIANO'!K43 -> -1131.445917 | L34: =+'2) OUTPUT PIANO'!L43 -> 87457.20908 | M34: 1131.445917 | N34: s | O34: =IF(O33="0","0",IF(O33="E","0",IF('1) INPUT MUTUO'!$C$46="NO",'3) VERIFICA IP MORA-ESTINZIONE'!N34,IF(A34>='1) INPUT MUTUO'!$C$51,"E",'3) VERIFICA IP MORA-ESTINZIONE'!N34)))) -> s | P34: =IF(O34="0",0,IF('1) INPUT MUTUO'!$D$15="RATA",IF(O34="N",M34,IF(O34="S",0,IF(O34="E",0,"ERRORE"))),IF(O34="N",D34,IF(O34="S",0,IF(O34="E",0,"ERRORE"))))) -> 0 | Q34: 0 | R34: 0 | S34: =+IF(P34>0,'1) INPUT MUTUO'!$D$16,0) -> 0 | T34: =IF(O34="0",0,(R34*Q34*'1) INPUT MUTUO'!$D$14/'1) INPUT MUTUO'!$D$13)) -> 0 | U34: 97304.34882 | V34: =+IF(O34="0",0,'1) INPUT MUTUO'!$C$50+'1) INPUT MUTUO'!$C$49+'1) INPUT MUTUO'!$C$48*'3) VERIFICA IP MORA-ESTINZIONE'!L33+'1) INPUT MUTUO'!$C$47*'3) VERIFICA IP MORA-ESTINZIONE'!U34) -> 9730.434882 | W34: =IF(O34="E",'1) INPUT MUTUO'!$C$51,IF(O33="E","0",IF(W33="0","0",A34))) -> 2011-03-01 | X34: -1131.445917
A35: =+'2) OUTPUT PIANO'!A44 -> 2011-04-01 | B35: =+'2) OUTPUT PIANO'!B44 -> 15 | C35: =+'2) OUTPUT PIANO'!C44 -> 0 | D35: =+'2) OUTPUT PIANO'!D44 -> 912.8028938 | E35: =+'2) OUTPUT PIANO'!E44 -> 218.6430227 | F35: =+'2) OUTPUT PIANO'!F44 -> 1131.445917 | G35: =+'2) OUTPUT PIANO'!G44 -> 0 | H35: =+'2) OUTPUT PIANO'!H44 -> 0 | I35: =+'2) OUTPUT PIANO'!I44 -> 0 | J35: =+'2) OUTPUT PIANO'!J44 -> 0 | K35: =+'2) OUTPUT PIANO'!K44 -> -1131.445917 | L35: =+'2) OUTPUT PIANO'!L44 -> 86544.40618 | M35: 1131.445917 | N35: s | O35: =IF(O34="0","0",IF(O34="E","0",IF('1) INPUT MUTUO'!$C$46="NO",'3) VERIFICA IP MORA-ESTINZIONE'!N35,IF(A35>='1) INPUT MUTUO'!$C$51,"E",'3) VERIFICA IP MORA-ESTINZIONE'!N35)))) -> s | P35: =IF(O35="0",0,IF('1) INPUT MUTUO'!$D$15="RATA",IF(O35="N",M35,IF(O35="S",0,IF(O35="E",0,"ERRORE"))),IF(O35="N",D35,IF(O35="S",0,IF(O35="E",0,"ERRORE"))))) -> 0 | Q35: 0 | R35: 0 | S35: =+IF(P35>0,'1) INPUT MUTUO'!$D$16,0) -> 0 | T35: =IF(O35="0",0,(R35*Q35*'1) INPUT MUTUO'!$D$14/'1) INPUT MUTUO'!$D$13)) -> 0 | U35: 96172.9029 | V35: =+IF(O35="0",0,'1) INPUT MUTUO'!$C$50+'1) INPUT MUTUO'!$C$49+'1) INPUT MUTUO'!$C$48*'3) VERIFICA IP MORA-ESTINZIONE'!L34+'1) INPUT MUTUO'!$C$47*'3) VERIFICA IP MORA-ESTINZIONE'!U35) -> 9617.29029 | W35: =IF(O35="E",'1) INPUT MUTUO'!$C$51,IF(O34="E","0",IF(W34="0","0",A35))) -> 2011-04-01 | X35: -1131.445917
